Workbook

Sheet Arbeitsbereich
A1: Ausgangswerte Getriebe Gesamt | C1: Gang einlegen: | D1: 1.Gang | G1: Ausgangswerte Getriebestufe 1 | M1: Ausgangswerte Getriebestufe 2 (Gang 1) | S1: Ausgangswerte Getriebestufe 3 (Gang 2) | Y1: Ausgangswelle | AE1: Eingangswerte
A2: Bezeichnung | B2: Formelzeichen | C2: Quelle | D2: Werte | G2: Bezeichnung | H2: Formelzeichen | I2: Quelle | J2: Werte | M2: Bezeichnung | N2: Formelzeichen | O2: Quelle | P2: Werte | S2: Bezeichnung | T2: Formelzeichen | U2: Quelle | V2: Werte | Y2: Bezeichnung | Z2: Formelzeichen | AA2: Quelle | AB2: Werte | AE2: Bezeichnung | AF2: Formelzeichen | AG2: Quelle | AH2: Werte
A4: Getriebe gesamt | G4: Wirkungsgrade; Drehzahlen & Momente | M4: Wirkungsgrade; Drehzahlen & Momente | S4: Wirkungsgrade; Drehzahlen & Momente | Y4: Wirkungsgrade; Drehzahlen & Momente | AE4: Rahmendaten
G5: Wirkungsgrad | M5: Wirkungsgrad | S5: Wirkungsgrad | Y5: Wirkungsgrad | AE5: Getriebe für | AG5: AB | AH5: Werkzeugmaschine
A6: Wirkungsgrad | G6: Getriebestufenwirkungsgrad | H6: η1 | I6: Gl. 20.5 | J6: =($AH$39^AH48)*($AH$40^AH49)*(AH41^AH50) -> 0.9702 | M6: Getriebestufenwirkungsgrad | N6: η2 | O6: Gl. 20.5 | P6: =($AH$39^AH52)*($AH$40^AH53)*(AH41^AH54) -> 0.9603 | S6: Getriebestufenwirkungsgrad | T6: η3 | U6: Gl. 20.5 | V6: =($AH$39^AH52)*($AH$40^AH53)*(AH41^AH54) -> 0.9603 | Y6: Getriebestufenwirkungsgrad | Z6: η3 | AA6: Gl. 20.5 | AB6: =($AH$39^AH56)*($AH$40^AH57)*(AH41^AH58) -> 0.941094
A7: Getriebewirkungsgrad | B7: ηges | C7: Gl. 20.5 | D7: =($AH$39^$AH$44)*($AH$40^$AH$45)*(AH41^$AH$46) -> 0.8768013377 | G7: Eingangsleistung | M7: Eingangsleistung | S7: Eingangsleistung | Y7: Eingangsleistung | AE7: Getriebestufen | AG7: AB | AH7: 3
G8: abgenommene Eingangsleistung [W] | H8: P1zu | J8: =D10*J6 -> 13278.26441 | M8: abgenommene Eingangsleistung [W] | N8: P2zu | P8: =J8*P6 -> 12751.11732 | S8: abgenommene Eingangsleistung [W] | T8: P3zu | V8: =J8*V6 -> 12751.11732 | Y8: abgenommene Eingangsleistung [W] | Z8: P3zu | AB8: =V8*AB6 -> 12000 | AE8: Mindestabtriebsleistung [W] | AF8: Pab | AG8: AB | AH8: 12000 | AI8: #1
A9: Eingangsleistung | G9: tatsächliche Eingangsleistung [W] | H9: P1zu | J9: =D11*J6 -> 14553 | M9: tatsächliche Eingangsleistung [W] | N9: P2zu | P9: =J9*P6 -> 13975.2459 | S9: tatsächliche Eingangsleistung [W] | T9: P3zu | V9: =J9*V6 -> 13975.2459 | Y9: tatsächliche Eingangsleistung [W] | Z9: P3zu | AB9: =V9*AB6 -> 13152.02007 | AE9: Gesamt-Übersetzung 1.Gang | AF9: iges,gefordert,1.Gang | AG9: AB | AH9: 9 | AI9: #2
A10: benötigte Eingangsleistung [W] | B10: Pzu | D10: =AH8/D7 -> 13686.11051 | G10: Übersetzung | M10: Übersetzung | S10: Übersetzung | AE10: Gesamt-Übersetzung 2.Gang | AF10: iges,gefordert,2.Gang | AG10: AB | AH10: 7 | AI10: #3
A11: tatsächliche Eingangsleistung [W] | B11: Pzu | D11: =AH17 -> 15000 | G11: =A25 -> Getriebestufe 1 gewählt | H11: i1 | J11: =J27 -> 3.090909091 | M11: =A26 -> Getriebestufe 2 gewählt | N11: i2 | P11: =P27 -> 2.913043478 | S11: =A27 -> Getriebestufe 3 gewählt | T11: i3 | V11: =D27 -> 2.25 | AE11: Übersetzungstoleranz | AG11: AB | AH11: 0.02 | AI11: #4
G12: Drehzahlen | M12: Drehzahlen | S12: Drehzahlen | Y12: Drehzahlen | AE12: Massenträgheitsmoment Arbeitsmaschine [kg*m²] | AF12: JArbeitsmaschine | AG12: AB | AH12: 2 | AI12: #5
A13: Ausgangsleistung | G13: Antriebsdrehzahl [1/min] | H13: n1zu | J13: =D34 -> 1425 | M13: Antriebsdrehzahl [1/min] | N13: n2zu | P13: =J14 -> 461.0294118 | S13: Antriebsdrehzahl [1/min] | T13: n3zu | V13: =J14 -> 461.0294118 | Y13: Antriebsdrehzahl [1/min] | Z13: n3zu | AB13: =V14 -> 204.9019608
A14: benötigte Ausgangsleistung [W] | B14: =AF8 -> Pab | C14: =AG8 -> AB | D14: =AH8 -> 12000 | G14: Abtriebsdrehzahl [1/min] | H14: n1ab | J14: =J13/J27 -> 461.0294118 | M14: Abtriebsdrehzahl [1/min] | N14: n2ab | P14: =P13/P27 -> 158.2638279 | S14: Abtriebsdrehzahl [1/min] | T14: n3ab | V14: =V13/V27 -> 204.9019608 | Y14: Abtriebsdrehzahl [1/min] | Z14: n3ab | AB14: =AB13 -> 204.9019608 | AE14: Antriebsmaschine | AG14: AB | AH14: Drehstromasynchronmotor | AI14: #6
A15: tatsächliche Ausgangsleistung [W] | B15: Pab | D15: =D11*D7 -> 13152.02007 | G15: Umfangsgeschwindigkeit am Betriebswälzkreis [m/s] | H15: vt1 | I15: FS 21.66 | J15: =(J182/1000)*PI()*(J13/60) -> 5.289474281 | M15: Umfangsgeschwindigkeit am Betriebswälzkreis [m/s] | N15: vt2 | O15: FS 21.66 | P15: =(P182/1000)*PI()*(P13/60) -> 1.789082426 | S15: Umfangsgeschwindigkeit am Betriebswälzkreis [m/s] | T15: vt3 | U15: FS 21.66 | V15: =(V182/1000)*PI()*(V13/60) -> 2.154032273 | AE15: Synchronantriebsdrehzahl [1/min] | AF15: nE-Motor | AG15: AB | AH15: 1500 | AI15: #7
G16: Drehmomente | M16: Drehmomente | S16: Drehmomente | Y16: Drehmomente | AE16: geschätzter Einbruch Drehzahl unter Last [%] | AG16: TB16-21 | AH16: 5 | AI16: #8
A17: Übersetzung | G17: Antriebsdrehmoment [Nm] | H17: M1zu | J17: =(J8*60)/(2*PI()*J13) -> 88.9811123 | M17: Antriebsdrehmoment [Nm] | N17: M2zu,max | P17: =(P8*60)/(2*PI()*P13) -> 264.1137375 | S17: Antriebsdrehmoment [Nm] | T17: M3zu | V17: =(V8*60)/(2*PI()*V13) -> 264.1137375 | Y17: Antriebsdrehmoment [Nm] | Z17: M3zu | AB17: =V19 -> 559.2506708 | AE17: =>Antriebsleistung [W] | AF17: Pzu | AG17: TB | AH17: 15000 | AI17: #9
A18: gefordert max. | B18: iges.max | D18: =IF(D1="1.Gang",AH9*(1+AH11),IF(D1="2.Gang",AH10*(1+AH11),"Fehler: Gang in Zeile D1 nicht definiert!")) -> 9.18 | G18: Equivalentes Antriebsdrehmoment [Nm] | H18: Teq1,1 | I18: Gl. 11.11 | J18: =J17*$AH$21 -> 120.1245016 | M18: Equivalentes Antriebsdrehmoment [Nm] | N18: Teq1,max.2 | O18: Gl. 11.11 | P18: =P17*$AH$21 -> 356.5535457 | S18: Equivalentes Antriebsdrehmoment [Nm] | T18: Teq1,3 | U18: Gl. 11.11 | V18: =V17*$AH$21 -> 356.5535457 | Y18: Equivalentes Antriebsdrehmoment [Nm] | Z18: Teq1,3 | AA18: Gl. 11.11 | AB18: =AB17*$AH$21 -> 754.9884056 | AE18: Drehrichtung Elektromotor | AH18: Uhrzeigersinn | AI18: #10
A19: gefordert min. | B19: iges.,min | D19: =IF(D1="1.Gang",AH9/(1+AH11),IF(D1="2.Gang",AH10/(1+AH11),"Fehler: Gang in Zeile D1 nicht definiert!")) -> 8.823529412 | G19: Abtriebsdrehmoment [Nm] | H19: M1ab | I19: inklusive Reibverluste | J19: =J17*J27*AH41 -> 266.7815531 | M19: Abtriebsdrehmoment [Nm] | N19: M2ab,max | O19: inklusive Reibverluste | P19: =P17*P27*AB6 -> 724.0540086 | S19: Abtriebsdrehmoment [Nm] | T19: M3ab | U19: inklusive Reibverluste | V19: =V17*V27*AB6 -> 559.2506708 | Y19: Abtriebsdrehmoment [Nm] | Z19: M3ab | AA19: inklusive Reibverluste | AB19: =AB17 -> 559.2506708 | AE19: Belastung | AG19: AB | AH19: wechselnd
A20: Rundungsstellen der Einzel~ | D20: 2 | E20: #32 | AE20: Anwendung | AG20: AB | AH20: häufige Anfahrmomente
A21: Getriebestufe 1 gerundet | B21: i1pre | D21: =ROUND(AH62,D20) -> 3.1 | G21: Grundlegendes | M21: Grundlegendes | S21: Grundlegendes | AE21: =>Anwendungsfaktor gewählt | AF21: KA | AG21: TB 3-5a | AH21: 1.35 | AI21: #11
A22: Getriebestufe 2 gerundet | B22: i2pre | D22: =ROUND(AH63,D20) -> 2.9 | G22: Eingriffswinkel [°] | H22: αN1 | J22: 20 | K22: #42 | M22: Eingriffswinkel [°] | N22: αN2 | P22: 20 | Q22: #43 | S22: Eingriffswinkel [°] | T22: αN2 | V22: 20 | W22: #44
A23: Getriebestufe 3 gerundet | B23: i3pre | D23: =ROUND(AH64,D20) -> 2.26 | G23: =G54 -> Ritzelzähnezahl | H23: =H54 -> z1,1 | J23: =J54 -> 22 | M23: =M54 -> Ritzelzähnezahl | N23: =N54 -> z1,2 | P23: =P54 -> 23 | S23: =S54 -> Ritzelzähnezahl | T23: =T54 -> z1,3 | V23: =V54 -> 28 | AE23: Verzahnungsqualität max. [DIN] | AG23: TB 21-7 | AH23: 5
A24: gesamte ~ | B24: iges,pre | D24: =IF(D1="1.Gang",D21*D22,IF(D1="2.Gang",D21*D23,"Fehler: Gang in Zeile D1 nicht definiert!")) -> 8.99 | G24: Radzähnezahl errechnet | J24: =J23*J26 -> 68.2 | M24: Radzähnezahl errechnet | P24: =P23*P26 -> 66.7 | S24: Radzähnezahl errechnet | V24: =V23*V26 -> 63.28 | AE24: Verzahnungsqualität min. [DIN] | AG24: TB 21-7 | AH24: 10
A25: Getriebestufe 1 gewählt | B25: =H11 -> i1 | D25: =J27 -> 3.090909091 | G25: Radzähnezahl | H25: z2,1 | J25: =ROUND(J24,0) -> 68 | M25: Radzähnezahl | N25: z2,2 | P25: =ROUND(P24,0) -> 67 | S25: Radzähnezahl | T25: z1,3 | V25: =ROUND(V24,0) -> 63 | AE25: hohe Tragfähigkeit | AG25: AB
A26: Getriebestufe 2 gewählt | B26: =N27 -> i2 | D26: =P27 -> 2.913043478 | G26: Übersetzung Soll | H26: =B21 -> i1pre | J26: =D21 -> 3.1 | M26: Übersetzung Soll | N26: =B22 -> i2pre | P26: =D22 -> 2.9 | S26: Übersetzung Soll | T26: =B23 -> i3pre | V26: =D23 -> 2.26 | AE26: =>Summe Profilverschiebungsfaktoren x1+x2 min. | AG26: TB 21-5 | AH26: 0.6 | AI26: #12
A27: Getriebestufe 3 gewählt | B27: =T27 -> i3 | D27: =V27 -> 2.25 | G27: Übersetzung Ist | H27: i1 | J27: =J25/J54 -> 3.090909091 | M27: Übersetzung Ist | N27: i2 | P27: =P25/P54 -> 2.913043478 | S27: Übersetzung Ist | T27: i3 | V27: =V25/V54 -> 2.25 | AE27: =>Summe Profilverschiebungsfaktoren x1+x2 max. | AG27: TB 21-5 | AH27: 1.2 | AI27: #13
G28: Flankenrichtung Ritzel | J28: linkssteigend | K28: #45 | M28: Flankenrichtung Ritzel | P28: linkssteigend | Q28: #46 | S28: Flankenrichtung Ritzel | V28: linkssteigend | W28: #47 | AE28: hohe Laufruhe (/kleine Drehzahl) | AG28: AB
G29: Flankenrichtung Großrad | J29: =IF(J28="linkssteigend","rechtssteigend",IF(J28="rechtssteigend","linkssteigend","Fehler: Flankenrichtung nicht definiert!")) -> rechtssteigend | M29: Flankenrichtung Großrad | P29: =IF(P28="linkssteigend","rechtssteigend",IF(P28="rechtssteigend","linkssteigend","Fehler: Flankenrichtung nicht definiert!")) -> rechtssteigend | S29: Flankenrichtung Großrad | V29: =IF(V28="linkssteigend","rechtssteigend",IF(V28="rechtssteigend","linkssteigend","Fehler: Flankenrichtung nicht definiert!")) -> rechtssteigend
A30: gesamte ~ | B30: iges | D30: =IF(D1="1.Gang",D25*D26,IF(D1="2.Gang",D25*D27,"Fehler: Gang in Zeile D1 nicht definiert!")) -> 9.003952569 | G30: Drehrichtung Ritzel | J30: =AH18 -> Uhrzeigersinn | M30: Drehrichtung Ritzel | P30: =J31 -> Gegenuhrzeigersinn | S30: Drehrichtung Ritzel | V30: =J31 -> Gegenuhrzeigersinn
G31: Drehrichtung Großrad | J31: =IF(J30="Uhrzeigersinn","Gegenuhrzeigersinn",IF(J30="Gegenuhrzeigersinn","Uhrzeigersinn","Fehler: Drehrichtung nicht definiert!")) -> Gegenuhrzeigersinn | M31: Drehrichtung Großrad | P31: =IF(P30="Uhrzeigersinn","Gegenuhrzeigersinn",IF(P30="Gegenuhrzeigersinn","Uhrzeigersinn","Fehler: Drehrichtung nicht definiert!")) -> Uhrzeigersinn | S31: Drehrichtung Großrad | V31: =IF(V30="Uhrzeigersinn","Gegenuhrzeigersinn",IF(V30="Gegenuhrzeigersinn","Uhrzeigersinn","Fehler: Drehrichtung nicht definiert!")) -> Uhrzeigersinn | AE31: =>Ritzelzähnezahl min | AF31: zmin | AG31: TB 21-13 | AH31: 20 | AI31: #14
A32: Drehzahlen | AE32: praktische Mindestzähnezahl | AF32: zGrenz,praktisch | AH32: 14
A33: =IF(AH14="Drehstromasynchronmotor","Asynchrondrehzahl",IF(AH14="Drehstromsynchronmotor","Synchrondrehzahl",)) -> Asynchrondrehzahl | B33: =IF(AH14="Drehstromasynchronmotor","n_E-Motor-asynchron",IF(AH14="Drehstromsynchronmotor","n_E-Motor-synchron",)) -> n_E-Motor-asynchron | D33: =IF(AH14="Drehstromasynchronmotor",AH15*((100-AH16)/100),IF(AH14="Drehstromsynchronmotor",AH15,)) -> 1425 | G33: Auswahl der Werkstoffe | J33: [für Berechnung Empfehlung Modul] | M33: Auswahl der Werkstoffe | P33: [für Berechnung Empfehlung Modul] | S33: Auswahl der Werkstoffe | V33: [für Berechnung Empfehlung Modul]
A34: =AE15 -> Synchronantriebsdrehzahl [1/min] | B34: nE-Motor_belastet | D34: =D33 -> 1425 | G34: Werkstoff Ritzel | H34: =INDEX('Zahnrad-Werkstoffe'!$A$1:$XEY$999,IFERROR(VALUE(LEFT(J$34,3)),IFERROR(VALUE(LEFT(J$34,2)),VALUE(LEFT(J$34,1))))+2,2) -> 20MnCr5 +QT | J34: 28) 20MnCr5 +QT | K34: #48 | M34: Werkstoff Ritzel | N34: =INDEX('Zahnrad-Werkstoffe'!$A$1:$XEY$999,IFERROR(VALUE(LEFT(P$34,3)),IFERROR(VALUE(LEFT(P$34,2)),VALUE(LEFT(P$34,1))))+2,2) -> 20MnCr5 +QT | P34: 28) 20MnCr5 +QT | Q34: #49 | S34: Werkstoff Ritzel | T34: =INDEX('Zahnrad-Werkstoffe'!$A$1:$XEY$999,IFERROR(VALUE(LEFT(V$34,3)),IFERROR(VALUE(LEFT(V$34,2)),VALUE(LEFT(V$34,1))))+2,2) -> 20MnCr5 +QT | V34: 28) 20MnCr5 +QT | W34: #50 | AE34: geforderte nominelle Lebensdauer der Lager [h] | AF34: L10h | AG34: AB | AH34: 10000 | AI34: #15
A35: Abtriebsdrehzahl [1/min] | B35: nArbeitsmaschine | D35: =(D34/D30) -> 158.2638279 | G35: Werkstoff Rad | H35: =INDEX('Zahnrad-Werkstoffe'!$A$1:$XEY$999,IFERROR(VALUE(LEFT(J$35,3)),IFERROR(VALUE(LEFT(J$35,2)),VALUE(LEFT(J$35,1))))+2,2) -> 20MnCr5 +QT | J35: 28) 20MnCr5 +QT | K35: #51 | M35: Werkstoff Rad | N35: =INDEX('Zahnrad-Werkstoffe'!$A$1:$XEY$999,IFERROR(VALUE(LEFT(P$35,3)),IFERROR(VALUE(LEFT(P$35,2)),VALUE(LEFT(P$35,1))))+2,2) -> 20MnCr5 +QT | P35: 28) 20MnCr5 +QT | Q35: #52 | S35: Werkstoff Rad | T35: =INDEX('Zahnrad-Werkstoffe'!$A$1:$XEY$999,IFERROR(VALUE(LEFT(V$35,3)),IFERROR(VALUE(LEFT(V$35,2)),VALUE(LEFT(V$35,1))))+2,2) -> 20MnCr5 +QT | V35: 28) 20MnCr5 +QT | W35: #53 | AE35: Tauchschmierung | AG35: AB
G36: Zahnflanken Gefügezustand Ritzel [gehärtet/ungehärtet] | J36: =INDEX('Zahnrad-Werkstoffe'!$A$1:$XEY$999,IFERROR(VALUE(LEFT(J$34,3)),IFERROR(VALUE(LEFT(J$34,2)),VALUE(LEFT(J$34,1))))+2,3) -> gehärtet | M36: Zahnflanken Gefügezustand Ritzel [gehärtet/ungehärtet] | P36: =INDEX('Zahnrad-Werkstoffe'!$A$1:$XEY$999,IFERROR(VALUE(LEFT(P$34,3)),IFERROR(VALUE(LEFT(P$34,2)),VALUE(LEFT(P$34,1))))+2,3) -> gehärtet | S36: Zahnflanken Gefügezustand Ritzel [gehärtet/ungehärtet] | V36: =INDEX('Zahnrad-Werkstoffe'!$A$1:$XEY$999,IFERROR(VALUE(LEFT(V$34,3)),IFERROR(VALUE(LEFT(V$34,2)),VALUE(LEFT(V$34,1))))+2,3) -> gehärtet | AE36: Umgebungstemperatur [°C] | AG36: ? | AH36: 20
A37: Drehmomente | G37: Zahnflanken Gefügezustand Rad [gehärtet/ungehärtet] | J37: =INDEX('Zahnrad-Werkstoffe'!$A$1:$XEY$999,IFERROR(VALUE(LEFT(J$35,3)),IFERROR(VALUE(LEFT(J$35,2)),VALUE(LEFT(J$35,1))))+2,3) -> gehärtet | M37: Zahnflanken Gefügezustand Rad [gehärtet/ungehärtet] | P37: =INDEX('Zahnrad-Werkstoffe'!$A$1:$XEY$999,IFERROR(VALUE(LEFT(P$35,3)),IFERROR(VALUE(LEFT(P$35,2)),VALUE(LEFT(P$35,1))))+2,3) -> gehärtet | S37: Zahnflanken Gefügezustand Rad [gehärtet/ungehärtet] | V37: =INDEX('Zahnrad-Werkstoffe'!$A$1:$XEY$999,IFERROR(VALUE(LEFT(V$35,3)),IFERROR(VALUE(LEFT(V$35,2)),VALUE(LEFT(V$35,1))))+2,3) -> gehärtet
A38: Antriebsdrehmoment [Nm] | B38: ME-Motor | D38: =(D11*60)/(2*PI()*D34) -> 100.5189114 | G38: Flankenhärte Ritzel | J38: =INDEX('Zahnrad-Werkstoffe'!$A$1:$XEY$999,IFERROR(VALUE(LEFT(J$34,3)),IFERROR(VALUE(LEFT(J$34,2)),VALUE(LEFT(J$34,1))))+2,11) -> 618 | M38: Flankenhärte Ritzel | P38: =INDEX('Zahnrad-Werkstoffe'!$A$1:$XEY$999,IFERROR(VALUE(LEFT(P$34,3)),IFERROR(VALUE(LEFT(P$34,2)),VALUE(LEFT(P$34,1))))+2,11) -> 618 | S38: Flankenhärte Ritzel | V38: =INDEX('Zahnrad-Werkstoffe'!$A$1:$XEY$999,IFERROR(VALUE(LEFT(V$34,3)),IFERROR(VALUE(LEFT(V$34,2)),VALUE(LEFT(V$34,1))))+2,11) -> 618 | AE38: Wirkungsgrad
A39: Abtriebsdrehmoment max. [Nm] | B39: MArbeitsmaschine,max | D39: =(D15*60)/(2*PI()*D35) -> 793.5644041 | G39: Flankenhärte Rad | J39: =INDEX('Zahnrad-Werkstoffe'!$A$1:$XEY$999,IFERROR(VALUE(LEFT(J$35,3)),IFERROR(VALUE(LEFT(J$35,2)),VALUE(LEFT(J$35,1))))+2,11) -> 618 | M39: Flankenhärte Rad | P39: =INDEX('Zahnrad-Werkstoffe'!$A$1:$XEY$999,IFERROR(VALUE(LEFT(P$35,3)),IFERROR(VALUE(LEFT(P$35,2)),VALUE(LEFT(P$35,1))))+2,11) -> 618 | S39: Flankenhärte Rad | V39: =INDEX('Zahnrad-Werkstoffe'!$A$1:$XEY$999,IFERROR(VALUE(LEFT(V$35,3)),IFERROR(VALUE(LEFT(V$35,2)),VALUE(LEFT(V$35,1))))+2,11) -> 618 | AE39: Wirkungsgrad radialer Wellendichtring mit Schmierung | AF39: ηD | AG39: S. 736 | AH39: 0.98 | AI39: #16
G40: Zahnfußfestigkeit Ritzel | H40: σF,lim1,1 | J40: =INDEX('Zahnrad-Werkstoffe'!$A$1:$XEY$999,IFERROR(VALUE(LEFT(J$34,3)),IFERROR(VALUE(LEFT(J$34,2)),VALUE(LEFT(J$34,1))))+2,13) -> 430 | M40: Zahnfußfestigkeit Ritzel | N40: σF,lim1,2 | P40: =INDEX('Zahnrad-Werkstoffe'!$A$1:$XEY$999,IFERROR(VALUE(LEFT(P$34,3)),IFERROR(VALUE(LEFT(P$34,2)),VALUE(LEFT(P$34,1))))+2,13) -> 430 | S40: Zahnfußfestigkeit Ritzel | T40: σF,lim1,3 | V40: =INDEX('Zahnrad-Werkstoffe'!$A$1:$XEY$999,IFERROR(VALUE(LEFT(V$34,3)),IFERROR(VALUE(LEFT(V$34,2)),VALUE(LEFT(V$34,1))))+2,13) -> 430 | AE40: Wirkungsgrad Welle mit 2 Wälzlagern | AF40: ηL | AG40: S. 736 | AH40: 0.99 | AI40: #17
A41: Betriebsachsabstände | G41: Flankenfestigkeit Rad (weicherer Werkstoff) | H41: σH,lim2,1 | J41: =INDEX('Zahnrad-Werkstoffe'!$A$1:$XEY$999,IFERROR(VALUE(LEFT(J$35,3)),IFERROR(VALUE(LEFT(J$35,2)),VALUE(LEFT(J$35,1))))+2,14) -> 1490 | M41: Flankenfestigkeit Rad (weicherer Werkstoff) | N41: σH,lim2,2 | P41: =INDEX('Zahnrad-Werkstoffe'!$A$1:$XEY$999,IFERROR(VALUE(LEFT(P$35,3)),IFERROR(VALUE(LEFT(P$35,2)),VALUE(LEFT(P$35,1))))+2,14) -> 1490 | S41: Flankenfestigkeit Rad (weicherer Werkstoff) | T41: σH,lim2,3 | V41: =INDEX('Zahnrad-Werkstoffe'!$A$1:$XEY$999,IFERROR(VALUE(LEFT(V$35,3)),IFERROR(VALUE(LEFT(V$35,2)),VALUE(LEFT(V$35,1))))+2,14) -> 1490 | AE41: Wirkungsgrad Schräg-Stirnradpaar gewählt | AF41: ηZ,gewählt | AG41: S. 737 | AH41: 0.97 | AI41: #18
A42: Betriebsachsabstand Getriebestufe 1 [mm] | B42: a1 | D42: =J69 -> 145.0069628 | G42: Wärmebehandlung des Ritzels | J42: =INDEX('Zahnrad-Werkstoffe'!$A$1:$XEY$999,IFERROR(VALUE(LEFT(J$34,3)),IFERROR(VALUE(LEFT(J$34,2)),VALUE(LEFT(J$34,1))))+2,4) -> vergütet | M42: Wärmebehandlung des Ritzels | P42: =INDEX('Zahnrad-Werkstoffe'!$A$1:$XEY$999,IFERROR(VALUE(LEFT(P$34,3)),IFERROR(VALUE(LEFT(P$34,2)),VALUE(LEFT(P$34,1))))+2,4) -> vergütet | S42: Wärmebehandlung des Ritzels | V42: =INDEX('Zahnrad-Werkstoffe'!$A$1:$XEY$999,IFERROR(VALUE(LEFT(V$34,3)),IFERROR(VALUE(LEFT(V$34,2)),VALUE(LEFT(V$34,1))))+2,4) -> vergütet
A43: Betriebsachsabstand Getriebestufe 2 [mm] | B43: a2 | D43: =P69 -> 145.006601 | G43: Art der Lagerung des Ritzels | I43: TB21-14a | J43: fliegend | K43: #54 | M43: Art der Lagerung des Ritzels | O43: TB21-14a | P43: unsymmetrisch | Q43: #55 | S43: Art der Lagerung des Ritzels | U43: TB21-14a | V43: unsymmetrisch | W43: #56 | AE43: Getriebe gesamt
A44: Betriebsachsabstand Getriebestufe 3 [mm] | B44: a3 | D44: =V69 -> 145.0034437 | G44: Anwendungsfaktor | H44: KA | I44: TB 3-5a | J44: =$AH$21 -> 1.35 | M44: Anwendungsfaktor | N44: KA | O44: TB 3-5a | P44: =$AH$21 -> 1.35 | S44: Anwendungsfaktor | T44: KA | U44: TB 3-5a | V44: =$AH$21 -> 1.35 | AE44: Anzahl Radiale Wellendichtringe | AG44: AB | AH44: 2 | AI44: #19
G45: Nenntorsionsmoment [Nm] | H45: T1nenn,1 | I45: Gl. 11.11 | J45: =J17 -> 88.9811123 | M45: Nenntorsionsmoment [Nm] | N45: T1nenn,2 | O45: Gl. 11.11 | P45: =P17 -> 264.1137375 | S45: Nenntorsionsmoment [Nm] | T45: T1nenn,3 | U45: Gl. 11.11 | V45: =V17 -> 264.1137375 | AE45: Anzahl Wellen mit 2 Wälzlagern | AG45: AB | AH45: 3 | AI45: #20
A46: Tauchschmierung | G46: Betriebsnennmoment [Nm] | H46: T1eq,1 | I46: FS 21.58 | J46: =J44*J45 -> 120.1245016 | M46: Betriebsnennmoment [Nm] | N46: T1eq,2 | O46: FS 21.58 | P46: =P44*P45 -> 356.5535457 | S46: Betriebsnennmoment [Nm] | T46: T1eq,3 | U46: FS 21.58 | V46: =V44*V45 -> 356.5535457 | AE46: Anzahl Schräg-Stirnradpaare | AG46: AB | AH46: 2 | AI46: #21
A47: Umfangsgeschwindigkeit am Betriebswälzkreis [m/s] | B47: vt1 | C47: FS 21.66 | D47: =J15 -> 5.289474281 | G47: Durchmesser-Breitenverhältnis max. | H47: ψd,max,1 | I47: TB 21-14a | J47: =IF(J43="symmetrisch",HLOOKUP(J42,'TB21-14'!$B$3:$G$7,3,FALSE),IF(J43="unsymmetrisch",HLOOKUP(J42,'TB21-14'!$B$3:$G$7,4,FALSE),IF(J43="fliegend",HLOOKUP(J42,'TB21-14'!$B$3:$G$7,5,FALSE),"Fehler: Art der Lagerung nicht definiert!"))) -> 0.7 | M47: Durchmesser-Breitenverhältnis max. | N47: ψd,max,2 | O47: TB 21-14a | P47: =IF(P43="symmetrisch",HLOOKUP(P42,'TB21-14'!$B$3:$G$7,3,FALSE),IF(P43="unsymmetrisch",HLOOKUP(P42,'TB21-14'!$B$3:$G$7,4,FALSE),IF(P43="fliegend",HLOOKUP(P42,'TB21-14'!$B$3:$G$7,5,FALSE),"Fehler: Art der Lagerung nicht definiert!"))) -> 1.1 | S47: Durchmesser-Breitenverhältnis max. | T47: ψd,max,3 | U47: TB 21-14a | V47: =IF(V43="symmetrisch",HLOOKUP(V42,'TB21-14'!$B$3:$G$7,3,FALSE),IF(V43="unsymmetrisch",HLOOKUP(V42,'TB21-14'!$B$3:$G$7,4,FALSE),IF(V43="fliegend",HLOOKUP(V42,'TB21-14'!$B$3:$G$7,5,FALSE),"Fehler: Art der Lagerung nicht definiert!"))) -> 1.1 | AE47: Welle 1
A48: Umfangsgeschwindigkeit am Betriebswälzkreis [m/s] | B48: vt2 | C48: FS 21.66 | D48: =P15 -> 1.789082426 | G48: Modulbestimmung [mm] | H48: m'''n,max,1 | I48: FS 21.58c (1 oder 2) | J48: =IF(J36="ungehärtet",( ((95*COS((J157/360)*2*PI()))/J93)*( ((J46*1000)/(J47*(J41^2))) * ((J97+1)/J97) )^(1/3) ),( 1.85* (( (((J46*1000)*(COS((J157/360)*2*PI())^2)/((J93^2)*J47*J40)) )^(1/3)) ) ) ) -> 1.671186887 | M48: Modulbestimmung [mm] | N48: m'''n,max,2 | O48: FS 21.58c (1 oder 2) | P48: =IF(P36="ungehärtet",( ((95*COS((P157/360)*2*PI()))/P93)*( ((P46*1000)/(P47*(P41^2))) * ((P97+1)/P97) )^(1/3) ),( 1.85* (( (((P46*1000)*(COS((P157/360)*2*PI())^2)/((P93^2)*P47*P40)) )^(1/3)) ) ) ) -> 2.01331592 | S48: Modulbestimmung [mm] | T48: m'''n,max,3 | U48: FS 21.58c (1 oder 2) | V48: =IF(V36="ungehärtet",( ((95*COS((V157/360)*2*PI()))/V93)*( ((V46*1000)/(V47*(V41^2))) * ((V97+1)/V97) )^(1/3) ),( 1.85* (( (((V46*1000)*(COS((V157/360)*2*PI())^2)/((V93^2)*V47*V40)) )^(1/3)) ) ) ) -> 1.778478715 | AE48: Anzahl Radiale Wellendichtringe | AG48: AB | AH48: 1 | AI48: #22
A49: Umfangsgeschwindigkeit am Betriebswälzkreis [m/s] | B49: vt3 | C49: FS 21.66 | D49: =V15 -> 2.154032273 | AE49: Anzahl Wellen mit 2 Wälzlagern | AG49: AB | AH49: 1 | AI49: #23
A50: höchste Umfangsgeschwindigkeit | B50: vt,max | D50: =MAX(D47:D49) -> 5.289474281 | G50: Null-Achsabstand einstellen | M50: Null-Achsabstand einstellen | S50: Null-Achsabstand einstellen | AE50: Anzahl Schräg-Stirnradpaare | AG50: AB | AH50: 0 | AI50: #24
A51: Schmiermittel ermittelt an vt,max | D51: =IF(D50>=8,"Öl","Fließfett") -> Fließfett | G51: Modul auswählen | J51: Reihe 1) 3 | K51: #57 | M51: Modul auswählen | P51: Reihe 1) 3 | Q51: #58 | S51: Modul auswählen | V51: Reihe 1) 3 | W51: #59 | AE51: Welle 2
A52: Schmiermittel gewählt [Öl] | D52: Öl | E52: #33 | G52: Modul gewählt [mm] | H52: mn1 | J52: =VALUE(REPLACE(J51,1,9,"")) -> 3 | M52: Modul gewählt [mm] | N52: mn2 | P52: =VALUE(REPLACE(P51,1,9,"")) -> 3 | S52: Modul gewählt [mm] | T52: mn3 | V52: =VALUE(REPLACE(V51,1,9,"")) -> 3 | AE52: Anzahl Radiale Wellendichtringe | AG52: AB | AH52: 0 | AI52: #25
A53: Schmiermittel auswählen | D53: Ravenol MZG SAE 80W-90 GL-4 | E53: #34 | G53: Empfehlung Modul max. | H53: m'''n,max.1 | I53: FS 21.58c | J53: =J48 -> 1.671186887 | M53: Empfehlung Modul max. | N53: m'''n,max.2 | O53: FS 21.58c | P53: =P48 -> 2.01331592 | S53: Empfehlung Modul max. | T53: m'''n,max.3 | U53: FS 21.58c | V53: =V48 -> 1.778478715 | AE53: Anzahl Wellen mit 2 Wälzlagern | AG53: AB | AH53: 1 | AI53: #26
A54: Ölart | C54: http://ravenol.de | D54: =VLOOKUP($D$53,'Auswahl Öle'!$A$1:$Z$1000,4,FALSE) -> Mehrbereichsöl | G54: Ritzelzähnezahl | H54: z1,1 | J54: 22 | K54: #60 | M54: Ritzelzähnezahl | N54: z1,2 | P54: 23 | Q54: #61 | S54: Ritzelzähnezahl | T54: z1,3 | V54: 28 | W54: #62 | AE54: Anzahl Schräg-Stirnradpaare | AG54: AB | AH54: 1 | AI54: #27
C55: http://ravenol.de | D55: =VLOOKUP($D$53,'Auswahl Öle'!$A$1:$Z$1000,2,FALSE) -> SAE80W90 | G55: Gewählte Ritzelzähnezahlgrenze | H55: zmin | I55: TB21-13 | J55: =AH31 -> 20 | M55: Gewählte Ritzelzähnezahlgrenze | N55: zmin | O55: TB21-13 | P55: =AH31 -> 20 | S55: Gewählte Ritzelzähnezahlgrenze | T55: zmin | U55: TB21-13 | V55: 20 | AE55: Welle 3
C56: http://ravenol.de | D56: =VLOOKUP($D$53,'Auswahl Öle'!$A$1:$Z$1000,3,FALSE) -> GL-4 | G56: Schrägungswinkel gewählt [°] | H56: β1 | J56: 19 | K56: #63 | M56: Schrägungswinkel gewählt [°] | N56: β2 | P56: 18 | Q56: #64 | S56: Schrägungswinkel gewählt [°] | T56: β3 | V56: 16 | W56: #65 | AE56: Anzahl Radiale Wellendichtringe | AG56: AB | AH56: 1 | AI56: #28
A57: Viskositätsindex | B57: VI | C57: http://ravenol.de | D57: =VLOOKUP($D$53,'Auswahl Öle'!$A$1:$Z$1000,5,FALSE) -> 109 | G57: Mindestschrägungswinkel [°] | H57: β1min | J57: 8 | M57: Mindestschrägungswinkel [°] | N57: β2min | P57: 8 | S57: Mindestschrägungswinkel [°] | T57: β3min | V57: 8 | AE57: Anzahl Wellen mit 2 Wälzlagern | AG57: AB | AH57: 1 | AI57: #29
A58: Viskosität bei 40°C [mm²/s] | B58: v40° | C58: http://ravenol.de | D58: =VLOOKUP($D$53,'Auswahl Öle'!$A$1:$Z$1000,6,FALSE) -> 118.5 | G58: Maximalschrägungswinkel [°] | H58: β1max | J58: 20 | M58: Maximalschrägungswinkel [°] | N58: β2max | P58: 20 | S58: Maximalschrägungswinkel [°] | T58: β3max | V58: 20 | AE58: Anzahl Schräg-Stirnradpaare | AG58: AB | AH58: 1 | AI58: #30
A59: Viskosität bei 100°C [mm²/s] | B59: v100° | C59: http://ravenol.de | D59: =VLOOKUP($D$53,'Auswahl Öle'!$A$1:$Z$1000,7,FALSE) -> 13.4 | G59: Null-Achsabstand [mm] | H59: ad1 | I59: FS 21.37 | J59: =(J180+J181)/2 -> 142.778792 | M59: Null-Achsabstand [mm] | N59: ad2 | O59: FS 21.37 | P59: =(P180+P181)/2 -> 141.9474003 | S59: Null-Achsabstand [mm] | T59: ad3 | U59: FS 21.37 | V59: =(V180+V181)/2 -> 142.000873
A60: Pourpoint [°C] | C60: http://ravenol.de | D60: =VLOOKUP($D$53,'Auswahl Öle'!$A$1:$Z$1000,8,FALSE) -> -33 | G60: Null-Achsabstand Getriebestufe 2 [mm] | H60: ad2 | J60: =P59 -> 141.9474003 | M60: Null-Achsabstand Getriebestufe 1 [mm] | N60: ad1 | P60: =J59 -> 142.778792 | S60: Null-Achsabstand Getriebestufe 1 [mm] | T60: ad1 | V60: =J59 -> 142.778792 | AE60: Übersetzungen
A61: Dichte bei 20°C [kg/m³] | B61: ρ20°C | C61: http://ravenol.de | D61: =VLOOKUP($D$53,'Auswahl Öle'!$A$1:$Z$1000,9,FALSE) -> 879 | G61: Null-Achsabstand Getriebestufe 3 [mm] | H61: ad3 | J61: =V59 -> 142.000873 | M61: Null-Achsabstand Getriebestufe 3 [mm] | N61: ad3 | P61: =V59 -> 142.000873 | S61: Null-Achsabstand Getriebestufe 2 [mm] | T61: ad2 | V61: =P59 -> 141.9474003 | AE61: gemittelte Übersetzung | AF61: iges,mittel | AH61: =(AH9+AH10)/2 -> 8
A62: Einsatzbereich | C62: http://ravenol.de | D62: =VLOOKUP($D$53,'Auswahl Öle'!$A$1:$Z$1000,10,FALSE) -> Getriebe allgemein | AE62: Übersetzung Getriebestufe 1 aus gemittelter Übersetzung | AF62: i1,Soll | AG62: TB21-11 | AH62: 3.1 | AI62: #31
G63: Betriebsachsabstand einstellen | M63: Betriebsachsabstand einstellen | S63: Betriebsachsabstand einstellen | AE63: Übersetzung Getriebestufe 2 (1. Gang) | AF63: i2,Soll | AH63: =AH9/AH62 -> 2.903225806
A64: Getriebeposition | B64: [stehend;liegend] | D64: liegend | E64: #35 | G64: Summe Profilverschiebungsfaktoren | H64: Σx1 | I64: Gl. 21.32 | J64: 0.78 | K64: #66 | M64: Summe Profilverschiebungsfaktoren | N64: Σx2 | O64: Gl. 21.32 | P64: 1.09 | Q64: #67 | S64: Summe Profilverschiebungsfaktoren | T64: Σx3 | U64: Gl. 21.32 | V64: 1.07 | W64: #68 | AE64: Übersetzung Getriebestufe 3 (2. Gang) | AF64: i3,Soll | AH64: =AH10/AH62 -> 2.258064516
A65: Umfangsgeschwindigkeit Ritzel 1 [m/s] | B65: v1,1 | D65: =(PI()*J180*J13)/(60*1000) -> 5.208196445 | G65: Mindest-Profilverschiebungsfaktor-Summe gewählt | H65: Σxmin | I65: =$AG$26 -> TB 21-5 | J65: =$AH$26 -> 0.6 | M65: Mindest-Profilverschiebungsfaktor-Summe gewählt | N65: Σxmin | O65: =$AG$26 -> TB 21-5 | P65: =$AH$26 -> 0.6 | S65: Mindest-Profilverschiebungsfaktor-Summe gewählt | T65: Σxmin | U65: =$AG$26 -> TB 21-5 | V65: =$AH$26 -> 0.6
A66: Umfangsgeschwindigkeit Rad 1 [m/s] | B66: v2,1 | D66: =(PI()*J181*J14)/(60*1000) -> 5.208196445 | G66: Maximal-Profilverschiebungsfaktor-Summe gewählt | H66: Σxmax | I66: =$AG$27 -> TB 21-5 | J66: =$AH$27 -> 1.2 | M66: Maximal-Profilverschiebungsfaktor-Summe gewählt | N66: Σxmax | O66: =$AG$27 -> TB 21-5 | P66: =$AH$27 -> 1.2 | S66: Maximal-Profilverschiebungsfaktor-Summe gewählt | T66: Σxmax | U66: =$AG$27 -> TB 21-5 | V66: =$AH$27 -> 1.2
A67: Umfangsgeschwindigkeit Ritzel 2 [m/s] | B67: v1,2 | D67: =(PI()*P180*P13)/(60*1000) -> 1.751338198 | G67: Profilverschiebungsfaktor x1 [Zirkelfunktion - itterativ berechnet] | H67: x1,1 | I67: Gl 21.33 | J67: =((J64)/2)+(0.5-((J64)/2))*( LOG(J97,10)/LOG((( J54*J25 )/100),10)) -> 0.4358830844 | M67: Profilverschiebungsfaktor x1 [Zirkelfunktion - itterativ berechnet] | N67: x1,2 | O67: Gl 21.33 | P67: =((P64)/2)+(0.5-((P64)/2))*( LOG(P97,10)/LOG((( P54*P25 )/100),10)) -> 0.5274081772 | S67: Profilverschiebungsfaktor x1 [Zirkelfunktion - itterativ berechnet] | T67: x1,3 | U67: Gl 21.33 | V67: =((V64)/2)+(0.5-((V64)/2))*( LOG(V97,10)/LOG((( V54*V25 )/100),10)) -> 0.5251111896
A68: Umfangsgeschwindigkeit Rad 2 [m/s] | B68: v2,2 | D68: =(PI()*P181*P14)/(60*1000) -> 1.751338198 | G68: Profilverschiebungsfaktor x2 | H68: x2,1 | J68: =J64-J67 -> 0.3441169156 | M68: Profilverschiebungsfaktor x2 | N68: x2,2 | P68: =P64-P67 -> 0.5625918228 | S68: Profilverschiebungsfaktor x2 | T68: x2,3 | V68: =V64-V67 -> 0.5448888104
A69: Umfangsgeschwindigkeit Ritzel 3 [m/s] | B69: v1,3 | D69: =(PI()*V180*V13)/(60*1000) -> 2.109428959 | G69: Betriebsachsabstand [mm] | H69: a1 | I69: Gerloff S. 19 | J69: =J59*((COS((J139/360)*2*PI()))/(COS((J152/360)*2*PI()))) -> 145.0069628 | M69: Betriebsachsabstand [mm] | N69: a2 | O69: Gerloff S. 19 | P69: =P59*((COS((P139/360)*2*PI()))/(COS((P152/360)*2*PI()))) -> 145.006601 | S69: Betriebsachsabstand [mm] | T69: a3 | U69: Gerloff S. 19 | V69: =V59*((COS((V139/360)*2*PI()))/(COS((V152/360)*2*PI()))) -> 145.0034437
A70: Umfangsgeschwindigkeit Rad 3 [m/s] | B70: v2,3 | D70: =(PI()*V181*V14)/(60*1000) -> 2.109428959 | G70: Betriebsachsabstand Getriebestufe 2 [mm] | H70: a2 | J70: =P69 -> 145.006601 | M70: Betriebsachsabstand Getriebestufe 1 [mm] | N70: a1 | P70: =J69 -> 145.0069628 | S70: Betriebsachsabstand Getriebestufe 1 [mm] | T70: a1 | V70: =J69 -> 145.0069628
A71: Umfangsgeschwindigkeit max. in Schmiermittel befindlicher Räder [m/s] | D71: =IF(D64="stehend",MAX(D66,D67,D70),MAX(D65:D70)) -> 5.208196445 | G71: Betriebsachsabstand Getriebestufe 3 [mm] | H71: a3 | J71: =V69 -> 145.0034437 | M71: Betriebsachsabstand Getriebestufe 3 [mm] | N71: a3 | P71: =V69 -> 145.0034437 | S71: Betriebsachsabstand Getriebestufe 2 [mm] | T71: a2 | V71: =P69 -> 145.006601
A72: Fliehkraftbeschleunigung Ritzel 1 [m/s²] | B72: v²/r1,1 | D72: =(D65^2)/(0.5*(J180/1000)) -> 777.1965053
A73: Fliehkraftbeschleunigung Rad 1 [m/s²] | B73: v²/r2,1 | D73: =(D66^2)/(0.5*(J181/1000)) -> 251.4459282 | G73: Weitere Geometrien | M73: Weitere Geometrien | S73: Weitere Geometrien
A74: Fliehkraftbeschleunigung Ritzel 2 [m/s²] | B74: v²/r1,2 | D74: =(D67^2)/(0.5*(P180/1000)) -> 84.55265912 | G74: Zahnradbreite Ritzel [mm] | H74: b1,1 | J74: 27 | K74: #69 | M74: Zahnradbreite Ritzel [mm] | N74: b1,2 | P74: 22 | Q74: #70 | S74: Zahnradbreite Ritzel [mm] | T74: b1,3 | V74: 22 | W74: #71
A75: Fliehkraftbeschleunigung Rad 2 [m/s²] | B75: v²/r2,2 | D75: =(D68^2)/(0.5*(P181/1000)) -> 29.0255397 | G75: Durchmesser-Breitenverhältnis | H75: ψd,1 | I75: TB 21-14a | J75: =J74/J180 -> 0.3868030537 | M75: Durchmesser-Breitenverhältnis | N75: ψd,2 | O75: TB 21-14a | P75: =P74/P180 -> 0.303235411 | S75: Durchmesser-Breitenverhältnis | T75: ψd,3 | U75: TB 21-14a | V75: =V74/V180 -> 0.2517590156
A76: Fliehkraftbeschleunigung Ritzel 3 [m/s²] | B76: v²/r1,3 | D76: =(D69^2)/(0.5*(V180/1000)) -> 101.8408825 | G76: Durchmesser-Breitenverhältnis max. | H76: ψd,max,1 | I76: TB 21-14a | J76: =J47 -> 0.7 | M76: Durchmesser-Breitenverhältnis max. | N76: ψd,max,2 | O76: TB 21-14a | P76: =P47 -> 1.1 | S76: Durchmesser-Breitenverhältnis max. | T76: ψd,max,3 | U76: TB 21-14a | V76: =V47 -> 1.1
A77: Fliehkraftbeschleunigung Rad 3 [m/s²] | B77: v²/r2,3 | D77: =(D70^2)/(0.5*(V181/1000)) -> 45.26261447 | G77: Empfehlung Zahnradbreite Ritzel max. | H77: b1,max,1 | J77: =J76*J180 -> 48.86207547 | M77: Empfehlung Zahnradbreite Ritzel max. | N77: b1,max,2 | P77: =P76*P180 -> 79.80598282 | S77: Empfehlung Zahnradbreite Ritzel max. | T77: b1,max,3 | V77: =V76*V180 -> 96.12366787
A78: Fliehkraftbeschleunigung max. in Schmiermittel befindlicher Räder [m/s²] | D78: =IF(D64="stehend",MAX(D73,D74,D77),MAX(D72:D77)) -> 777.1965053 | G78: Zahnradbreite Rad [mm] | H78: b2,1 | J78: 21 | K78: #72 | M78: Zahnradbreite Rad [mm] | N78: b2,2 | P78: 19 | Q78: #73 | S78: Zahnradbreite Rad [mm] | T78: b2,3 | V78: 19 | W78: #74
A79: Fliehkraftbeschleunigung max. [m/s²] | B79: v²/r | C79: RM S.735 | D79: 550 | G79: Empfehlung Zahnradbreite Rad min. | H79: b2,min,1 | I79: FS 21.72 | J79: =J74-(2*J52) -> 21 | M79: Empfehlung Zahnradbreite Rad max. | N79: b2,max,2 | O79: FS 21.72 | P79: =P74-(2*P52) -> 16 | S79: Empfehlung Zahnradbreite Rad max. | T79: b2,max,3 | U79: FS 21.72 | V79: =V74-(2*V52) -> 16
A80: Eintauchtiefe Ritzel 1 max. [mm] | B80: t1,max.1 | D80: =IF(D65<5,6*J52) -> FALSE | G80: Kopfspielfaktor [ISO53="0,25"] | H80: cp,1* | J80: 0.25 | K80: #75 | M80: Kopfspielfaktor [ISO53="0,25"] | N80: cp,2* | P80: 0.25 | Q80: #76 | S80: Kopfspielfaktor [ISO53="0,25"] | T80: cp,3* | V80: 0.25 | W80: #77
A81: Eintauchtiefe Ritzel 1 min. [mm] | B81: t1,min.1 | D81: =IF(D65<5,3*J52) -> FALSE
A82: Eintauchtiefe Rad 1 max. [mm] | B82: t2,max.1 | D82: =IF(D66<5,6*J52) -> FALSE | G82: Zahnradpaargeometrie Zusammenfassung | M82: Zahnradpaargeometrie Zusammenfassung | S82: Zahnradpaargeometrie Zusammenfassung
A83: Eintauchtiefe Rad 1 min. [mm] | B83: t2,min.1 | D83: =IF(D66<5,3*J52) -> FALSE | G83: Modul gewählt [mm] | H83: mn1 | J83: =J52 -> 3 | M83: Modul gewählt [mm] | N83: mn2 | P83: =P52 -> 3 | S83: Modul gewählt [mm] | T83: mn3 | V83: =V52 -> 3
A84: Eintauchtiefe Ritzel 2 max. [mm] | B84: t1,max.2 | D84: =IF(D67<5,6*P52) -> 18 | G84: Modul (Stirnschnitt) [mm] | H84: mt1 | I84: Gerloff S. 18 | J84: =J52/COS((J56/360)*2*PI()) -> 3.172862044 | M84: Modul (Stirnschnitt) [mm] | N84: mt2 | O84: Gerloff S. 18 | P84: =P52/COS((P56/360)*2*PI()) -> 3.154386673 | S84: Modul (Stirnschnitt) [mm] | T84: mt3 | U84: Gerloff S. 18 | V84: =V52/COS((V56/360)*2*PI()) -> 3.120898308
A85: Eintauchtiefe Ritzel 2 min. [mm] | B85: t1,min.2 | D85: =IF(D67<5,3*P52) -> 9 | G85: Stirnteilung [mm] | H85: pt1 | I85: Gerloff S. 19 | J85: =PI()*J84 -> 9.967840087 | M85: Stirnteilung [mm] | N85: pt2 | O85: Gerloff S. 19 | P85: =PI()*P84 -> 9.909797998 | S85: Stirnteilung [mm] | T85: pt3 | U85: Gerloff S. 19 | V85: =PI()*V84 -> 9.804591196
A86: Eintauchtiefe Rad 2 max. [mm] | B86: t2,max.2 | D86: =IF(D68<5,6*P52) -> 18 | G86: Grundkreisteilung [mm] | H86: pb,t1 | I86: Gl. 21.37 | J86: =J85*COS((J139/360)*2*PI()) -> 9.302419986 | M86: Grundkreisteilung [mm] | N86: pb,t2 | O86: Gl. 21.37 | P86: =P85*COS((P139/360)*2*PI()) -> 9.25519013 | S86: Grundkreisteilung [mm] | T86: pb,t3 | U86: Gl. 21.37 | V86: =V85*COS((V139/360)*2*PI()) -> 9.16931114
A87: Eintauchtiefe Rad 2 min. [mm] | B87: t2,min.2 | D87: =IF(D68<5,3*P52) -> 9 | G87: Eingriffsteilung [mm] | H87: pe,t1 | I87: Gl. 21.13 | J87: =J85* COS((J139/360)*2*PI()) -> 9.302419986 | M87: Eingriffsteilung [mm] | N87: pe,t2 | O87: Gl. 21.13 | P87: =P85* COS((P139/360)*2*PI()) -> 9.25519013 | S87: Eingriffsteilung [mm] | T87: pe,t3 | U87: Gl. 21.13 | V87: =V85* COS((V139/360)*2*PI()) -> 9.16931114
A88: Eintauchtiefe Ritzel 3 max. [mm] | B88: t1,max.3 | D88: =IF(D69<5,6*V52) -> 18 | G88: Normalteilung [mm] | H88: pn2 | I88: Gl. 21.36 | J88: =J89/COS((J137/360)*2*PI()) -> 9.424777961 | M88: Normalteilung [mm] | N88: pn2 | O88: Gl. 21.36 | P88: =P89/COS((P137/360)*2*PI()) -> 9.424777961 | S88: Normalteilung [mm] | T88: pn3 | U88: Gl. 21.36 | V88: =V89/COS((V137/360)*2*PI()) -> 9.424777961
A89: Eintauchtiefe Ritzel 3 min. [mm] | B89: t1,min.3 | D89: =IF(D69<5,3*V52) -> 9 | G89: Grundzylindernormalteilung [mm] | H89: pb,n2 | I89: Gl. 21.36 | J89: =COS((J161/360)*2*PI())*J86 -> 8.856394302 | M89: Grundzylindernormalteilung [mm] | N89: pb,n2 | O89: Gl. 21.36 | P89: =COS((P161/360)*2*PI())*P86 -> 8.856394302 | S89: Grundzylindernormalteilung [mm] | T89: pb,n3 | U89: Gl. 21.36 | V89: =COS((V161/360)*2*PI())*V86 -> 8.856394302
A90: Eintauchtiefe Rad 3 max. [mm] | B90: t2,max.3 | D90: =IF(D70<5,6*V52) -> 18 | G90: Normaleingriffsteilung [mm] | H90: pe,n2 | I90: Gl. 21.36 | J90: =COS((J161/360)*2*PI())*J86 -> 8.856394302 | M90: Normaleingriffsteilung [mm] | N90: pe,n2 | O90: Gl. 21.36 | P90: =COS((P161/360)*2*PI())*P86 -> 8.856394302 | S90: Normaleingriffsteilung [mm] | T90: pe,n3 | U90: Gl. 21.36 | V90: =COS((V161/360)*2*PI())*V86 -> 8.856394302
A91: Eintauchtiefe Rad 3 min. [mm] | B91: t2,min.3 | D91: =IF(D70<5,3*V52) -> 9
A92: Zonenfaktor Getriebestufe 1 | B92: ZH1 | C92: TB 21-22a | D92: =J432 -> 2.256686276 | G92: Übersetzung | H92: i1 | I92: FS 21.1 | J92: =J27 -> 3.090909091 | M92: Übersetzung | N92: i2 | O92: FS 21.1 | P92: =P27 -> 2.913043478 | S92: Übersetzung | T92: i3 | U92: FS 21.1 | V92: =V27 -> 2.25
A93: Überdeckungsfaktor Getriebestufe 1 | B93: Zε1 | C93: TB 21-22c | D93: =J434 -> 0.8692090306 | G93: Ritzelzähnezahl | H93: z1,1 | J93: =J54 -> 22 | M93: Ritzelzähnezahl | N93: z1,2 | P93: =P54 -> 23 | S93: Ritzelzähnezahl | T93: z1,3 | V93: =V54 -> 28
A94: Zonenfaktor Getriebestufe 2 | B94: ZH2 | C94: TB 21-22a | D94: =P432 -> 2.225051449 | G94: Radzähnezahl | H94: z2,1 | J94: =ROUND(J24,0) -> 68 | M94: Radzähnezahl | N94: z2,2 | P94: =ROUND(P24,0) -> 67 | S94: Radzähnezahl | T94: z2,3 | V94: =ROUND(V24,0) -> 63
A95: Überdeckungsfaktor Getriebestufe 2 | B95: Zε2 | C95: TB 21-22c | D95: =P434 -> 0.8877811986 | G95: praktische Mindest-Grenzzähnezahl | H95: z'gt1 | I95: FS 21.42 | J95: =14*(COS((J56/360)*2*PI())^3) -> 11.83418167 | M95: praktische Mindest-Grenzzähnezahl | N95: z'gt2 | O95: FS 21.42 | P95: =14*(COS((P56/360)*2*PI())^3) -> 12.0433418 | S95: praktische Mindest-Grenzzähnezahl | T95: z'gt3 | U95: FS 21.42 | V95: =14*(COS((V56/360)*2*PI())^3) -> 12.43520493
A96: Zonenfaktor Getriebestufe 3 | B96: ZH3 | C96: TB 21-22a | D96: =V432 -> 2.244462835 | G96: theoretische Mindest-Grenzzähnezahl | H96: zg1 | I96: Gerloff S. 18 | J96: =17*COS((J56/360)*2*PI()) -> 16.07381579 | M96: theoretische Mindest-Grenzzähnezahl | N96: zg2 | O96: Gerloff S. 18 | P96: =17*COS((P56/360)*2*PI()) -> 16.16796078 | S96: theoretische Mindest-Grenzzähnezahl | T96: zg3 | U96: Gerloff S. 18 | V96: =17*COS((V56/360)*2*PI()) -> 16.34144883
A97: Überdeckungsfaktor Getriebestufe 3 | B97: Zε3 | C97: TB 21-22c | D97: =V434 -> 0.8820327859 | G97: Zähnezahlverhältnis | H97: u1 | I97: FS 21.2 | J97: =J25/J54 -> 3.090909091 | M97: Zähnezahlverhältnis | N97: u2 | O97: FS 21.2 | P97: =P25/P54 -> 2.913043478 | S97: Zähnezahlverhältnis | T97: u3 | U97: FS 21.2 | V97: =V25/V54 -> 2.25
A98: Kraft-Geschwindigkeits-Faktor Ritzel 1 [N*s/mm²*m] | B98: ks/v1,1 | D98: =(($D$92^2)*($D$93^2)*($J$255/($J$113*$J$180))*(($J$97+1)/$J$97))*(1/$D$65) -> 1.674452039 | G98: Ersatzzähnezahl Ritzel | H98: zn1,1 | I98: FS 21.41 | J98: =J180/((COS((J161/360)*2*PI())^2)*J52) -> 25.67028049 | M98: Ersatzzähnezahl Ritzel | N98: zn1,2 | O98: FS 21.41 | P98: =P180/((COS((P161/360)*2*PI())^2)*P52) -> 26.41060273 | S98: Ersatzzähnezahl Ritzel | T98: zn1,3 | U98: FS 21.41 | V98: =V180/((COS((V161/360)*2*PI())^2)*V52) -> 31.22309326
A99: Kraft-Geschwindigkeits-Faktor Rad 1 [N*s/mm²*m] | B99: ks/v2,1 | D99: =(($D$92^2)*($D$93^2)*($J$255/($J$113*$J$180))*(($J$97+1)/$J$97))*(1/$D$66) -> 1.674452039 | G99: Ersatzzähnezahl Rad | H99: zn2,1 | I99: FS 21.41 | J99: =J181/((COS((J161/360)*2*PI())^2)*J52) -> 79.34450332 | M99: Ersatzzähnezahl Rad | N99: zn2,2 | O99: FS 21.41 | P99: =P181/((COS((P161/360)*2*PI())^2)*P52) -> 76.93523405 | S99: Ersatzzähnezahl Rad | T99: zn2,3 | U99: FS 21.41 | V99: =V181/((COS((V161/360)*2*PI())^2)*V52) -> 70.25195982
A100: Kraft-Geschwindigkeits-Faktor Ritzel 2 [N*s/mm²*m] | B100: ks/v1,2 | D100: =(($D$94^2)*($D$95^2)*($P$255/($P$113*$P$180))*(($P$97+1)/$P$97))*(1/$D$67) -> 15.47430718 | G100: Normalzahndicke auf Teilkreis Ritzel [mm] | H100: sn1,1 | I100: FS 21.45 | J100: =J52*((0.5*PI())+(2*J67*TAN((J22/360)*2*PI()))) -> 5.664279791 | M100: Normalzahndicke auf Teilkreis Ritzel [mm] | N100: sn1,2 | O100: FS 21.45 | P100: =P52*((0.5*PI())+(2*P67*TAN((P22/360)*2*PI()))) -> 5.864154247 | S100: Normalzahndicke auf Teilkreis Ritzel [mm] | T100: sn1,3 | U100: FS 21.45 | V100: =V52*((0.5*PI())+(2*V67*TAN((V22/360)*2*PI()))) -> 5.859138037
A101: Kraft-Geschwindigkeits-Faktor Rad 2 [N*s/mm²*m] | B101: ks/v2,2 | D101: =(($D$94^2)*($D$95^2)*($P$255/($P$113*$P$180))*(($P$97+1)/$P$97))*(1/$D$68) -> 15.47430718 | G101: Normalzahndicke auf Teilkreis Rad [mm] | H101: sn2,1 | I101: FS 21.45 | J101: =J52*((0.5*PI())+(2*J68*TAN((J22/360)*2*PI()))) -> 5.463878867 | M101: Normalzahndicke auf Teilkreis Rad [mm] | N101: sn2,2 | O101: FS 21.45 | P101: =P52*((0.5*PI())+(2*P68*TAN((P22/360)*2*PI()))) -> 5.940989046 | S101: Normalzahndicke auf Teilkreis Rad [mm] | T101: sn2,3 | U101: FS 21.45 | V101: =V52*((0.5*PI())+(2*V68*TAN((V22/360)*2*PI()))) -> 5.902328828
A102: Kraft-Geschwindigkeits-Faktor Ritzel 3 [N*s/mm²*m] | B102: ks/v1,3 | D102: =(($D$96^2)*($D$97^2)*($V$255/($V$113*$V$180))*(($V$97+1)/$V$97))*(1/$D$69) -> 9.568305178 | G102: Stirnzahndicke auf Teilkreis Ritzel [mm] | H102: st1,1 | I102: FS 21.45 | J102: =J100/(COS((J56/360)*2*PI())) -> 5.99065945 | M102: Stirnzahndicke auf Teilkreis Ritzel [mm] | N102: st1,2 | O102: FS 21.45 | P102: =P100/(COS((P56/360)*2*PI())) -> 6.165936668 | S102: Stirnzahndicke auf Teilkreis Ritzel [mm] | T102: st1,3 | U102: FS 21.45 | V102: =V100/(COS((V56/360)*2*PI())) -> 6.095257994
A103: Kraft-Geschwindigkeits-Faktor Rad 3 [N*s/mm²*m] | B103: ks/v2,3 | D103: =(($D$96^2)*($D$97^2)*($V$255/($V$113*$V$180))*(($V$97+1)/$V$97))*(1/$D$70) -> 9.568305178 | G103: Stirnzahndicke auf Teilkreis Rad [mm] | H103: st2,1 | I103: FS 21.45 | J103: =J101/(COS((J56/360)*2*PI())) -> 5.778711289 | M103: Stirnzahndicke auf Teilkreis Rad [mm] | N103: st2,2 | O103: FS 21.45 | P103: =P101/(COS((P56/360)*2*PI())) -> 6.246725556 | S103: Stirnzahndicke auf Teilkreis Rad [mm] | T103: st2,1 | U103: FS 21.45 | V103: =V101/(COS((V56/360)*2*PI())) -> 6.14018935
A104: angenommene Umgebungstemperatur [°C] | B104: ϑ | D104: 20 | E104: #36 | G104: Zahnkopfdicke auf Kopfkreis Ritzel [mm] | H104: sat1,1 | I104: Gerloff S. 20 | J104: =J184*((J102/J180)+J140-J154) -> 1.991849929 | M104: Zahnkopfdicke auf Kopfkreis Ritzel [mm] | N104: sat1,2 | O104: Gerloff S. 20 | P104: =P184*((P102/P180)+P140-P154) -> 4.570551561 | S104: Zahnkopfdicke auf Kopfkreis Ritzel [mm] | T104: sat1,3 | U104: Gerloff S. 20 | V104: =V184*((V102/V180)+V140-V154) -> 4.497870731
A105: angenommene Betriebstemperatur [°C] | B105: t | D105: 80 | E105: #37 | G105: Zahnkopfdicke auf Kopfkreis Rad [mm] | H105: sat2,1 | I105: Gerloff S. 20 | J105: =J185*((J103/J181)+J140-J156) -> 2.515346384 | M105: Zahnkopfdicke auf Kopfkreis Rad [mm] | N105: sat2,1 | O105: Gerloff S. 20 | P105: =P185*((P103/P181)+P140-P156) -> 2.481904114 | S105: Zahnkopfdicke auf Kopfkreis Rad [mm] | T105: sat2,3 | U105: Gerloff S. 20 | V105: =V185*((V103/V181)+V140-V156) -> 2.429685778
A106: maximale Betriebstemperatur [°C] | B106: tmax. | C106: RM S.734 | D106: 80 | G106: Mindest-Zahnkopfdicke [ungehärtet] auf Kopfkreis [mm] | H106: sat,min,ungehärtet,1 | I106: Gerloff S. 20 | J106: =0.2*J84 -> 0.6345724087 | M106: Mindest-Zahnkopfdicke [ungehärtet] auf Kopfkreis [mm] | N106: sat,min,ungehärtet,2 | O106: Gerloff S. 20 | P106: =0.2*P84 -> 0.6308773345 | S106: Mindest-Zahnkopfdicke [ungehärtet] auf Kopfkreis [mm] | T106: sat,min,ungehärtet,3 | U106: Gerloff S. 20 | V106: =0.2*V84 -> 0.6241796615
A107: angenommene Nennviskosität Mineralöls bei 40°C [0…500] | B107: v40° | C107: RM S.788 | D107: =D58 -> 118.5 | G107: Mindest-Zahnkopfdicke [gehärtet] auf Kopfkreis [mm] | H107: sat,min,gehärtet,1 | I107: Gerloff S. 20 | J107: =0.4*J84 -> 1.269144817 | M107: Mindest-Zahnkopfdicke [gehärtet] auf Kopfkreis [mm] | N107: sat,min,gehärtet,2 | O107: Gerloff S. 20 | P107: =0.4*P84 -> 1.261754669 | S107: Mindest-Zahnkopfdicke [gehärtet] auf Kopfkreis [mm] | T107: sat,min,gehärtet,3 | U107: Gerloff S. 20 | V107: =0.4*V84 -> 1.248359323
A108: Empfehlung des Axel: SAE80W-90 | B108: v40° | D108: 130 | G108: Mindest-Zahnkopfdicke [Sonderfall] auf Kopfkreis [mm] | H108: sat,min,Sonderfall,1 | I108: Gerloff S. 20 | J108: =0 -> 0 | M108: Mindest-Zahnkopfdicke [Sonderfall] auf Kopfkreis [mm] | N108: sat,min,Sonderfall,2 | O108: Gerloff S. 20 | P108: =0 -> 0 | S108: Mindest-Zahnkopfdicke [Sonderfall] auf Kopfkreis [mm] | T108: sat,min,Sonderfall,1 | U108: Gerloff S. 20 | V108: =0 -> 0
A109: Empfehlung Roloff/Matek max. | B109: v40° | C109: TB20-7 | D109: 300 | E109: #38 | G109: Mindest-Zahnkopfdicke Ritzel [mm] | H109: sat,min,1,1 | J109: =IF(J36="ungehärtet",J106,J107) -> 1.269144817 | M109: Mindest-Zahnkopfdicke Ritzel [mm] | N109: sat,min,1,2 | P109: =IF(P36="ungehärtet",P106,P107) -> 1.261754669 | S109: Mindest-Zahnkopfdicke Ritzel [mm] | T109: sat,min,1,3 | V109: =IF(V36="ungehärtet",V106,V107) -> 1.248359323
A110: Empfehlung Roloff/Matek min. | B110: v40° | C110: TB20-7 | D110: 450 | E110: #39 | G110: Mindest-Zahnkopfdicke Rad [mm] | H110: sat,min,2,1 | J110: =IF(J37="ungehärtet",J106,J107) -> 1.269144817 | M110: Mindest-Zahnkopfdicke Rad [mm] | N110: sat,min,2,2 | P110: =IF(P37="ungehärtet",P106,P107) -> 1.261754669 | S110: Mindest-Zahnkopfdicke Rad [mm] | T110: sat,min,2,3 | V110: =IF(V37="ungehärtet",V106,V107) -> 1.248359323
A111: Betriebsviskosität [mm²/s] | B111: v | C111: TB 14-10a | D111: 50 | E111: #40 | G111: Zahnradbreite Ritzel [mm] | H111: b1,1 | J111: =J74 -> 27 | M111: Zahnradbreite Ritzel [mm] | N111: b1,2 | P111: =P74 -> 22 | S111: Zahnradbreite Ritzel [mm] | T111: b1,3 | V111: =V74 -> 22
A112: =#REF! ->  | B112: ϰLager1,1 | C112: =#REF! ->  | D112: =#REF! ->  | G112: Zahnradbreite Rad [mm] | H112: b2,1 | J112: =J78 -> 21 | M112: Zahnradbreite Rad [mm] | N112: b2,2 | P112: =P78 -> 19 | S112: Zahnradbreite Rad [mm] | T112: b2,3 | V112: =V78 -> 19
A113: =#REF! ->  | B113: ϰLager2,1 | C113: =#REF! ->  | D113: =#REF! ->  | G113: Kleinste gemeinsame Zahnradbreite | H113: b1 | J113: =IF(J111<J112,J111,J112) -> 21 | M113: Kleinste gemeinsame Zahnradbreite | N113: b2 | P113: =IF(P111<P112,P111,P112) -> 19 | S113: Kleinste gemeinsame Zahnradbreite | T113: b3 | V113: =IF(V111<V112,V111,V112) -> 19
A114: =#REF! ->  | B114: ϰLager1,2 | C114: =#REF! ->  | D114: =#REF! -> 
A115: =#REF! ->  | B115: ϰLager2,2 | C115: =#REF! ->  | D115: =#REF! ->  | G115: Sprung | H115: U1 | I115: FS 21.39 | J115: =J113*TAN((J157/360)*2*PI()) -> 7.230879879 | M115: Sprung | N115: U2 | O115: FS 21.39 | P115: =P113*TAN((P157/360)*2*PI()) -> 6.173474228 | S115: Sprung | T115: U3 | U115: FS 21.39 | V115: =V113*TAN((V157/360)*2*PI()) -> 5.448162329
A116: =#REF! ->  | B116: ϰLager1,3 | C116: =#REF! ->  | D116: =#REF! ->  | G116: Profilüberdeckung im Stirnschnitt [mm] | H116: εα1 | I116: FS 21.50 | J116: =(0.5*((((J184^2)-(J178^2))^0.5)+(((J185^2)-(J179^2))^0.5))-(J189*SIN((J152/360)*2*PI())))/(PI()*J84*COS((J139/360)*2*PI())) -> 1.401305012 | M116: Profilüberdeckung im Stirnschnitt [mm] | N116: εα2 | O116: FS 21.50 | P116: =(0.5*((((P184^2)-(P178^2))^0.5)+(((P185^2)-(P179^2))^0.5))-(P189*SIN((P152/360)*2*PI())))/(PI()*P84*COS((P139/360)*2*PI())) -> 1.363677787 | S116: Profilüberdeckung im Stirnschnitt [mm] | T116: εα3 | U116: FS 21.50 | V116: =(0.5*((((V184^2)-(V178^2))^0.5)+(((V185^2)-(V179^2))^0.5))-(V189*SIN((V152/360)*2*PI())))/(PI()*V84*COS((V139/360)*2*PI())) -> 1.409332666
A117: =#REF! ->  | B117: ϰLager2,3 | C117: =#REF! ->  | D117: =#REF! ->  | G117: Mindest-Profilüberdeckung im Stirnschnitt [mm] | H117: εα,min | I117: RM S.748 | J117: 1.1 | M117: Mindest-Profilüberdeckung im Stirnschnitt [mm] | N117: εα,min | O117: RM S.748 | P117: 1.1 | S117: Mindest-Profilüberdeckung im Stirnschnitt [mm] | T117: εα,min | U117: RM S.748 | V117: 1.1
A118: =#REF! ->  | B118: ϰLager1,4 | C118: =#REF! ->  | D118: =#REF! ->  | G118: Mindest-Profilüberdeckung im Stirnschnitt [mm] | H118: εα,soll | I118: RM S.748 | J118: 1.25 | M118: Mindest-Profilüberdeckung im Stirnschnitt [mm] | N118: εα,soll | O118: RM S.748 | P118: 1.25 | S118: Mindest-Profilüberdeckung im Stirnschnitt [mm] | T118: εα,soll | U118: RM S.748 | V118: 1.25
A119: =#REF! ->  | B119: ϰLager2,4 | C119: =#REF! ->  | D119: =#REF! ->  | G119: Sprungüberdeckung Ritzel | H119: εβ1 | I119: FS 21.39 | J119: =J115/J85 -> 0.7254209353 | M119: Sprungüberdeckung Ritzel | N119: εβ2 | O119: FS 21.39 | P119: =P115/P85 -> 0.6229667073 | S119: Sprungüberdeckung Ritzel | T119: εβ3 | U119: FS 21.39 | V119: =V115/V85 -> 0.5556746039
G120: Mindestsprungüberdeckung | H120: εβ,min | I120: FS 21.39 | J120: 1 | M120: Mindestsprungüberdeckung | N120: εβ,min | O120: FS 21.39 | P120: 1 | S120: Mindestsprungüberdeckung | T120: εβ,min | U120: FS 21.39 | V120: 1
A121: Öl nächsthöherer Viskositätsklasse | G121: Gesamtüberdeckung [mm] | H121: εγ1 | I121: FS 21.51 | J121: =J116+J119 -> 2.126725947 | M121: Gesamtüberdeckung [mm] | N121: εγ2 | O121: FS 21.51 | P121: =P116+P119 -> 1.986644494 | S121: Gesamtüberdeckung [mm] | T121: εγ3 | U121: FS 21.51 | V121: =V116+V119 -> 1.965007269
A122: Ölstand und Eintauchtiefe | B122: Annahme Welle 1 und 3 auf einer Achse; alle Wellen auf einer Ebene | G122: Mindestgesamtüberdeckung | H122: εγ,min | I122: RM S.763 | J122: 1 | M122: Mindestgesamtüberdeckung | N122: εγ,min | O122: RM S.763 | P122: 1 | S122: Mindestgesamtüberdeckung | T122: εγ,min | U122: RM S.763 | V122: 1
A123: Kopfkreisradius Ritzel Welle 1 [mm] | B123: ra1,1 | D123: =D154/2 -> 39.09730253
A124: Kopfkreisradius Rad Welle 2 [mm] | B124: ra2,1 | D124: =D155/2 -> 111.797831 | G124: Eingriffsstrecke [mm] | H124: ga1 | I124: GL. 21.45 | J124: =(0.5*((((J184^2)-(J178^2))^0.5)+(((J185^2)-(J179^2))^0.5))-(J189*SIN((J152/360)*2*PI()))) -> 13.03552775 | M124: Eingriffsstrecke [mm] | N124: ga2 | O124: GL. 21.45 | P124: =(0.5*((((P184^2)-(P178^2))^0.5)+(((P185^2)-(P179^2))^0.5))-(P189*SIN((P152/360)*2*PI()))) -> 12.62109719 | S124: Eingriffsstrecke [mm] | T124: ga3 | U124: GL. 21.45 | V124: =(0.5*((((V184^2)-(V178^2))^0.5)+(((V185^2)-(V179^2))^0.5))-(V189*SIN((V152/360)*2*PI()))) -> 12.92260971
A125: Kopfkreisradius Ritzel Welle 2 [mm] | B125: ra1,2 | D125: =D156/2 -> 40.646872 | G125: Stirn-Lückenweite auf Teilkreis Ritzel [mm] | H125: et1,1 | I125: Gerloff S. 19 | J125: =J84*((0.5*PI())-(2*J67*TAN((J22/360)*2*PI()))) -> 3.977180636 | M125: Stirn-Lückenweite auf Teilkreis Ritzel [mm] | N125: et1,2 | O125: Gerloff S. 19 | P125: =P84*((0.5*PI())-(2*P67*TAN((P22/360)*2*PI()))) -> 3.743861329 | S125: Stirn-Lückenweite auf Teilkreis Ritzel [mm] | T125: et1,3 | U125: Gerloff S. 19 | V125: =V84*((0.5*PI())-(2*V67*TAN((V22/360)*2*PI()))) -> 3.709333202
A126: Kopfkreisradius Rad Welle 3 [mm] | B126: ra2,2 | D126: =D157/2 -> 110.1489297 | G126: Stirn-Lückenweite auf Teilkreis Rad [mm] | H126: et2,1 | I126: Gerloff S. 19 | J126: =J84*((0.5*PI())-(2*J68*TAN((J22/360)*2*PI()))) -> 4.189128798 | M126: Stirn-Lückenweite auf Teilkreis Rad [mm] | N126: et2,2 | O126: Gerloff S. 19 | P126: =P84*((0.5*PI())-(2*P68*TAN((P22/360)*2*PI()))) -> 3.663072442 | S126: Stirn-Lückenweite auf Teilkreis Rad [mm] | T126: et2,3 | U126: Gerloff S. 19 | V126: =V84*((0.5*PI())-(2*V68*TAN((V22/360)*2*PI()))) -> 3.664401845
A127: Höhe Achse Welle 1 von unten [mm] | D127: =D129 -> 142.1489297 | G127: Kopfspielfaktor [ISO53="0,25"] | H127: cp1* | J127: =J80 -> 0.25 | M127: Kopfspielfaktor [ISO53="0,25"] | N127: cp2* | P127: =P80 -> 0.25 | S127: Kopfspielfaktor [ISO53="0,25"] | T127: cp3* | V127: =V80 -> 0.25
A128: Höhe Achse Welle 2 von unten [mm] | D128: =D182+D195+D124 -> 143.797831 | G128: Kopfspiel | H128: cp1 | J128: =J80*J52 -> 0.75 | M128: Kopfspiel | N128: cp2* | P128: =P80*P52 -> 0.75 | S128: Kopfspiel | T128: cp3 | V128: =V80*V52 -> 0.75
A129: Höhe Achse Welle 3 von unten [mm] | D129: =D182+D197+D126 -> 142.1489297 | G129: Kopfhöhenänderung [mm] | H129: k1 | I129: Gl 21.23 | J129: =J189-J59-(J52*J166) -> -0.1118291991 | M129: Kopfhöhenänderung [mm] | N129: k2 | O129: Gl 21.23 | P129: =P189-P59-(P52*P166) -> -0.2107992697 | S129: Kopfhöhenänderung [mm] | T129: k3 | U129: Gl 21.23 | V129: =V189-V59-(V52*V166) -> -0.207429293
A130: gewählte gemeinsame Höhe der Achsen [mm] | D130: =ROUND(MAX(D127:D129),0) -> 144 | G130: Kopfhöhe Ritzel [mm] | H130: ha1,1 | I130: Gerloff S. 19 | J130: =J52+J167+J129 -> 4.195820054 | M130: Kopfhöhe Ritzel [mm] | N130: ha1,2 | O130: Gerloff S. 19 | P130: =P52+P167+P129 -> 4.371425262 | S130: Kopfhöhe Ritzel [mm] | T130: ha1,3 | U130: Gerloff S. 19 | V130: =V52+V167+V129 -> 4.367904276
A131: Höhe Ölstand [mm] | D131: 15 | E131: #41 | G131: Kopfhöhe Rad [mm] | H131: ha2,1 | I131: Gerloff S. 19 | J131: =J52+J168+J129 -> 3.920521548 | M131: Kopfhöhe Rad [mm] | N131: ha2,2 | O131: Gerloff S. 19 | P131: =P52+P168+P129 -> 4.476976199 | S131: Kopfhöhe Rad [mm] | T131: ha2,3 | U131: Gerloff S. 19 | V131: =V52+V168+V129 -> 4.427237138
A132: Eintauchtiefe Ritzel 1 | D132: =(($D$130-$D$182-D123)*(-1))+$D$131 -> -68.90269747 | G132: Fußhöhe Ritzel [mm] | H132: hf1,1 | I132: FS 21.36 korrigiert | J132: =J83+J128-J167 -> 2.442350747 | M132: Fußhöhe Ritzel [mm] | N132: hf1,2 | O132: FS 21.36 korrigiert | P132: =P83+P128-P167 -> 2.167775468 | S132: Fußhöhe Ritzel [mm] | T132: hf1,3 | U132: FS 21.36 korrigiert | V132: =V83+V128-V167 -> 2.174666431
A133: =A80 -> Eintauchtiefe Ritzel 1 max. [mm] | D133: =D80 -> FALSE | G133: Fußhöhe Rad [mm] | H133: hf2,1 | I133: FS 21.36 korrigiert | J133: =J83+J128-J168 -> 2.717649253 | M133: Fußhöhe Rad [mm] | N133: hf2,2 | O133: FS 21.36 korrigiert | P133: =P83+P128-P168 -> 2.062224532 | S133: Fußhöhe Rad [mm] | T133: hf2,1 | U133: FS 21.36 korrigiert | V133: =V83+V128-V168 -> 2.115333569
A134: =A81 -> Eintauchtiefe Ritzel 1 min. [mm] | D134: =D81 -> FALSE | G134: Zahnhöhe Ritzel [mm] | H134: h1,1 | I134: Logik | J134: =(J184-J176)/2 -> 6.638170801 | M134: Zahnhöhe Ritzel [mm] | N134: h1,2 | O134: Logik | P134: =(P184-P176)/2 -> 6.53920073 | S134: Zahnhöhe Ritzel [mm] | T134: h1,3 | U134: Logik | V134: =(V184-V176)/2 -> 6.542570707
A135: Eintauchtiefe Rad 1 | D135: =(($D$130-$D$182-D124)*(-1))+$D$131 -> 3.797831029 | G135: Zahnhöhe Rad [mm] | H135: h2,1 | I135: Logik | J135: =(J185-J177)/2 -> 6.638170801 | M135: Zahnhöhe Rad [mm] | N135: h2,2 | O135: Logik | P135: =(P185-P177)/2 -> 6.53920073 | S135: Zahnhöhe Rad [mm] | T135: h2,3 | U135: Logik | V135: =(V185-V177)/2 -> 6.542570707
A136: =A82 -> Eintauchtiefe Rad 1 max. [mm] | D136: =D82 -> FALSE
A137: =A83 -> Eintauchtiefe Rad 1 min. [mm] | D137: =D83 -> FALSE | G137: Eingriffswinkel [°] | H137: αn1 | J137: =J22 -> 20 | M137: Eingriffswinkel [°] | N137: αn2 | P137: =P22 -> 20 | S137: Eingriffswinkel [°] | T137: αn3 | V137: =V22 -> 20
A138: Eintauchtiefe Ritzel 2 | D138: =(($D$130-$D$182-D125)*(-1))+$D$131 -> -67.353128 | G138: Involut Eingriffswinkel | H138: inv(αN1) | I138: TB21-4 | J138: =TAN((J22/360)*2*PI())-(PI()/180)*J22 -> 0.01490438387 | M138: Involut Eingriffswinkel | N138: inv(αN2) | P138: =TAN((P22/360)*2*PI())-(PI()/180)*P22 -> 0.01490438387 | S138: Involut Eingriffswinkel | T138: inv(αN3) | V138: =TAN((V22/360)*2*PI())-(PI()/180)*V22 -> 0.01490438387
A139: =A84 -> Eintauchtiefe Ritzel 2 max. [mm] | D139: =D84 -> 18 | G139: Eingriffswinkel (Stirnschnitt) [°] | H139: αt1 | I139: Gerloff S. 18 | J139: =(ATAN(TAN((J22/360)*2*PI())/COS((J56/360)*2*PI())))*(360/(2*PI())) -> 21.05383368 | M139: Eingriffswinkel (Stirnschnitt) [°] | N139: αt2 | O139: Gerloff S. 18 | P139: =(ATAN(TAN((P22/360)*2*PI())/COS((P56/360)*2*PI())))*(360/(2*PI())) -> 20.94189605 | S139: Eingriffswinkel (Stirnschnitt) [°] | T139: αt3 | U139: Gerloff S. 18 | V139: =(ATAN(TAN((V22/360)*2*PI())/COS((V56/360)*2*PI())))*(360/(2*PI())) -> 20.73857148
A140: =A85 -> Eintauchtiefe Ritzel 2 min. [mm] | D140: =D85 -> 9 | G140: Involut Eingriffswinkel | H140: inv(αt1) | I140: https://de.wikipedia.org/wiki/Involut-Funktion | J140: =(TAN((J139/360)*2*PI()))-((J139/360)*2*PI()) -> 0.01748372925 | M140: Involut Eingriffswinkel | N140: inv(αt2) | O140: https://de.wikipedia.org/wiki/Involut-Funktion | P140: =(TAN((P139/360)*2*PI()))-((P139/360)*2*PI()) -> 0.01719591445 | S140: Involut Eingriffswinkel | T140: inv(αt3) | U140: https://de.wikipedia.org/wiki/Involut-Funktion | V140: =(TAN((V139/360)*2*PI()))-((V139/360)*2*PI()) -> 0.01668167497
A141: Eintauchtiefe Rad 2 | D141: =(($D$130-$D$182-D126)*(-1))+$D$131 -> 2.148929735 | G141: Involut Betriebseingriffswinkel | H141: inv(αw1) | I141: FS 21.27 | J141: =(2*((J67+J68)/(J54+J25))*TAN((J22/360)*2*PI()))+J138 -> 0.02121320126 | M141: Involut Betriebseingriffswinkel | N141: inv(αw2) | O141: FS 21.27 | P141: =(2*((P67+P68)/(P54+P25))*TAN((P22/360)*2*PI()))+P138 -> 0.02372055176 | S141: Involut Betriebseingriffswinkel | T141: inv(αw3) | U141: FS 21.27 | V141: =(2*((V67+V68)/(V54+V25))*TAN((V22/360)*2*PI()))+V138 -> 0.02346368388
A142: =A86 -> Eintauchtiefe Rad 2 max. [mm] | D142: =D86 -> 18 | G142: Näherungsrechnung Alpha (w) - 0.Stufe | I142: https://de.wikipedia.org/wiki/Involut-Funktion | J142: =((3*J141)^(1/3))-(0.4*J141) -> 0.3907624803 | M142: Näherungsrechnung Alpha (w) - 0.Stufe | O142: https://de.wikipedia.org/wiki/Involut-Funktion | P142: =((3*P141)^(1/3))-(0.4*P141) -> 0.4049075813 | S142: Näherungsrechnung Alpha (w) - 0.Stufe | U142: https://de.wikipedia.org/wiki/Involut-Funktion | V142: =((3*V141)^(1/3))-(0.4*V141) -> 0.4035090772
A143: =A87 -> Eintauchtiefe Rad 2 min. [mm] | D143: =D87 -> 9 | G143: Näherungsrechnung Alpha (w) - 1.Stufe | I143: https://de.wikipedia.org/wiki/Involut-Funktion | J143: =J142+((J141-TAN(J142)+J142)/((TAN(J142))^2)) -> 0.3909343904 | M143: Näherungsrechnung Alpha (w) - 1.Stufe | O143: https://de.wikipedia.org/wiki/Involut-Funktion | P143: =P142+((P141-TAN(P142)+P142)/((TAN(P142))^2)) -> 0.4051144969 | S143: Näherungsrechnung Alpha (w) - 1.Stufe | U143: https://de.wikipedia.org/wiki/Involut-Funktion | V143: =V142+((V141-TAN(V142)+V142)/((TAN(V142))^2)) -> 0.4037122893
A144: Ölvolumen [l] | B144: Völ | D144: =((((D208-(2*D170))*(D217-(D278+D266)))-(D257*D260))*D131)/(1000*1000) ->  | G144: Näherungsrechnung Alpha (w) - 2.Stufe | I144: https://de.wikipedia.org/wiki/Involut-Funktion | J144: =J143+((J141-TAN(J143)+J143)/((TAN(J143))^2)) -> 0.3909343066 | M144: Näherungsrechnung Alpha (w) - 2.Stufe | O144: https://de.wikipedia.org/wiki/Involut-Funktion | P144: =P143+((P141-TAN(P143)+P143)/((TAN(P143))^2)) -> 0.4051143788 | S144: Näherungsrechnung Alpha (w) - 2.Stufe | U144: https://de.wikipedia.org/wiki/Involut-Funktion | V144: =V143+((V141-TAN(V143)+V143)/((TAN(V143))^2)) -> 0.4037121751
A145: Wärmeleistung max. [W] | B145: Q'öl,max. | D145: =15000*(1-D7) -> 1847.979935 | G145: Näherungsrechnung Alpha (w) - 3.Stufe | I145: https://de.wikipedia.org/wiki/Involut-Funktion | J145: =J144+((J141-TAN(J144)+J144)/((TAN(J144))^2)) -> 0.3909343066 | M145: Näherungsrechnung Alpha (w) - 3.Stufe | O145: https://de.wikipedia.org/wiki/Involut-Funktion | P145: =P144+((P141-TAN(P144)+P144)/((TAN(P144))^2)) -> 0.4051143788 | S145: Näherungsrechnung Alpha (w) - 3.Stufe | U145: https://de.wikipedia.org/wiki/Involut-Funktion | V145: =V144+((V141-TAN(V144)+V144)/((TAN(V144))^2)) -> 0.4037121751
G146: Betriebseingriffswinkel [°] | H146: αw1 | I146: FS 21.27 | J146: =(J145/(2*PI()))*360 -> 22.39888583 | M146: Betriebseingriffswinkel [°] | N146: αw2 | O146: FS 21.27 | P146: =(P145/(2*PI()))*360 -> 23.21134412 | S146: Betriebseingriffswinkel [°] | T146: αw3 | U146: FS 21.27 | V146: =(V145/(2*PI()))*360 -> 23.13100377
A147: Gehäuse | G147: Involut Betriebseingriffswinkel | H147: inv(αwt1) | I147: FS 21.48 | J147: =(2*(J64/(J54+J25))*(TAN((J22/360)*2*PI())))+J140 -> 0.02379254664 | M147: Involut Betriebseingriffswinkel | N147: inv(αwt2) | O147: FS 21.48 | P147: =(2*(P64/(P54+P25))*(TAN((P22/360)*2*PI())))+P140 -> 0.02601208234 | S147: Involut Betriebseingriffswinkel | T147: inv(αwt3) | U147: FS 21.48 | V147: =(2*(V64/(V54+V25))*(TAN((V22/360)*2*PI())))+V140 -> 0.02524097499
A148: Werkstoff | B148: =INDIRECT("AF"&55+D148) -> 0 | D148: 33 | G148: Näherungsrechnung Alpha (w) - 0.Stufe | I148: https://de.wikipedia.org/wiki/Involut-Funktion | J148: =((3*J147)^(1/3))-(0.4*J147) -> 0.4052976079 | M148: Näherungsrechnung Alpha (w) - 0.Stufe | O148: https://de.wikipedia.org/wiki/Involut-Funktion | P148: =((3*P147)^(1/3))-(0.4*P147) -> 0.4169272093 | S148: Näherungsrechnung Alpha (w) - 0.Stufe | U148: https://de.wikipedia.org/wiki/Involut-Funktion | V148: =((3*V147)^(1/3))-(0.4*V147) -> 0.4129705868
A149: Konstruktion | D149: Schweißkonstruktion | G149: Näherungsrechnung Alpha (w) - 1.Stufe | I149: https://de.wikipedia.org/wiki/Involut-Funktion | J149: =J148+((J147-TAN(J148)+J148)/((TAN(J148))^2)) -> 0.4055055662 | M149: Näherungsrechnung Alpha (w) - 1.Stufe | O149: https://de.wikipedia.org/wiki/Involut-Funktion | P149: =P148+((P147-TAN(P148)+P148)/((TAN(P148))^2)) -> 0.41716832 | S149: Näherungsrechnung Alpha (w) - 1.Stufe | U149: https://de.wikipedia.org/wiki/Involut-Funktion | V149: =V148+((V147-TAN(V148)+V148)/((TAN(V148))^2)) -> 0.4131999605
A150: größte lichte Gehäuselänge | B150: l | D150: 400 | G150: Näherungsrechnung Alpha (w) - 2.Stufe | I150: https://de.wikipedia.org/wiki/Involut-Funktion | J150: =J149+((J147-TAN(J149)+J149)/((TAN(J149))^2)) -> 0.4055054469 | M150: Näherungsrechnung Alpha (w) - 2.Stufe | O150: https://de.wikipedia.org/wiki/Involut-Funktion | P150: =P149+((P147-TAN(P149)+P149)/((TAN(P149))^2)) -> 0.4171681631 | S150: Näherungsrechnung Alpha (w) - 2.Stufe | U150: https://de.wikipedia.org/wiki/Involut-Funktion | V150: =V149+((V147-TAN(V149)+V149)/((TAN(V149))^2)) -> 0.4131998175
A151: Länge Welle 1 [mm] | B151: lWelle1 | D151: =#REF! ->  | G151: Näherungsrechnung Alpha (w) - 3.Stufe | I151: https://de.wikipedia.org/wiki/Involut-Funktion | J151: =J150+((J147-TAN(J150)+J150)/((TAN(J150))^2)) -> 0.4055054469 | M151: Näherungsrechnung Alpha (w) - 3.Stufe | O151: https://de.wikipedia.org/wiki/Involut-Funktion | P151: =P150+((P147-TAN(P150)+P150)/((TAN(P150))^2)) -> 0.4171681631 | S151: Näherungsrechnung Alpha (w) - 3.Stufe | U151: https://de.wikipedia.org/wiki/Involut-Funktion | V151: =V150+((V147-TAN(V150)+V150)/((TAN(V150))^2)) -> 0.4131998175
A152: Länge Welle 2 [mm] | B152: lWelle2 | D152: =#REF! ->  | G152: Betriebseingriffswinkel [°] | H152: αwt1 | I152: FS 21.27 | J152: =(J151/(2*PI()))*360 -> 23.23375068 | M152: Betriebseingriffswinkel [°] | N152: αwt2 | O152: FS 21.27 | P152: =(P151/(2*PI()))*360 -> 23.90197509 | S152: Betriebseingriffswinkel [°] | T152: αwt3 | U152: FS 21.27 | V152: =(V151/(2*PI()))*360 -> 23.67460564
A153: Länge Welle 3 [mm] | B153: lWelle3 | G153: Eingriffswinkel (Stirnschnitt) am Kopfkreis Ritzel [°] | H153: αat1,1 | I153: RM Gl. 21.53 | J153: =((ACOS((J180/J184)*COS((J139/360)*2*PI())))/(2*PI()))*360 -> 33.58251557 | M153: Eingriffswinkel (Stirnschnitt) am Kopfkreis [°] | N153: αat1 | O153: RM Gl. 21.53 | P153: =((ACOS((P176/P180)*COS((P139/360)*2*PI())))/(2*PI()))*360 -> 28.58214846 | S153: Eingriffswinkel (Stirnschnitt) am Kopfkreis [°] | T153: αat1 | U153: RM Gl. 21.53 | V153: =((ACOS((V176/V180)*COS((V139/360)*2*PI())))/(2*PI()))*360 -> 27.29480633
A154: Kopfkreisdurchmesser Ritzel Welle 1 [mm] | B154: da1,1 | D154: =J184 -> 78.19460507 | G154: Involut Eingriffswinkel (Stirnschnitt) am Kopfkreis Ritzel [°] | H154: inv(αat1,1) | I154: TB21-4 | J154: =TAN((J153/360)*2*PI())-(PI()/180)*J153 -> 0.07783316625 | M154: Involut Betriebseingriffswinkel | N154: inv(αat1) | O154: TB21-4 | P154: =TAN((P153/360)*2*PI())-(PI()/180)*P153 -> 0.04596098446 | S154: Involut Betriebseingriffswinkel | T154: inv(αat1) | U154: TB21-4 | V154: =TAN((V153/360)*2*PI())-(PI()/180)*V153 -> 0.03963945898
A155: Kopfkreisdurchmesser Rad Welle 2 [mm] | B155: da2,1 | D155: =J185 -> 223.5956621 | G155: Eingriffswinkel (Stirnschnitt) am Kopfkreis Rad [°] | H155: αat2,1 | I155: RM Gl. 21.53 | J155: =((ACOS((J181/J185)*COS((J139/360)*2*PI())))/(2*PI()))*360 -> 25.77397568 | M155: Eingriffswinkel (Stirnschnitt) am Kopfkreis Rad [°] | N155: αat2,1 | O155: RM Gl. 21.53 | P155: =((ACOS((P181/P185)*COS((P139/360)*2*PI())))/(2*PI()))*360 -> 26.3649658 | S155: Eingriffswinkel (Stirnschnitt) am Kopfkreis Rad [°] | T155: αat2,1 | U155: RM Gl. 21.53 | V155: =((ACOS((V181/V185)*COS((V139/360)*2*PI())))/(2*PI()))*360 -> 26.50382973
A156: Kopfkreisdurchmesser Ritzel Welle 2 [mm] | B156: da1,2 | D156: =P184 -> 81.293744 | G156: Involut Eingriffswinkel (Stirnschnitt) am Kopfkreis Rad [°] | H156: inv(αat2,1) | I156: TB21-4 | J156: =TAN((J155/360)*2*PI())-(PI()/180)*J155 -> 0.03301791795 | M156: Involut Eingriffswinkel (Stirnschnitt) am Kopfkreis Rad [°] | N156: inv(αat2,1) | O156: TB21-4 | P156: =TAN((P155/360)*2*PI())-(PI()/180)*P155 -> 0.03548694483 | S156: Involut Eingriffswinkel (Stirnschnitt) am Kopfkreis Rad [°] | T156: inv(αat2,1) | U156: TB21-4 | V156: =TAN((V155/360)*2*PI())-(PI()/180)*V155 -> 0.03608597474
A157: Kopfkreisdurchmesser Rad Welle 3 [mm] | B157: da2,2 | D157: =P185 -> 220.2978595 | G157: Schrägungswinkel gewählt [°] | H157: β1 | J157: =J56 -> 19 | M157: Schrägungswinkel gewählt [°] | N157: β2 | P157: =P56 -> 18 | S157: Schrägungswinkel gewählt [°] | T157: β3 | V157: =V56 -> 16
A158: Breite Lager 1 Welle 1 [mm] | D158: =#REF! ->  | G158: Mindestschrägungswinkel [°] | H158: βmin | J158: 8 | M158: Mindestschrägungswinkel [°] | N158: βmin | P158: 8 | S158: Mindestschrägungswinkel [°] | T158: βmin | V158: 8
A159: Breite Lager 2 Welle 1 [mm] | D159: =#REF! ->  | G159: Maximalschrägungswinkel [°] | H159: βmax | J159: 20 | M159: Maximalschrägungswinkel [°] | N159: βmax | P159: 20 | S159: Maximalschrägungswinkel [°] | T159: βmax | V159: 20
A160: Breite Lager 1 Welle 2 [mm] | D160: =#REF! ->  | G160: Betriebsschrägungswinkel [°] | H160: βw1 | I160: Skript 1.2 S.22 | J160: =((ATAN(TAN((J157/360)*2*PI())*(J182/J180)))/(2*PI()))*360 -> 19.27478833 | M160: Betriebsschrägungswinkel [°] | N160: βw2 | O160: Skript 1.2 S.22 | P160: =((ATAN(TAN((P157/360)*2*PI())*(P182/P180)))/(2*PI()))*360 -> 18.36215394 | S160: Betriebsschrägungswinkel [°] | T160: βw3 | U160: Skript 1.2 S.22 | V160: =((ATAN(TAN((V157/360)*2*PI())*(V182/V180)))/(2*PI()))*360 -> 16.32048146
A161: Breite Lager 2 Welle 2 [mm] | D161: =#REF! ->  | G161: Grundschrägungswinkel [°] | H161: βb1 | I161: Gl.21.36 | J161: =ACOS( (SIN((J137/360)*2*PI()) / SIN((J139/360)*2*PI())) ) * (360/(2*PI())) -> 17.81436394 | M161: Grundschrägungswinkel [°] | N161: βb2 | O161: Gl.21.36 | P161: =ACOS( (SIN((P137/360)*2*PI()) / SIN((P139/360)*2*PI())) ) * (360/(2*PI())) -> 16.88076667 | S161: Grundschrägungswinkel [°] | T161: βb3 | U161: Gl.21.36 | V161: =ACOS( (SIN((V137/360)*2*PI()) / SIN((V139/360)*2*PI())) ) * (360/(2*PI())) -> 15.01158754
A162: Breite Lager 1 Welle 3 [mm] | D162: =#REF! ->  | G162: Schrägungswinkel [°] | H162: βB1 | I162: Skript 1.2 S.22 | J162: =((ATAN(TAN((J157/360)*2*PI())*SIN((J137/360)*2*PI())))/2*PI())*360 -> 66.2903218 | M162: Schrägungswinkel [°] | N162: βB2 | O162: Skript 1.2 S.22 | P162: =((ATAN(TAN((P157/360)*2*PI())*SIN((P137/360)*2*PI())))/2*PI())*360 -> 62.58522219 | S162: Schrägungswinkel [°] | T162: βB3 | U162: Skript 1.2 S.22 | V162: =((ATAN(TAN((V157/360)*2*PI())*SIN((V137/360)*2*PI())))/2*PI())*360 -> 55.28201761
A163: Breite Lager 2 Welle 3 [mm] | D163: =#REF! -> 
A164: Außendurchmesser Lager 1 Welle 1 [mm] | D164: =#REF! ->  | G164: Profilverschiebungsfaktor Ritzel | H164: x1,1 | I164: TB 21-6 | J164: =J67 -> 0.4358830844 | M164: Profilverschiebungsfaktor Ritzel | N164: x1,2 | O164: TB 21-6 | P164: =P67 -> 0.5274081772 | S164: Profilverschiebungsfaktor Ritzel | T164: x1,3 | U164: TB 21-6 | V164: =V67 -> 0.5251111896
A165: Außendurchmesser Lager 2 Welle 1 [mm] | D165: =#REF! ->  | G165: Profilverschiebungsfaktor Rad | H165: x2,1 | I165: TB 21-6 | J165: =J68 -> 0.3441169156 | M165: Profilverschiebungsfaktor Rad | N165: x2,2 | O165: TB 21-6 | P165: =P68 -> 0.5625918228 | S165: Profilverschiebungsfaktor Rad | T165: x2,3 | U165: TB 21-6 | V165: =V68 -> 0.5448888104
A166: Außendurchmesser Lager 1 Welle 2 [mm] | D166: =#REF! ->  | G166: Summe der Profilverschiebungsfaktoren [mm] | H166: Σx1 | I166: FS 21.49 | J166: =J64 -> 0.78 | M166: Summe der Profilverschiebungsfaktoren [mm] | N166: Σx2 | O166: FS 21.49 | P166: =P64 -> 1.09 | S166: Summe der Profilverschiebungsfaktoren [mm] | T166: Σx3 | U166: FS 21.49 | V166: =V64 -> 1.07
A167: Außendurchmesser Lager 2 Welle 2 [mm] | D167: =#REF! ->  | G167: Profilverschiebung Ritzel [mm] | H167: V1,1 | I167: FS 21.43 | J167: =J67*J52 -> 1.307649253 | M167: Profilverschiebung Ritzel [mm] | N167: V1,2 | O167: FS 21.43 | P167: =P67*P52 -> 1.582224532 | S167: Profilverschiebung Ritzel [mm] | T167: V1,3 | U167: FS 21.43 | V167: =V67*V52 -> 1.575333569
A168: Außendurchmesser Lager 1 Welle 3 [mm] | D168: =#REF! ->  | G168: Profilverschiebung Rad [mm] | H168: V2,1 | I168: FS 21.43 | J168: =J68*J52 -> 1.032350747 | M168: Profilverschiebung Rad [mm] | N168: V2,2 | O168: FS 21.43 | P168: =P68*P52 -> 1.687775468 | S168: Profilverschiebung Rad [mm] | T168: V2,3 | U168: FS 21.43 | V168: =V68*V52 -> 1.634666431
A169: Außendurchmesser Lager 2 Welle 3 [mm] | D169: =#REF! ->  | G169: praktischer Mindest-Profilverschiebungsfaktor Ritzel | H169: x'grenz1,1 = x'min1,1 | I169: FS 21.44 | J169: =(14-J98)/17 -> -0.6864870875 | M169: praktischer Mindest-Profilverschiebungsfaktor Ritzel | N169: x'grenz1,2 = x'min1,2 | O169: FS 21.44 | P169: =(14-P98)/17 -> -0.7300354548 | S169: praktischer Mindest-Profilverschiebungsfaktor Ritzel | T169: x'grenz1,3 = x'min1,3 | U169: FS 21.44 | V169: =(14-V98)/17 -> -1.013123133
A170: Wanddicke Unterkasten [mm] | B170: s1 | C170: RM S.741 | D170: =(D171*D150)+4 -> 6 | G170: praktischer Mindest-Profilverschiebungsfaktor Rad | H170: x'grenz2,1 = x'min2,1 | I170: FS 21.44 | J170: =(14-J99)/17 -> -3.843794313 | M170: praktischer Mindest-Profilverschiebungsfaktor Rad | N170: x'grenz2,2 = x'min2,2 | O170: FS 21.44 | P170: =(14-P99)/17 -> -3.702072591 | S170: praktischer Mindest-Profilverschiebungsfaktor Rad | T170: x'grenz2,3 = x'min2,3 | U170: FS 21.44 | V170: =(14-V99)/17 -> -3.308938813
A171: Faktor für Dicke Unterkasten [0,004 … 0,005] | C171: RM S.741 | D171: 0.005 | G171: theoretischer Mindest-Profilverschiebungsfaktor Ritzel | H171: x'grenz1,1 = x'min1,1 | I171: Gerloff S. 20 | J171: =(17-J98)/17 -> -0.5100164992 | M171: theoretischer Mindest-Profilverschiebungsfaktor Ritzel | N171: x'grenz1,2 = x'min1,2 | O171: Gerloff S. 20 | P171: =(17-P98)/17 -> -0.5535648666 | S171: theoretischer Mindest-Profilverschiebungsfaktor Ritzel | T171: x'grenz1,3 = x'min1,3 | U171: Gerloff S. 20 | V171: =(17-V98)/17 -> -0.8366525444
A172: Wanddicke Oberkasten [mm] | B172: s2 | C172: RM S.741 | D172: =D174*D170 -> 4.8 | G172: theoretischer Mindest-Profilverschiebungsfaktor Rad | H172: x'grenz2,1 = x'min2,1 | I172: Gerloff S. 20 | J172: =(17-J99)/17 -> -3.667323725 | M172: theoretischer Mindest-Profilverschiebungsfaktor Rad | N172: x'grenz2,2 = x'min2,2 | O172: Gerloff S. 20 | P172: =(17-P99)/17 -> -3.525602003 | S172: theoretischer Mindest-Profilverschiebungsfaktor Rad | T172: x'grenz2,3 = x'min2,3 | U172: Gerloff S. 20 | V172: =(17-V99)/17 -> -3.132468225
A173: Wanddicke Oberkasten gewählt [mm] | B173: s2 | D173: =ROUND(D172,0) -> 5
A174: Faktor für Dicke Oberkasten [0,5 … 0,8] | C174: RM S.741 | D174: 0.8 | G174: Ersatzraddurchmesser Ritzel [mm] | H174: dn1,1 | I174: FS 21.41 | J174: =J98*J52 -> 77.01084146 | M174: Ersatzraddurchmesser Ritzel [mm] | N174: dn1,2 | O174: FS 21.41 | P174: =P98*P52 -> 79.2318082 | S174: Ersatzraddurchmesser Ritzel [mm] | T174: dn1,3 | U174: FS 21.41 | V174: =V98*V52 -> 93.66927977
A175: Mindestwandicke Werkstoff S235JR [mm] | B175: s1,2,min. | C175: RM S.741 | D175: 4 | G175: Ersatzraddurchmesser Rad [mm] | H175: dn2,1 | I175: FS 21.41 | J175: =J99*J52 -> 238.03351 | M175: Ersatzraddurchmesser Rad [mm] | N175: dn2,2 | O175: FS 21.41 | P175: =P99*P52 -> 230.8057021 | S175: Ersatzraddurchmesser Rad [mm] | T175: dn2,3 | U175: FS 21.41 | V175: =V99*V52 -> 210.7558795
A176: Maximalwanddicke Werkstoff S235JR [mm] | B176: s1,2,max. | C176: RM S.741 | D176: 25 | G176: Fußkreisdurchmesser Ritzel [mm] | H176: df1,2 | I176: Gl. 21.41 | J176: =J180-(2*J132) -> 64.91826346 | M176: Fußkreisdurchmesser Ritzel [mm] | N176: df1,2 | O176: Gl. 21.41 | P176: =P180-(2*P132) -> 68.21534254 | S176: Fußkreisdurchmesser Ritzel [mm] | T176: df1,3 | U176: Gl. 21.41 | V176: =V180-(2*V132) -> 83.03581975
A177: Flanschdicke [mm] | B177: s3, s4 | C177: RM S.741 | D177: =2*D170 -> 12 | G177: Fußkreisdurchmesser Rad [mm] | H177: df2,2 | I177: Gl. 21.41 | J177: =J181-(2*J133) -> 210.3193205 | M177: Fußkreisdurchmesser Rad [mm] | N177: df2,2 | O177: Gl. 21.41 | P177: =P181-(2*P133) -> 207.219458 | S177: Fußkreisdurchmesser Rad [mm] | T177: df2,3 | U177: Gl. 21.41 | V177: =V181-(2*V133) -> 192.3859262
A178: Flanschbreite [mm] | B178: b1 | C178: RM S.741 | D178: =(4*D170)+10 -> 34 | G178: Grundkreisdurchmesser Ritzel [mm] | H178: db1,1 | I178: Gerloff S. 18 | J178: =J180*COS((J139/360)*2*PI()) -> 65.14314943 | M178: Grundkreisdurchmesser Ritzel [mm] | N178: db1,2 | O178: Gerloff S. 18 | P178: =P180*COS((P139/360)*2*PI()) -> 67.75842589 | S178: Grundkreisdurchmesser Ritzel [mm] | T178: db1,3 | U178: Gerloff S. 18 | V178: =V180*COS((V139/360)*2*PI()) -> 81.72310679
A179: Flanschraubendurchmesser [mm] | B179: d2 | C179: RM S.741 | D179: =1.5*D170 -> 9 | G179: Grundkreisdurchmesser Rad [mm] | H179: db2,1 | I179: Gerloff S. 18 | J179: =J181*COS((J139/360)*2*PI()) -> 201.3515528 | M179: Grundkreisdurchmesser Rad [mm] | N179: db2,2 | O179: Gerloff S. 18 | P179: =P181*COS((P139/360)*2*PI()) -> 197.3832406 | S179: Grundkreisdurchmesser Rad [mm] | T179: db2,3 | U179: Gerloff S. 18 | V179: =V181*COS((V139/360)*2*PI()) -> 183.8769903
A180: Flanschraubenabstand [mm] | B180: lF | C180: RM S.741 | D180: =D181*D179 -> 90 | G180: Teilkreisdurchmesser Ritzel [mm] | H180: d1,1 | I180: Gerloff S. 18 | J180: =J54*J84 -> 69.80296496 | M180: Teilkreisdurchmesser Ritzel [mm] | N180: d1,2 | O180: Gerloff S. 18 | P180: =P54*P84 -> 72.55089347 | S180: Teilkreisdurchmesser Ritzel [mm] | T180: d1,3 | U180: Gerloff S. 18 | V180: =V54*V84 -> 87.38515261
A181: Faktor Flanschraubenabstand [6 … 10] | C181: RM S.741 | D181: 10 | G181: Teilkreisdurchmesser Rad [mm] | H181: d2,1 | I181: Gerloff S. 18 | J181: =J25*J84 -> 215.754619 | M181: Teilkreisdurchmesser Rad [mm] | N181: d2,2 | O181: Gerloff S. 18 | P181: =P25*P84 -> 211.3439071 | S181: Teilkreisdurchmesser Rad [mm] | T181: d2,3 | U181: Gerloff S. 18 | V181: =V25*V84 -> 196.6165934
A182: Fußleistendicke [mm] | B182: s5 | C182: RM S.741 | D182: =3.5*D170 -> 21 | G182: Betriebswälzkreisdurchmesser Ritzel [mm] | H182: dw1,1 | I182: Gl. 21.22a | J182: =(2*J189)/(1+J97) -> 70.89229291 | M182: Betriebswälzkreisdurchmesser Ritzel [mm] | N182: dw1,2 | O182: Gl. 21.22a | P182: =(2*P189)/(1+P97) -> 74.11448496 | S182: Betriebswälzkreisdurchmesser Ritzel [mm] | T182: dw1,3 | U182: Gl. 21.22a | V182: =(2*V189)/(1+V97) -> 89.23288843
A183: Fußleistenbreite [mm] | B183: b2 | C183: RM S.741 | D183: =(4.5*D170)+10 -> 37 | G183: Betriebswälzkreisdurchmesser Rad [mm] | H183: dw2,1 | I183: Gl. 21.22b | J183: =(2*J189)-J182 -> 219.1216326 | M183: Betriebswälzkreisdurchmesser Rad [mm] | N183: dw2,2 | O183: Gl. 21.22b | P183: =(2*P189)-P182 -> 215.898717 | S183: Betriebswälzkreisdurchmesser Rad [mm] | T183: dw2,3 | U183: Gl. 21.22b | V183: =(2*V189)-V182 -> 200.773999
A184: Versteifungs- & Kühlrippenbreite [mm] | B184: s6 | C184: RM S.741 | D184: 0,7 * Wandstärke | G184: Kopfkreisdurchmesser Ritzel [mm] | H184: da1,1 | I184: Gerloff S. 19 | J184: =J180+(2*J130) -> 78.19460507 | M184: Kopfkreisdurchmesser Ritzel [mm] | N184: da1,2 | O184: Gerloff S. 19 | P184: =P180+(2*P130) -> 81.293744 | S184: Kopfkreisdurchmesser Ritzel [mm] | T184: da1,3 | U184: Gerloff S. 19 | V184: =V180+(2*V130) -> 96.12096116
A185: Außendurchmesser der Lagergehäuse Lager 1,1 [mm] | B185: b3,1,1 | C185: RM S.741 | D185: =$D$192*D296 ->  | G185: Kopfkreisdurchmesser Rad [mm] | H185: da2,1 | I185: Gerloff S. 19 | J185: =J181+(2*J131) -> 223.5956621 | M185: Kopfkreisdurchmesser Rad [mm] | N185: da2,2 | O185: Gerloff S. 19 | P185: =P181+(2*P131) -> 220.2978595 | S185: Kopfkreisdurchmesser Rad [mm] | T185: da2,3 | U185: Gerloff S. 19 | V185: =V181+(2*V131) -> 205.4710677
A186: Außendurchmesser der Lagergehäuse Lager 2,1 [mm] | B186: b3,2,1 | C186: RM S.741 | D186: =$D$192*D296 ->  | G186: Mindestkopfkreisdurchmesser Ritzel [mm] | H186: da,min,1,1 | I186: Gerloff S. 20 | J186: =J178+(2*J52) -> 71.14314943 | M186: Mindestkopfkreisdurchmesser Ritzel [mm] | N186: da,min,1,2 | O186: Gerloff S. 20 | P186: =P178+(2*P52) -> 73.75842589 | S186: Mindestkopfkreisdurchmesser Ritzel [mm] | T186: da,min,1,3 | U186: Gerloff S. 20 | V186: =V178+(2*V52) -> 87.72310679
A187: Außendurchmesser der Lagergehäuse Lager 1,2 [mm] | B187: b3,1,2 | C187: RM S.741 | D187: =$D$192*D166 ->  | G187: Mindestkopfkreisdurchmesser Rad [mm] | H187: da,min,2,1 | I187: Gerloff S. 20 | J187: =J179+(2*J52) -> 207.3515528 | M187: Mindestkopfkreisdurchmesser Rad [mm] | N187: da,min,2,2 | O187: Gerloff S. 20 | P187: =P179+(2*P52) -> 203.3832406 | S187: Mindestkopfkreisdurchmesser Rad [mm] | T187: da,min,2,3 | U187: Gerloff S. 20 | V187: =V179+(2*V52) -> 189.8769903
A188: Außendurchmesser der Lagergehäuse Lager 2,2 [mm] | B188: b3,2,2 | C188: RM S.741 | D188: =$D$192*D167 ->  | G188: Null-Achsabstand [mm] | H188: ad1 | I188: FS 21.37 | J188: =(J180+J181)/2 -> 142.778792 | M188: Null-Achsabstand [mm] | N188: ad2 | O188: FS 21.37 | P188: =(P180+P181)/2 -> 141.9474003 | S188: Null-Achsabstand [mm] | T188: ad3 | U188: FS 21.37 | V188: =(V180+V181)/2 -> 142.000873
A189: Außendurchmesser der Lagergehäuse Lager 1,3 [mm] | B189: b3,1,3 | C189: RM S.741 | D189: =$D$192*D168 ->  | G189: Betriebsabstand bei spielfreiem Eingriff [mm] | H189: a1 | I189: FS 21.47 | J189: =J69 -> 145.0069628 | M189: Betriebsabstand bei spielfreiem Eingriff [mm] | N189: a2 | O189: FS 21.47 | P189: =P69 -> 145.006601 | S189: Betriebsabstand bei spielfreiem Eingriff [mm] | T189: a3 | U189: FS 21.47 | V189: =V69 -> 145.0034437
A190: Außendurchmesser der Lagergehäuse Lager 2,3 [mm] | B190: b3,2,3 | C190: RM S.741 | D190: =$D$192*D169 -> 
A191: Außendurchmesser des Bohrungsgehäuse [mm] | D191: =D188 ->  | G191: Toleranzen, Verzahnungsqualität, Prüfmaße für Zahndicke | M191: Toleranzen, Verzahnungsqualität, Prüfmaße für Zahndicke | S191: Toleranzen, Verzahnungsqualität, Prüfmaße für Zahndicke
A192: Faktor Außendurchmesser der Lagergehäuse [1,2 … 1,4] | C192: RM S.741 | D192: 1.4 | G192: Verzahnungsqualität DIN[6…12] | J192: 6 | K192: #78 | M192: Verzahnungsqualität DIN[6…12] | P192: 6 | Q192: #79 | S192: Verzahnungsqualität DIN[6…12] | V192: 6 | W192: #80
A193: Fundamentschraubendurchmesser [mm] | B193: d3 | C193: RM S.741 | D193: =2*D170 -> 12 | G193: Mindest-Verzahnungsqualität aufgrund Zahnabbruchgefahr | J193: =IF(OR(J194="gehärtet",J195="gehärtet"),8,12) -> 8 | M193: Mindest-Verzahnungsqualität aufgrund Zahnabbruchgefahr | P193: =IF(OR(P194="gehärtet",P195="gehärtet"),8,12) -> 8 | S193: Mindest-Verzahnungsqualität aufgrund Zahnabbruchgefahr | V193: =IF(OR(V194="gehärtet",V195="gehärtet"),8,12) -> 8
A194: Abstand Ritzel 1 seitlich/ von Gehäusewand [mm] | B194: s7,1,1 | C194: RM S.741 | D194: =IF((2+(3*J83)+IF((0.65*(D47-25))>=0,(0.65*(D47-25)),0))<=70,(2+(3*J83)+IF((0.65*(D47-25))>=0,(0.65*(D47-25)),0)),70) -> 11 | G194: =G36 -> Zahnflanken Gefügezustand Ritzel [gehärtet/ungehärtet] | J194: =J36 -> gehärtet | M194: =M36 -> Zahnflanken Gefügezustand Ritzel [gehärtet/ungehärtet] | P194: =P36 -> gehärtet | S194: =S36 -> Zahnflanken Gefügezustand Ritzel [gehärtet/ungehärtet] | V194: =V36 -> gehärtet
A195: Abstand Rad 1 seitlich/ von Gehäusewand [mm] | B195: s7,2,1 | C195: RM S.741 | D195: =IF((2+(3*J83)+IF((0.65*(D47-25))>=0,(0.65*(D47-25)),0))<=70,(2+(3*J83)+IF((0.65*(D47-25))>=0,(0.65*(D47-25)),0)),70) -> 11 | G195: =G37 -> Zahnflanken Gefügezustand Rad [gehärtet/ungehärtet] | J195: =J37 -> gehärtet | M195: =M37 -> Zahnflanken Gefügezustand Rad [gehärtet/ungehärtet] | P195: =P37 -> gehärtet | S195: =S37 -> Zahnflanken Gefügezustand Rad [gehärtet/ungehärtet] | V195: =V37 -> gehärtet
A196: Abstand Ritzel 2 seitlich/ von Gehäusewand [mm] | B196: s7,1,2 | C196: RM S.741 | D196: =IF((2+(3*P83)+IF((0.65*(D48-25))>=0,(0.65*(D48-25)),0))<=70,(2+(3*P83)+IF((0.65*(D48-25))>=0,(0.65*(D48-25)),0)),70) -> 11 | G196: Empfehlung Verzahnungsqualität aus Drehzahl | I196: TB 21-7b | J196: =SUM(J197:J204) -> 9 | M196: Empfehlung Verzahnungsqualität aus Drehzahl | O196: TB 21-7b | P196: =SUM(P197:P204) -> 11 | S196: Empfehlung Verzahnungsqualität aus Drehzahl | U196: TB 21-7b | V196: =SUM(V197:V204) -> 10
A197: Abstand Rad 2 seitlich/ von Gehäusewand [mm] | B197: s7,2,2 | C197: RM S.741 | D197: =IF((2+(3*P83)+IF((0.65*(D48-25))>=0,(0.65*(D48-25)),0))<=70,(2+(3*P83)+IF((0.65*(D48-25))>=0,(0.65*(D48-25)),0)),70) -> 11 | G197: Prüfmodul Verzahnungsqualität 5 | I197: TB 21-7b | J197: =IF(AND(J15<=20,J15>16),5,0) -> 0 | M197: Prüfmodul Verzahnungsqualität 5 | O197: TB 21-7b | P197: =IF(AND(P15<=20,P15>16),5,0) -> 0 | S197: Prüfmodul Verzahnungsqualität 5 | U197: TB 21-7b | V197: =IF(AND(V15<=20,V15>16),5,0) -> 0
G198: Prüfmodul Verzahnungsqualität 6 | I198: TB 21-7b | J198: =IF(AND(J15<=16,J15>12),6,0) -> 0 | M198: Prüfmodul Verzahnungsqualität 6 | O198: TB 21-7b | P198: =IF(AND(P15<=16,P15>12),6,0) -> 0 | S198: Prüfmodul Verzahnungsqualität 6 | U198: TB 21-7b | V198: =IF(AND(V15<=16,V15>12),6,0) -> 0
A199: Gehäusebreite, -Länge und -Höhe | B199: Berechnung für quadratisches Gehäuse | G199: Prüfmodul Verzahnungsqualität 7 | I199: TB 21-7b | J199: =IF(AND(J15<=12,J15>8),7,0) -> 0 | M199: Prüfmodul Verzahnungsqualität 7 | O199: TB 21-7b | P199: =IF(AND(P15<=12,P15>8),7,0) -> 0 | S199: Prüfmodul Verzahnungsqualität 7 | U199: TB 21-7b | V199: =IF(AND(V15<=12,V15>8),7,0) -> 0
A200: Betriebsachsabstand gerundet [mm] | D200: =ROUND(J189,1) -> 145 | G200: Prüfmodul Verzahnungsqualität 8 | I200: TB 21-7b | J200: =IF(AND(J15<=8,J15>5.5),8,0) -> 0 | M200: Prüfmodul Verzahnungsqualität 8 | O200: TB 21-7b | P200: =IF(AND(P15<=8,P15>5.5),8,0) -> 0 | S200: Prüfmodul Verzahnungsqualität 8 | U200: TB 21-7b | V200: =IF(AND(V15<=8,V15>5.5),8,0) -> 0
A201: erforderliche Breite ab Wellenachse 1 Ritzel 1 [mm] | B201: außen | D201: =D123+D194+$D$170 -> 56.09730253 | G201: Prüfmodul Verzahnungsqualität 9 | I201: TB 21-7b | J201: =IF(AND(J15<=5.5,J15>3),9,0) -> 9 | M201: Prüfmodul Verzahnungsqualität 9 | O201: TB 21-7b | P201: =IF(AND(P15<=5.5,P15>3),9,0) -> 0 | S201: Prüfmodul Verzahnungsqualität 9 | U201: TB 21-7b | V201: =IF(AND(V15<=5.5,V15>3),9,0) -> 0
... 467 more rows

Sheet Rahmendaten für CAD-Bereich
A1: Bauteil | B1: Bezeichnung | C1: Wert | F1: Bauteil | G1: Bezeichnung | H1: Wert | K1: Bauteil | L1: Bezeichnung | M1: Wert
A3: Ritzel 1 | B3: Ritzel | C3: außenverzahnt | F3: Ritzel 2 | G3: Ritzel | H3: außenverzahnt | K3: Ritzel 3 | L3: Ritzel | M3: außenverzahnt
B4: Modul m | C4: =Arbeitsbereich!J52 -> 3 | G4: Modul m | H4: =Arbeitsbereich!P52 -> 3 | L4: Modul m | M4: =Arbeitsbereich!V52 -> 3
B5: Zähnezahl z | C5: =Arbeitsbereich!J54 -> 22 | G5: Zähnezahl z | H5: =Arbeitsbereich!P54 -> 23 | L5: Zähnezahl z | M5: =Arbeitsbereich!V54 -> 28
B6: Bezugsprofil | C6: DIN 867 | G6: Bezugsprofil | H6: DIN 867 | L6: Bezugsprofil | M6: DIN 867
B7: Schrägungswinkel β | C7: =Arbeitsbereich!J56 -> 19 | G7: Schrägungswinkel β | H7: =Arbeitsbereich!P56 -> 18 | L7: Schrägungswinkel β | M7: =Arbeitsbereich!V56 -> 16
B8: Flankenrichtung | C8: =Arbeitsbereich!J28 -> linkssteigend | G8: Flankenrichtung | H8: =Arbeitsbereich!P28 -> linkssteigend | L8: Flankenrichtung | M8: =Arbeitsbereich!V28 -> linkssteigend
B9: Profilverschiebungsfaktor x | C9: =Arbeitsbereich!J67 -> 0.4358830844 | G9: Profilverschiebungsfaktor x | H9: =Arbeitsbereich!P67 -> 0.5274081772 | L9: Profilverschiebungsfaktor x | M9: =Arbeitsbereich!V67 -> 0.5251111896
B10: Verzahnungsqualität | C10: =Arbeitsbereich!J192 -> 6 | G10: Verzahnungsqualität | H10: =Arbeitsbereich!P192 -> 6 | L10: Verzahnungsqualität | M10: =Arbeitsbereich!V192 -> 6
B11: Toleranzfeld | C11: DIN 3967 | G11: Toleranzfeld | H11: DIN 3967 | L11: Toleranzfeld | M11: DIN 3967
B12: Achsabstand im Gehäuse mit Abmaßen a | C12: =CONCATENATE(ROUND(Arbeitsbereich!J69,4),"±",IF(ABS(Arbeitsbereich!J234)=ABS(Arbeitsbereich!J235),ABS(Arbeitsbereich!J234)/1000,"Fehler: obere und untere Achsabstandstoleranz verschieden!")) -> 145,007±0,0125 | G12: Achsabstand im Gehäuse mit Abmaßen a | H12: =CONCATENATE(ROUND(Arbeitsbereich!P69,4),"±",IF(ABS(Arbeitsbereich!P234)=ABS(Arbeitsbereich!P235),ABS(Arbeitsbereich!P234)/1000,"Fehler: obere und untere Achsabstandstoleranz verschieden!")) -> 145,0066±0,0125 | L12: Achsabstand im Gehäuse mit Abmaßen a | M12: =CONCATENATE(ROUND(Arbeitsbereich!V69,4),"±",IF(ABS(Arbeitsbereich!V234)=ABS(Arbeitsbereich!V235),ABS(Arbeitsbereich!V234)/1000,"Fehler: obere und untere Achsabstandstoleranz verschieden!")) -> 145,0034±0,0125
B13: Gegenrad Positionsnummer | G13: Gegenrad Positionsnummer | L13: Gegenrad Positionsnummer
B14: Gegenrad Zähnezahl | C14: =Arbeitsbereich!J25 -> 68 | G14: Gegenrad Zähnezahl | H14: =Arbeitsbereich!P25 -> 67 | L14: Gegenrad Zähnezahl | M14: =Arbeitsbereich!V25 -> 63
B16: Fußkreisdurchmesser | C16: =Arbeitsbereich!J176 -> 64.91826346 | G16: Fußkreisdurchmesser | H16: =Arbeitsbereich!P176 -> 68.21534254 | L16: Fußkreisdurchmesser | M16: =Arbeitsbereich!V176 -> 83.03581975
B17: Teilkreisdurchmesser | C17: =Arbeitsbereich!J180 -> 69.80296496 | G17: Teilkreisdurchmesser | H17: =Arbeitsbereich!P180 -> 72.55089347 | L17: Teilkreisdurchmesser | M17: =Arbeitsbereich!V180 -> 87.38515261
B18: Kopfkreisdurchmesser | C18: =Arbeitsbereich!J184 -> 78.19460507 | G18: Kopfkreisdurchmesser | H18: =Arbeitsbereich!P184 -> 81.293744 | L18: Kopfkreisdurchmesser | M18: =Arbeitsbereich!V184 -> 96.12096116
B20: Oberfläche | C20: =CONCATENATE(Arbeitsbereich!J485," ","Rz=",Arbeitsbereich!J369) -> geschliffen Rz=4 | G20: Oberfläche | H20: =CONCATENATE(Arbeitsbereich!P485," ","Rz=",Arbeitsbereich!P369) -> geschliffen Rz=4 | L20: Oberfläche | M20: =CONCATENATE(Arbeitsbereich!V485," ","Rz=",Arbeitsbereich!V369) -> geschliffen Rz=4
B21: Werkstoffzustand | G21: Werkstoffzustand | L21: Werkstoffzustand
A23: Rad 1 | B23: Rad | C23: außenverzahnt | F23: Rad 2 | G23: Rad | H23: außenverzahnt | K23: Rad 3 | L23: Rad | M23: außenverzahnt
B24: Modul m | C24: =Arbeitsbereich!J52 -> 3 | G24: Modul m | H24: =Arbeitsbereich!P52 -> 3 | L24: Modul m | M24: =Arbeitsbereich!V52 -> 3
B25: Zähnezahl z | C25: =Arbeitsbereich!J25 -> 68 | G25: Zähnezahl z | H25: =Arbeitsbereich!P25 -> 67 | L25: Zähnezahl z | M25: =Arbeitsbereich!V25 -> 63
B26: Bezugsprofil | C26: DIN 867 | G26: Bezugsprofil | H26: DIN 867 | L26: Bezugsprofil | M26: DIN 867
B27: Schrägungswinkel β | C27: =Arbeitsbereich!J56 -> 19 | G27: Schrägungswinkel β | H27: =Arbeitsbereich!P56 -> 18 | L27: Schrägungswinkel β | M27: =Arbeitsbereich!V56 -> 16
B28: Flankenrichtung | C28: =Arbeitsbereich!J29 -> rechtssteigend | G28: Flankenrichtung | H28: =Arbeitsbereich!P29 -> rechtssteigend | L28: Flankenrichtung | M28: =Arbeitsbereich!V29 -> rechtssteigend
B29: Profilverschiebungsfaktor x | C29: =Arbeitsbereich!J68 -> 0.3441169156 | G29: Profilverschiebungsfaktor x | H29: =Arbeitsbereich!P68 -> 0.5625918228 | L29: Profilverschiebungsfaktor x | M29: =Arbeitsbereich!V68 -> 0.5448888104
B30: Verzahnungsqualität | C30: =Arbeitsbereich!J192 -> 6 | G30: Verzahnungsqualität | H30: =Arbeitsbereich!P192 -> 6 | L30: Verzahnungsqualität | M30: =Arbeitsbereich!V192 -> 6
B31: Toleranzfeld | C31: DIN 3967 | G31: Toleranzfeld | H31: DIN 3967 | L31: Toleranzfeld | M31: DIN 3967
B32: Achsabstand im Gehäuse mit Abmaßen a | C32: =CONCATENATE(ROUND(Arbeitsbereich!J69,4),"±",IF(ABS(Arbeitsbereich!J236)=ABS(Arbeitsbereich!J237),ABS(Arbeitsbereich!J236)/1000,"Fehler: obere und untere Achsabstandstoleranz verschieden!")) -> 145,007±0,0125 | G32: Achsabstand im Gehäuse mit Abmaßen a | H32: =CONCATENATE(ROUND(Arbeitsbereich!P69,4),"±",IF(ABS(Arbeitsbereich!P236)=ABS(Arbeitsbereich!P237),ABS(Arbeitsbereich!P236)/1000,"Fehler: obere und untere Achsabstandstoleranz verschieden!")) -> 145,0066±0,0125 | L32: Achsabstand im Gehäuse mit Abmaßen a | M32: =CONCATENATE(ROUND(Arbeitsbereich!V69,4),"±",IF(ABS(Arbeitsbereich!V236)=ABS(Arbeitsbereich!V237),ABS(Arbeitsbereich!V236)/1000,"Fehler: obere und untere Achsabstandstoleranz verschieden!")) -> 145,0034±0,0125
B33: Gegenrad Positionsnummer | G33: Gegenrad Positionsnummer | L33: Gegenrad Positionsnummer
B34: Gegenrad Zähnezahl | C34: =Arbeitsbereich!J54 -> 22 | G34: Gegenrad Zähnezahl | H34: =Arbeitsbereich!P54 -> 23 | L34: Gegenrad Zähnezahl | M34: =Arbeitsbereich!V54 -> 28
B36: Fußkreisdurchmesser | C36: =Arbeitsbereich!J177 -> 210.3193205 | G36: Fußkreisdurchmesser | H36: =Arbeitsbereich!P177 -> 207.219458 | L36: Fußkreisdurchmesser | M36: =Arbeitsbereich!V177 -> 192.3859262
B37: Teilkreisdurchmesser | C37: =Arbeitsbereich!J181 -> 215.754619 | G37: Teilkreisdurchmesser | H37: =Arbeitsbereich!P181 -> 211.3439071 | L37: Teilkreisdurchmesser | M37: =Arbeitsbereich!V181 -> 196.6165934
B38: Kopfkreisdurchmesser | C38: =Arbeitsbereich!J185 -> 223.5956621 | G38: Kopfkreisdurchmesser | H38: =Arbeitsbereich!P185 -> 220.2978595 | L38: Kopfkreisdurchmesser | M38: =Arbeitsbereich!V185 -> 205.4710677
B40: Oberfläche | C40: =CONCATENATE(Arbeitsbereich!J485," ","Rz=",Arbeitsbereich!J370) -> geschliffen Rz=1 | G40: Oberfläche | H40: =CONCATENATE(Arbeitsbereich!P485," ","Rz=",Arbeitsbereich!P370) -> geschliffen Rz=1 | L40: Oberfläche | M40: =CONCATENATE(Arbeitsbereich!V485," ","Rz=",Arbeitsbereich!V370) -> geschliffen Rz=1
B41: Werkstoffzustand | G41: Werkstoffzustand | L41: Werkstoffzustand

Sheet Bedienung
B4: Arbeitsabfolge zur Auslegung des Getriebes
C6: Geometrie einstellen -> Vorläufige Nachweise für Zahnräder -> Mindest-Wellendurchmesser ermitteln -> Lager auswählen -> Lagerabstände festlegen -> Nachweise der Zahnräder
C8: Achsabstand einstellen:
C9: m | D9: Modul
C10: z | D10: Zähnezahl
C11: β | D11: Schrägungswinkel
C12: {x | D12: Summe Profilverschiebung
C14: drehflankenspiel
C15: keine Angabe | D15: Faktor Verzahnungsqualität
C16: β | D16: Schrägungswinkel
C17: Keine Angabe | D17: Abmaßreihe für Ritzel
C19: Flankenlinienabweichung vor dem Einlaufen regelbar über:
C20: Fm | D20: Kraft an Zahnrädern = Moment = Leistung
C21: b | D21: Ritzelbreite
C22: c | D22: Anpassungsmaßnahmen vorhanden (einstellbare Lager; Einläppen/Einlaufen bei geringer Last; Möglichkeit Flankenlinienwinkelkorrektur)
C23: keine Angabe | D23: DIN-Qualität (5 ist extrem aufwendig; 12 ist grob)
C24: m | D24: Wenn garnichts mehr geht ist modulerhöhung der Vorschlaghammer
C25: s | D25: Abstand Ritzel von Mitte Lagerdruckpunktabstand, bzw. nächstem Lager bei Ritzelwelle
C26: dsh | D26: Kleinster Durchmesser der Welle
C28: Tragfähigkeitsnachweis
C29: m | D29: größte Schraube Modul
C30: z | D30: Zähnezahl
C32: Prüffaktor Industriegetriebe
D33: Ritzel Oberflächenrauheit
C35: Sicherheit auf Zahnflankentragfähigkeit
C36: m | D36: Modul vergrößern
C38: Sicherheit auf Biegetragfähigkeit
C39: m | D39: Modul erhöhen
C40: β | D40: Schrägungswinkel erhöhen
C41: z | D41: Zähnezahl

Sheet Graphen
A1: Config -> | B1: y-Offset Getriebeachsen | C1: Achsabstand 1 | D1: Offset aus Achsabstand 2 | AN1: LWA-L1 | AO1: LWA-L2 | AP1: LWA-Z1 | AQ1: LWA-WE
B2: 100 | C2: =Arbeitsbereich!D593 -> 145.0069628 | D2: =Arbeitsbereich!$D$593-Arbeitsbereich!$D$594 -> 0.0003617586781 | AN2: =Arbeitsbereich!J689 -> 32.375 | AO2: =Arbeitsbereich!J690 -> 99.125 | AP2: =Arbeitsbereich!J691 -> 135 | AQ2: =Arbeitsbereich!J692 -> 163
B3: Eingangswelle | L3: Welle 2 | Z3: Abtriebswelle | AN3: Eingangswelle
A4: Laufvariable | B4: Flächenlinien | G4: Symmetrielinie Welle 2 | I4: Mittellinien | L4: Fläche | S4: Symmetrielinie Welle 2 | U4: Mittellinien | Z4: Fläche | AF4: Symmetrielinie Welle 2 | AH4: Mittellinien | AN4: Normalkraftverlauf | AO4: Querkraftverlauf | AR4: Biegemomentenverlauf | AU4: Torsionsverlauf | AV4: Vergleichsspannungsverlauf
B5: Beginn | C5: Ende | D5: Breite | E5: Breite | F5: Breite | G5: Beginn | H5: Ende | I5: Mittelpunkt | J5: Mittelpunkt | K5: Mittelpunkt | L5: Beginn | M5: Ende | N5: Breite | O5: Breite | P5: Breite | Q5: Breite | R5: Breite | S5: Beginn | T5: Ende | U5: Mittelpunkt Lager 1 | V5: Mittelpunkt Rad1 | W5: Mittelpunkt Ritzel2 | X5: Mittelpunkt Ritzel3 | Y5: Mittelpunkt Lager 2 | Z5: Beginn | AA5: Ende | AB5: Breite | AC5: Breite | AD5: Breite | AE5: Breite | AF5: Beginn | AG5: Ende | AH5: Mittelpunkt Lager 1 | AI5: Mittelpunkt Ritzel | AJ5: Mittelpunkt Lager 2 | AK5: Mittelpunkt | AN5: x;y | AO5: x;y | AP5: y;z | AQ5: res | AR5: x;y | AS5: y;z | AT5: res | AU5: um x-Achse
B6: Welle 1 | C6: Welle 1 | D6: Lager 1 | E6: Lager 2 | F6: Ritzel 1 | G6: Symmetrielinie Eingangswelle | H6: Welle 1 | I6: Lager 1 | J6: Lager 2 | K6: Ritzel 1 | L6: Welle 2 | M6: Welle 2 | N6: Lager 3 | O6: Rad 1 | P6: Ritzel 2 | Q6: Ritzel 3 | R6: Lager 4 | S6: Symmetrielinie Welle 2 | T6: Symmetrielinie Welle 2 | U6: Lager 3 | V6: Rad 1 | W6: Ritzel 2 | X6: Ritzel 3 | Y6: Lager 4 | Z6: Welle 3 | AA6: Welle 3 | AB6: Lager 5 | AC6: Rad 2 | AD6: Rad 3 | AE6: Lager 6 | AF6: Symmetrielinie Abtriebswelle | AG6: Symmetrielinie Abtriebswelle | AH6: Lager 5 | AI6: Rad 2 | AJ6: Rad 3 | AK6: Lager 6
A7: x [mm] | B7: [mm] | C7: [mm] | D7: [mm] | E7: [mm] | F7: [mm] | G7: [mm] | H7: [mm] | I7: [mm] | J7: [mm] | K7: [mm] | L7: [mm] | M7: [mm] | N7: [mm] | O7: [mm] | P7: [mm] | Q7: [mm] | R7: [mm] | S7: [mm] | T7: [mm] | U7: [mm] | V7: [mm] | W7: [mm] | X7: [mm] | Y7: [mm] | Z7: [mm] | AA7: [mm] | AB7: [mm] | AC7: [mm] | AD7: [mm] | AE7: [mm] | AF7: [mm] | AG7: [mm] | AH7: [mm] | AI7: [mm] | AJ7: [mm] | AK7: [mm] | AN7: [N] | AO7: [Nmm] | AP7: [Nmm] | AQ7: [Nmm] | AR7: [Nmm] | AS7: [Nmm] | AT7: [Nmm] | AU7: [Nmm] | AV7: [N/mm²]
A8: x [mm] | B8: 0 | C8: =Arbeitsbereich!J602 -> 163 | D8: =I8 -> 26 | E8: =J8 -> 102 | F8: 135 | G8: 0 | H8: =Arbeitsbereich!J602 -> 163 | I8: =Arbeitsbereich!J597 -> 26 | J8: =Arbeitsbereich!J598 -> 102 | K8: =Arbeitsbereich!J600 -> 135 | L8: =Arbeitsbereich!$J$600-Arbeitsbereich!$P$598 -> 70 | M8: =L8+Arbeitsbereich!P602 -> 370 | N8: =U8 -> 83 | O8: =V8 -> 135 | P8: 216 | Q8: 298 | R8: 346 | S8: =L8 -> 70 | T8: =L8+Arbeitsbereich!P602 -> 370 | U8: =L8+Arbeitsbereich!P597 -> 83 | V8: =L8+Arbeitsbereich!P598 -> 135 | W8: =L8+Arbeitsbereich!P599 -> 216 | X8: =L8+Arbeitsbereich!P600 -> 298 | Y8: =L8+Arbeitsbereich!P601 -> 346 | Z8: =Arbeitsbereich!$J$600-Arbeitsbereich!$P$598+Arbeitsbereich!$P$599-Arbeitsbereich!$AB$599 -> 166 | AA8: =Z8+Arbeitsbereich!AB602 -> 390 | AB8: =AH8 -> 170 | AC8: =AI8 -> 216 | AD8: 298 | AE8: 346 | AF8: =Z8 -> 166 | AG8: =AF8+Arbeitsbereich!AB602 -> 390 | AH8: =Z8+Arbeitsbereich!AB597 -> 170 | AI8: =Z8+Arbeitsbereich!AB599 -> 216 | AJ8: =Z8+Arbeitsbereich!AB600 -> 298 | AK8: =Z8+Arbeitsbereich!AB601 -> 346
A9: y [mm] | B9: =Arbeitsbereich!J604 -> 20 | C9: =Arbeitsbereich!J610 -> 20 | G9: =0 -> 0 | H9: =0 -> 0 | I9: =Arbeitsbereich!J605 -> 52 | J9: =Arbeitsbereich!J609 -> 52 | K9: =Arbeitsbereich!J606 -> 69.80296496 | L9: =Arbeitsbereich!P604 -> 30 | M9: =Arbeitsbereich!P610 -> 30 | S9: 0 | T9: 0 | U9: =Arbeitsbereich!P605 -> 110 | V9: =Arbeitsbereich!P606 -> 215.754619 | W9: =Arbeitsbereich!P607 -> 72.55089347 | X9: =Arbeitsbereich!P608 -> 87.38515261 | Y9: =Arbeitsbereich!P609 -> 80 | Z9: =Arbeitsbereich!$AB$604 -> 40 | AA9: =Arbeitsbereich!AB610 -> 40 | AF9: 0 | AG9: 0 | AH9: =Arbeitsbereich!AB605 -> 90 | AI9: =Arbeitsbereich!AB606 -> 211.3439071 | AJ9: =Arbeitsbereich!AB607 -> 196.6165934 | AK9: =Arbeitsbereich!AB609 -> 72
A10: Breite [mm] | D10: =Arbeitsbereich!$J$612 -> 15 | E10: =Arbeitsbereich!J613 -> 13 | F10: =Arbeitsbereich!J614 -> 27 | N10: =Arbeitsbereich!P612 -> 22 | O10: =Arbeitsbereich!P613 -> 22 | P10: =Arbeitsbereich!P614 -> 22 | Q10: =Arbeitsbereich!P615 -> 22 | R10: =Arbeitsbereich!P616 -> 21 | AB10: =Arbeitsbereich!AB612 -> 20 | AC10: =Arbeitsbereich!AB613 -> 19 | AD10: =Arbeitsbereich!AB614 -> 19 | AE10: =Arbeitsbereich!AB616 -> 17
A11: 0 | B11: =IF(OR($A11<B$8,$A11>C$8),NA(),$B$2 +((B$9+(((C$9-B$9)/(C$8-B$8))*($A11-B$8)))/2)) -> 110 | C11: =IF(OR($A11<B$8,$A11>C$8),NA(),$B$2 -((B$9+(((C$9-B$9)/(C$8-B$8))*($A11-B$8)))/2)) -> 90 | D11: =IF(AND($A11>=(D$8-(D$10/2)),$A11<=(D$8+(D$10/2))),$B$2,NA()) ->  | E11: =IF(AND($A11>=(E$8-(E$10/2)),$A11<=(E$8+(E$10/2))),$B$2,NA()) ->  | G11: =IF(OR($A11<G$8,$A11>H$8),NA(),$B$2+G$9) -> 100 | I11: =IF($A11=I$8,$B$2,NA()) ->  | J11: =IF($A11=J$8,$B$2,NA()) ->  | K11: =IF($A11=K$8,$B$2,NA()) ->  | L11: =IF(OR($A11<L$8,$A11>M$8),NA(),$B$2 +$C$2 +((L$9+(((M$9-L$9)/(M$8-L$8))*($A11-L$8)))/2)) ->  | M11: =IF(OR($A11<L$8,$A11>M$8),NA(),$B$2 +$C$2 -((L$9+(((M$9-L$9)/(M$8-L$8))*($A11-L$8)))/2)) ->  | N11: =IF(AND($A11>=(N$8-(N$10/2)),$A11<=(N$8+(N$10/2))),$B$2+$C$2,NA()) ->  | O11: =IF(AND($A11>=(O$8-(O$10/2)),$A11<=(O$8+(O$10/2))),$B$2+$C$2,NA()) ->  | S11: =IF(OR($A11<S$8,$A11>T$8),NA(),$B$2+$C$2+S$9) ->  | U11: =IF($A11=U$8,$B$2+$C$2,NA()) ->  | V11: =IF($A11=V$8,$B$2+$C$2,NA()) ->  | W11: =IF($A11=W$8,$B$2+$C$2,NA()) ->  | X11: =IF($A11=X$8,$B$2+$C$2,NA()) ->  | Y11: =IF($A11=Y$8,$B$2+$C$2,NA()) ->  | Z11: =IF(OR($A11<Z$8,$A11>AA$8),NA(),$B$2 +$D$2 +((Z$9+(((AA$9-Z$9)/(AA$8-Z$8))*($A11-Z$8)))/2)) ->  | AA11: =IF(OR($A11<Z$8,$A11>AA$8),NA(),$B$2 +$D$2 -((Z$9+(((AA$9-Z$9)/(AA$8-Z$8))*($A11-Z$8)))/2)) ->  | AB11: =IF(AND($A11>=(AB$8-(AB$10/2)),$A11<=(AB$8+(AB$10/2))),$B$2 +$D$2,NA()) ->  | AC11: =IF(AND($A11>=(AC$8-(AC$10/2)),$A11<=(AC$8+(AC$10/2))),$B$2 +$D$2,NA()) ->  | AF11: =IF(OR($A11<AF$8,$A11>AG$8),NA(),$B$2+$D$2+AF$9) ->  | AH11: =IF($A11=AH$8,$B$2+$D$2,NA()) ->  | AN11: =IF(AND(0<=$A11,$A11<$AN$2),0,IF(AND($AN$2<=$A11,$A11<$AO$2),Arbeitsbereich!$J$705,IF(AND($AO$2<=$A11,$A11<$AP$2),Arbeitsbereich!$J$705+Arbeitsbereich!$J$708,IF(AND($AP$2<=$A11,$A11<$AQ$2),Arbeitsbereich!$J$705+Arbeitsbereich!$J$708+Arbeitsbereich!$J$699,NA())))) -> 0 | AO11: =IF(AND(0<=$A11,$A11<$AN$2),0,IF(AND($AN$2<=$A11,$A11<$AO$2),Arbeitsbereich!$J$703,IF(AND($AO$2<=$A11,$A11<$AP$2),Arbeitsbereich!$J$703+Arbeitsbereich!$J$706,IF(AND($AP$2<=$A11,$A11<$AQ$2),Arbeitsbereich!$J$703+Arbeitsbereich!$J$706+Arbeitsbereich!$J$698,NA())))) -> 0 | AP11: =IF(AND(0<=$A11,$A11<$AN$2),0,IF(AND($AN$2<=$A11,$A11<$AO$2),Arbeitsbereich!$J$704,IF(AND($AO$2<=$A11,$A11<$AP$2),Arbeitsbereich!$J$704+Arbeitsbereich!$J$707,IF(AND($AP$2<=$A11,$A11<$AQ$2),Arbeitsbereich!$J$704+Arbeitsbereich!$J$707+Arbeitsbereich!$J$697,NA())))) -> 0 | AQ11: =((AO11^2)+(AP11^2))^0.5 -> 0 | AR11: =IF(AND(0<=$A11,$A11<$AN$2),0,IF(AND($AN$2<=$A11,$A11<$AO$2),((A11-$AN$2)*Arbeitsbereich!$J$703),IF(AND($AO$2<=$A11,$A11<$AP$2),((A11-$AN$2)*Arbeitsbereich!$J$703)+((A11-$AO$2)*Arbeitsbereich!$J$706),IF(AND($AP$2<=$A11,$A11<$AQ$2),((A11-$AN$2)*Arbeitsbereich!$J$703)+((A11-$AO$2)*Arbeitsbereich!$J$706)+((A11-$AP$2)*Arbeitsbereich!$J$698)-(Arbeitsbereich!$J$693*Arbeitsbereich!$J$686),NA())))) -> 0 | AS11: =IF(AND(0<=$A11,$A11<$AN$2),0,IF(AND($AN$2<=$A11,$A11<$AO$2),((B11-$AN$2)*Arbeitsbereich!$J$704),IF(AND($AO$2<=$A11,$A11<$AP$2),((B11-$AN$2)*Arbeitsbereich!$J$704)+((B11-$AO$2)*Arbeitsbereich!$J$707),IF(AND($AP$2<=$A11,$A11<$AQ$2),((B11-$AN$2)*Arbeitsbereich!$J$704)+((B11-$AO$2)*Arbeitsbereich!$J$707)+((B11-$AP$2)*Arbeitsbereich!$J$697),NA())))) -> 0 | AT11: =((AR11^2)+(AS11^2))^0.5 -> 0 | AU11: =IF(AND(0<=$A11,$A11<$AN$2),Arbeitsbereich!$J$696,IF(AND($AN$2<=$A11,$A11<$AO$2),Arbeitsbereich!$J$696,IF(AND($AO$2<=$A11,$A11<$AP$2),Arbeitsbereich!$J$696,IF(AND($AP$2<=$A11,$A11<$AQ$2),Arbeitsbereich!$J$696+(Arbeitsbereich!$J$693*Arbeitsbereich!$J$666),NA())))) -> -88981.1123 | AV11: =( ((AN11/Arbeitsbereich!$J$749)^2)+(Graphen!AT11/Arbeitsbereich!$J$750)+3*(((Arbeitsbereich!$J$754*Graphen!AU11)/Arbeitsbereich!$J$751)^2) )^0.5 -> 68.6810017
A12: =A11+1 -> 1 | B12: 110 | C12: 90 | D12: =IF(AND($A12>=(D$8-(D$10/2)),$A12<=(D$8+(D$10/2))),$B$2,NA()) ->  | G12: =IF(OR($A12<G$8,$A12>H$8),NA(),$B$2+G$9) -> 100 | I12: =IF($A12=I$8,$B$2,NA()) ->  | J12: =IF($A12=J$8,$B$2,NA()) ->  | K12: =IF($A12=K$8,$B$2,NA()) ->  | L12: =IF(OR($A12<L$8,$A12>M$8),NA(),$B$2 +$C$2 +((L$9+(((M$9-L$9)/(M$8-L$8))*($A12-L$8)))/2)) ->  | M12: =IF(OR($A12<L$8,$A12>M$8),NA(),$B$2 +$C$2 -((L$9+(((M$9-L$9)/(M$8-L$8))*($A12-L$8)))/2)) ->  | N12: =IF(AND($A12>=(N$8-(N$10/2)),$A12<=(N$8+(N$10/2))),$B$2+$C$2,NA()) ->  | S12: =IF(OR($A12<S$8,$A12>T$8),NA(),$B$2+$C$2+S$9) ->  | U12: =IF($A12=U$8,$B$2+$C$2,NA()) ->  | AB12: =IF(AND($A12>=(AB$8-(AB$10/2)),$A12<=(AB$8+(AB$10/2))),$B$2 +$D$2,NA()) ->  | AN12: =IF(AND(0<=$A12,$A12<$AN$2),0,IF(AND($AN$2<=$A12,$A12<$AO$2),Arbeitsbereich!$J$705,IF(AND($AO$2<=$A12,$A12<$AP$2),Arbeitsbereich!$J$705+Arbeitsbereich!$J$708,IF(AND($AP$2<=$A12,$A12<$AQ$2),Arbeitsbereich!$J$705+Arbeitsbereich!$J$708+Arbeitsbereich!$J$699,NA())))) -> 0 | AO12: =IF(AND(0<=$A12,$A12<$AN$2),0,IF(AND($AN$2<=$A12,$A12<$AO$2),Arbeitsbereich!$J$703,IF(AND($AO$2<=$A12,$A12<$AP$2),Arbeitsbereich!$J$703+Arbeitsbereich!$J$706,IF(AND($AP$2<=$A12,$A12<$AQ$2),Arbeitsbereich!$J$703+Arbeitsbereich!$J$706+Arbeitsbereich!$J$698,NA())))) -> 0 | AP12: =IF(AND(0<=$A12,$A12<$AN$2),0,IF(AND($AN$2<=$A12,$A12<$AO$2),Arbeitsbereich!$J$704,IF(AND($AO$2<=$A12,$A12<$AP$2),Arbeitsbereich!$J$704+Arbeitsbereich!$J$707,IF(AND($AP$2<=$A12,$A12<$AQ$2),Arbeitsbereich!$J$704+Arbeitsbereich!$J$707+Arbeitsbereich!$J$697,NA())))) -> 0 | AQ12: =((AO12^2)+(AP12^2))^0.5 -> 0 | AR12: =IF(AND(0<=$A12,$A12<$AN$2),0,IF(AND($AN$2<=$A12,$A12<$AO$2),((A12-$AN$2)*Arbeitsbereich!$J$703),IF(AND($AO$2<=$A12,$A12<$AP$2),((A12-$AN$2)*Arbeitsbereich!$J$703)+((A12-$AO$2)*Arbeitsbereich!$J$706),IF(AND($AP$2<=$A12,$A12<$AQ$2),((A12-$AN$2)*Arbeitsbereich!$J$703)+((A12-$AO$2)*Arbeitsbereich!$J$706)+((A12-$AP$2)*Arbeitsbereich!$J$698)-(Arbeitsbereich!$J$693*Arbeitsbereich!$J$686),NA())))) -> 0 | AS12: =IF(AND(0<=$A12,$A12<$AN$2),0,IF(AND($AN$2<=$A12,$A12<$AO$2),((B12-$AN$2)*Arbeitsbereich!$J$704),IF(AND($AO$2<=$A12,$A12<$AP$2),((B12-$AN$2)*Arbeitsbereich!$J$704)+((B12-$AO$2)*Arbeitsbereich!$J$707),IF(AND($AP$2<=$A12,$A12<$AQ$2),((B12-$AN$2)*Arbeitsbereich!$J$704)+((B12-$AO$2)*Arbeitsbereich!$J$707)+((B12-$AP$2)*Arbeitsbereich!$J$697),NA())))) -> 0 | AT12: =((AR12^2)+(AS12^2))^0.5 -> 0 | AU12: =IF(AND(0<=$A12,$A12<$AN$2),Arbeitsbereich!$J$696,IF(AND($AN$2<=$A12,$A12<$AO$2),Arbeitsbereich!$J$696,IF(AND($AO$2<=$A12,$A12<$AP$2),Arbeitsbereich!$J$696,IF(AND($AP$2<=$A12,$A12<$AQ$2),Arbeitsbereich!$J$696+(Arbeitsbereich!$J$693*Arbeitsbereich!$J$666),NA())))) -> -88981.1123 | AV12: =( ((AN12/Arbeitsbereich!$J$749)^2)+(Graphen!AT12/Arbeitsbereich!$J$750)+3*(((Arbeitsbereich!$J$754*Graphen!AU12)/Arbeitsbereich!$J$751)^2) )^0.5 -> 68.6810017
A13: =A12+1 -> 2 | B13: 110 | C13: 90 | G13: 100 | I13: =IF($A13=I$8,$B$2,NA()) ->  | AN13: =IF(AND(0<=$A13,$A13<$AN$2),0,IF(AND($AN$2<=$A13,$A13<$AO$2),Arbeitsbereich!$J$705,IF(AND($AO$2<=$A13,$A13<$AP$2),Arbeitsbereich!$J$705+Arbeitsbereich!$J$708,IF(AND($AP$2<=$A13,$A13<$AQ$2),Arbeitsbereich!$J$705+Arbeitsbereich!$J$708+Arbeitsbereich!$J$699,NA())))) -> 0 | AO13: =IF(AND(0<=$A13,$A13<$AN$2),0,IF(AND($AN$2<=$A13,$A13<$AO$2),Arbeitsbereich!$J$703,IF(AND($AO$2<=$A13,$A13<$AP$2),Arbeitsbereich!$J$703+Arbeitsbereich!$J$706,IF(AND($AP$2<=$A13,$A13<$AQ$2),Arbeitsbereich!$J$703+Arbeitsbereich!$J$706+Arbeitsbereich!$J$698,NA())))) -> 0 | AP13: =IF(AND(0<=$A13,$A13<$AN$2),0,IF(AND($AN$2<=$A13,$A13<$AO$2),Arbeitsbereich!$J$704,IF(AND($AO$2<=$A13,$A13<$AP$2),Arbeitsbereich!$J$704+Arbeitsbereich!$J$707,IF(AND($AP$2<=$A13,$A13<$AQ$2),Arbeitsbereich!$J$704+Arbeitsbereich!$J$707+Arbeitsbereich!$J$697,NA())))) -> 0 | AQ13: 0 | AR13: =IF(AND(0<=$A13,$A13<$AN$2),0,IF(AND($AN$2<=$A13,$A13<$AO$2),((A13-$AN$2)*Arbeitsbereich!$J$703),IF(AND($AO$2<=$A13,$A13<$AP$2),((A13-$AN$2)*Arbeitsbereich!$J$703)+((A13-$AO$2)*Arbeitsbereich!$J$706),IF(AND($AP$2<=$A13,$A13<$AQ$2),((A13-$AN$2)*Arbeitsbereich!$J$703)+((A13-$AO$2)*Arbeitsbereich!$J$706)+((A13-$AP$2)*Arbeitsbereich!$J$698)-(Arbeitsbereich!$J$693*Arbeitsbereich!$J$686),NA())))) -> 0 | AS13: =IF(AND(0<=$A13,$A13<$AN$2),0,IF(AND($AN$2<=$A13,$A13<$AO$2),((B13-$AN$2)*Arbeitsbereich!$J$704),IF(AND($AO$2<=$A13,$A13<$AP$2),((B13-$AN$2)*Arbeitsbereich!$J$704)+((B13-$AO$2)*Arbeitsbereich!$J$707),IF(AND($AP$2<=$A13,$A13<$AQ$2),((B13-$AN$2)*Arbeitsbereich!$J$704)+((B13-$AO$2)*Arbeitsbereich!$J$707)+((B13-$AP$2)*Arbeitsbereich!$J$697),NA())))) -> 0 | AT13: 0 | AU13: =IF(AND(0<=$A13,$A13<$AN$2),Arbeitsbereich!$J$696,IF(AND($AN$2<=$A13,$A13<$AO$2),Arbeitsbereich!$J$696,IF(AND($AO$2<=$A13,$A13<$AP$2),Arbeitsbereich!$J$696,IF(AND($AP$2<=$A13,$A13<$AQ$2),Arbeitsbereich!$J$696+(Arbeitsbereich!$J$693*Arbeitsbereich!$J$666),NA())))) -> -88981.1123 | AV13: =( ((AN13/Arbeitsbereich!$J$749)^2)+(Graphen!AT13/Arbeitsbereich!$J$750)+3*(((Arbeitsbereich!$J$754*Graphen!AU13)/Arbeitsbereich!$J$751)^2) )^0.5 -> 68.6810017
A14: 3 | B14: 110 | C14: 90 | G14: 100 | AN14: =IF(AND(0<=$A14,$A14<$AN$2),0,IF(AND($AN$2<=$A14,$A14<$AO$2),Arbeitsbereich!$J$705,IF(AND($AO$2<=$A14,$A14<$AP$2),Arbeitsbereich!$J$705+Arbeitsbereich!$J$708,IF(AND($AP$2<=$A14,$A14<$AQ$2),Arbeitsbereich!$J$705+Arbeitsbereich!$J$708+Arbeitsbereich!$J$699,NA())))) -> 0 | AO14: =IF(AND(0<=$A14,$A14<$AN$2),0,IF(AND($AN$2<=$A14,$A14<$AO$2),Arbeitsbereich!$J$703,IF(AND($AO$2<=$A14,$A14<$AP$2),Arbeitsbereich!$J$703+Arbeitsbereich!$J$706,IF(AND($AP$2<=$A14,$A14<$AQ$2),Arbeitsbereich!$J$703+Arbeitsbereich!$J$706+Arbeitsbereich!$J$698,NA())))) -> 0 | AP14: =IF(AND(0<=$A14,$A14<$AN$2),0,IF(AND($AN$2<=$A14,$A14<$AO$2),Arbeitsbereich!$J$704,IF(AND($AO$2<=$A14,$A14<$AP$2),Arbeitsbereich!$J$704+Arbeitsbereich!$J$707,IF(AND($AP$2<=$A14,$A14<$AQ$2),Arbeitsbereich!$J$704+Arbeitsbereich!$J$707+Arbeitsbereich!$J$697,NA())))) -> 0 | AQ14: 0 | AR14: =IF(AND(0<=$A14,$A14<$AN$2),0,IF(AND($AN$2<=$A14,$A14<$AO$2),((A14-$AN$2)*Arbeitsbereich!$J$703),IF(AND($AO$2<=$A14,$A14<$AP$2),((A14-$AN$2)*Arbeitsbereich!$J$703)+((A14-$AO$2)*Arbeitsbereich!$J$706),IF(AND($AP$2<=$A14,$A14<$AQ$2),((A14-$AN$2)*Arbeitsbereich!$J$703)+((A14-$AO$2)*Arbeitsbereich!$J$706)+((A14-$AP$2)*Arbeitsbereich!$J$698)-(Arbeitsbereich!$J$693*Arbeitsbereich!$J$686),NA())))) -> 0 | AS14: =IF(AND(0<=$A14,$A14<$AN$2),0,IF(AND($AN$2<=$A14,$A14<$AO$2),((B14-$AN$2)*Arbeitsbereich!$J$704),IF(AND($AO$2<=$A14,$A14<$AP$2),((B14-$AN$2)*Arbeitsbereich!$J$704)+((B14-$AO$2)*Arbeitsbereich!$J$707),IF(AND($AP$2<=$A14,$A14<$AQ$2),((B14-$AN$2)*Arbeitsbereich!$J$704)+((B14-$AO$2)*Arbeitsbereich!$J$707)+((B14-$AP$2)*Arbeitsbereich!$J$697),NA())))) -> 0 | AT14: 0 | AU14: =IF(AND(0<=$A14,$A14<$AN$2),Arbeitsbereich!$J$696,IF(AND($AN$2<=$A14,$A14<$AO$2),Arbeitsbereich!$J$696,IF(AND($AO$2<=$A14,$A14<$AP$2),Arbeitsbereich!$J$696,IF(AND($AP$2<=$A14,$A14<$AQ$2),Arbeitsbereich!$J$696+(Arbeitsbereich!$J$693*Arbeitsbereich!$J$666),NA())))) -> -88981.1123 | AV14: =( ((AN14/Arbeitsbereich!$J$749)^2)+(Graphen!AT14/Arbeitsbereich!$J$750)+3*(((Arbeitsbereich!$J$754*Graphen!AU14)/Arbeitsbereich!$J$751)^2) )^0.5 -> 68.6810017
A15: 4 | B15: 110 | C15: 90 | G15: 100 | AN15: =IF(AND(0<=$A15,$A15<$AN$2),0,IF(AND($AN$2<=$A15,$A15<$AO$2),Arbeitsbereich!$J$705,IF(AND($AO$2<=$A15,$A15<$AP$2),Arbeitsbereich!$J$705+Arbeitsbereich!$J$708,IF(AND($AP$2<=$A15,$A15<$AQ$2),Arbeitsbereich!$J$705+Arbeitsbereich!$J$708+Arbeitsbereich!$J$699,NA())))) -> 0 | AO15: =IF(AND(0<=$A15,$A15<$AN$2),0,IF(AND($AN$2<=$A15,$A15<$AO$2),Arbeitsbereich!$J$703,IF(AND($AO$2<=$A15,$A15<$AP$2),Arbeitsbereich!$J$703+Arbeitsbereich!$J$706,IF(AND($AP$2<=$A15,$A15<$AQ$2),Arbeitsbereich!$J$703+Arbeitsbereich!$J$706+Arbeitsbereich!$J$698,NA())))) -> 0 | AP15: =IF(AND(0<=$A15,$A15<$AN$2),0,IF(AND($AN$2<=$A15,$A15<$AO$2),Arbeitsbereich!$J$704,IF(AND($AO$2<=$A15,$A15<$AP$2),Arbeitsbereich!$J$704+Arbeitsbereich!$J$707,IF(AND($AP$2<=$A15,$A15<$AQ$2),Arbeitsbereich!$J$704+Arbeitsbereich!$J$707+Arbeitsbereich!$J$697,NA())))) -> 0 | AQ15: 0 | AR15: =IF(AND(0<=$A15,$A15<$AN$2),0,IF(AND($AN$2<=$A15,$A15<$AO$2),((A15-$AN$2)*Arbeitsbereich!$J$703),IF(AND($AO$2<=$A15,$A15<$AP$2),((A15-$AN$2)*Arbeitsbereich!$J$703)+((A15-$AO$2)*Arbeitsbereich!$J$706),IF(AND($AP$2<=$A15,$A15<$AQ$2),((A15-$AN$2)*Arbeitsbereich!$J$703)+((A15-$AO$2)*Arbeitsbereich!$J$706)+((A15-$AP$2)*Arbeitsbereich!$J$698)-(Arbeitsbereich!$J$693*Arbeitsbereich!$J$686),NA())))) -> 0 | AS15: =IF(AND(0<=$A15,$A15<$AN$2),0,IF(AND($AN$2<=$A15,$A15<$AO$2),((B15-$AN$2)*Arbeitsbereich!$J$704),IF(AND($AO$2<=$A15,$A15<$AP$2),((B15-$AN$2)*Arbeitsbereich!$J$704)+((B15-$AO$2)*Arbeitsbereich!$J$707),IF(AND($AP$2<=$A15,$A15<$AQ$2),((B15-$AN$2)*Arbeitsbereich!$J$704)+((B15-$AO$2)*Arbeitsbereich!$J$707)+((B15-$AP$2)*Arbeitsbereich!$J$697),NA())))) -> 0 | AT15: 0 | AU15: =IF(AND(0<=$A15,$A15<$AN$2),Arbeitsbereich!$J$696,IF(AND($AN$2<=$A15,$A15<$AO$2),Arbeitsbereich!$J$696,IF(AND($AO$2<=$A15,$A15<$AP$2),Arbeitsbereich!$J$696,IF(AND($AP$2<=$A15,$A15<$AQ$2),Arbeitsbereich!$J$696+(Arbeitsbereich!$J$693*Arbeitsbereich!$J$666),NA())))) -> -88981.1123 | AV15: =( ((AN15/Arbeitsbereich!$J$749)^2)+(Graphen!AT15/Arbeitsbereich!$J$750)+3*(((Arbeitsbereich!$J$754*Graphen!AU15)/Arbeitsbereich!$J$751)^2) )^0.5 -> 68.6810017
A16: 5 | B16: 110 | C16: 90 | G16: 100 | AN16: =IF(AND(0<=$A16,$A16<$AN$2),0,IF(AND($AN$2<=$A16,$A16<$AO$2),Arbeitsbereich!$J$705,IF(AND($AO$2<=$A16,$A16<$AP$2),Arbeitsbereich!$J$705+Arbeitsbereich!$J$708,IF(AND($AP$2<=$A16,$A16<$AQ$2),Arbeitsbereich!$J$705+Arbeitsbereich!$J$708+Arbeitsbereich!$J$699,NA())))) -> 0 | AO16: =IF(AND(0<=$A16,$A16<$AN$2),0,IF(AND($AN$2<=$A16,$A16<$AO$2),Arbeitsbereich!$J$703,IF(AND($AO$2<=$A16,$A16<$AP$2),Arbeitsbereich!$J$703+Arbeitsbereich!$J$706,IF(AND($AP$2<=$A16,$A16<$AQ$2),Arbeitsbereich!$J$703+Arbeitsbereich!$J$706+Arbeitsbereich!$J$698,NA())))) -> 0 | AP16: =IF(AND(0<=$A16,$A16<$AN$2),0,IF(AND($AN$2<=$A16,$A16<$AO$2),Arbeitsbereich!$J$704,IF(AND($AO$2<=$A16,$A16<$AP$2),Arbeitsbereich!$J$704+Arbeitsbereich!$J$707,IF(AND($AP$2<=$A16,$A16<$AQ$2),Arbeitsbereich!$J$704+Arbeitsbereich!$J$707+Arbeitsbereich!$J$697,NA())))) -> 0 | AQ16: 0 | AR16: =IF(AND(0<=$A16,$A16<$AN$2),0,IF(AND($AN$2<=$A16,$A16<$AO$2),((A16-$AN$2)*Arbeitsbereich!$J$703),IF(AND($AO$2<=$A16,$A16<$AP$2),((A16-$AN$2)*Arbeitsbereich!$J$703)+((A16-$AO$2)*Arbeitsbereich!$J$706),IF(AND($AP$2<=$A16,$A16<$AQ$2),((A16-$AN$2)*Arbeitsbereich!$J$703)+((A16-$AO$2)*Arbeitsbereich!$J$706)+((A16-$AP$2)*Arbeitsbereich!$J$698)-(Arbeitsbereich!$J$693*Arbeitsbereich!$J$686),NA())))) -> 0 | AS16: =IF(AND(0<=$A16,$A16<$AN$2),0,IF(AND($AN$2<=$A16,$A16<$AO$2),((B16-$AN$2)*Arbeitsbereich!$J$704),IF(AND($AO$2<=$A16,$A16<$AP$2),((B16-$AN$2)*Arbeitsbereich!$J$704)+((B16-$AO$2)*Arbeitsbereich!$J$707),IF(AND($AP$2<=$A16,$A16<$AQ$2),((B16-$AN$2)*Arbeitsbereich!$J$704)+((B16-$AO$2)*Arbeitsbereich!$J$707)+((B16-$AP$2)*Arbeitsbereich!$J$697),NA())))) -> 0 | AT16: 0 | AU16: =IF(AND(0<=$A16,$A16<$AN$2),Arbeitsbereich!$J$696,IF(AND($AN$2<=$A16,$A16<$AO$2),Arbeitsbereich!$J$696,IF(AND($AO$2<=$A16,$A16<$AP$2),Arbeitsbereich!$J$696,IF(AND($AP$2<=$A16,$A16<$AQ$2),Arbeitsbereich!$J$696+(Arbeitsbereich!$J$693*Arbeitsbereich!$J$666),NA())))) -> -88981.1123 | AV16: =( ((AN16/Arbeitsbereich!$J$749)^2)+(Graphen!AT16/Arbeitsbereich!$J$750)+3*(((Arbeitsbereich!$J$754*Graphen!AU16)/Arbeitsbereich!$J$751)^2) )^0.5 -> 68.6810017
A17: 6 | B17: 110 | C17: 90 | G17: 100 | AN17: =IF(AND(0<=$A17,$A17<$AN$2),0,IF(AND($AN$2<=$A17,$A17<$AO$2),Arbeitsbereich!$J$705,IF(AND($AO$2<=$A17,$A17<$AP$2),Arbeitsbereich!$J$705+Arbeitsbereich!$J$708,IF(AND($AP$2<=$A17,$A17<$AQ$2),Arbeitsbereich!$J$705+Arbeitsbereich!$J$708+Arbeitsbereich!$J$699,NA())))) -> 0 | AO17: =IF(AND(0<=$A17,$A17<$AN$2),0,IF(AND($AN$2<=$A17,$A17<$AO$2),Arbeitsbereich!$J$703,IF(AND($AO$2<=$A17,$A17<$AP$2),Arbeitsbereich!$J$703+Arbeitsbereich!$J$706,IF(AND($AP$2<=$A17,$A17<$AQ$2),Arbeitsbereich!$J$703+Arbeitsbereich!$J$706+Arbeitsbereich!$J$698,NA())))) -> 0 | AP17: =IF(AND(0<=$A17,$A17<$AN$2),0,IF(AND($AN$2<=$A17,$A17<$AO$2),Arbeitsbereich!$J$704,IF(AND($AO$2<=$A17,$A17<$AP$2),Arbeitsbereich!$J$704+Arbeitsbereich!$J$707,IF(AND($AP$2<=$A17,$A17<$AQ$2),Arbeitsbereich!$J$704+Arbeitsbereich!$J$707+Arbeitsbereich!$J$697,NA())))) -> 0 | AQ17: 0 | AR17: =IF(AND(0<=$A17,$A17<$AN$2),0,IF(AND($AN$2<=$A17,$A17<$AO$2),((A17-$AN$2)*Arbeitsbereich!$J$703),IF(AND($AO$2<=$A17,$A17<$AP$2),((A17-$AN$2)*Arbeitsbereich!$J$703)+((A17-$AO$2)*Arbeitsbereich!$J$706),IF(AND($AP$2<=$A17,$A17<$AQ$2),((A17-$AN$2)*Arbeitsbereich!$J$703)+((A17-$AO$2)*Arbeitsbereich!$J$706)+((A17-$AP$2)*Arbeitsbereich!$J$698)-(Arbeitsbereich!$J$693*Arbeitsbereich!$J$686),NA())))) -> 0 | AS17: =IF(AND(0<=$A17,$A17<$AN$2),0,IF(AND($AN$2<=$A17,$A17<$AO$2),((B17-$AN$2)*Arbeitsbereich!$J$704),IF(AND($AO$2<=$A17,$A17<$AP$2),((B17-$AN$2)*Arbeitsbereich!$J$704)+((B17-$AO$2)*Arbeitsbereich!$J$707),IF(AND($AP$2<=$A17,$A17<$AQ$2),((B17-$AN$2)*Arbeitsbereich!$J$704)+((B17-$AO$2)*Arbeitsbereich!$J$707)+((B17-$AP$2)*Arbeitsbereich!$J$697),NA())))) -> 0 | AT17: 0 | AU17: =IF(AND(0<=$A17,$A17<$AN$2),Arbeitsbereich!$J$696,IF(AND($AN$2<=$A17,$A17<$AO$2),Arbeitsbereich!$J$696,IF(AND($AO$2<=$A17,$A17<$AP$2),Arbeitsbereich!$J$696,IF(AND($AP$2<=$A17,$A17<$AQ$2),Arbeitsbereich!$J$696+(Arbeitsbereich!$J$693*Arbeitsbereich!$J$666),NA())))) -> -88981.1123 | AV17: =( ((AN17/Arbeitsbereich!$J$749)^2)+(Graphen!AT17/Arbeitsbereich!$J$750)+3*(((Arbeitsbereich!$J$754*Graphen!AU17)/Arbeitsbereich!$J$751)^2) )^0.5 -> 68.6810017
A18: 7 | B18: 110 | C18: 90 | G18: 100 | AN18: =IF(AND(0<=$A18,$A18<$AN$2),0,IF(AND($AN$2<=$A18,$A18<$AO$2),Arbeitsbereich!$J$705,IF(AND($AO$2<=$A18,$A18<$AP$2),Arbeitsbereich!$J$705+Arbeitsbereich!$J$708,IF(AND($AP$2<=$A18,$A18<$AQ$2),Arbeitsbereich!$J$705+Arbeitsbereich!$J$708+Arbeitsbereich!$J$699,NA())))) -> 0 | AO18: =IF(AND(0<=$A18,$A18<$AN$2),0,IF(AND($AN$2<=$A18,$A18<$AO$2),Arbeitsbereich!$J$703,IF(AND($AO$2<=$A18,$A18<$AP$2),Arbeitsbereich!$J$703+Arbeitsbereich!$J$706,IF(AND($AP$2<=$A18,$A18<$AQ$2),Arbeitsbereich!$J$703+Arbeitsbereich!$J$706+Arbeitsbereich!$J$698,NA())))) -> 0 | AP18: =IF(AND(0<=$A18,$A18<$AN$2),0,IF(AND($AN$2<=$A18,$A18<$AO$2),Arbeitsbereich!$J$704,IF(AND($AO$2<=$A18,$A18<$AP$2),Arbeitsbereich!$J$704+Arbeitsbereich!$J$707,IF(AND($AP$2<=$A18,$A18<$AQ$2),Arbeitsbereich!$J$704+Arbeitsbereich!$J$707+Arbeitsbereich!$J$697,NA())))) -> 0 | AQ18: 0 | AR18: =IF(AND(0<=$A18,$A18<$AN$2),0,IF(AND($AN$2<=$A18,$A18<$AO$2),((A18-$AN$2)*Arbeitsbereich!$J$703),IF(AND($AO$2<=$A18,$A18<$AP$2),((A18-$AN$2)*Arbeitsbereich!$J$703)+((A18-$AO$2)*Arbeitsbereich!$J$706),IF(AND($AP$2<=$A18,$A18<$AQ$2),((A18-$AN$2)*Arbeitsbereich!$J$703)+((A18-$AO$2)*Arbeitsbereich!$J$706)+((A18-$AP$2)*Arbeitsbereich!$J$698)-(Arbeitsbereich!$J$693*Arbeitsbereich!$J$686),NA())))) -> 0 | AS18: =IF(AND(0<=$A18,$A18<$AN$2),0,IF(AND($AN$2<=$A18,$A18<$AO$2),((B18-$AN$2)*Arbeitsbereich!$J$704),IF(AND($AO$2<=$A18,$A18<$AP$2),((B18-$AN$2)*Arbeitsbereich!$J$704)+((B18-$AO$2)*Arbeitsbereich!$J$707),IF(AND($AP$2<=$A18,$A18<$AQ$2),((B18-$AN$2)*Arbeitsbereich!$J$704)+((B18-$AO$2)*Arbeitsbereich!$J$707)+((B18-$AP$2)*Arbeitsbereich!$J$697),NA())))) -> 0 | AT18: 0 | AU18: =IF(AND(0<=$A18,$A18<$AN$2),Arbeitsbereich!$J$696,IF(AND($AN$2<=$A18,$A18<$AO$2),Arbeitsbereich!$J$696,IF(AND($AO$2<=$A18,$A18<$AP$2),Arbeitsbereich!$J$696,IF(AND($AP$2<=$A18,$A18<$AQ$2),Arbeitsbereich!$J$696+(Arbeitsbereich!$J$693*Arbeitsbereich!$J$666),NA())))) -> -88981.1123 | AV18: =( ((AN18/Arbeitsbereich!$J$749)^2)+(Graphen!AT18/Arbeitsbereich!$J$750)+3*(((Arbeitsbereich!$J$754*Graphen!AU18)/Arbeitsbereich!$J$751)^2) )^0.5 -> 68.6810017
A19: 8 | B19: 110 | C19: 90 | G19: 100 | AN19: =IF(AND(0<=$A19,$A19<$AN$2),0,IF(AND($AN$2<=$A19,$A19<$AO$2),Arbeitsbereich!$J$705,IF(AND($AO$2<=$A19,$A19<$AP$2),Arbeitsbereich!$J$705+Arbeitsbereich!$J$708,IF(AND($AP$2<=$A19,$A19<$AQ$2),Arbeitsbereich!$J$705+Arbeitsbereich!$J$708+Arbeitsbereich!$J$699,NA())))) -> 0 | AO19: =IF(AND(0<=$A19,$A19<$AN$2),0,IF(AND($AN$2<=$A19,$A19<$AO$2),Arbeitsbereich!$J$703,IF(AND($AO$2<=$A19,$A19<$AP$2),Arbeitsbereich!$J$703+Arbeitsbereich!$J$706,IF(AND($AP$2<=$A19,$A19<$AQ$2),Arbeitsbereich!$J$703+Arbeitsbereich!$J$706+Arbeitsbereich!$J$698,NA())))) -> 0 | AP19: =IF(AND(0<=$A19,$A19<$AN$2),0,IF(AND($AN$2<=$A19,$A19<$AO$2),Arbeitsbereich!$J$704,IF(AND($AO$2<=$A19,$A19<$AP$2),Arbeitsbereich!$J$704+Arbeitsbereich!$J$707,IF(AND($AP$2<=$A19,$A19<$AQ$2),Arbeitsbereich!$J$704+Arbeitsbereich!$J$707+Arbeitsbereich!$J$697,NA())))) -> 0 | AQ19: 0 | AR19: =IF(AND(0<=$A19,$A19<$AN$2),0,IF(AND($AN$2<=$A19,$A19<$AO$2),((A19-$AN$2)*Arbeitsbereich!$J$703),IF(AND($AO$2<=$A19,$A19<$AP$2),((A19-$AN$2)*Arbeitsbereich!$J$703)+((A19-$AO$2)*Arbeitsbereich!$J$706),IF(AND($AP$2<=$A19,$A19<$AQ$2),((A19-$AN$2)*Arbeitsbereich!$J$703)+((A19-$AO$2)*Arbeitsbereich!$J$706)+((A19-$AP$2)*Arbeitsbereich!$J$698)-(Arbeitsbereich!$J$693*Arbeitsbereich!$J$686),NA())))) -> 0 | AS19: =IF(AND(0<=$A19,$A19<$AN$2),0,IF(AND($AN$2<=$A19,$A19<$AO$2),((B19-$AN$2)*Arbeitsbereich!$J$704),IF(AND($AO$2<=$A19,$A19<$AP$2),((B19-$AN$2)*Arbeitsbereich!$J$704)+((B19-$AO$2)*Arbeitsbereich!$J$707),IF(AND($AP$2<=$A19,$A19<$AQ$2),((B19-$AN$2)*Arbeitsbereich!$J$704)+((B19-$AO$2)*Arbeitsbereich!$J$707)+((B19-$AP$2)*Arbeitsbereich!$J$697),NA())))) -> 0 | AT19: 0 | AU19: =IF(AND(0<=$A19,$A19<$AN$2),Arbeitsbereich!$J$696,IF(AND($AN$2<=$A19,$A19<$AO$2),Arbeitsbereich!$J$696,IF(AND($AO$2<=$A19,$A19<$AP$2),Arbeitsbereich!$J$696,IF(AND($AP$2<=$A19,$A19<$AQ$2),Arbeitsbereich!$J$696+(Arbeitsbereich!$J$693*Arbeitsbereich!$J$666),NA())))) -> -88981.1123 | AV19: =( ((AN19/Arbeitsbereich!$J$749)^2)+(Graphen!AT19/Arbeitsbereich!$J$750)+3*(((Arbeitsbereich!$J$754*Graphen!AU19)/Arbeitsbereich!$J$751)^2) )^0.5 -> 68.6810017
A20: 9 | B20: 110 | C20: 90 | G20: 100 | AN20: =IF(AND(0<=$A20,$A20<$AN$2),0,IF(AND($AN$2<=$A20,$A20<$AO$2),Arbeitsbereich!$J$705,IF(AND($AO$2<=$A20,$A20<$AP$2),Arbeitsbereich!$J$705+Arbeitsbereich!$J$708,IF(AND($AP$2<=$A20,$A20<$AQ$2),Arbeitsbereich!$J$705+Arbeitsbereich!$J$708+Arbeitsbereich!$J$699,NA())))) -> 0 | AO20: =IF(AND(0<=$A20,$A20<$AN$2),0,IF(AND($AN$2<=$A20,$A20<$AO$2),Arbeitsbereich!$J$703,IF(AND($AO$2<=$A20,$A20<$AP$2),Arbeitsbereich!$J$703+Arbeitsbereich!$J$706,IF(AND($AP$2<=$A20,$A20<$AQ$2),Arbeitsbereich!$J$703+Arbeitsbereich!$J$706+Arbeitsbereich!$J$698,NA())))) -> 0 | AP20: =IF(AND(0<=$A20,$A20<$AN$2),0,IF(AND($AN$2<=$A20,$A20<$AO$2),Arbeitsbereich!$J$704,IF(AND($AO$2<=$A20,$A20<$AP$2),Arbeitsbereich!$J$704+Arbeitsbereich!$J$707,IF(AND($AP$2<=$A20,$A20<$AQ$2),Arbeitsbereich!$J$704+Arbeitsbereich!$J$707+Arbeitsbereich!$J$697,NA())))) -> 0 | AQ20: 0 | AR20: =IF(AND(0<=$A20,$A20<$AN$2),0,IF(AND($AN$2<=$A20,$A20<$AO$2),((A20-$AN$2)*Arbeitsbereich!$J$703),IF(AND($AO$2<=$A20,$A20<$AP$2),((A20-$AN$2)*Arbeitsbereich!$J$703)+((A20-$AO$2)*Arbeitsbereich!$J$706),IF(AND($AP$2<=$A20,$A20<$AQ$2),((A20-$AN$2)*Arbeitsbereich!$J$703)+((A20-$AO$2)*Arbeitsbereich!$J$706)+((A20-$AP$2)*Arbeitsbereich!$J$698)-(Arbeitsbereich!$J$693*Arbeitsbereich!$J$686),NA())))) -> 0 | AS20: =IF(AND(0<=$A20,$A20<$AN$2),0,IF(AND($AN$2<=$A20,$A20<$AO$2),((B20-$AN$2)*Arbeitsbereich!$J$704),IF(AND($AO$2<=$A20,$A20<$AP$2),((B20-$AN$2)*Arbeitsbereich!$J$704)+((B20-$AO$2)*Arbeitsbereich!$J$707),IF(AND($AP$2<=$A20,$A20<$AQ$2),((B20-$AN$2)*Arbeitsbereich!$J$704)+((B20-$AO$2)*Arbeitsbereich!$J$707)+((B20-$AP$2)*Arbeitsbereich!$J$697),NA())))) -> 0 | AT20: 0 | AU20: =IF(AND(0<=$A20,$A20<$AN$2),Arbeitsbereich!$J$696,IF(AND($AN$2<=$A20,$A20<$AO$2),Arbeitsbereich!$J$696,IF(AND($AO$2<=$A20,$A20<$AP$2),Arbeitsbereich!$J$696,IF(AND($AP$2<=$A20,$A20<$AQ$2),Arbeitsbereich!$J$696+(Arbeitsbereich!$J$693*Arbeitsbereich!$J$666),NA())))) -> -88981.1123 | AV20: =( ((AN20/Arbeitsbereich!$J$749)^2)+(Graphen!AT20/Arbeitsbereich!$J$750)+3*(((Arbeitsbereich!$J$754*Graphen!AU20)/Arbeitsbereich!$J$751)^2) )^0.5 -> 68.6810017
A21: 10 | B21: 110 | C21: 90 | G21: 100 | AN21: =IF(AND(0<=$A21,$A21<$AN$2),0,IF(AND($AN$2<=$A21,$A21<$AO$2),Arbeitsbereich!$J$705,IF(AND($AO$2<=$A21,$A21<$AP$2),Arbeitsbereich!$J$705+Arbeitsbereich!$J$708,IF(AND($AP$2<=$A21,$A21<$AQ$2),Arbeitsbereich!$J$705+Arbeitsbereich!$J$708+Arbeitsbereich!$J$699,NA())))) -> 0 | AO21: =IF(AND(0<=$A21,$A21<$AN$2),0,IF(AND($AN$2<=$A21,$A21<$AO$2),Arbeitsbereich!$J$703,IF(AND($AO$2<=$A21,$A21<$AP$2),Arbeitsbereich!$J$703+Arbeitsbereich!$J$706,IF(AND($AP$2<=$A21,$A21<$AQ$2),Arbeitsbereich!$J$703+Arbeitsbereich!$J$706+Arbeitsbereich!$J$698,NA())))) -> 0 | AP21: =IF(AND(0<=$A21,$A21<$AN$2),0,IF(AND($AN$2<=$A21,$A21<$AO$2),Arbeitsbereich!$J$704,IF(AND($AO$2<=$A21,$A21<$AP$2),Arbeitsbereich!$J$704+Arbeitsbereich!$J$707,IF(AND($AP$2<=$A21,$A21<$AQ$2),Arbeitsbereich!$J$704+Arbeitsbereich!$J$707+Arbeitsbereich!$J$697,NA())))) -> 0 | AQ21: 0 | AR21: =IF(AND(0<=$A21,$A21<$AN$2),0,IF(AND($AN$2<=$A21,$A21<$AO$2),((A21-$AN$2)*Arbeitsbereich!$J$703),IF(AND($AO$2<=$A21,$A21<$AP$2),((A21-$AN$2)*Arbeitsbereich!$J$703)+((A21-$AO$2)*Arbeitsbereich!$J$706),IF(AND($AP$2<=$A21,$A21<$AQ$2),((A21-$AN$2)*Arbeitsbereich!$J$703)+((A21-$AO$2)*Arbeitsbereich!$J$706)+((A21-$AP$2)*Arbeitsbereich!$J$698)-(Arbeitsbereich!$J$693*Arbeitsbereich!$J$686),NA())))) -> 0 | AS21: =IF(AND(0<=$A21,$A21<$AN$2),0,IF(AND($AN$2<=$A21,$A21<$AO$2),((B21-$AN$2)*Arbeitsbereich!$J$704),IF(AND($AO$2<=$A21,$A21<$AP$2),((B21-$AN$2)*Arbeitsbereich!$J$704)+((B21-$AO$2)*Arbeitsbereich!$J$707),IF(AND($AP$2<=$A21,$A21<$AQ$2),((B21-$AN$2)*Arbeitsbereich!$J$704)+((B21-$AO$2)*Arbeitsbereich!$J$707)+((B21-$AP$2)*Arbeitsbereich!$J$697),NA())))) -> 0 | AT21: 0 | AU21: =IF(AND(0<=$A21,$A21<$AN$2),Arbeitsbereich!$J$696,IF(AND($AN$2<=$A21,$A21<$AO$2),Arbeitsbereich!$J$696,IF(AND($AO$2<=$A21,$A21<$AP$2),Arbeitsbereich!$J$696,IF(AND($AP$2<=$A21,$A21<$AQ$2),Arbeitsbereich!$J$696+(Arbeitsbereich!$J$693*Arbeitsbereich!$J$666),NA())))) -> -88981.1123 | AV21: =( ((AN21/Arbeitsbereich!$J$749)^2)+(Graphen!AT21/Arbeitsbereich!$J$750)+3*(((Arbeitsbereich!$J$754*Graphen!AU21)/Arbeitsbereich!$J$751)^2) )^0.5 -> 68.6810017
A22: 11 | B22: 110 | C22: 90 | G22: 100 | AN22: =IF(AND(0<=$A22,$A22<$AN$2),0,IF(AND($AN$2<=$A22,$A22<$AO$2),Arbeitsbereich!$J$705,IF(AND($AO$2<=$A22,$A22<$AP$2),Arbeitsbereich!$J$705+Arbeitsbereich!$J$708,IF(AND($AP$2<=$A22,$A22<$AQ$2),Arbeitsbereich!$J$705+Arbeitsbereich!$J$708+Arbeitsbereich!$J$699,NA())))) -> 0 | AO22: =IF(AND(0<=$A22,$A22<$AN$2),0,IF(AND($AN$2<=$A22,$A22<$AO$2),Arbeitsbereich!$J$703,IF(AND($AO$2<=$A22,$A22<$AP$2),Arbeitsbereich!$J$703+Arbeitsbereich!$J$706,IF(AND($AP$2<=$A22,$A22<$AQ$2),Arbeitsbereich!$J$703+Arbeitsbereich!$J$706+Arbeitsbereich!$J$698,NA())))) -> 0 | AP22: =IF(AND(0<=$A22,$A22<$AN$2),0,IF(AND($AN$2<=$A22,$A22<$AO$2),Arbeitsbereich!$J$704,IF(AND($AO$2<=$A22,$A22<$AP$2),Arbeitsbereich!$J$704+Arbeitsbereich!$J$707,IF(AND($AP$2<=$A22,$A22<$AQ$2),Arbeitsbereich!$J$704+Arbeitsbereich!$J$707+Arbeitsbereich!$J$697,NA())))) -> 0 | AQ22: 0 | AR22: =IF(AND(0<=$A22,$A22<$AN$2),0,IF(AND($AN$2<=$A22,$A22<$AO$2),((A22-$AN$2)*Arbeitsbereich!$J$703),IF(AND($AO$2<=$A22,$A22<$AP$2),((A22-$AN$2)*Arbeitsbereich!$J$703)+((A22-$AO$2)*Arbeitsbereich!$J$706),IF(AND($AP$2<=$A22,$A22<$AQ$2),((A22-$AN$2)*Arbeitsbereich!$J$703)+((A22-$AO$2)*Arbeitsbereich!$J$706)+((A22-$AP$2)*Arbeitsbereich!$J$698)-(Arbeitsbereich!$J$693*Arbeitsbereich!$J$686),NA())))) -> 0 | AS22: =IF(AND(0<=$A22,$A22<$AN$2),0,IF(AND($AN$2<=$A22,$A22<$AO$2),((B22-$AN$2)*Arbeitsbereich!$J$704),IF(AND($AO$2<=$A22,$A22<$AP$2),((B22-$AN$2)*Arbeitsbereich!$J$704)+((B22-$AO$2)*Arbeitsbereich!$J$707),IF(AND($AP$2<=$A22,$A22<$AQ$2),((B22-$AN$2)*Arbeitsbereich!$J$704)+((B22-$AO$2)*Arbeitsbereich!$J$707)+((B22-$AP$2)*Arbeitsbereich!$J$697),NA())))) -> 0 | AT22: 0 | AU22: =IF(AND(0<=$A22,$A22<$AN$2),Arbeitsbereich!$J$696,IF(AND($AN$2<=$A22,$A22<$AO$2),Arbeitsbereich!$J$696,IF(AND($AO$2<=$A22,$A22<$AP$2),Arbeitsbereich!$J$696,IF(AND($AP$2<=$A22,$A22<$AQ$2),Arbeitsbereich!$J$696+(Arbeitsbereich!$J$693*Arbeitsbereich!$J$666),NA())))) -> -88981.1123 | AV22: =( ((AN22/Arbeitsbereich!$J$749)^2)+(Graphen!AT22/Arbeitsbereich!$J$750)+3*(((Arbeitsbereich!$J$754*Graphen!AU22)/Arbeitsbereich!$J$751)^2) )^0.5 -> 68.6810017
A23: 12 | B23: 110 | C23: 90 | G23: 100 | AN23: =IF(AND(0<=$A23,$A23<$AN$2),0,IF(AND($AN$2<=$A23,$A23<$AO$2),Arbeitsbereich!$J$705,IF(AND($AO$2<=$A23,$A23<$AP$2),Arbeitsbereich!$J$705+Arbeitsbereich!$J$708,IF(AND($AP$2<=$A23,$A23<$AQ$2),Arbeitsbereich!$J$705+Arbeitsbereich!$J$708+Arbeitsbereich!$J$699,NA())))) -> 0 | AO23: =IF(AND(0<=$A23,$A23<$AN$2),0,IF(AND($AN$2<=$A23,$A23<$AO$2),Arbeitsbereich!$J$703,IF(AND($AO$2<=$A23,$A23<$AP$2),Arbeitsbereich!$J$703+Arbeitsbereich!$J$706,IF(AND($AP$2<=$A23,$A23<$AQ$2),Arbeitsbereich!$J$703+Arbeitsbereich!$J$706+Arbeitsbereich!$J$698,NA())))) -> 0 | AP23: =IF(AND(0<=$A23,$A23<$AN$2),0,IF(AND($AN$2<=$A23,$A23<$AO$2),Arbeitsbereich!$J$704,IF(AND($AO$2<=$A23,$A23<$AP$2),Arbeitsbereich!$J$704+Arbeitsbereich!$J$707,IF(AND($AP$2<=$A23,$A23<$AQ$2),Arbeitsbereich!$J$704+Arbeitsbereich!$J$707+Arbeitsbereich!$J$697,NA())))) -> 0 | AQ23: 0 | AR23: =IF(AND(0<=$A23,$A23<$AN$2),0,IF(AND($AN$2<=$A23,$A23<$AO$2),((A23-$AN$2)*Arbeitsbereich!$J$703),IF(AND($AO$2<=$A23,$A23<$AP$2),((A23-$AN$2)*Arbeitsbereich!$J$703)+((A23-$AO$2)*Arbeitsbereich!$J$706),IF(AND($AP$2<=$A23,$A23<$AQ$2),((A23-$AN$2)*Arbeitsbereich!$J$703)+((A23-$AO$2)*Arbeitsbereich!$J$706)+((A23-$AP$2)*Arbeitsbereich!$J$698)-(Arbeitsbereich!$J$693*Arbeitsbereich!$J$686),NA())))) -> 0 | AS23: =IF(AND(0<=$A23,$A23<$AN$2),0,IF(AND($AN$2<=$A23,$A23<$AO$2),((B23-$AN$2)*Arbeitsbereich!$J$704),IF(AND($AO$2<=$A23,$A23<$AP$2),((B23-$AN$2)*Arbeitsbereich!$J$704)+((B23-$AO$2)*Arbeitsbereich!$J$707),IF(AND($AP$2<=$A23,$A23<$AQ$2),((B23-$AN$2)*Arbeitsbereich!$J$704)+((B23-$AO$2)*Arbeitsbereich!$J$707)+((B23-$AP$2)*Arbeitsbereich!$J$697),NA())))) -> 0 | AT23: 0 | AU23: =IF(AND(0<=$A23,$A23<$AN$2),Arbeitsbereich!$J$696,IF(AND($AN$2<=$A23,$A23<$AO$2),Arbeitsbereich!$J$696,IF(AND($AO$2<=$A23,$A23<$AP$2),Arbeitsbereich!$J$696,IF(AND($AP$2<=$A23,$A23<$AQ$2),Arbeitsbereich!$J$696+(Arbeitsbereich!$J$693*Arbeitsbereich!$J$666),NA())))) -> -88981.1123 | AV23: =( ((AN23/Arbeitsbereich!$J$749)^2)+(Graphen!AT23/Arbeitsbereich!$J$750)+3*(((Arbeitsbereich!$J$754*Graphen!AU23)/Arbeitsbereich!$J$751)^2) )^0.5 -> 68.6810017
A24: 13 | B24: 110 | C24: 90 | G24: 100 | AN24: =IF(AND(0<=$A24,$A24<$AN$2),0,IF(AND($AN$2<=$A24,$A24<$AO$2),Arbeitsbereich!$J$705,IF(AND($AO$2<=$A24,$A24<$AP$2),Arbeitsbereich!$J$705+Arbeitsbereich!$J$708,IF(AND($AP$2<=$A24,$A24<$AQ$2),Arbeitsbereich!$J$705+Arbeitsbereich!$J$708+Arbeitsbereich!$J$699,NA())))) -> 0 | AO24: =IF(AND(0<=$A24,$A24<$AN$2),0,IF(AND($AN$2<=$A24,$A24<$AO$2),Arbeitsbereich!$J$703,IF(AND($AO$2<=$A24,$A24<$AP$2),Arbeitsbereich!$J$703+Arbeitsbereich!$J$706,IF(AND($AP$2<=$A24,$A24<$AQ$2),Arbeitsbereich!$J$703+Arbeitsbereich!$J$706+Arbeitsbereich!$J$698,NA())))) -> 0 | AP24: =IF(AND(0<=$A24,$A24<$AN$2),0,IF(AND($AN$2<=$A24,$A24<$AO$2),Arbeitsbereich!$J$704,IF(AND($AO$2<=$A24,$A24<$AP$2),Arbeitsbereich!$J$704+Arbeitsbereich!$J$707,IF(AND($AP$2<=$A24,$A24<$AQ$2),Arbeitsbereich!$J$704+Arbeitsbereich!$J$707+Arbeitsbereich!$J$697,NA())))) -> 0 | AQ24: 0 | AR24: =IF(AND(0<=$A24,$A24<$AN$2),0,IF(AND($AN$2<=$A24,$A24<$AO$2),((A24-$AN$2)*Arbeitsbereich!$J$703),IF(AND($AO$2<=$A24,$A24<$AP$2),((A24-$AN$2)*Arbeitsbereich!$J$703)+((A24-$AO$2)*Arbeitsbereich!$J$706),IF(AND($AP$2<=$A24,$A24<$AQ$2),((A24-$AN$2)*Arbeitsbereich!$J$703)+((A24-$AO$2)*Arbeitsbereich!$J$706)+((A24-$AP$2)*Arbeitsbereich!$J$698)-(Arbeitsbereich!$J$693*Arbeitsbereich!$J$686),NA())))) -> 0 | AS24: =IF(AND(0<=$A24,$A24<$AN$2),0,IF(AND($AN$2<=$A24,$A24<$AO$2),((B24-$AN$2)*Arbeitsbereich!$J$704),IF(AND($AO$2<=$A24,$A24<$AP$2),((B24-$AN$2)*Arbeitsbereich!$J$704)+((B24-$AO$2)*Arbeitsbereich!$J$707),IF(AND($AP$2<=$A24,$A24<$AQ$2),((B24-$AN$2)*Arbeitsbereich!$J$704)+((B24-$AO$2)*Arbeitsbereich!$J$707)+((B24-$AP$2)*Arbeitsbereich!$J$697),NA())))) -> 0 | AT24: 0 | AU24: =IF(AND(0<=$A24,$A24<$AN$2),Arbeitsbereich!$J$696,IF(AND($AN$2<=$A24,$A24<$AO$2),Arbeitsbereich!$J$696,IF(AND($AO$2<=$A24,$A24<$AP$2),Arbeitsbereich!$J$696,IF(AND($AP$2<=$A24,$A24<$AQ$2),Arbeitsbereich!$J$696+(Arbeitsbereich!$J$693*Arbeitsbereich!$J$666),NA())))) -> -88981.1123 | AV24: =( ((AN24/Arbeitsbereich!$J$749)^2)+(Graphen!AT24/Arbeitsbereich!$J$750)+3*(((Arbeitsbereich!$J$754*Graphen!AU24)/Arbeitsbereich!$J$751)^2) )^0.5 -> 68.6810017
A25: 14 | B25: 110 | C25: 90 | G25: 100 | AN25: =IF(AND(0<=$A25,$A25<$AN$2),0,IF(AND($AN$2<=$A25,$A25<$AO$2),Arbeitsbereich!$J$705,IF(AND($AO$2<=$A25,$A25<$AP$2),Arbeitsbereich!$J$705+Arbeitsbereich!$J$708,IF(AND($AP$2<=$A25,$A25<$AQ$2),Arbeitsbereich!$J$705+Arbeitsbereich!$J$708+Arbeitsbereich!$J$699,NA())))) -> 0 | AO25: =IF(AND(0<=$A25,$A25<$AN$2),0,IF(AND($AN$2<=$A25,$A25<$AO$2),Arbeitsbereich!$J$703,IF(AND($AO$2<=$A25,$A25<$AP$2),Arbeitsbereich!$J$703+Arbeitsbereich!$J$706,IF(AND($AP$2<=$A25,$A25<$AQ$2),Arbeitsbereich!$J$703+Arbeitsbereich!$J$706+Arbeitsbereich!$J$698,NA())))) -> 0 | AP25: =IF(AND(0<=$A25,$A25<$AN$2),0,IF(AND($AN$2<=$A25,$A25<$AO$2),Arbeitsbereich!$J$704,IF(AND($AO$2<=$A25,$A25<$AP$2),Arbeitsbereich!$J$704+Arbeitsbereich!$J$707,IF(AND($AP$2<=$A25,$A25<$AQ$2),Arbeitsbereich!$J$704+Arbeitsbereich!$J$707+Arbeitsbereich!$J$697,NA())))) -> 0 | AQ25: 0 | AR25: =IF(AND(0<=$A25,$A25<$AN$2),0,IF(AND($AN$2<=$A25,$A25<$AO$2),((A25-$AN$2)*Arbeitsbereich!$J$703),IF(AND($AO$2<=$A25,$A25<$AP$2),((A25-$AN$2)*Arbeitsbereich!$J$703)+((A25-$AO$2)*Arbeitsbereich!$J$706),IF(AND($AP$2<=$A25,$A25<$AQ$2),((A25-$AN$2)*Arbeitsbereich!$J$703)+((A25-$AO$2)*Arbeitsbereich!$J$706)+((A25-$AP$2)*Arbeitsbereich!$J$698)-(Arbeitsbereich!$J$693*Arbeitsbereich!$J$686),NA())))) -> 0 | AS25: =IF(AND(0<=$A25,$A25<$AN$2),0,IF(AND($AN$2<=$A25,$A25<$AO$2),((B25-$AN$2)*Arbeitsbereich!$J$704),IF(AND($AO$2<=$A25,$A25<$AP$2),((B25-$AN$2)*Arbeitsbereich!$J$704)+((B25-$AO$2)*Arbeitsbereich!$J$707),IF(AND($AP$2<=$A25,$A25<$AQ$2),((B25-$AN$2)*Arbeitsbereich!$J$704)+((B25-$AO$2)*Arbeitsbereich!$J$707)+((B25-$AP$2)*Arbeitsbereich!$J$697),NA())))) -> 0 | AT25: 0 | AU25: =IF(AND(0<=$A25,$A25<$AN$2),Arbeitsbereich!$J$696,IF(AND($AN$2<=$A25,$A25<$AO$2),Arbeitsbereich!$J$696,IF(AND($AO$2<=$A25,$A25<$AP$2),Arbeitsbereich!$J$696,IF(AND($AP$2<=$A25,$A25<$AQ$2),Arbeitsbereich!$J$696+(Arbeitsbereich!$J$693*Arbeitsbereich!$J$666),NA())))) -> -88981.1123 | AV25: =( ((AN25/Arbeitsbereich!$J$749)^2)+(Graphen!AT25/Arbeitsbereich!$J$750)+3*(((Arbeitsbereich!$J$754*Graphen!AU25)/Arbeitsbereich!$J$751)^2) )^0.5 -> 68.6810017
A26: 15 | B26: 110 | C26: 90 | G26: 100 | AN26: =IF(AND(0<=$A26,$A26<$AN$2),0,IF(AND($AN$2<=$A26,$A26<$AO$2),Arbeitsbereich!$J$705,IF(AND($AO$2<=$A26,$A26<$AP$2),Arbeitsbereich!$J$705+Arbeitsbereich!$J$708,IF(AND($AP$2<=$A26,$A26<$AQ$2),Arbeitsbereich!$J$705+Arbeitsbereich!$J$708+Arbeitsbereich!$J$699,NA())))) -> 0 | AO26: =IF(AND(0<=$A26,$A26<$AN$2),0,IF(AND($AN$2<=$A26,$A26<$AO$2),Arbeitsbereich!$J$703,IF(AND($AO$2<=$A26,$A26<$AP$2),Arbeitsbereich!$J$703+Arbeitsbereich!$J$706,IF(AND($AP$2<=$A26,$A26<$AQ$2),Arbeitsbereich!$J$703+Arbeitsbereich!$J$706+Arbeitsbereich!$J$698,NA())))) -> 0 | AP26: =IF(AND(0<=$A26,$A26<$AN$2),0,IF(AND($AN$2<=$A26,$A26<$AO$2),Arbeitsbereich!$J$704,IF(AND($AO$2<=$A26,$A26<$AP$2),Arbeitsbereich!$J$704+Arbeitsbereich!$J$707,IF(AND($AP$2<=$A26,$A26<$AQ$2),Arbeitsbereich!$J$704+Arbeitsbereich!$J$707+Arbeitsbereich!$J$697,NA())))) -> 0 | AQ26: 0 | AR26: =IF(AND(0<=$A26,$A26<$AN$2),0,IF(AND($AN$2<=$A26,$A26<$AO$2),((A26-$AN$2)*Arbeitsbereich!$J$703),IF(AND($AO$2<=$A26,$A26<$AP$2),((A26-$AN$2)*Arbeitsbereich!$J$703)+((A26-$AO$2)*Arbeitsbereich!$J$706),IF(AND($AP$2<=$A26,$A26<$AQ$2),((A26-$AN$2)*Arbeitsbereich!$J$703)+((A26-$AO$2)*Arbeitsbereich!$J$706)+((A26-$AP$2)*Arbeitsbereich!$J$698)-(Arbeitsbereich!$J$693*Arbeitsbereich!$J$686),NA())))) -> 0 | AS26: =IF(AND(0<=$A26,$A26<$AN$2),0,IF(AND($AN$2<=$A26,$A26<$AO$2),((B26-$AN$2)*Arbeitsbereich!$J$704),IF(AND($AO$2<=$A26,$A26<$AP$2),((B26-$AN$2)*Arbeitsbereich!$J$704)+((B26-$AO$2)*Arbeitsbereich!$J$707),IF(AND($AP$2<=$A26,$A26<$AQ$2),((B26-$AN$2)*Arbeitsbereich!$J$704)+((B26-$AO$2)*Arbeitsbereich!$J$707)+((B26-$AP$2)*Arbeitsbereich!$J$697),NA())))) -> 0 | AT26: 0 | AU26: =IF(AND(0<=$A26,$A26<$AN$2),Arbeitsbereich!$J$696,IF(AND($AN$2<=$A26,$A26<$AO$2),Arbeitsbereich!$J$696,IF(AND($AO$2<=$A26,$A26<$AP$2),Arbeitsbereich!$J$696,IF(AND($AP$2<=$A26,$A26<$AQ$2),Arbeitsbereich!$J$696+(Arbeitsbereich!$J$693*Arbeitsbereich!$J$666),NA())))) -> -88981.1123 | AV26: =( ((AN26/Arbeitsbereich!$J$749)^2)+(Graphen!AT26/Arbeitsbereich!$J$750)+3*(((Arbeitsbereich!$J$754*Graphen!AU26)/Arbeitsbereich!$J$751)^2) )^0.5 -> 68.6810017
A27: 16 | B27: 110 | C27: 90 | G27: 100 | AN27: =IF(AND(0<=$A27,$A27<$AN$2),0,IF(AND($AN$2<=$A27,$A27<$AO$2),Arbeitsbereich!$J$705,IF(AND($AO$2<=$A27,$A27<$AP$2),Arbeitsbereich!$J$705+Arbeitsbereich!$J$708,IF(AND($AP$2<=$A27,$A27<$AQ$2),Arbeitsbereich!$J$705+Arbeitsbereich!$J$708+Arbeitsbereich!$J$699,NA())))) -> 0 | AO27: =IF(AND(0<=$A27,$A27<$AN$2),0,IF(AND($AN$2<=$A27,$A27<$AO$2),Arbeitsbereich!$J$703,IF(AND($AO$2<=$A27,$A27<$AP$2),Arbeitsbereich!$J$703+Arbeitsbereich!$J$706,IF(AND($AP$2<=$A27,$A27<$AQ$2),Arbeitsbereich!$J$703+Arbeitsbereich!$J$706+Arbeitsbereich!$J$698,NA())))) -> 0 | AP27: =IF(AND(0<=$A27,$A27<$AN$2),0,IF(AND($AN$2<=$A27,$A27<$AO$2),Arbeitsbereich!$J$704,IF(AND($AO$2<=$A27,$A27<$AP$2),Arbeitsbereich!$J$704+Arbeitsbereich!$J$707,IF(AND($AP$2<=$A27,$A27<$AQ$2),Arbeitsbereich!$J$704+Arbeitsbereich!$J$707+Arbeitsbereich!$J$697,NA())))) -> 0 | AQ27: 0 | AR27: =IF(AND(0<=$A27,$A27<$AN$2),0,IF(AND($AN$2<=$A27,$A27<$AO$2),((A27-$AN$2)*Arbeitsbereich!$J$703),IF(AND($AO$2<=$A27,$A27<$AP$2),((A27-$AN$2)*Arbeitsbereich!$J$703)+((A27-$AO$2)*Arbeitsbereich!$J$706),IF(AND($AP$2<=$A27,$A27<$AQ$2),((A27-$AN$2)*Arbeitsbereich!$J$703)+((A27-$AO$2)*Arbeitsbereich!$J$706)+((A27-$AP$2)*Arbeitsbereich!$J$698)-(Arbeitsbereich!$J$693*Arbeitsbereich!$J$686),NA())))) -> 0 | AS27: =IF(AND(0<=$A27,$A27<$AN$2),0,IF(AND($AN$2<=$A27,$A27<$AO$2),((B27-$AN$2)*Arbeitsbereich!$J$704),IF(AND($AO$2<=$A27,$A27<$AP$2),((B27-$AN$2)*Arbeitsbereich!$J$704)+((B27-$AO$2)*Arbeitsbereich!$J$707),IF(AND($AP$2<=$A27,$A27<$AQ$2),((B27-$AN$2)*Arbeitsbereich!$J$704)+((B27-$AO$2)*Arbeitsbereich!$J$707)+((B27-$AP$2)*Arbeitsbereich!$J$697),NA())))) -> 0 | AT27: 0 | AU27: =IF(AND(0<=$A27,$A27<$AN$2),Arbeitsbereich!$J$696,IF(AND($AN$2<=$A27,$A27<$AO$2),Arbeitsbereich!$J$696,IF(AND($AO$2<=$A27,$A27<$AP$2),Arbeitsbereich!$J$696,IF(AND($AP$2<=$A27,$A27<$AQ$2),Arbeitsbereich!$J$696+(Arbeitsbereich!$J$693*Arbeitsbereich!$J$666),NA())))) -> -88981.1123 | AV27: =( ((AN27/Arbeitsbereich!$J$749)^2)+(Graphen!AT27/Arbeitsbereich!$J$750)+3*(((Arbeitsbereich!$J$754*Graphen!AU27)/Arbeitsbereich!$J$751)^2) )^0.5 -> 68.6810017
A28: 17 | B28: 110 | C28: 90 | G28: 100 | U28: =IF($A28=U$8,$B$2+$C$2,NA()) ->  | AN28: =IF(AND(0<=$A28,$A28<$AN$2),0,IF(AND($AN$2<=$A28,$A28<$AO$2),Arbeitsbereich!$J$705,IF(AND($AO$2<=$A28,$A28<$AP$2),Arbeitsbereich!$J$705+Arbeitsbereich!$J$708,IF(AND($AP$2<=$A28,$A28<$AQ$2),Arbeitsbereich!$J$705+Arbeitsbereich!$J$708+Arbeitsbereich!$J$699,NA())))) -> 0 | AO28: =IF(AND(0<=$A28,$A28<$AN$2),0,IF(AND($AN$2<=$A28,$A28<$AO$2),Arbeitsbereich!$J$703,IF(AND($AO$2<=$A28,$A28<$AP$2),Arbeitsbereich!$J$703+Arbeitsbereich!$J$706,IF(AND($AP$2<=$A28,$A28<$AQ$2),Arbeitsbereich!$J$703+Arbeitsbereich!$J$706+Arbeitsbereich!$J$698,NA())))) -> 0 | AP28: =IF(AND(0<=$A28,$A28<$AN$2),0,IF(AND($AN$2<=$A28,$A28<$AO$2),Arbeitsbereich!$J$704,IF(AND($AO$2<=$A28,$A28<$AP$2),Arbeitsbereich!$J$704+Arbeitsbereich!$J$707,IF(AND($AP$2<=$A28,$A28<$AQ$2),Arbeitsbereich!$J$704+Arbeitsbereich!$J$707+Arbeitsbereich!$J$697,NA())))) -> 0 | AQ28: 0 | AR28: =IF(AND(0<=$A28,$A28<$AN$2),0,IF(AND($AN$2<=$A28,$A28<$AO$2),((A28-$AN$2)*Arbeitsbereich!$J$703),IF(AND($AO$2<=$A28,$A28<$AP$2),((A28-$AN$2)*Arbeitsbereich!$J$703)+((A28-$AO$2)*Arbeitsbereich!$J$706),IF(AND($AP$2<=$A28,$A28<$AQ$2),((A28-$AN$2)*Arbeitsbereich!$J$703)+((A28-$AO$2)*Arbeitsbereich!$J$706)+((A28-$AP$2)*Arbeitsbereich!$J$698)-(Arbeitsbereich!$J$693*Arbeitsbereich!$J$686),NA())))) -> 0 | AS28: =IF(AND(0<=$A28,$A28<$AN$2),0,IF(AND($AN$2<=$A28,$A28<$AO$2),((B28-$AN$2)*Arbeitsbereich!$J$704),IF(AND($AO$2<=$A28,$A28<$AP$2),((B28-$AN$2)*Arbeitsbereich!$J$704)+((B28-$AO$2)*Arbeitsbereich!$J$707),IF(AND($AP$2<=$A28,$A28<$AQ$2),((B28-$AN$2)*Arbeitsbereich!$J$704)+((B28-$AO$2)*Arbeitsbereich!$J$707)+((B28-$AP$2)*Arbeitsbereich!$J$697),NA())))) -> 0 | AT28: 0 | AU28: =IF(AND(0<=$A28,$A28<$AN$2),Arbeitsbereich!$J$696,IF(AND($AN$2<=$A28,$A28<$AO$2),Arbeitsbereich!$J$696,IF(AND($AO$2<=$A28,$A28<$AP$2),Arbeitsbereich!$J$696,IF(AND($AP$2<=$A28,$A28<$AQ$2),Arbeitsbereich!$J$696+(Arbeitsbereich!$J$693*Arbeitsbereich!$J$666),NA())))) -> -88981.1123 | AV28: =( ((AN28/Arbeitsbereich!$J$749)^2)+(Graphen!AT28/Arbeitsbereich!$J$750)+3*(((Arbeitsbereich!$J$754*Graphen!AU28)/Arbeitsbereich!$J$751)^2) )^0.5 -> 68.6810017
A29: 18 | B29: 110 | C29: 90 | G29: 100 | AN29: =IF(AND(0<=$A29,$A29<$AN$2),0,IF(AND($AN$2<=$A29,$A29<$AO$2),Arbeitsbereich!$J$705,IF(AND($AO$2<=$A29,$A29<$AP$2),Arbeitsbereich!$J$705+Arbeitsbereich!$J$708,IF(AND($AP$2<=$A29,$A29<$AQ$2),Arbeitsbereich!$J$705+Arbeitsbereich!$J$708+Arbeitsbereich!$J$699,NA())))) -> 0 | AO29: =IF(AND(0<=$A29,$A29<$AN$2),0,IF(AND($AN$2<=$A29,$A29<$AO$2),Arbeitsbereich!$J$703,IF(AND($AO$2<=$A29,$A29<$AP$2),Arbeitsbereich!$J$703+Arbeitsbereich!$J$706,IF(AND($AP$2<=$A29,$A29<$AQ$2),Arbeitsbereich!$J$703+Arbeitsbereich!$J$706+Arbeitsbereich!$J$698,NA())))) -> 0 | AP29: =IF(AND(0<=$A29,$A29<$AN$2),0,IF(AND($AN$2<=$A29,$A29<$AO$2),Arbeitsbereich!$J$704,IF(AND($AO$2<=$A29,$A29<$AP$2),Arbeitsbereich!$J$704+Arbeitsbereich!$J$707,IF(AND($AP$2<=$A29,$A29<$AQ$2),Arbeitsbereich!$J$704+Arbeitsbereich!$J$707+Arbeitsbereich!$J$697,NA())))) -> 0 | AQ29: 0 | AR29: =IF(AND(0<=$A29,$A29<$AN$2),0,IF(AND($AN$2<=$A29,$A29<$AO$2),((A29-$AN$2)*Arbeitsbereich!$J$703),IF(AND($AO$2<=$A29,$A29<$AP$2),((A29-$AN$2)*Arbeitsbereich!$J$703)+((A29-$AO$2)*Arbeitsbereich!$J$706),IF(AND($AP$2<=$A29,$A29<$AQ$2),((A29-$AN$2)*Arbeitsbereich!$J$703)+((A29-$AO$2)*Arbeitsbereich!$J$706)+((A29-$AP$2)*Arbeitsbereich!$J$698)-(Arbeitsbereich!$J$693*Arbeitsbereich!$J$686),NA())))) -> 0 | AS29: =IF(AND(0<=$A29,$A29<$AN$2),0,IF(AND($AN$2<=$A29,$A29<$AO$2),((B29-$AN$2)*Arbeitsbereich!$J$704),IF(AND($AO$2<=$A29,$A29<$AP$2),((B29-$AN$2)*Arbeitsbereich!$J$704)+((B29-$AO$2)*Arbeitsbereich!$J$707),IF(AND($AP$2<=$A29,$A29<$AQ$2),((B29-$AN$2)*Arbeitsbereich!$J$704)+((B29-$AO$2)*Arbeitsbereich!$J$707)+((B29-$AP$2)*Arbeitsbereich!$J$697),NA())))) -> 0 | AT29: 0 | AU29: =IF(AND(0<=$A29,$A29<$AN$2),Arbeitsbereich!$J$696,IF(AND($AN$2<=$A29,$A29<$AO$2),Arbeitsbereich!$J$696,IF(AND($AO$2<=$A29,$A29<$AP$2),Arbeitsbereich!$J$696,IF(AND($AP$2<=$A29,$A29<$AQ$2),Arbeitsbereich!$J$696+(Arbeitsbereich!$J$693*Arbeitsbereich!$J$666),NA())))) -> -88981.1123 | AV29: =( ((AN29/Arbeitsbereich!$J$749)^2)+(Graphen!AT29/Arbeitsbereich!$J$750)+3*(((Arbeitsbereich!$J$754*Graphen!AU29)/Arbeitsbereich!$J$751)^2) )^0.5 -> 68.6810017
A30: 19 | B30: 110 | C30: 90 | D30: 100 | G30: 100 | AN30: =IF(AND(0<=$A30,$A30<$AN$2),0,IF(AND($AN$2<=$A30,$A30<$AO$2),Arbeitsbereich!$J$705,IF(AND($AO$2<=$A30,$A30<$AP$2),Arbeitsbereich!$J$705+Arbeitsbereich!$J$708,IF(AND($AP$2<=$A30,$A30<$AQ$2),Arbeitsbereich!$J$705+Arbeitsbereich!$J$708+Arbeitsbereich!$J$699,NA())))) -> 0 | AO30: =IF(AND(0<=$A30,$A30<$AN$2),0,IF(AND($AN$2<=$A30,$A30<$AO$2),Arbeitsbereich!$J$703,IF(AND($AO$2<=$A30,$A30<$AP$2),Arbeitsbereich!$J$703+Arbeitsbereich!$J$706,IF(AND($AP$2<=$A30,$A30<$AQ$2),Arbeitsbereich!$J$703+Arbeitsbereich!$J$706+Arbeitsbereich!$J$698,NA())))) -> 0 | AP30: =IF(AND(0<=$A30,$A30<$AN$2),0,IF(AND($AN$2<=$A30,$A30<$AO$2),Arbeitsbereich!$J$704,IF(AND($AO$2<=$A30,$A30<$AP$2),Arbeitsbereich!$J$704+Arbeitsbereich!$J$707,IF(AND($AP$2<=$A30,$A30<$AQ$2),Arbeitsbereich!$J$704+Arbeitsbereich!$J$707+Arbeitsbereich!$J$697,NA())))) -> 0 | AQ30: 0 | AR30: =IF(AND(0<=$A30,$A30<$AN$2),0,IF(AND($AN$2<=$A30,$A30<$AO$2),((A30-$AN$2)*Arbeitsbereich!$J$703),IF(AND($AO$2<=$A30,$A30<$AP$2),((A30-$AN$2)*Arbeitsbereich!$J$703)+((A30-$AO$2)*Arbeitsbereich!$J$706),IF(AND($AP$2<=$A30,$A30<$AQ$2),((A30-$AN$2)*Arbeitsbereich!$J$703)+((A30-$AO$2)*Arbeitsbereich!$J$706)+((A30-$AP$2)*Arbeitsbereich!$J$698)-(Arbeitsbereich!$J$693*Arbeitsbereich!$J$686),NA())))) -> 0 | AS30: =IF(AND(0<=$A30,$A30<$AN$2),0,IF(AND($AN$2<=$A30,$A30<$AO$2),((B30-$AN$2)*Arbeitsbereich!$J$704),IF(AND($AO$2<=$A30,$A30<$AP$2),((B30-$AN$2)*Arbeitsbereich!$J$704)+((B30-$AO$2)*Arbeitsbereich!$J$707),IF(AND($AP$2<=$A30,$A30<$AQ$2),((B30-$AN$2)*Arbeitsbereich!$J$704)+((B30-$AO$2)*Arbeitsbereich!$J$707)+((B30-$AP$2)*Arbeitsbereich!$J$697),NA())))) -> 0 | AT30: 0 | AU30: =IF(AND(0<=$A30,$A30<$AN$2),Arbeitsbereich!$J$696,IF(AND($AN$2<=$A30,$A30<$AO$2),Arbeitsbereich!$J$696,IF(AND($AO$2<=$A30,$A30<$AP$2),Arbeitsbereich!$J$696,IF(AND($AP$2<=$A30,$A30<$AQ$2),Arbeitsbereich!$J$696+(Arbeitsbereich!$J$693*Arbeitsbereich!$J$666),NA())))) -> -88981.1123 | AV30: =( ((AN30/Arbeitsbereich!$J$749)^2)+(Graphen!AT30/Arbeitsbereich!$J$750)+3*(((Arbeitsbereich!$J$754*Graphen!AU30)/Arbeitsbereich!$J$751)^2) )^0.5 -> 68.6810017
A31: 20 | B31: 110 | C31: 90 | D31: 100 | G31: 100 | AH31: =IF($A31=AH$8,$B$2+$D$2,NA()) ->  | AN31: =IF(AND(0<=$A31,$A31<$AN$2),0,IF(AND($AN$2<=$A31,$A31<$AO$2),Arbeitsbereich!$J$705,IF(AND($AO$2<=$A31,$A31<$AP$2),Arbeitsbereich!$J$705+Arbeitsbereich!$J$708,IF(AND($AP$2<=$A31,$A31<$AQ$2),Arbeitsbereich!$J$705+Arbeitsbereich!$J$708+Arbeitsbereich!$J$699,NA())))) -> 0 | AO31: =IF(AND(0<=$A31,$A31<$AN$2),0,IF(AND($AN$2<=$A31,$A31<$AO$2),Arbeitsbereich!$J$703,IF(AND($AO$2<=$A31,$A31<$AP$2),Arbeitsbereich!$J$703+Arbeitsbereich!$J$706,IF(AND($AP$2<=$A31,$A31<$AQ$2),Arbeitsbereich!$J$703+Arbeitsbereich!$J$706+Arbeitsbereich!$J$698,NA())))) -> 0 | AP31: =IF(AND(0<=$A31,$A31<$AN$2),0,IF(AND($AN$2<=$A31,$A31<$AO$2),Arbeitsbereich!$J$704,IF(AND($AO$2<=$A31,$A31<$AP$2),Arbeitsbereich!$J$704+Arbeitsbereich!$J$707,IF(AND($AP$2<=$A31,$A31<$AQ$2),Arbeitsbereich!$J$704+Arbeitsbereich!$J$707+Arbeitsbereich!$J$697,NA())))) -> 0 | AQ31: 0 | AR31: =IF(AND(0<=$A31,$A31<$AN$2),0,IF(AND($AN$2<=$A31,$A31<$AO$2),((A31-$AN$2)*Arbeitsbereich!$J$703),IF(AND($AO$2<=$A31,$A31<$AP$2),((A31-$AN$2)*Arbeitsbereich!$J$703)+((A31-$AO$2)*Arbeitsbereich!$J$706),IF(AND($AP$2<=$A31,$A31<$AQ$2),((A31-$AN$2)*Arbeitsbereich!$J$703)+((A31-$AO$2)*Arbeitsbereich!$J$706)+((A31-$AP$2)*Arbeitsbereich!$J$698)-(Arbeitsbereich!$J$693*Arbeitsbereich!$J$686),NA())))) -> 0 | AS31: =IF(AND(0<=$A31,$A31<$AN$2),0,IF(AND($AN$2<=$A31,$A31<$AO$2),((B31-$AN$2)*Arbeitsbereich!$J$704),IF(AND($AO$2<=$A31,$A31<$AP$2),((B31-$AN$2)*Arbeitsbereich!$J$704)+((B31-$AO$2)*Arbeitsbereich!$J$707),IF(AND($AP$2<=$A31,$A31<$AQ$2),((B31-$AN$2)*Arbeitsbereich!$J$704)+((B31-$AO$2)*Arbeitsbereich!$J$707)+((B31-$AP$2)*Arbeitsbereich!$J$697),NA())))) -> 0 | AT31: 0 | AU31: =IF(AND(0<=$A31,$A31<$AN$2),Arbeitsbereich!$J$696,IF(AND($AN$2<=$A31,$A31<$AO$2),Arbeitsbereich!$J$696,IF(AND($AO$2<=$A31,$A31<$AP$2),Arbeitsbereich!$J$696,IF(AND($AP$2<=$A31,$A31<$AQ$2),Arbeitsbereich!$J$696+(Arbeitsbereich!$J$693*Arbeitsbereich!$J$666),NA())))) -> -88981.1123 | AV31: =( ((AN31/Arbeitsbereich!$J$749)^2)+(Graphen!AT31/Arbeitsbereich!$J$750)+3*(((Arbeitsbereich!$J$754*Graphen!AU31)/Arbeitsbereich!$J$751)^2) )^0.5 -> 68.6810017
A32: 21 | B32: 110 | C32: 90 | D32: 100 | G32: 100 | AN32: =IF(AND(0<=$A32,$A32<$AN$2),0,IF(AND($AN$2<=$A32,$A32<$AO$2),Arbeitsbereich!$J$705,IF(AND($AO$2<=$A32,$A32<$AP$2),Arbeitsbereich!$J$705+Arbeitsbereich!$J$708,IF(AND($AP$2<=$A32,$A32<$AQ$2),Arbeitsbereich!$J$705+Arbeitsbereich!$J$708+Arbeitsbereich!$J$699,NA())))) -> 0 | AO32: =IF(AND(0<=$A32,$A32<$AN$2),0,IF(AND($AN$2<=$A32,$A32<$AO$2),Arbeitsbereich!$J$703,IF(AND($AO$2<=$A32,$A32<$AP$2),Arbeitsbereich!$J$703+Arbeitsbereich!$J$706,IF(AND($AP$2<=$A32,$A32<$AQ$2),Arbeitsbereich!$J$703+Arbeitsbereich!$J$706+Arbeitsbereich!$J$698,NA())))) -> 0 | AP32: =IF(AND(0<=$A32,$A32<$AN$2),0,IF(AND($AN$2<=$A32,$A32<$AO$2),Arbeitsbereich!$J$704,IF(AND($AO$2<=$A32,$A32<$AP$2),Arbeitsbereich!$J$704+Arbeitsbereich!$J$707,IF(AND($AP$2<=$A32,$A32<$AQ$2),Arbeitsbereich!$J$704+Arbeitsbereich!$J$707+Arbeitsbereich!$J$697,NA())))) -> 0 | AQ32: 0 | AR32: =IF(AND(0<=$A32,$A32<$AN$2),0,IF(AND($AN$2<=$A32,$A32<$AO$2),((A32-$AN$2)*Arbeitsbereich!$J$703),IF(AND($AO$2<=$A32,$A32<$AP$2),((A32-$AN$2)*Arbeitsbereich!$J$703)+((A32-$AO$2)*Arbeitsbereich!$J$706),IF(AND($AP$2<=$A32,$A32<$AQ$2),((A32-$AN$2)*Arbeitsbereich!$J$703)+((A32-$AO$2)*Arbeitsbereich!$J$706)+((A32-$AP$2)*Arbeitsbereich!$J$698)-(Arbeitsbereich!$J$693*Arbeitsbereich!$J$686),NA())))) -> 0 | AS32: =IF(AND(0<=$A32,$A32<$AN$2),0,IF(AND($AN$2<=$A32,$A32<$AO$2),((B32-$AN$2)*Arbeitsbereich!$J$704),IF(AND($AO$2<=$A32,$A32<$AP$2),((B32-$AN$2)*Arbeitsbereich!$J$704)+((B32-$AO$2)*Arbeitsbereich!$J$707),IF(AND($AP$2<=$A32,$A32<$AQ$2),((B32-$AN$2)*Arbeitsbereich!$J$704)+((B32-$AO$2)*Arbeitsbereich!$J$707)+((B32-$AP$2)*Arbeitsbereich!$J$697),NA())))) -> 0 | AT32: 0 | AU32: =IF(AND(0<=$A32,$A32<$AN$2),Arbeitsbereich!$J$696,IF(AND($AN$2<=$A32,$A32<$AO$2),Arbeitsbereich!$J$696,IF(AND($AO$2<=$A32,$A32<$AP$2),Arbeitsbereich!$J$696,IF(AND($AP$2<=$A32,$A32<$AQ$2),Arbeitsbereich!$J$696+(Arbeitsbereich!$J$693*Arbeitsbereich!$J$666),NA())))) -> -88981.1123 | AV32: =( ((AN32/Arbeitsbereich!$J$749)^2)+(Graphen!AT32/Arbeitsbereich!$J$750)+3*(((Arbeitsbereich!$J$754*Graphen!AU32)/Arbeitsbereich!$J$751)^2) )^0.5 -> 68.6810017
A33: 22 | B33: 110 | C33: 90 | D33: 100 | G33: 100 | AN33: =IF(AND(0<=$A33,$A33<$AN$2),0,IF(AND($AN$2<=$A33,$A33<$AO$2),Arbeitsbereich!$J$705,IF(AND($AO$2<=$A33,$A33<$AP$2),Arbeitsbereich!$J$705+Arbeitsbereich!$J$708,IF(AND($AP$2<=$A33,$A33<$AQ$2),Arbeitsbereich!$J$705+Arbeitsbereich!$J$708+Arbeitsbereich!$J$699,NA())))) -> 0 | AO33: =IF(AND(0<=$A33,$A33<$AN$2),0,IF(AND($AN$2<=$A33,$A33<$AO$2),Arbeitsbereich!$J$703,IF(AND($AO$2<=$A33,$A33<$AP$2),Arbeitsbereich!$J$703+Arbeitsbereich!$J$706,IF(AND($AP$2<=$A33,$A33<$AQ$2),Arbeitsbereich!$J$703+Arbeitsbereich!$J$706+Arbeitsbereich!$J$698,NA())))) -> 0 | AP33: =IF(AND(0<=$A33,$A33<$AN$2),0,IF(AND($AN$2<=$A33,$A33<$AO$2),Arbeitsbereich!$J$704,IF(AND($AO$2<=$A33,$A33<$AP$2),Arbeitsbereich!$J$704+Arbeitsbereich!$J$707,IF(AND($AP$2<=$A33,$A33<$AQ$2),Arbeitsbereich!$J$704+Arbeitsbereich!$J$707+Arbeitsbereich!$J$697,NA())))) -> 0 | AQ33: 0 | AR33: =IF(AND(0<=$A33,$A33<$AN$2),0,IF(AND($AN$2<=$A33,$A33<$AO$2),((A33-$AN$2)*Arbeitsbereich!$J$703),IF(AND($AO$2<=$A33,$A33<$AP$2),((A33-$AN$2)*Arbeitsbereich!$J$703)+((A33-$AO$2)*Arbeitsbereich!$J$706),IF(AND($AP$2<=$A33,$A33<$AQ$2),((A33-$AN$2)*Arbeitsbereich!$J$703)+((A33-$AO$2)*Arbeitsbereich!$J$706)+((A33-$AP$2)*Arbeitsbereich!$J$698)-(Arbeitsbereich!$J$693*Arbeitsbereich!$J$686),NA())))) -> 0 | AS33: =IF(AND(0<=$A33,$A33<$AN$2),0,IF(AND($AN$2<=$A33,$A33<$AO$2),((B33-$AN$2)*Arbeitsbereich!$J$704),IF(AND($AO$2<=$A33,$A33<$AP$2),((B33-$AN$2)*Arbeitsbereich!$J$704)+((B33-$AO$2)*Arbeitsbereich!$J$707),IF(AND($AP$2<=$A33,$A33<$AQ$2),((B33-$AN$2)*Arbeitsbereich!$J$704)+((B33-$AO$2)*Arbeitsbereich!$J$707)+((B33-$AP$2)*Arbeitsbereich!$J$697),NA())))) -> 0 | AT33: 0 | AU33: =IF(AND(0<=$A33,$A33<$AN$2),Arbeitsbereich!$J$696,IF(AND($AN$2<=$A33,$A33<$AO$2),Arbeitsbereich!$J$696,IF(AND($AO$2<=$A33,$A33<$AP$2),Arbeitsbereich!$J$696,IF(AND($AP$2<=$A33,$A33<$AQ$2),Arbeitsbereich!$J$696+(Arbeitsbereich!$J$693*Arbeitsbereich!$J$666),NA())))) -> -88981.1123 | AV33: =( ((AN33/Arbeitsbereich!$J$749)^2)+(Graphen!AT33/Arbeitsbereich!$J$750)+3*(((Arbeitsbereich!$J$754*Graphen!AU33)/Arbeitsbereich!$J$751)^2) )^0.5 -> 68.6810017
A34: 23 | B34: 110 | C34: 90 | D34: 100 | G34: 100 | AN34: =IF(AND(0<=$A34,$A34<$AN$2),0,IF(AND($AN$2<=$A34,$A34<$AO$2),Arbeitsbereich!$J$705,IF(AND($AO$2<=$A34,$A34<$AP$2),Arbeitsbereich!$J$705+Arbeitsbereich!$J$708,IF(AND($AP$2<=$A34,$A34<$AQ$2),Arbeitsbereich!$J$705+Arbeitsbereich!$J$708+Arbeitsbereich!$J$699,NA())))) -> 0 | AO34: =IF(AND(0<=$A34,$A34<$AN$2),0,IF(AND($AN$2<=$A34,$A34<$AO$2),Arbeitsbereich!$J$703,IF(AND($AO$2<=$A34,$A34<$AP$2),Arbeitsbereich!$J$703+Arbeitsbereich!$J$706,IF(AND($AP$2<=$A34,$A34<$AQ$2),Arbeitsbereich!$J$703+Arbeitsbereich!$J$706+Arbeitsbereich!$J$698,NA())))) -> 0 | AP34: =IF(AND(0<=$A34,$A34<$AN$2),0,IF(AND($AN$2<=$A34,$A34<$AO$2),Arbeitsbereich!$J$704,IF(AND($AO$2<=$A34,$A34<$AP$2),Arbeitsbereich!$J$704+Arbeitsbereich!$J$707,IF(AND($AP$2<=$A34,$A34<$AQ$2),Arbeitsbereich!$J$704+Arbeitsbereich!$J$707+Arbeitsbereich!$J$697,NA())))) -> 0 | AQ34: 0 | AR34: =IF(AND(0<=$A34,$A34<$AN$2),0,IF(AND($AN$2<=$A34,$A34<$AO$2),((A34-$AN$2)*Arbeitsbereich!$J$703),IF(AND($AO$2<=$A34,$A34<$AP$2),((A34-$AN$2)*Arbeitsbereich!$J$703)+((A34-$AO$2)*Arbeitsbereich!$J$706),IF(AND($AP$2<=$A34,$A34<$AQ$2),((A34-$AN$2)*Arbeitsbereich!$J$703)+((A34-$AO$2)*Arbeitsbereich!$J$706)+((A34-$AP$2)*Arbeitsbereich!$J$698)-(Arbeitsbereich!$J$693*Arbeitsbereich!$J$686),NA())))) -> 0 | AS34: =IF(AND(0<=$A34,$A34<$AN$2),0,IF(AND($AN$2<=$A34,$A34<$AO$2),((B34-$AN$2)*Arbeitsbereich!$J$704),IF(AND($AO$2<=$A34,$A34<$AP$2),((B34-$AN$2)*Arbeitsbereich!$J$704)+((B34-$AO$2)*Arbeitsbereich!$J$707),IF(AND($AP$2<=$A34,$A34<$AQ$2),((B34-$AN$2)*Arbeitsbereich!$J$704)+((B34-$AO$2)*Arbeitsbereich!$J$707)+((B34-$AP$2)*Arbeitsbereich!$J$697),NA())))) -> 0 | AT34: 0 | AU34: =IF(AND(0<=$A34,$A34<$AN$2),Arbeitsbereich!$J$696,IF(AND($AN$2<=$A34,$A34<$AO$2),Arbeitsbereich!$J$696,IF(AND($AO$2<=$A34,$A34<$AP$2),Arbeitsbereich!$J$696,IF(AND($AP$2<=$A34,$A34<$AQ$2),Arbeitsbereich!$J$696+(Arbeitsbereich!$J$693*Arbeitsbereich!$J$666),NA())))) -> -88981.1123 | AV34: =( ((AN34/Arbeitsbereich!$J$749)^2)+(Graphen!AT34/Arbeitsbereich!$J$750)+3*(((Arbeitsbereich!$J$754*Graphen!AU34)/Arbeitsbereich!$J$751)^2) )^0.5 -> 68.6810017
A35: 24 | B35: 110 | C35: 90 | D35: 100 | G35: 100 | AN35: =IF(AND(0<=$A35,$A35<$AN$2),0,IF(AND($AN$2<=$A35,$A35<$AO$2),Arbeitsbereich!$J$705,IF(AND($AO$2<=$A35,$A35<$AP$2),Arbeitsbereich!$J$705+Arbeitsbereich!$J$708,IF(AND($AP$2<=$A35,$A35<$AQ$2),Arbeitsbereich!$J$705+Arbeitsbereich!$J$708+Arbeitsbereich!$J$699,NA())))) -> 0 | AO35: =IF(AND(0<=$A35,$A35<$AN$2),0,IF(AND($AN$2<=$A35,$A35<$AO$2),Arbeitsbereich!$J$703,IF(AND($AO$2<=$A35,$A35<$AP$2),Arbeitsbereich!$J$703+Arbeitsbereich!$J$706,IF(AND($AP$2<=$A35,$A35<$AQ$2),Arbeitsbereich!$J$703+Arbeitsbereich!$J$706+Arbeitsbereich!$J$698,NA())))) -> 0 | AP35: =IF(AND(0<=$A35,$A35<$AN$2),0,IF(AND($AN$2<=$A35,$A35<$AO$2),Arbeitsbereich!$J$704,IF(AND($AO$2<=$A35,$A35<$AP$2),Arbeitsbereich!$J$704+Arbeitsbereich!$J$707,IF(AND($AP$2<=$A35,$A35<$AQ$2),Arbeitsbereich!$J$704+Arbeitsbereich!$J$707+Arbeitsbereich!$J$697,NA())))) -> 0 | AQ35: 0 | AR35: =IF(AND(0<=$A35,$A35<$AN$2),0,IF(AND($AN$2<=$A35,$A35<$AO$2),((A35-$AN$2)*Arbeitsbereich!$J$703),IF(AND($AO$2<=$A35,$A35<$AP$2),((A35-$AN$2)*Arbeitsbereich!$J$703)+((A35-$AO$2)*Arbeitsbereich!$J$706),IF(AND($AP$2<=$A35,$A35<$AQ$2),((A35-$AN$2)*Arbeitsbereich!$J$703)+((A35-$AO$2)*Arbeitsbereich!$J$706)+((A35-$AP$2)*Arbeitsbereich!$J$698)-(Arbeitsbereich!$J$693*Arbeitsbereich!$J$686),NA())))) -> 0 | AS35: =IF(AND(0<=$A35,$A35<$AN$2),0,IF(AND($AN$2<=$A35,$A35<$AO$2),((B35-$AN$2)*Arbeitsbereich!$J$704),IF(AND($AO$2<=$A35,$A35<$AP$2),((B35-$AN$2)*Arbeitsbereich!$J$704)+((B35-$AO$2)*Arbeitsbereich!$J$707),IF(AND($AP$2<=$A35,$A35<$AQ$2),((B35-$AN$2)*Arbeitsbereich!$J$704)+((B35-$AO$2)*Arbeitsbereich!$J$707)+((B35-$AP$2)*Arbeitsbereich!$J$697),NA())))) -> 0 | AT35: 0 | AU35: =IF(AND(0<=$A35,$A35<$AN$2),Arbeitsbereich!$J$696,IF(AND($AN$2<=$A35,$A35<$AO$2),Arbeitsbereich!$J$696,IF(AND($AO$2<=$A35,$A35<$AP$2),Arbeitsbereich!$J$696,IF(AND($AP$2<=$A35,$A35<$AQ$2),Arbeitsbereich!$J$696+(Arbeitsbereich!$J$693*Arbeitsbereich!$J$666),NA())))) -> -88981.1123 | AV35: =( ((AN35/Arbeitsbereich!$J$749)^2)+(Graphen!AT35/Arbeitsbereich!$J$750)+3*(((Arbeitsbereich!$J$754*Graphen!AU35)/Arbeitsbereich!$J$751)^2) )^0.5 -> 68.6810017
A36: 25 | B36: 110 | C36: 90 | D36: 100 | G36: 100 | AN36: =IF(AND(0<=$A36,$A36<$AN$2),0,IF(AND($AN$2<=$A36,$A36<$AO$2),Arbeitsbereich!$J$705,IF(AND($AO$2<=$A36,$A36<$AP$2),Arbeitsbereich!$J$705+Arbeitsbereich!$J$708,IF(AND($AP$2<=$A36,$A36<$AQ$2),Arbeitsbereich!$J$705+Arbeitsbereich!$J$708+Arbeitsbereich!$J$699,NA())))) -> 0 | AO36: =IF(AND(0<=$A36,$A36<$AN$2),0,IF(AND($AN$2<=$A36,$A36<$AO$2),Arbeitsbereich!$J$703,IF(AND($AO$2<=$A36,$A36<$AP$2),Arbeitsbereich!$J$703+Arbeitsbereich!$J$706,IF(AND($AP$2<=$A36,$A36<$AQ$2),Arbeitsbereich!$J$703+Arbeitsbereich!$J$706+Arbeitsbereich!$J$698,NA())))) -> 0 | AP36: =IF(AND(0<=$A36,$A36<$AN$2),0,IF(AND($AN$2<=$A36,$A36<$AO$2),Arbeitsbereich!$J$704,IF(AND($AO$2<=$A36,$A36<$AP$2),Arbeitsbereich!$J$704+Arbeitsbereich!$J$707,IF(AND($AP$2<=$A36,$A36<$AQ$2),Arbeitsbereich!$J$704+Arbeitsbereich!$J$707+Arbeitsbereich!$J$697,NA())))) -> 0 | AQ36: 0 | AR36: =IF(AND(0<=$A36,$A36<$AN$2),0,IF(AND($AN$2<=$A36,$A36<$AO$2),((A36-$AN$2)*Arbeitsbereich!$J$703),IF(AND($AO$2<=$A36,$A36<$AP$2),((A36-$AN$2)*Arbeitsbereich!$J$703)+((A36-$AO$2)*Arbeitsbereich!$J$706),IF(AND($AP$2<=$A36,$A36<$AQ$2),((A36-$AN$2)*Arbeitsbereich!$J$703)+((A36-$AO$2)*Arbeitsbereich!$J$706)+((A36-$AP$2)*Arbeitsbereich!$J$698)-(Arbeitsbereich!$J$693*Arbeitsbereich!$J$686),NA())))) -> 0 | AS36: =IF(AND(0<=$A36,$A36<$AN$2),0,IF(AND($AN$2<=$A36,$A36<$AO$2),((B36-$AN$2)*Arbeitsbereich!$J$704),IF(AND($AO$2<=$A36,$A36<$AP$2),((B36-$AN$2)*Arbeitsbereich!$J$704)+((B36-$AO$2)*Arbeitsbereich!$J$707),IF(AND($AP$2<=$A36,$A36<$AQ$2),((B36-$AN$2)*Arbeitsbereich!$J$704)+((B36-$AO$2)*Arbeitsbereich!$J$707)+((B36-$AP$2)*Arbeitsbereich!$J$697),NA())))) -> 0 | AT36: 0 | AU36: =IF(AND(0<=$A36,$A36<$AN$2),Arbeitsbereich!$J$696,IF(AND($AN$2<=$A36,$A36<$AO$2),Arbeitsbereich!$J$696,IF(AND($AO$2<=$A36,$A36<$AP$2),Arbeitsbereich!$J$696,IF(AND($AP$2<=$A36,$A36<$AQ$2),Arbeitsbereich!$J$696+(Arbeitsbereich!$J$693*Arbeitsbereich!$J$666),NA())))) -> -88981.1123 | AV36: =( ((AN36/Arbeitsbereich!$J$749)^2)+(Graphen!AT36/Arbeitsbereich!$J$750)+3*(((Arbeitsbereich!$J$754*Graphen!AU36)/Arbeitsbereich!$J$751)^2) )^0.5 -> 68.6810017
A37: 26 | B37: 110 | C37: 90 | D37: 100 | G37: 100 | I37: 100 | AN37: =IF(AND(0<=$A37,$A37<$AN$2),0,IF(AND($AN$2<=$A37,$A37<$AO$2),Arbeitsbereich!$J$705,IF(AND($AO$2<=$A37,$A37<$AP$2),Arbeitsbereich!$J$705+Arbeitsbereich!$J$708,IF(AND($AP$2<=$A37,$A37<$AQ$2),Arbeitsbereich!$J$705+Arbeitsbereich!$J$708+Arbeitsbereich!$J$699,NA())))) -> 0 | AO37: =IF(AND(0<=$A37,$A37<$AN$2),0,IF(AND($AN$2<=$A37,$A37<$AO$2),Arbeitsbereich!$J$703,IF(AND($AO$2<=$A37,$A37<$AP$2),Arbeitsbereich!$J$703+Arbeitsbereich!$J$706,IF(AND($AP$2<=$A37,$A37<$AQ$2),Arbeitsbereich!$J$703+Arbeitsbereich!$J$706+Arbeitsbereich!$J$698,NA())))) -> 0 | AP37: =IF(AND(0<=$A37,$A37<$AN$2),0,IF(AND($AN$2<=$A37,$A37<$AO$2),Arbeitsbereich!$J$704,IF(AND($AO$2<=$A37,$A37<$AP$2),Arbeitsbereich!$J$704+Arbeitsbereich!$J$707,IF(AND($AP$2<=$A37,$A37<$AQ$2),Arbeitsbereich!$J$704+Arbeitsbereich!$J$707+Arbeitsbereich!$J$697,NA())))) -> 0 | AQ37: 0 | AR37: =IF(AND(0<=$A37,$A37<$AN$2),0,IF(AND($AN$2<=$A37,$A37<$AO$2),((A37-$AN$2)*Arbeitsbereich!$J$703),IF(AND($AO$2<=$A37,$A37<$AP$2),((A37-$AN$2)*Arbeitsbereich!$J$703)+((A37-$AO$2)*Arbeitsbereich!$J$706),IF(AND($AP$2<=$A37,$A37<$AQ$2),((A37-$AN$2)*Arbeitsbereich!$J$703)+((A37-$AO$2)*Arbeitsbereich!$J$706)+((A37-$AP$2)*Arbeitsbereich!$J$698)-(Arbeitsbereich!$J$693*Arbeitsbereich!$J$686),NA())))) -> 0 | AS37: =IF(AND(0<=$A37,$A37<$AN$2),0,IF(AND($AN$2<=$A37,$A37<$AO$2),((B37-$AN$2)*Arbeitsbereich!$J$704),IF(AND($AO$2<=$A37,$A37<$AP$2),((B37-$AN$2)*Arbeitsbereich!$J$704)+((B37-$AO$2)*Arbeitsbereich!$J$707),IF(AND($AP$2<=$A37,$A37<$AQ$2),((B37-$AN$2)*Arbeitsbereich!$J$704)+((B37-$AO$2)*Arbeitsbereich!$J$707)+((B37-$AP$2)*Arbeitsbereich!$J$697),NA())))) -> 0 | AT37: 0 | AU37: =IF(AND(0<=$A37,$A37<$AN$2),Arbeitsbereich!$J$696,IF(AND($AN$2<=$A37,$A37<$AO$2),Arbeitsbereich!$J$696,IF(AND($AO$2<=$A37,$A37<$AP$2),Arbeitsbereich!$J$696,IF(AND($AP$2<=$A37,$A37<$AQ$2),Arbeitsbereich!$J$696+(Arbeitsbereich!$J$693*Arbeitsbereich!$J$666),NA())))) -> -88981.1123 | AV37: =( ((AN37/Arbeitsbereich!$J$749)^2)+(Graphen!AT37/Arbeitsbereich!$J$750)+3*(((Arbeitsbereich!$J$754*Graphen!AU37)/Arbeitsbereich!$J$751)^2) )^0.5 -> 68.6810017
A38: 27 | B38: 110 | C38: 90 | D38: 100 | G38: 100 | AN38: =IF(AND(0<=$A38,$A38<$AN$2),0,IF(AND($AN$2<=$A38,$A38<$AO$2),Arbeitsbereich!$J$705,IF(AND($AO$2<=$A38,$A38<$AP$2),Arbeitsbereich!$J$705+Arbeitsbereich!$J$708,IF(AND($AP$2<=$A38,$A38<$AQ$2),Arbeitsbereich!$J$705+Arbeitsbereich!$J$708+Arbeitsbereich!$J$699,NA())))) -> 0 | AO38: =IF(AND(0<=$A38,$A38<$AN$2),0,IF(AND($AN$2<=$A38,$A38<$AO$2),Arbeitsbereich!$J$703,IF(AND($AO$2<=$A38,$A38<$AP$2),Arbeitsbereich!$J$703+Arbeitsbereich!$J$706,IF(AND($AP$2<=$A38,$A38<$AQ$2),Arbeitsbereich!$J$703+Arbeitsbereich!$J$706+Arbeitsbereich!$J$698,NA())))) -> 0 | AP38: =IF(AND(0<=$A38,$A38<$AN$2),0,IF(AND($AN$2<=$A38,$A38<$AO$2),Arbeitsbereich!$J$704,IF(AND($AO$2<=$A38,$A38<$AP$2),Arbeitsbereich!$J$704+Arbeitsbereich!$J$707,IF(AND($AP$2<=$A38,$A38<$AQ$2),Arbeitsbereich!$J$704+Arbeitsbereich!$J$707+Arbeitsbereich!$J$697,NA())))) -> 0 | AQ38: 0 | AR38: =IF(AND(0<=$A38,$A38<$AN$2),0,IF(AND($AN$2<=$A38,$A38<$AO$2),((A38-$AN$2)*Arbeitsbereich!$J$703),IF(AND($AO$2<=$A38,$A38<$AP$2),((A38-$AN$2)*Arbeitsbereich!$J$703)+((A38-$AO$2)*Arbeitsbereich!$J$706),IF(AND($AP$2<=$A38,$A38<$AQ$2),((A38-$AN$2)*Arbeitsbereich!$J$703)+((A38-$AO$2)*Arbeitsbereich!$J$706)+((A38-$AP$2)*Arbeitsbereich!$J$698)-(Arbeitsbereich!$J$693*Arbeitsbereich!$J$686),NA())))) -> 0 | AS38: =IF(AND(0<=$A38,$A38<$AN$2),0,IF(AND($AN$2<=$A38,$A38<$AO$2),((B38-$AN$2)*Arbeitsbereich!$J$704),IF(AND($AO$2<=$A38,$A38<$AP$2),((B38-$AN$2)*Arbeitsbereich!$J$704)+((B38-$AO$2)*Arbeitsbereich!$J$707),IF(AND($AP$2<=$A38,$A38<$AQ$2),((B38-$AN$2)*Arbeitsbereich!$J$704)+((B38-$AO$2)*Arbeitsbereich!$J$707)+((B38-$AP$2)*Arbeitsbereich!$J$697),NA())))) -> 0 | AT38: 0 | AU38: =IF(AND(0<=$A38,$A38<$AN$2),Arbeitsbereich!$J$696,IF(AND($AN$2<=$A38,$A38<$AO$2),Arbeitsbereich!$J$696,IF(AND($AO$2<=$A38,$A38<$AP$2),Arbeitsbereich!$J$696,IF(AND($AP$2<=$A38,$A38<$AQ$2),Arbeitsbereich!$J$696+(Arbeitsbereich!$J$693*Arbeitsbereich!$J$666),NA())))) -> -88981.1123 | AV38: =( ((AN38/Arbeitsbereich!$J$749)^2)+(Graphen!AT38/Arbeitsbereich!$J$750)+3*(((Arbeitsbereich!$J$754*Graphen!AU38)/Arbeitsbereich!$J$751)^2) )^0.5 -> 68.6810017
A39: 28 | B39: 110 | C39: 90 | D39: 100 | G39: 100 | AN39: =IF(AND(0<=$A39,$A39<$AN$2),0,IF(AND($AN$2<=$A39,$A39<$AO$2),Arbeitsbereich!$J$705,IF(AND($AO$2<=$A39,$A39<$AP$2),Arbeitsbereich!$J$705+Arbeitsbereich!$J$708,IF(AND($AP$2<=$A39,$A39<$AQ$2),Arbeitsbereich!$J$705+Arbeitsbereich!$J$708+Arbeitsbereich!$J$699,NA())))) -> 0 | AO39: =IF(AND(0<=$A39,$A39<$AN$2),0,IF(AND($AN$2<=$A39,$A39<$AO$2),Arbeitsbereich!$J$703,IF(AND($AO$2<=$A39,$A39<$AP$2),Arbeitsbereich!$J$703+Arbeitsbereich!$J$706,IF(AND($AP$2<=$A39,$A39<$AQ$2),Arbeitsbereich!$J$703+Arbeitsbereich!$J$706+Arbeitsbereich!$J$698,NA())))) -> 0 | AP39: =IF(AND(0<=$A39,$A39<$AN$2),0,IF(AND($AN$2<=$A39,$A39<$AO$2),Arbeitsbereich!$J$704,IF(AND($AO$2<=$A39,$A39<$AP$2),Arbeitsbereich!$J$704+Arbeitsbereich!$J$707,IF(AND($AP$2<=$A39,$A39<$AQ$2),Arbeitsbereich!$J$704+Arbeitsbereich!$J$707+Arbeitsbereich!$J$697,NA())))) -> 0 | AQ39: 0 | AR39: =IF(AND(0<=$A39,$A39<$AN$2),0,IF(AND($AN$2<=$A39,$A39<$AO$2),((A39-$AN$2)*Arbeitsbereich!$J$703),IF(AND($AO$2<=$A39,$A39<$AP$2),((A39-$AN$2)*Arbeitsbereich!$J$703)+((A39-$AO$2)*Arbeitsbereich!$J$706),IF(AND($AP$2<=$A39,$A39<$AQ$2),((A39-$AN$2)*Arbeitsbereich!$J$703)+((A39-$AO$2)*Arbeitsbereich!$J$706)+((A39-$AP$2)*Arbeitsbereich!$J$698)-(Arbeitsbereich!$J$693*Arbeitsbereich!$J$686),NA())))) -> 0 | AS39: =IF(AND(0<=$A39,$A39<$AN$2),0,IF(AND($AN$2<=$A39,$A39<$AO$2),((B39-$AN$2)*Arbeitsbereich!$J$704),IF(AND($AO$2<=$A39,$A39<$AP$2),((B39-$AN$2)*Arbeitsbereich!$J$704)+((B39-$AO$2)*Arbeitsbereich!$J$707),IF(AND($AP$2<=$A39,$A39<$AQ$2),((B39-$AN$2)*Arbeitsbereich!$J$704)+((B39-$AO$2)*Arbeitsbereich!$J$707)+((B39-$AP$2)*Arbeitsbereich!$J$697),NA())))) -> 0 | AT39: 0 | AU39: =IF(AND(0<=$A39,$A39<$AN$2),Arbeitsbereich!$J$696,IF(AND($AN$2<=$A39,$A39<$AO$2),Arbeitsbereich!$J$696,IF(AND($AO$2<=$A39,$A39<$AP$2),Arbeitsbereich!$J$696,IF(AND($AP$2<=$A39,$A39<$AQ$2),Arbeitsbereich!$J$696+(Arbeitsbereich!$J$693*Arbeitsbereich!$J$666),NA())))) -> -88981.1123 | AV39: =( ((AN39/Arbeitsbereich!$J$749)^2)+(Graphen!AT39/Arbeitsbereich!$J$750)+3*(((Arbeitsbereich!$J$754*Graphen!AU39)/Arbeitsbereich!$J$751)^2) )^0.5 -> 68.6810017
A40: 29 | B40: 110 | C40: 90 | D40: 100 | G40: 100 | AN40: =IF(AND(0<=$A40,$A40<$AN$2),0,IF(AND($AN$2<=$A40,$A40<$AO$2),Arbeitsbereich!$J$705,IF(AND($AO$2<=$A40,$A40<$AP$2),Arbeitsbereich!$J$705+Arbeitsbereich!$J$708,IF(AND($AP$2<=$A40,$A40<$AQ$2),Arbeitsbereich!$J$705+Arbeitsbereich!$J$708+Arbeitsbereich!$J$699,NA())))) -> 0 | AO40: =IF(AND(0<=$A40,$A40<$AN$2),0,IF(AND($AN$2<=$A40,$A40<$AO$2),Arbeitsbereich!$J$703,IF(AND($AO$2<=$A40,$A40<$AP$2),Arbeitsbereich!$J$703+Arbeitsbereich!$J$706,IF(AND($AP$2<=$A40,$A40<$AQ$2),Arbeitsbereich!$J$703+Arbeitsbereich!$J$706+Arbeitsbereich!$J$698,NA())))) -> 0 | AP40: =IF(AND(0<=$A40,$A40<$AN$2),0,IF(AND($AN$2<=$A40,$A40<$AO$2),Arbeitsbereich!$J$704,IF(AND($AO$2<=$A40,$A40<$AP$2),Arbeitsbereich!$J$704+Arbeitsbereich!$J$707,IF(AND($AP$2<=$A40,$A40<$AQ$2),Arbeitsbereich!$J$704+Arbeitsbereich!$J$707+Arbeitsbereich!$J$697,NA())))) -> 0 | AQ40: 0 | AR40: =IF(AND(0<=$A40,$A40<$AN$2),0,IF(AND($AN$2<=$A40,$A40<$AO$2),((A40-$AN$2)*Arbeitsbereich!$J$703),IF(AND($AO$2<=$A40,$A40<$AP$2),((A40-$AN$2)*Arbeitsbereich!$J$703)+((A40-$AO$2)*Arbeitsbereich!$J$706),IF(AND($AP$2<=$A40,$A40<$AQ$2),((A40-$AN$2)*Arbeitsbereich!$J$703)+((A40-$AO$2)*Arbeitsbereich!$J$706)+((A40-$AP$2)*Arbeitsbereich!$J$698)-(Arbeitsbereich!$J$693*Arbeitsbereich!$J$686),NA())))) -> 0 | AS40: =IF(AND(0<=$A40,$A40<$AN$2),0,IF(AND($AN$2<=$A40,$A40<$AO$2),((B40-$AN$2)*Arbeitsbereich!$J$704),IF(AND($AO$2<=$A40,$A40<$AP$2),((B40-$AN$2)*Arbeitsbereich!$J$704)+((B40-$AO$2)*Arbeitsbereich!$J$707),IF(AND($AP$2<=$A40,$A40<$AQ$2),((B40-$AN$2)*Arbeitsbereich!$J$704)+((B40-$AO$2)*Arbeitsbereich!$J$707)+((B40-$AP$2)*Arbeitsbereich!$J$697),NA())))) -> 0 | AT40: 0 | AU40: =IF(AND(0<=$A40,$A40<$AN$2),Arbeitsbereich!$J$696,IF(AND($AN$2<=$A40,$A40<$AO$2),Arbeitsbereich!$J$696,IF(AND($AO$2<=$A40,$A40<$AP$2),Arbeitsbereich!$J$696,IF(AND($AP$2<=$A40,$A40<$AQ$2),Arbeitsbereich!$J$696+(Arbeitsbereich!$J$693*Arbeitsbereich!$J$666),NA())))) -> -88981.1123 | AV40: =( ((AN40/Arbeitsbereich!$J$749)^2)+(Graphen!AT40/Arbeitsbereich!$J$750)+3*(((Arbeitsbereich!$J$754*Graphen!AU40)/Arbeitsbereich!$J$751)^2) )^0.5 -> 68.6810017
A41: 30 | B41: 110 | C41: 90 | D41: 100 | G41: 100 | AN41: =IF(AND(0<=$A41,$A41<$AN$2),0,IF(AND($AN$2<=$A41,$A41<$AO$2),Arbeitsbereich!$J$705,IF(AND($AO$2<=$A41,$A41<$AP$2),Arbeitsbereich!$J$705+Arbeitsbereich!$J$708,IF(AND($AP$2<=$A41,$A41<$AQ$2),Arbeitsbereich!$J$705+Arbeitsbereich!$J$708+Arbeitsbereich!$J$699,NA())))) -> 0 | AO41: =IF(AND(0<=$A41,$A41<$AN$2),0,IF(AND($AN$2<=$A41,$A41<$AO$2),Arbeitsbereich!$J$703,IF(AND($AO$2<=$A41,$A41<$AP$2),Arbeitsbereich!$J$703+Arbeitsbereich!$J$706,IF(AND($AP$2<=$A41,$A41<$AQ$2),Arbeitsbereich!$J$703+Arbeitsbereich!$J$706+Arbeitsbereich!$J$698,NA())))) -> 0 | AP41: =IF(AND(0<=$A41,$A41<$AN$2),0,IF(AND($AN$2<=$A41,$A41<$AO$2),Arbeitsbereich!$J$704,IF(AND($AO$2<=$A41,$A41<$AP$2),Arbeitsbereich!$J$704+Arbeitsbereich!$J$707,IF(AND($AP$2<=$A41,$A41<$AQ$2),Arbeitsbereich!$J$704+Arbeitsbereich!$J$707+Arbeitsbereich!$J$697,NA())))) -> 0 | AQ41: 0 | AR41: =IF(AND(0<=$A41,$A41<$AN$2),0,IF(AND($AN$2<=$A41,$A41<$AO$2),((A41-$AN$2)*Arbeitsbereich!$J$703),IF(AND($AO$2<=$A41,$A41<$AP$2),((A41-$AN$2)*Arbeitsbereich!$J$703)+((A41-$AO$2)*Arbeitsbereich!$J$706),IF(AND($AP$2<=$A41,$A41<$AQ$2),((A41-$AN$2)*Arbeitsbereich!$J$703)+((A41-$AO$2)*Arbeitsbereich!$J$706)+((A41-$AP$2)*Arbeitsbereich!$J$698)-(Arbeitsbereich!$J$693*Arbeitsbereich!$J$686),NA())))) -> 0 | AS41: =IF(AND(0<=$A41,$A41<$AN$2),0,IF(AND($AN$2<=$A41,$A41<$AO$2),((B41-$AN$2)*Arbeitsbereich!$J$704),IF(AND($AO$2<=$A41,$A41<$AP$2),((B41-$AN$2)*Arbeitsbereich!$J$704)+((B41-$AO$2)*Arbeitsbereich!$J$707),IF(AND($AP$2<=$A41,$A41<$AQ$2),((B41-$AN$2)*Arbeitsbereich!$J$704)+((B41-$AO$2)*Arbeitsbereich!$J$707)+((B41-$AP$2)*Arbeitsbereich!$J$697),NA())))) -> 0 | AT41: 0 | AU41: =IF(AND(0<=$A41,$A41<$AN$2),Arbeitsbereich!$J$696,IF(AND($AN$2<=$A41,$A41<$AO$2),Arbeitsbereich!$J$696,IF(AND($AO$2<=$A41,$A41<$AP$2),Arbeitsbereich!$J$696,IF(AND($AP$2<=$A41,$A41<$AQ$2),Arbeitsbereich!$J$696+(Arbeitsbereich!$J$693*Arbeitsbereich!$J$666),NA())))) -> -88981.1123 | AV41: =( ((AN41/Arbeitsbereich!$J$749)^2)+(Graphen!AT41/Arbeitsbereich!$J$750)+3*(((Arbeitsbereich!$J$754*Graphen!AU41)/Arbeitsbereich!$J$751)^2) )^0.5 -> 68.6810017
A42: 31 | B42: 110 | C42: 90 | D42: 100 | G42: 100 | AN42: =IF(AND(0<=$A42,$A42<$AN$2),0,IF(AND($AN$2<=$A42,$A42<$AO$2),Arbeitsbereich!$J$705,IF(AND($AO$2<=$A42,$A42<$AP$2),Arbeitsbereich!$J$705+Arbeitsbereich!$J$708,IF(AND($AP$2<=$A42,$A42<$AQ$2),Arbeitsbereich!$J$705+Arbeitsbereich!$J$708+Arbeitsbereich!$J$699,NA())))) -> 0 | AO42: =IF(AND(0<=$A42,$A42<$AN$2),0,IF(AND($AN$2<=$A42,$A42<$AO$2),Arbeitsbereich!$J$703,IF(AND($AO$2<=$A42,$A42<$AP$2),Arbeitsbereich!$J$703+Arbeitsbereich!$J$706,IF(AND($AP$2<=$A42,$A42<$AQ$2),Arbeitsbereich!$J$703+Arbeitsbereich!$J$706+Arbeitsbereich!$J$698,NA())))) -> 0 | AP42: =IF(AND(0<=$A42,$A42<$AN$2),0,IF(AND($AN$2<=$A42,$A42<$AO$2),Arbeitsbereich!$J$704,IF(AND($AO$2<=$A42,$A42<$AP$2),Arbeitsbereich!$J$704+Arbeitsbereich!$J$707,IF(AND($AP$2<=$A42,$A42<$AQ$2),Arbeitsbereich!$J$704+Arbeitsbereich!$J$707+Arbeitsbereich!$J$697,NA())))) -> 0 | AQ42: 0 | AR42: =IF(AND(0<=$A42,$A42<$AN$2),0,IF(AND($AN$2<=$A42,$A42<$AO$2),((A42-$AN$2)*Arbeitsbereich!$J$703),IF(AND($AO$2<=$A42,$A42<$AP$2),((A42-$AN$2)*Arbeitsbereich!$J$703)+((A42-$AO$2)*Arbeitsbereich!$J$706),IF(AND($AP$2<=$A42,$A42<$AQ$2),((A42-$AN$2)*Arbeitsbereich!$J$703)+((A42-$AO$2)*Arbeitsbereich!$J$706)+((A42-$AP$2)*Arbeitsbereich!$J$698)-(Arbeitsbereich!$J$693*Arbeitsbereich!$J$686),NA())))) -> 0 | AS42: =IF(AND(0<=$A42,$A42<$AN$2),0,IF(AND($AN$2<=$A42,$A42<$AO$2),((B42-$AN$2)*Arbeitsbereich!$J$704),IF(AND($AO$2<=$A42,$A42<$AP$2),((B42-$AN$2)*Arbeitsbereich!$J$704)+((B42-$AO$2)*Arbeitsbereich!$J$707),IF(AND($AP$2<=$A42,$A42<$AQ$2),((B42-$AN$2)*Arbeitsbereich!$J$704)+((B42-$AO$2)*Arbeitsbereich!$J$707)+((B42-$AP$2)*Arbeitsbereich!$J$697),NA())))) -> 0 | AT42: 0 | AU42: =IF(AND(0<=$A42,$A42<$AN$2),Arbeitsbereich!$J$696,IF(AND($AN$2<=$A42,$A42<$AO$2),Arbeitsbereich!$J$696,IF(AND($AO$2<=$A42,$A42<$AP$2),Arbeitsbereich!$J$696,IF(AND($AP$2<=$A42,$A42<$AQ$2),Arbeitsbereich!$J$696+(Arbeitsbereich!$J$693*Arbeitsbereich!$J$666),NA())))) -> -88981.1123 | AV42: =( ((AN42/Arbeitsbereich!$J$749)^2)+(Graphen!AT42/Arbeitsbereich!$J$750)+3*(((Arbeitsbereich!$J$754*Graphen!AU42)/Arbeitsbereich!$J$751)^2) )^0.5 -> 68.6810017
A43: 32 | B43: 110 | C43: 90 | D43: 100 | G43: 100 | AN43: =IF(AND(0<=$A43,$A43<$AN$2),0,IF(AND($AN$2<=$A43,$A43<$AO$2),Arbeitsbereich!$J$705,IF(AND($AO$2<=$A43,$A43<$AP$2),Arbeitsbereich!$J$705+Arbeitsbereich!$J$708,IF(AND($AP$2<=$A43,$A43<$AQ$2),Arbeitsbereich!$J$705+Arbeitsbereich!$J$708+Arbeitsbereich!$J$699,NA())))) -> 0 | AO43: =IF(AND(0<=$A43,$A43<$AN$2),0,IF(AND($AN$2<=$A43,$A43<$AO$2),Arbeitsbereich!$J$703,IF(AND($AO$2<=$A43,$A43<$AP$2),Arbeitsbereich!$J$703+Arbeitsbereich!$J$706,IF(AND($AP$2<=$A43,$A43<$AQ$2),Arbeitsbereich!$J$703+Arbeitsbereich!$J$706+Arbeitsbereich!$J$698,NA())))) -> 0 | AP43: =IF(AND(0<=$A43,$A43<$AN$2),0,IF(AND($AN$2<=$A43,$A43<$AO$2),Arbeitsbereich!$J$704,IF(AND($AO$2<=$A43,$A43<$AP$2),Arbeitsbereich!$J$704+Arbeitsbereich!$J$707,IF(AND($AP$2<=$A43,$A43<$AQ$2),Arbeitsbereich!$J$704+Arbeitsbereich!$J$707+Arbeitsbereich!$J$697,NA())))) -> 0 | AQ43: 0 | AR43: =IF(AND(0<=$A43,$A43<$AN$2),0,IF(AND($AN$2<=$A43,$A43<$AO$2),((A43-$AN$2)*Arbeitsbereich!$J$703),IF(AND($AO$2<=$A43,$A43<$AP$2),((A43-$AN$2)*Arbeitsbereich!$J$703)+((A43-$AO$2)*Arbeitsbereich!$J$706),IF(AND($AP$2<=$A43,$A43<$AQ$2),((A43-$AN$2)*Arbeitsbereich!$J$703)+((A43-$AO$2)*Arbeitsbereich!$J$706)+((A43-$AP$2)*Arbeitsbereich!$J$698)-(Arbeitsbereich!$J$693*Arbeitsbereich!$J$686),NA())))) -> 0 | AS43: =IF(AND(0<=$A43,$A43<$AN$2),0,IF(AND($AN$2<=$A43,$A43<$AO$2),((B43-$AN$2)*Arbeitsbereich!$J$704),IF(AND($AO$2<=$A43,$A43<$AP$2),((B43-$AN$2)*Arbeitsbereich!$J$704)+((B43-$AO$2)*Arbeitsbereich!$J$707),IF(AND($AP$2<=$A43,$A43<$AQ$2),((B43-$AN$2)*Arbeitsbereich!$J$704)+((B43-$AO$2)*Arbeitsbereich!$J$707)+((B43-$AP$2)*Arbeitsbereich!$J$697),NA())))) -> 0 | AT43: 0 | AU43: =IF(AND(0<=$A43,$A43<$AN$2),Arbeitsbereich!$J$696,IF(AND($AN$2<=$A43,$A43<$AO$2),Arbeitsbereich!$J$696,IF(AND($AO$2<=$A43,$A43<$AP$2),Arbeitsbereich!$J$696,IF(AND($AP$2<=$A43,$A43<$AQ$2),Arbeitsbereich!$J$696+(Arbeitsbereich!$J$693*Arbeitsbereich!$J$666),NA())))) -> -88981.1123 | AV43: =( ((AN43/Arbeitsbereich!$J$749)^2)+(Graphen!AT43/Arbeitsbereich!$J$750)+3*(((Arbeitsbereich!$J$754*Graphen!AU43)/Arbeitsbereich!$J$751)^2) )^0.5 -> 68.6810017
A44: 33 | B44: 110 | C44: 90 | D44: 100 | G44: 100 | AN44: =IF(AND(0<=$A44,$A44<$AN$2),0,IF(AND($AN$2<=$A44,$A44<$AO$2),Arbeitsbereich!$J$705,IF(AND($AO$2<=$A44,$A44<$AP$2),Arbeitsbereich!$J$705+Arbeitsbereich!$J$708,IF(AND($AP$2<=$A44,$A44<$AQ$2),Arbeitsbereich!$J$705+Arbeitsbereich!$J$708+Arbeitsbereich!$J$699,NA())))) -> 226.7839094 | AO44: =IF(AND(0<=$A44,$A44<$AN$2),0,IF(AND($AN$2<=$A44,$A44<$AO$2),Arbeitsbereich!$J$703,IF(AND($AO$2<=$A44,$A44<$AP$2),Arbeitsbereich!$J$703+Arbeitsbereich!$J$706,IF(AND($AP$2<=$A44,$A44<$AQ$2),Arbeitsbereich!$J$703+Arbeitsbereich!$J$706+Arbeitsbereich!$J$698,NA())))) -> -1055.249943 | AP44: =IF(AND(0<=$A44,$A44<$AN$2),0,IF(AND($AN$2<=$A44,$A44<$AO$2),Arbeitsbereich!$J$704,IF(AND($AO$2<=$A44,$A44<$AP$2),Arbeitsbereich!$J$704+Arbeitsbereich!$J$707,IF(AND($AP$2<=$A44,$A44<$AQ$2),Arbeitsbereich!$J$704+Arbeitsbereich!$J$707+Arbeitsbereich!$J$697,NA())))) -> 1349.178595 | AQ44: 1712.844221 | AR44: =IF(AND(0<=$A44,$A44<$AN$2),0,IF(AND($AN$2<=$A44,$A44<$AO$2),((A44-$AN$2)*Arbeitsbereich!$J$703),IF(AND($AO$2<=$A44,$A44<$AP$2),((A44-$AN$2)*Arbeitsbereich!$J$703)+((A44-$AO$2)*Arbeitsbereich!$J$706),IF(AND($AP$2<=$A44,$A44<$AQ$2),((A44-$AN$2)*Arbeitsbereich!$J$703)+((A44-$AO$2)*Arbeitsbereich!$J$706)+((A44-$AP$2)*Arbeitsbereich!$J$698)-(Arbeitsbereich!$J$693*Arbeitsbereich!$J$686),NA())))) -> -659.5312144 | AS44: =IF(AND(0<=$A44,$A44<$AN$2),0,IF(AND($AN$2<=$A44,$A44<$AO$2),((B44-$AN$2)*Arbeitsbereich!$J$704),IF(AND($AO$2<=$A44,$A44<$AP$2),((B44-$AN$2)*Arbeitsbereich!$J$704)+((B44-$AO$2)*Arbeitsbereich!$J$707),IF(AND($AP$2<=$A44,$A44<$AQ$2),((B44-$AN$2)*Arbeitsbereich!$J$704)+((B44-$AO$2)*Arbeitsbereich!$J$707)+((B44-$AP$2)*Arbeitsbereich!$J$697),NA())))) -> 104729.9885 | AT44: 104732.0651 | AU44: =IF(AND(0<=$A44,$A44<$AN$2),Arbeitsbereich!$J$696,IF(AND($AN$2<=$A44,$A44<$AO$2),Arbeitsbereich!$J$696,IF(AND($AO$2<=$A44,$A44<$AP$2),Arbeitsbereich!$J$696,IF(AND($AP$2<=$A44,$A44<$AQ$2),Arbeitsbereich!$J$696+(Arbeitsbereich!$J$693*Arbeitsbereich!$J$666),NA())))) -> -88981.1123 | AV44: =( ((AN44/Arbeitsbereich!$J$749)^2)+(Graphen!AT44/Arbeitsbereich!$J$750)+3*(((Arbeitsbereich!$J$754*Graphen!AU44)/Arbeitsbereich!$J$751)^2) )^0.5 -> 69.64876242
A45: 34 | B45: 110 | C45: 90 | G45: 100 | AN45: =IF(AND(0<=$A45,$A45<$AN$2),0,IF(AND($AN$2<=$A45,$A45<$AO$2),Arbeitsbereich!$J$705,IF(AND($AO$2<=$A45,$A45<$AP$2),Arbeitsbereich!$J$705+Arbeitsbereich!$J$708,IF(AND($AP$2<=$A45,$A45<$AQ$2),Arbeitsbereich!$J$705+Arbeitsbereich!$J$708+Arbeitsbereich!$J$699,NA())))) -> 226.7839094 | AO45: =IF(AND(0<=$A45,$A45<$AN$2),0,IF(AND($AN$2<=$A45,$A45<$AO$2),Arbeitsbereich!$J$703,IF(AND($AO$2<=$A45,$A45<$AP$2),Arbeitsbereich!$J$703+Arbeitsbereich!$J$706,IF(AND($AP$2<=$A45,$A45<$AQ$2),Arbeitsbereich!$J$703+Arbeitsbereich!$J$706+Arbeitsbereich!$J$698,NA())))) -> -1055.249943 | AP45: =IF(AND(0<=$A45,$A45<$AN$2),0,IF(AND($AN$2<=$A45,$A45<$AO$2),Arbeitsbereich!$J$704,IF(AND($AO$2<=$A45,$A45<$AP$2),Arbeitsbereich!$J$704+Arbeitsbereich!$J$707,IF(AND($AP$2<=$A45,$A45<$AQ$2),Arbeitsbereich!$J$704+Arbeitsbereich!$J$707+Arbeitsbereich!$J$697,NA())))) -> 1349.178595 | AQ45: 1712.844221 | AR45: =IF(AND(0<=$A45,$A45<$AN$2),0,IF(AND($AN$2<=$A45,$A45<$AO$2),((A45-$AN$2)*Arbeitsbereich!$J$703),IF(AND($AO$2<=$A45,$A45<$AP$2),((A45-$AN$2)*Arbeitsbereich!$J$703)+((A45-$AO$2)*Arbeitsbereich!$J$706),IF(AND($AP$2<=$A45,$A45<$AQ$2),((A45-$AN$2)*Arbeitsbereich!$J$703)+((A45-$AO$2)*Arbeitsbereich!$J$706)+((A45-$AP$2)*Arbeitsbereich!$J$698)-(Arbeitsbereich!$J$693*Arbeitsbereich!$J$686),NA())))) -> -1714.781157 | AS45: =IF(AND(0<=$A45,$A45<$AN$2),0,IF(AND($AN$2<=$A45,$A45<$AO$2),((B45-$AN$2)*Arbeitsbereich!$J$704),IF(AND($AO$2<=$A45,$A45<$AP$2),((B45-$AN$2)*Arbeitsbereich!$J$704)+((B45-$AO$2)*Arbeitsbereich!$J$707),IF(AND($AP$2<=$A45,$A45<$AQ$2),((B45-$AN$2)*Arbeitsbereich!$J$704)+((B45-$AO$2)*Arbeitsbereich!$J$707)+((B45-$AP$2)*Arbeitsbereich!$J$697),NA())))) -> 104729.9885 | AT45: 104744.0259 | AU45: =IF(AND(0<=$A45,$A45<$AN$2),Arbeitsbereich!$J$696,IF(AND($AN$2<=$A45,$A45<$AO$2),Arbeitsbereich!$J$696,IF(AND($AO$2<=$A45,$A45<$AP$2),Arbeitsbereich!$J$696,IF(AND($AP$2<=$A45,$A45<$AQ$2),Arbeitsbereich!$J$696+(Arbeitsbereich!$J$693*Arbeitsbereich!$J$666),NA())))) -> -88981.1123 | AV45: =( ((AN45/Arbeitsbereich!$J$749)^2)+(Graphen!AT45/Arbeitsbereich!$J$750)+3*(((Arbeitsbereich!$J$754*Graphen!AU45)/Arbeitsbereich!$J$751)^2) )^0.5 -> 69.64887174
A46: 35 | B46: 110 | C46: 90 | G46: 100 | AN46: =IF(AND(0<=$A46,$A46<$AN$2),0,IF(AND($AN$2<=$A46,$A46<$AO$2),Arbeitsbereich!$J$705,IF(AND($AO$2<=$A46,$A46<$AP$2),Arbeitsbereich!$J$705+Arbeitsbereich!$J$708,IF(AND($AP$2<=$A46,$A46<$AQ$2),Arbeitsbereich!$J$705+Arbeitsbereich!$J$708+Arbeitsbereich!$J$699,NA())))) -> 226.7839094 | AO46: =IF(AND(0<=$A46,$A46<$AN$2),0,IF(AND($AN$2<=$A46,$A46<$AO$2),Arbeitsbereich!$J$703,IF(AND($AO$2<=$A46,$A46<$AP$2),Arbeitsbereich!$J$703+Arbeitsbereich!$J$706,IF(AND($AP$2<=$A46,$A46<$AQ$2),Arbeitsbereich!$J$703+Arbeitsbereich!$J$706+Arbeitsbereich!$J$698,NA())))) -> -1055.249943 | AP46: =IF(AND(0<=$A46,$A46<$AN$2),0,IF(AND($AN$2<=$A46,$A46<$AO$2),Arbeitsbereich!$J$704,IF(AND($AO$2<=$A46,$A46<$AP$2),Arbeitsbereich!$J$704+Arbeitsbereich!$J$707,IF(AND($AP$2<=$A46,$A46<$AQ$2),Arbeitsbereich!$J$704+Arbeitsbereich!$J$707+Arbeitsbereich!$J$697,NA())))) -> 1349.178595 | AQ46: 1712.844221 | AR46: =IF(AND(0<=$A46,$A46<$AN$2),0,IF(AND($AN$2<=$A46,$A46<$AO$2),((A46-$AN$2)*Arbeitsbereich!$J$703),IF(AND($AO$2<=$A46,$A46<$AP$2),((A46-$AN$2)*Arbeitsbereich!$J$703)+((A46-$AO$2)*Arbeitsbereich!$J$706),IF(AND($AP$2<=$A46,$A46<$AQ$2),((A46-$AN$2)*Arbeitsbereich!$J$703)+((A46-$AO$2)*Arbeitsbereich!$J$706)+((A46-$AP$2)*Arbeitsbereich!$J$698)-(Arbeitsbereich!$J$693*Arbeitsbereich!$J$686),NA())))) -> -2770.0311 | AS46: =IF(AND(0<=$A46,$A46<$AN$2),0,IF(AND($AN$2<=$A46,$A46<$AO$2),((B46-$AN$2)*Arbeitsbereich!$J$704),IF(AND($AO$2<=$A46,$A46<$AP$2),((B46-$AN$2)*Arbeitsbereich!$J$704)+((B46-$AO$2)*Arbeitsbereich!$J$707),IF(AND($AP$2<=$A46,$A46<$AQ$2),((B46-$AN$2)*Arbeitsbereich!$J$704)+((B46-$AO$2)*Arbeitsbereich!$J$707)+((B46-$AP$2)*Arbeitsbereich!$J$697),NA())))) -> 104729.9885 | AT46: 104766.6147 | AU46: =IF(AND(0<=$A46,$A46<$AN$2),Arbeitsbereich!$J$696,IF(AND($AN$2<=$A46,$A46<$AO$2),Arbeitsbereich!$J$696,IF(AND($AO$2<=$A46,$A46<$AP$2),Arbeitsbereich!$J$696,IF(AND($AP$2<=$A46,$A46<$AQ$2),Arbeitsbereich!$J$696+(Arbeitsbereich!$J$693*Arbeitsbereich!$J$666),NA())))) -> -88981.1123 | AV46: =( ((AN46/Arbeitsbereich!$J$749)^2)+(Graphen!AT46/Arbeitsbereich!$J$750)+3*(((Arbeitsbereich!$J$754*Graphen!AU46)/Arbeitsbereich!$J$751)^2) )^0.5 -> 69.64907821
A47: 36 | B47: 110 | C47: 90 | G47: 100 | AN47: =IF(AND(0<=$A47,$A47<$AN$2),0,IF(AND($AN$2<=$A47,$A47<$AO$2),Arbeitsbereich!$J$705,IF(AND($AO$2<=$A47,$A47<$AP$2),Arbeitsbereich!$J$705+Arbeitsbereich!$J$708,IF(AND($AP$2<=$A47,$A47<$AQ$2),Arbeitsbereich!$J$705+Arbeitsbereich!$J$708+Arbeitsbereich!$J$699,NA())))) -> 226.7839094 | AO47: =IF(AND(0<=$A47,$A47<$AN$2),0,IF(AND($AN$2<=$A47,$A47<$AO$2),Arbeitsbereich!$J$703,IF(AND($AO$2<=$A47,$A47<$AP$2),Arbeitsbereich!$J$703+Arbeitsbereich!$J$706,IF(AND($AP$2<=$A47,$A47<$AQ$2),Arbeitsbereich!$J$703+Arbeitsbereich!$J$706+Arbeitsbereich!$J$698,NA())))) -> -1055.249943 | AP47: =IF(AND(0<=$A47,$A47<$AN$2),0,IF(AND($AN$2<=$A47,$A47<$AO$2),Arbeitsbereich!$J$704,IF(AND($AO$2<=$A47,$A47<$AP$2),Arbeitsbereich!$J$704+Arbeitsbereich!$J$707,IF(AND($AP$2<=$A47,$A47<$AQ$2),Arbeitsbereich!$J$704+Arbeitsbereich!$J$707+Arbeitsbereich!$J$697,NA())))) -> 1349.178595 | AQ47: 1712.844221 | AR47: =IF(AND(0<=$A47,$A47<$AN$2),0,IF(AND($AN$2<=$A47,$A47<$AO$2),((A47-$AN$2)*Arbeitsbereich!$J$703),IF(AND($AO$2<=$A47,$A47<$AP$2),((A47-$AN$2)*Arbeitsbereich!$J$703)+((A47-$AO$2)*Arbeitsbereich!$J$706),IF(AND($AP$2<=$A47,$A47<$AQ$2),((A47-$AN$2)*Arbeitsbereich!$J$703)+((A47-$AO$2)*Arbeitsbereich!$J$706)+((A47-$AP$2)*Arbeitsbereich!$J$698)-(Arbeitsbereich!$J$693*Arbeitsbereich!$J$686),NA())))) -> -3825.281043 | AS47: =IF(AND(0<=$A47,$A47<$AN$2),0,IF(AND($AN$2<=$A47,$A47<$AO$2),((B47-$AN$2)*Arbeitsbereich!$J$704),IF(AND($AO$2<=$A47,$A47<$AP$2),((B47-$AN$2)*Arbeitsbereich!$J$704)+((B47-$AO$2)*Arbeitsbereich!$J$707),IF(AND($AP$2<=$A47,$A47<$AQ$2),((B47-$AN$2)*Arbeitsbereich!$J$704)+((B47-$AO$2)*Arbeitsbereich!$J$707)+((B47-$AP$2)*Arbeitsbereich!$J$697),NA())))) -> 104729.9885 | AT47: 104799.8247 | AU47: =IF(AND(0<=$A47,$A47<$AN$2),Arbeitsbereich!$J$696,IF(AND($AN$2<=$A47,$A47<$AO$2),Arbeitsbereich!$J$696,IF(AND($AO$2<=$A47,$A47<$AP$2),Arbeitsbereich!$J$696,IF(AND($AP$2<=$A47,$A47<$AQ$2),Arbeitsbereich!$J$696+(Arbeitsbereich!$J$693*Arbeitsbereich!$J$666),NA())))) -> -88981.1123 | AV47: =( ((AN47/Arbeitsbereich!$J$749)^2)+(Graphen!AT47/Arbeitsbereich!$J$750)+3*(((Arbeitsbereich!$J$754*Graphen!AU47)/Arbeitsbereich!$J$751)^2) )^0.5 -> 69.64938176
A48: 37 | B48: 110 | C48: 90 | G48: 100 | AN48: =IF(AND(0<=$A48,$A48<$AN$2),0,IF(AND($AN$2<=$A48,$A48<$AO$2),Arbeitsbereich!$J$705,IF(AND($AO$2<=$A48,$A48<$AP$2),Arbeitsbereich!$J$705+Arbeitsbereich!$J$708,IF(AND($AP$2<=$A48,$A48<$AQ$2),Arbeitsbereich!$J$705+Arbeitsbereich!$J$708+Arbeitsbereich!$J$699,NA())))) -> 226.7839094 | AO48: =IF(AND(0<=$A48,$A48<$AN$2),0,IF(AND($AN$2<=$A48,$A48<$AO$2),Arbeitsbereich!$J$703,IF(AND($AO$2<=$A48,$A48<$AP$2),Arbeitsbereich!$J$703+Arbeitsbereich!$J$706,IF(AND($AP$2<=$A48,$A48<$AQ$2),Arbeitsbereich!$J$703+Arbeitsbereich!$J$706+Arbeitsbereich!$J$698,NA())))) -> -1055.249943 | AP48: =IF(AND(0<=$A48,$A48<$AN$2),0,IF(AND($AN$2<=$A48,$A48<$AO$2),Arbeitsbereich!$J$704,IF(AND($AO$2<=$A48,$A48<$AP$2),Arbeitsbereich!$J$704+Arbeitsbereich!$J$707,IF(AND($AP$2<=$A48,$A48<$AQ$2),Arbeitsbereich!$J$704+Arbeitsbereich!$J$707+Arbeitsbereich!$J$697,NA())))) -> 1349.178595 | AQ48: 1712.844221 | AR48: =IF(AND(0<=$A48,$A48<$AN$2),0,IF(AND($AN$2<=$A48,$A48<$AO$2),((A48-$AN$2)*Arbeitsbereich!$J$703),IF(AND($AO$2<=$A48,$A48<$AP$2),((A48-$AN$2)*Arbeitsbereich!$J$703)+((A48-$AO$2)*Arbeitsbereich!$J$706),IF(AND($AP$2<=$A48,$A48<$AQ$2),((A48-$AN$2)*Arbeitsbereich!$J$703)+((A48-$AO$2)*Arbeitsbereich!$J$706)+((A48-$AP$2)*Arbeitsbereich!$J$698)-(Arbeitsbereich!$J$693*Arbeitsbereich!$J$686),NA())))) -> -4880.530986 | AS48: =IF(AND(0<=$A48,$A48<$AN$2),0,IF(AND($AN$2<=$A48,$A48<$AO$2),((B48-$AN$2)*Arbeitsbereich!$J$704),IF(AND($AO$2<=$A48,$A48<$AP$2),((B48-$AN$2)*Arbeitsbereich!$J$704)+((B48-$AO$2)*Arbeitsbereich!$J$707),IF(AND($AP$2<=$A48,$A48<$AQ$2),((B48-$AN$2)*Arbeitsbereich!$J$704)+((B48-$AO$2)*Arbeitsbereich!$J$707)+((B48-$AP$2)*Arbeitsbereich!$J$697),NA())))) -> 104729.9885 | AT48: 104843.6458 | AU48: =IF(AND(0<=$A48,$A48<$AN$2),Arbeitsbereich!$J$696,IF(AND($AN$2<=$A48,$A48<$AO$2),Arbeitsbereich!$J$696,IF(AND($AO$2<=$A48,$A48<$AP$2),Arbeitsbereich!$J$696,IF(AND($AP$2<=$A48,$A48<$AQ$2),Arbeitsbereich!$J$696+(Arbeitsbereich!$J$693*Arbeitsbereich!$J$666),NA())))) -> -88981.1123 | AV48: =( ((AN48/Arbeitsbereich!$J$749)^2)+(Graphen!AT48/Arbeitsbereich!$J$750)+3*(((Arbeitsbereich!$J$754*Graphen!AU48)/Arbeitsbereich!$J$751)^2) )^0.5 -> 69.6497823
A49: 38 | B49: 110 | C49: 90 | G49: 100 | AN49: =IF(AND(0<=$A49,$A49<$AN$2),0,IF(AND($AN$2<=$A49,$A49<$AO$2),Arbeitsbereich!$J$705,IF(AND($AO$2<=$A49,$A49<$AP$2),Arbeitsbereich!$J$705+Arbeitsbereich!$J$708,IF(AND($AP$2<=$A49,$A49<$AQ$2),Arbeitsbereich!$J$705+Arbeitsbereich!$J$708+Arbeitsbereich!$J$699,NA())))) -> 226.7839094 | AO49: =IF(AND(0<=$A49,$A49<$AN$2),0,IF(AND($AN$2<=$A49,$A49<$AO$2),Arbeitsbereich!$J$703,IF(AND($AO$2<=$A49,$A49<$AP$2),Arbeitsbereich!$J$703+Arbeitsbereich!$J$706,IF(AND($AP$2<=$A49,$A49<$AQ$2),Arbeitsbereich!$J$703+Arbeitsbereich!$J$706+Arbeitsbereich!$J$698,NA())))) -> -1055.249943 | AP49: =IF(AND(0<=$A49,$A49<$AN$2),0,IF(AND($AN$2<=$A49,$A49<$AO$2),Arbeitsbereich!$J$704,IF(AND($AO$2<=$A49,$A49<$AP$2),Arbeitsbereich!$J$704+Arbeitsbereich!$J$707,IF(AND($AP$2<=$A49,$A49<$AQ$2),Arbeitsbereich!$J$704+Arbeitsbereich!$J$707+Arbeitsbereich!$J$697,NA())))) -> 1349.178595 | AQ49: 1712.844221 | AR49: =IF(AND(0<=$A49,$A49<$AN$2),0,IF(AND($AN$2<=$A49,$A49<$AO$2),((A49-$AN$2)*Arbeitsbereich!$J$703),IF(AND($AO$2<=$A49,$A49<$AP$2),((A49-$AN$2)*Arbeitsbereich!$J$703)+((A49-$AO$2)*Arbeitsbereich!$J$706),IF(AND($AP$2<=$A49,$A49<$AQ$2),((A49-$AN$2)*Arbeitsbereich!$J$703)+((A49-$AO$2)*Arbeitsbereich!$J$706)+((A49-$AP$2)*Arbeitsbereich!$J$698)-(Arbeitsbereich!$J$693*Arbeitsbereich!$J$686),NA())))) -> -5935.780929 | AS49: =IF(AND(0<=$A49,$A49<$AN$2),0,IF(AND($AN$2<=$A49,$A49<$AO$2),((B49-$AN$2)*Arbeitsbereich!$J$704),IF(AND($AO$2<=$A49,$A49<$AP$2),((B49-$AN$2)*Arbeitsbereich!$J$704)+((B49-$AO$2)*Arbeitsbereich!$J$707),IF(AND($AP$2<=$A49,$A49<$AQ$2),((B49-$AN$2)*Arbeitsbereich!$J$704)+((B49-$AO$2)*Arbeitsbereich!$J$707)+((B49-$AP$2)*Arbeitsbereich!$J$697),NA())))) -> 104729.9885 | AT49: 104898.0647 | AU49: =IF(AND(0<=$A49,$A49<$AN$2),Arbeitsbereich!$J$696,IF(AND($AN$2<=$A49,$A49<$AO$2),Arbeitsbereich!$J$696,IF(AND($AO$2<=$A49,$A49<$AP$2),Arbeitsbereich!$J$696,IF(AND($AP$2<=$A49,$A49<$AQ$2),Arbeitsbereich!$J$696+(Arbeitsbereich!$J$693*Arbeitsbereich!$J$666),NA())))) -> -88981.1123 | AV49: =( ((AN49/Arbeitsbereich!$J$749)^2)+(Graphen!AT49/Arbeitsbereich!$J$750)+3*(((Arbeitsbereich!$J$754*Graphen!AU49)/Arbeitsbereich!$J$751)^2) )^0.5 -> 69.65027971
A50: 39 | B50: 110 | C50: 90 | G50: 100 | AN50: =IF(AND(0<=$A50,$A50<$AN$2),0,IF(AND($AN$2<=$A50,$A50<$AO$2),Arbeitsbereich!$J$705,IF(AND($AO$2<=$A50,$A50<$AP$2),Arbeitsbereich!$J$705+Arbeitsbereich!$J$708,IF(AND($AP$2<=$A50,$A50<$AQ$2),Arbeitsbereich!$J$705+Arbeitsbereich!$J$708+Arbeitsbereich!$J$699,NA())))) -> 226.7839094 | AO50: =IF(AND(0<=$A50,$A50<$AN$2),0,IF(AND($AN$2<=$A50,$A50<$AO$2),Arbeitsbereich!$J$703,IF(AND($AO$2<=$A50,$A50<$AP$2),Arbeitsbereich!$J$703+Arbeitsbereich!$J$706,IF(AND($AP$2<=$A50,$A50<$AQ$2),Arbeitsbereich!$J$703+Arbeitsbereich!$J$706+Arbeitsbereich!$J$698,NA())))) -> -1055.249943 | AP50: =IF(AND(0<=$A50,$A50<$AN$2),0,IF(AND($AN$2<=$A50,$A50<$AO$2),Arbeitsbereich!$J$704,IF(AND($AO$2<=$A50,$A50<$AP$2),Arbeitsbereich!$J$704+Arbeitsbereich!$J$707,IF(AND($AP$2<=$A50,$A50<$AQ$2),Arbeitsbereich!$J$704+Arbeitsbereich!$J$707+Arbeitsbereich!$J$697,NA())))) -> 1349.178595 | AQ50: 1712.844221 | AR50: =IF(AND(0<=$A50,$A50<$AN$2),0,IF(AND($AN$2<=$A50,$A50<$AO$2),((A50-$AN$2)*Arbeitsbereich!$J$703),IF(AND($AO$2<=$A50,$A50<$AP$2),((A50-$AN$2)*Arbeitsbereich!$J$703)+((A50-$AO$2)*Arbeitsbereich!$J$706),IF(AND($AP$2<=$A50,$A50<$AQ$2),((A50-$AN$2)*Arbeitsbereich!$J$703)+((A50-$AO$2)*Arbeitsbereich!$J$706)+((A50-$AP$2)*Arbeitsbereich!$J$698)-(Arbeitsbereich!$J$693*Arbeitsbereich!$J$686),NA())))) -> -6991.030872 | AS50: =IF(AND(0<=$A50,$A50<$AN$2),0,IF(AND($AN$2<=$A50,$A50<$AO$2),((B50-$AN$2)*Arbeitsbereich!$J$704),IF(AND($AO$2<=$A50,$A50<$AP$2),((B50-$AN$2)*Arbeitsbereich!$J$704)+((B50-$AO$2)*Arbeitsbereich!$J$707),IF(AND($AP$2<=$A50,$A50<$AQ$2),((B50-$AN$2)*Arbeitsbereich!$J$704)+((B50-$AO$2)*Arbeitsbereich!$J$707)+((B50-$AP$2)*Arbeitsbereich!$J$697),NA())))) -> 104729.9885 | AT50: 104963.0649 | AU50: =IF(AND(0<=$A50,$A50<$AN$2),Arbeitsbereich!$J$696,IF(AND($AN$2<=$A50,$A50<$AO$2),Arbeitsbereich!$J$696,IF(AND($AO$2<=$A50,$A50<$AP$2),Arbeitsbereich!$J$696,IF(AND($AP$2<=$A50,$A50<$AQ$2),Arbeitsbereich!$J$696+(Arbeitsbereich!$J$693*Arbeitsbereich!$J$666),NA())))) -> -88981.1123 | AV50: =( ((AN50/Arbeitsbereich!$J$749)^2)+(Graphen!AT50/Arbeitsbereich!$J$750)+3*(((Arbeitsbereich!$J$754*Graphen!AU50)/Arbeitsbereich!$J$751)^2) )^0.5 -> 69.65087382
A51: 40 | B51: 110 | C51: 90 | G51: 100 | AH51: =IF($A51=AH$8,$B$2+$D$2,NA()) ->  | AN51: =IF(AND(0<=$A51,$A51<$AN$2),0,IF(AND($AN$2<=$A51,$A51<$AO$2),Arbeitsbereich!$J$705,IF(AND($AO$2<=$A51,$A51<$AP$2),Arbeitsbereich!$J$705+Arbeitsbereich!$J$708,IF(AND($AP$2<=$A51,$A51<$AQ$2),Arbeitsbereich!$J$705+Arbeitsbereich!$J$708+Arbeitsbereich!$J$699,NA())))) -> 226.7839094 | AO51: =IF(AND(0<=$A51,$A51<$AN$2),0,IF(AND($AN$2<=$A51,$A51<$AO$2),Arbeitsbereich!$J$703,IF(AND($AO$2<=$A51,$A51<$AP$2),Arbeitsbereich!$J$703+Arbeitsbereich!$J$706,IF(AND($AP$2<=$A51,$A51<$AQ$2),Arbeitsbereich!$J$703+Arbeitsbereich!$J$706+Arbeitsbereich!$J$698,NA())))) -> -1055.249943 | AP51: =IF(AND(0<=$A51,$A51<$AN$2),0,IF(AND($AN$2<=$A51,$A51<$AO$2),Arbeitsbereich!$J$704,IF(AND($AO$2<=$A51,$A51<$AP$2),Arbeitsbereich!$J$704+Arbeitsbereich!$J$707,IF(AND($AP$2<=$A51,$A51<$AQ$2),Arbeitsbereich!$J$704+Arbeitsbereich!$J$707+Arbeitsbereich!$J$697,NA())))) -> 1349.178595 | AQ51: 1712.844221 | AR51: =IF(AND(0<=$A51,$A51<$AN$2),0,IF(AND($AN$2<=$A51,$A51<$AO$2),((A51-$AN$2)*Arbeitsbereich!$J$703),IF(AND($AO$2<=$A51,$A51<$AP$2),((A51-$AN$2)*Arbeitsbereich!$J$703)+((A51-$AO$2)*Arbeitsbereich!$J$706),IF(AND($AP$2<=$A51,$A51<$AQ$2),((A51-$AN$2)*Arbeitsbereich!$J$703)+((A51-$AO$2)*Arbeitsbereich!$J$706)+((A51-$AP$2)*Arbeitsbereich!$J$698)-(Arbeitsbereich!$J$693*Arbeitsbereich!$J$686),NA())))) -> -8046.280815 | AS51: =IF(AND(0<=$A51,$A51<$AN$2),0,IF(AND($AN$2<=$A51,$A51<$AO$2),((B51-$AN$2)*Arbeitsbereich!$J$704),IF(AND($AO$2<=$A51,$A51<$AP$2),((B51-$AN$2)*Arbeitsbereich!$J$704)+((B51-$AO$2)*Arbeitsbereich!$J$707),IF(AND($AP$2<=$A51,$A51<$AQ$2),((B51-$AN$2)*Arbeitsbereich!$J$704)+((B51-$AO$2)*Arbeitsbereich!$J$707)+((B51-$AP$2)*Arbeitsbereich!$J$697),NA())))) -> 104729.9885 | AT51: 105038.6268 | AU51: =IF(AND(0<=$A51,$A51<$AN$2),Arbeitsbereich!$J$696,IF(AND($AN$2<=$A51,$A51<$AO$2),Arbeitsbereich!$J$696,IF(AND($AO$2<=$A51,$A51<$AP$2),Arbeitsbereich!$J$696,IF(AND($AP$2<=$A51,$A51<$AQ$2),Arbeitsbereich!$J$696+(Arbeitsbereich!$J$693*Arbeitsbereich!$J$666),NA())))) -> -88981.1123 | AV51: =( ((AN51/Arbeitsbereich!$J$749)^2)+(Graphen!AT51/Arbeitsbereich!$J$750)+3*(((Arbeitsbereich!$J$754*Graphen!AU51)/Arbeitsbereich!$J$751)^2) )^0.5 -> 69.65156447
A52: 41 | B52: 110 | C52: 90 | G52: 100 | AN52: =IF(AND(0<=$A52,$A52<$AN$2),0,IF(AND($AN$2<=$A52,$A52<$AO$2),Arbeitsbereich!$J$705,IF(AND($AO$2<=$A52,$A52<$AP$2),Arbeitsbereich!$J$705+Arbeitsbereich!$J$708,IF(AND($AP$2<=$A52,$A52<$AQ$2),Arbeitsbereich!$J$705+Arbeitsbereich!$J$708+Arbeitsbereich!$J$699,NA())))) -> 226.7839094 | AO52: =IF(AND(0<=$A52,$A52<$AN$2),0,IF(AND($AN$2<=$A52,$A52<$AO$2),Arbeitsbereich!$J$703,IF(AND($AO$2<=$A52,$A52<$AP$2),Arbeitsbereich!$J$703+Arbeitsbereich!$J$706,IF(AND($AP$2<=$A52,$A52<$AQ$2),Arbeitsbereich!$J$703+Arbeitsbereich!$J$706+Arbeitsbereich!$J$698,NA())))) -> -1055.249943 | AP52: =IF(AND(0<=$A52,$A52<$AN$2),0,IF(AND($AN$2<=$A52,$A52<$AO$2),Arbeitsbereich!$J$704,IF(AND($AO$2<=$A52,$A52<$AP$2),Arbeitsbereich!$J$704+Arbeitsbereich!$J$707,IF(AND($AP$2<=$A52,$A52<$AQ$2),Arbeitsbereich!$J$704+Arbeitsbereich!$J$707+Arbeitsbereich!$J$697,NA())))) -> 1349.178595 | AQ52: 1712.844221 | AR52: =IF(AND(0<=$A52,$A52<$AN$2),0,IF(AND($AN$2<=$A52,$A52<$AO$2),((A52-$AN$2)*Arbeitsbereich!$J$703),IF(AND($AO$2<=$A52,$A52<$AP$2),((A52-$AN$2)*Arbeitsbereich!$J$703)+((A52-$AO$2)*Arbeitsbereich!$J$706),IF(AND($AP$2<=$A52,$A52<$AQ$2),((A52-$AN$2)*Arbeitsbereich!$J$703)+((A52-$AO$2)*Arbeitsbereich!$J$706)+((A52-$AP$2)*Arbeitsbereich!$J$698)-(Arbeitsbereich!$J$693*Arbeitsbereich!$J$686),NA())))) -> -9101.530758 | AS52: =IF(AND(0<=$A52,$A52<$AN$2),0,IF(AND($AN$2<=$A52,$A52<$AO$2),((B52-$AN$2)*Arbeitsbereich!$J$704),IF(AND($AO$2<=$A52,$A52<$AP$2),((B52-$AN$2)*Arbeitsbereich!$J$704)+((B52-$AO$2)*Arbeitsbereich!$J$707),IF(AND($AP$2<=$A52,$A52<$AQ$2),((B52-$AN$2)*Arbeitsbereich!$J$704)+((B52-$AO$2)*Arbeitsbereich!$J$707)+((B52-$AP$2)*Arbeitsbereich!$J$697),NA())))) -> 104729.9885 | AT52: 105124.7276 | AU52: =IF(AND(0<=$A52,$A52<$AN$2),Arbeitsbereich!$J$696,IF(AND($AN$2<=$A52,$A52<$AO$2),Arbeitsbereich!$J$696,IF(AND($AO$2<=$A52,$A52<$AP$2),Arbeitsbereich!$J$696,IF(AND($AP$2<=$A52,$A52<$AQ$2),Arbeitsbereich!$J$696+(Arbeitsbereich!$J$693*Arbeitsbereich!$J$666),NA())))) -> -88981.1123 | AV52: =( ((AN52/Arbeitsbereich!$J$749)^2)+(Graphen!AT52/Arbeitsbereich!$J$750)+3*(((Arbeitsbereich!$J$754*Graphen!AU52)/Arbeitsbereich!$J$751)^2) )^0.5 -> 69.65235143
A53: 42 | B53: 110 | C53: 90 | G53: 100 | AN53: =IF(AND(0<=$A53,$A53<$AN$2),0,IF(AND($AN$2<=$A53,$A53<$AO$2),Arbeitsbereich!$J$705,IF(AND($AO$2<=$A53,$A53<$AP$2),Arbeitsbereich!$J$705+Arbeitsbereich!$J$708,IF(AND($AP$2<=$A53,$A53<$AQ$2),Arbeitsbereich!$J$705+Arbeitsbereich!$J$708+Arbeitsbereich!$J$699,NA())))) -> 226.7839094 | AO53: =IF(AND(0<=$A53,$A53<$AN$2),0,IF(AND($AN$2<=$A53,$A53<$AO$2),Arbeitsbereich!$J$703,IF(AND($AO$2<=$A53,$A53<$AP$2),Arbeitsbereich!$J$703+Arbeitsbereich!$J$706,IF(AND($AP$2<=$A53,$A53<$AQ$2),Arbeitsbereich!$J$703+Arbeitsbereich!$J$706+Arbeitsbereich!$J$698,NA())))) -> -1055.249943 | AP53: =IF(AND(0<=$A53,$A53<$AN$2),0,IF(AND($AN$2<=$A53,$A53<$AO$2),Arbeitsbereich!$J$704,IF(AND($AO$2<=$A53,$A53<$AP$2),Arbeitsbereich!$J$704+Arbeitsbereich!$J$707,IF(AND($AP$2<=$A53,$A53<$AQ$2),Arbeitsbereich!$J$704+Arbeitsbereich!$J$707+Arbeitsbereich!$J$697,NA())))) -> 1349.178595 | AQ53: 1712.844221 | AR53: =IF(AND(0<=$A53,$A53<$AN$2),0,IF(AND($AN$2<=$A53,$A53<$AO$2),((A53-$AN$2)*Arbeitsbereich!$J$703),IF(AND($AO$2<=$A53,$A53<$AP$2),((A53-$AN$2)*Arbeitsbereich!$J$703)+((A53-$AO$2)*Arbeitsbereich!$J$706),IF(AND($AP$2<=$A53,$A53<$AQ$2),((A53-$AN$2)*Arbeitsbereich!$J$703)+((A53-$AO$2)*Arbeitsbereich!$J$706)+((A53-$AP$2)*Arbeitsbereich!$J$698)-(Arbeitsbereich!$J$693*Arbeitsbereich!$J$686),NA())))) -> -10156.7807 | AS53: =IF(AND(0<=$A53,$A53<$AN$2),0,IF(AND($AN$2<=$A53,$A53<$AO$2),((B53-$AN$2)*Arbeitsbereich!$J$704),IF(AND($AO$2<=$A53,$A53<$AP$2),((B53-$AN$2)*Arbeitsbereich!$J$704)+((B53-$AO$2)*Arbeitsbereich!$J$707),IF(AND($AP$2<=$A53,$A53<$AQ$2),((B53-$AN$2)*Arbeitsbereich!$J$704)+((B53-$AO$2)*Arbeitsbereich!$J$707)+((B53-$AP$2)*Arbeitsbereich!$J$697),NA())))) -> 104729.9885 | AT53: 105221.3414 | AU53: =IF(AND(0<=$A53,$A53<$AN$2),Arbeitsbereich!$J$696,IF(AND($AN$2<=$A53,$A53<$AO$2),Arbeitsbereich!$J$696,IF(AND($AO$2<=$A53,$A53<$AP$2),Arbeitsbereich!$J$696,IF(AND($AP$2<=$A53,$A53<$AQ$2),Arbeitsbereich!$J$696+(Arbeitsbereich!$J$693*Arbeitsbereich!$J$666),NA())))) -> -88981.1123 | AV53: =( ((AN53/Arbeitsbereich!$J$749)^2)+(Graphen!AT53/Arbeitsbereich!$J$750)+3*(((Arbeitsbereich!$J$754*Graphen!AU53)/Arbeitsbereich!$J$751)^2) )^0.5 -> 69.65323447
A54: 43 | B54: 110 | C54: 90 | G54: 100 | AN54: =IF(AND(0<=$A54,$A54<$AN$2),0,IF(AND($AN$2<=$A54,$A54<$AO$2),Arbeitsbereich!$J$705,IF(AND($AO$2<=$A54,$A54<$AP$2),Arbeitsbereich!$J$705+Arbeitsbereich!$J$708,IF(AND($AP$2<=$A54,$A54<$AQ$2),Arbeitsbereich!$J$705+Arbeitsbereich!$J$708+Arbeitsbereich!$J$699,NA())))) -> 226.7839094 | AO54: =IF(AND(0<=$A54,$A54<$AN$2),0,IF(AND($AN$2<=$A54,$A54<$AO$2),Arbeitsbereich!$J$703,IF(AND($AO$2<=$A54,$A54<$AP$2),Arbeitsbereich!$J$703+Arbeitsbereich!$J$706,IF(AND($AP$2<=$A54,$A54<$AQ$2),Arbeitsbereich!$J$703+Arbeitsbereich!$J$706+Arbeitsbereich!$J$698,NA())))) -> -1055.249943 | AP54: =IF(AND(0<=$A54,$A54<$AN$2),0,IF(AND($AN$2<=$A54,$A54<$AO$2),Arbeitsbereich!$J$704,IF(AND($AO$2<=$A54,$A54<$AP$2),Arbeitsbereich!$J$704+Arbeitsbereich!$J$707,IF(AND($AP$2<=$A54,$A54<$AQ$2),Arbeitsbereich!$J$704+Arbeitsbereich!$J$707+Arbeitsbereich!$J$697,NA())))) -> 1349.178595 | AQ54: 1712.844221 | AR54: =IF(AND(0<=$A54,$A54<$AN$2),0,IF(AND($AN$2<=$A54,$A54<$AO$2),((A54-$AN$2)*Arbeitsbereich!$J$703),IF(AND($AO$2<=$A54,$A54<$AP$2),((A54-$AN$2)*Arbeitsbereich!$J$703)+((A54-$AO$2)*Arbeitsbereich!$J$706),IF(AND($AP$2<=$A54,$A54<$AQ$2),((A54-$AN$2)*Arbeitsbereich!$J$703)+((A54-$AO$2)*Arbeitsbereich!$J$706)+((A54-$AP$2)*Arbeitsbereich!$J$698)-(Arbeitsbereich!$J$693*Arbeitsbereich!$J$686),NA())))) -> -11212.03064 | AS54: =IF(AND(0<=$A54,$A54<$AN$2),0,IF(AND($AN$2<=$A54,$A54<$AO$2),((B54-$AN$2)*Arbeitsbereich!$J$704),IF(AND($AO$2<=$A54,$A54<$AP$2),((B54-$AN$2)*Arbeitsbereich!$J$704)+((B54-$AO$2)*Arbeitsbereich!$J$707),IF(AND($AP$2<=$A54,$A54<$AQ$2),((B54-$AN$2)*Arbeitsbereich!$J$704)+((B54-$AO$2)*Arbeitsbereich!$J$707)+((B54-$AP$2)*Arbeitsbereich!$J$697),NA())))) -> 104729.9885 | AT54: 105328.4392 | AU54: =IF(AND(0<=$A54,$A54<$AN$2),Arbeitsbereich!$J$696,IF(AND($AN$2<=$A54,$A54<$AO$2),Arbeitsbereich!$J$696,IF(AND($AO$2<=$A54,$A54<$AP$2),Arbeitsbereich!$J$696,IF(AND($AP$2<=$A54,$A54<$AQ$2),Arbeitsbereich!$J$696+(Arbeitsbereich!$J$693*Arbeitsbereich!$J$666),NA())))) -> -88981.1123 | AV54: =( ((AN54/Arbeitsbereich!$J$749)^2)+(Graphen!AT54/Arbeitsbereich!$J$750)+3*(((Arbeitsbereich!$J$754*Graphen!AU54)/Arbeitsbereich!$J$751)^2) )^0.5 -> 69.65421332
A55: 44 | B55: 110 | C55: 90 | G55: 100 | AN55: =IF(AND(0<=$A55,$A55<$AN$2),0,IF(AND($AN$2<=$A55,$A55<$AO$2),Arbeitsbereich!$J$705,IF(AND($AO$2<=$A55,$A55<$AP$2),Arbeitsbereich!$J$705+Arbeitsbereich!$J$708,IF(AND($AP$2<=$A55,$A55<$AQ$2),Arbeitsbereich!$J$705+Arbeitsbereich!$J$708+Arbeitsbereich!$J$699,NA())))) -> 226.7839094 | AO55: =IF(AND(0<=$A55,$A55<$AN$2),0,IF(AND($AN$2<=$A55,$A55<$AO$2),Arbeitsbereich!$J$703,IF(AND($AO$2<=$A55,$A55<$AP$2),Arbeitsbereich!$J$703+Arbeitsbereich!$J$706,IF(AND($AP$2<=$A55,$A55<$AQ$2),Arbeitsbereich!$J$703+Arbeitsbereich!$J$706+Arbeitsbereich!$J$698,NA())))) -> -1055.249943 | AP55: =IF(AND(0<=$A55,$A55<$AN$2),0,IF(AND($AN$2<=$A55,$A55<$AO$2),Arbeitsbereich!$J$704,IF(AND($AO$2<=$A55,$A55<$AP$2),Arbeitsbereich!$J$704+Arbeitsbereich!$J$707,IF(AND($AP$2<=$A55,$A55<$AQ$2),Arbeitsbereich!$J$704+Arbeitsbereich!$J$707+Arbeitsbereich!$J$697,NA())))) -> 1349.178595 | AQ55: 1712.844221 | AR55: =IF(AND(0<=$A55,$A55<$AN$2),0,IF(AND($AN$2<=$A55,$A55<$AO$2),((A55-$AN$2)*Arbeitsbereich!$J$703),IF(AND($AO$2<=$A55,$A55<$AP$2),((A55-$AN$2)*Arbeitsbereich!$J$703)+((A55-$AO$2)*Arbeitsbereich!$J$706),IF(AND($AP$2<=$A55,$A55<$AQ$2),((A55-$AN$2)*Arbeitsbereich!$J$703)+((A55-$AO$2)*Arbeitsbereich!$J$706)+((A55-$AP$2)*Arbeitsbereich!$J$698)-(Arbeitsbereich!$J$693*Arbeitsbereich!$J$686),NA())))) -> -12267.28059 | AS55: =IF(AND(0<=$A55,$A55<$AN$2),0,IF(AND($AN$2<=$A55,$A55<$AO$2),((B55-$AN$2)*Arbeitsbereich!$J$704),IF(AND($AO$2<=$A55,$A55<$AP$2),((B55-$AN$2)*Arbeitsbereich!$J$704)+((B55-$AO$2)*Arbeitsbereich!$J$707),IF(AND($AP$2<=$A55,$A55<$AQ$2),((B55-$AN$2)*Arbeitsbereich!$J$704)+((B55-$AO$2)*Arbeitsbereich!$J$707)+((B55-$AP$2)*Arbeitsbereich!$J$697),NA())))) -> 104729.9885 | AT55: 105445.9893 | AU55: =IF(AND(0<=$A55,$A55<$AN$2),Arbeitsbereich!$J$696,IF(AND($AN$2<=$A55,$A55<$AO$2),Arbeitsbereich!$J$696,IF(AND($AO$2<=$A55,$A55<$AP$2),Arbeitsbereich!$J$696,IF(AND($AP$2<=$A55,$A55<$AQ$2),Arbeitsbereich!$J$696+(Arbeitsbereich!$J$693*Arbeitsbereich!$J$666),NA())))) -> -88981.1123 | AV55: =( ((AN55/Arbeitsbereich!$J$749)^2)+(Graphen!AT55/Arbeitsbereich!$J$750)+3*(((Arbeitsbereich!$J$754*Graphen!AU55)/Arbeitsbereich!$J$751)^2) )^0.5 -> 69.65528769
A56: 45 | B56: 110 | C56: 90 | G56: 100 | AN56: =IF(AND(0<=$A56,$A56<$AN$2),0,IF(AND($AN$2<=$A56,$A56<$AO$2),Arbeitsbereich!$J$705,IF(AND($AO$2<=$A56,$A56<$AP$2),Arbeitsbereich!$J$705+Arbeitsbereich!$J$708,IF(AND($AP$2<=$A56,$A56<$AQ$2),Arbeitsbereich!$J$705+Arbeitsbereich!$J$708+Arbeitsbereich!$J$699,NA())))) -> 226.7839094 | AO56: =IF(AND(0<=$A56,$A56<$AN$2),0,IF(AND($AN$2<=$A56,$A56<$AO$2),Arbeitsbereich!$J$703,IF(AND($AO$2<=$A56,$A56<$AP$2),Arbeitsbereich!$J$703+Arbeitsbereich!$J$706,IF(AND($AP$2<=$A56,$A56<$AQ$2),Arbeitsbereich!$J$703+Arbeitsbereich!$J$706+Arbeitsbereich!$J$698,NA())))) -> -1055.249943 | AP56: =IF(AND(0<=$A56,$A56<$AN$2),0,IF(AND($AN$2<=$A56,$A56<$AO$2),Arbeitsbereich!$J$704,IF(AND($AO$2<=$A56,$A56<$AP$2),Arbeitsbereich!$J$704+Arbeitsbereich!$J$707,IF(AND($AP$2<=$A56,$A56<$AQ$2),Arbeitsbereich!$J$704+Arbeitsbereich!$J$707+Arbeitsbereich!$J$697,NA())))) -> 1349.178595 | AQ56: 1712.844221 | AR56: =IF(AND(0<=$A56,$A56<$AN$2),0,IF(AND($AN$2<=$A56,$A56<$AO$2),((A56-$AN$2)*Arbeitsbereich!$J$703),IF(AND($AO$2<=$A56,$A56<$AP$2),((A56-$AN$2)*Arbeitsbereich!$J$703)+((A56-$AO$2)*Arbeitsbereich!$J$706),IF(AND($AP$2<=$A56,$A56<$AQ$2),((A56-$AN$2)*Arbeitsbereich!$J$703)+((A56-$AO$2)*Arbeitsbereich!$J$706)+((A56-$AP$2)*Arbeitsbereich!$J$698)-(Arbeitsbereich!$J$693*Arbeitsbereich!$J$686),NA())))) -> -13322.53053 | AS56: =IF(AND(0<=$A56,$A56<$AN$2),0,IF(AND($AN$2<=$A56,$A56<$AO$2),((B56-$AN$2)*Arbeitsbereich!$J$704),IF(AND($AO$2<=$A56,$A56<$AP$2),((B56-$AN$2)*Arbeitsbereich!$J$704)+((B56-$AO$2)*Arbeitsbereich!$J$707),IF(AND($AP$2<=$A56,$A56<$AQ$2),((B56-$AN$2)*Arbeitsbereich!$J$704)+((B56-$AO$2)*Arbeitsbereich!$J$707)+((B56-$AP$2)*Arbeitsbereich!$J$697),NA())))) -> 104729.9885 | AT56: 105573.9566 | AU56: =IF(AND(0<=$A56,$A56<$AN$2),Arbeitsbereich!$J$696,IF(AND($AN$2<=$A56,$A56<$AO$2),Arbeitsbereich!$J$696,IF(AND($AO$2<=$A56,$A56<$AP$2),Arbeitsbereich!$J$696,IF(AND($AP$2<=$A56,$A56<$AQ$2),Arbeitsbereich!$J$696+(Arbeitsbereich!$J$693*Arbeitsbereich!$J$666),NA())))) -> -88981.1123 | AV56: =( ((AN56/Arbeitsbereich!$J$749)^2)+(Graphen!AT56/Arbeitsbereich!$J$750)+3*(((Arbeitsbereich!$J$754*Graphen!AU56)/Arbeitsbereich!$J$751)^2) )^0.5 -> 69.65645724
A57: 46 | B57: 110 | C57: 90 | G57: 100 | AN57: =IF(AND(0<=$A57,$A57<$AN$2),0,IF(AND($AN$2<=$A57,$A57<$AO$2),Arbeitsbereich!$J$705,IF(AND($AO$2<=$A57,$A57<$AP$2),Arbeitsbereich!$J$705+Arbeitsbereich!$J$708,IF(AND($AP$2<=$A57,$A57<$AQ$2),Arbeitsbereich!$J$705+Arbeitsbereich!$J$708+Arbeitsbereich!$J$699,NA())))) -> 226.7839094 | AO57: =IF(AND(0<=$A57,$A57<$AN$2),0,IF(AND($AN$2<=$A57,$A57<$AO$2),Arbeitsbereich!$J$703,IF(AND($AO$2<=$A57,$A57<$AP$2),Arbeitsbereich!$J$703+Arbeitsbereich!$J$706,IF(AND($AP$2<=$A57,$A57<$AQ$2),Arbeitsbereich!$J$703+Arbeitsbereich!$J$706+Arbeitsbereich!$J$698,NA())))) -> -1055.249943 | AP57: =IF(AND(0<=$A57,$A57<$AN$2),0,IF(AND($AN$2<=$A57,$A57<$AO$2),Arbeitsbereich!$J$704,IF(AND($AO$2<=$A57,$A57<$AP$2),Arbeitsbereich!$J$704+Arbeitsbereich!$J$707,IF(AND($AP$2<=$A57,$A57<$AQ$2),Arbeitsbereich!$J$704+Arbeitsbereich!$J$707+Arbeitsbereich!$J$697,NA())))) -> 1349.178595 | AQ57: 1712.844221 | AR57: =IF(AND(0<=$A57,$A57<$AN$2),0,IF(AND($AN$2<=$A57,$A57<$AO$2),((A57-$AN$2)*Arbeitsbereich!$J$703),IF(AND($AO$2<=$A57,$A57<$AP$2),((A57-$AN$2)*Arbeitsbereich!$J$703)+((A57-$AO$2)*Arbeitsbereich!$J$706),IF(AND($AP$2<=$A57,$A57<$AQ$2),((A57-$AN$2)*Arbeitsbereich!$J$703)+((A57-$AO$2)*Arbeitsbereich!$J$706)+((A57-$AP$2)*Arbeitsbereich!$J$698)-(Arbeitsbereich!$J$693*Arbeitsbereich!$J$686),NA())))) -> -14377.78047 | AS57: =IF(AND(0<=$A57,$A57<$AN$2),0,IF(AND($AN$2<=$A57,$A57<$AO$2),((B57-$AN$2)*Arbeitsbereich!$J$704),IF(AND($AO$2<=$A57,$A57<$AP$2),((B57-$AN$2)*Arbeitsbereich!$J$704)+((B57-$AO$2)*Arbeitsbereich!$J$707),IF(AND($AP$2<=$A57,$A57<$AQ$2),((B57-$AN$2)*Arbeitsbereich!$J$704)+((B57-$AO$2)*Arbeitsbereich!$J$707)+((B57-$AP$2)*Arbeitsbereich!$J$697),NA())))) -> 104729.9885 | AT57: 105712.3032 | AU57: =IF(AND(0<=$A57,$A57<$AN$2),Arbeitsbereich!$J$696,IF(AND($AN$2<=$A57,$A57<$AO$2),Arbeitsbereich!$J$696,IF(AND($AO$2<=$A57,$A57<$AP$2),Arbeitsbereich!$J$696,IF(AND($AP$2<=$A57,$A57<$AQ$2),Arbeitsbereich!$J$696+(Arbeitsbereich!$J$693*Arbeitsbereich!$J$666),NA())))) -> -88981.1123 | AV57: =( ((AN57/Arbeitsbereich!$J$749)^2)+(Graphen!AT57/Arbeitsbereich!$J$750)+3*(((Arbeitsbereich!$J$754*Graphen!AU57)/Arbeitsbereich!$J$751)^2) )^0.5 -> 69.65772164
A58: 47 | B58: 110 | C58: 90 | G58: 100 | AN58: =IF(AND(0<=$A58,$A58<$AN$2),0,IF(AND($AN$2<=$A58,$A58<$AO$2),Arbeitsbereich!$J$705,IF(AND($AO$2<=$A58,$A58<$AP$2),Arbeitsbereich!$J$705+Arbeitsbereich!$J$708,IF(AND($AP$2<=$A58,$A58<$AQ$2),Arbeitsbereich!$J$705+Arbeitsbereich!$J$708+Arbeitsbereich!$J$699,NA())))) -> 226.7839094 | AO58: =IF(AND(0<=$A58,$A58<$AN$2),0,IF(AND($AN$2<=$A58,$A58<$AO$2),Arbeitsbereich!$J$703,IF(AND($AO$2<=$A58,$A58<$AP$2),Arbeitsbereich!$J$703+Arbeitsbereich!$J$706,IF(AND($AP$2<=$A58,$A58<$AQ$2),Arbeitsbereich!$J$703+Arbeitsbereich!$J$706+Arbeitsbereich!$J$698,NA())))) -> -1055.249943 | AP58: =IF(AND(0<=$A58,$A58<$AN$2),0,IF(AND($AN$2<=$A58,$A58<$AO$2),Arbeitsbereich!$J$704,IF(AND($AO$2<=$A58,$A58<$AP$2),Arbeitsbereich!$J$704+Arbeitsbereich!$J$707,IF(AND($AP$2<=$A58,$A58<$AQ$2),Arbeitsbereich!$J$704+Arbeitsbereich!$J$707+Arbeitsbereich!$J$697,NA())))) -> 1349.178595 | AQ58: 1712.844221 | AR58: =IF(AND(0<=$A58,$A58<$AN$2),0,IF(AND($AN$2<=$A58,$A58<$AO$2),((A58-$AN$2)*Arbeitsbereich!$J$703),IF(AND($AO$2<=$A58,$A58<$AP$2),((A58-$AN$2)*Arbeitsbereich!$J$703)+((A58-$AO$2)*Arbeitsbereich!$J$706),IF(AND($AP$2<=$A58,$A58<$AQ$2),((A58-$AN$2)*Arbeitsbereich!$J$703)+((A58-$AO$2)*Arbeitsbereich!$J$706)+((A58-$AP$2)*Arbeitsbereich!$J$698)-(Arbeitsbereich!$J$693*Arbeitsbereich!$J$686),NA())))) -> -15433.03042 | AS58: =IF(AND(0<=$A58,$A58<$AN$2),0,IF(AND($AN$2<=$A58,$A58<$AO$2),((B58-$AN$2)*Arbeitsbereich!$J$704),IF(AND($AO$2<=$A58,$A58<$AP$2),((B58-$AN$2)*Arbeitsbereich!$J$704)+((B58-$AO$2)*Arbeitsbereich!$J$707),IF(AND($AP$2<=$A58,$A58<$AQ$2),((B58-$AN$2)*Arbeitsbereich!$J$704)+((B58-$AO$2)*Arbeitsbereich!$J$707)+((B58-$AP$2)*Arbeitsbereich!$J$697),NA())))) -> 104729.9885 | AT58: 105860.9886 | AU58: =IF(AND(0<=$A58,$A58<$AN$2),Arbeitsbereich!$J$696,IF(AND($AN$2<=$A58,$A58<$AO$2),Arbeitsbereich!$J$696,IF(AND($AO$2<=$A58,$A58<$AP$2),Arbeitsbereich!$J$696,IF(AND($AP$2<=$A58,$A58<$AQ$2),Arbeitsbereich!$J$696+(Arbeitsbereich!$J$693*Arbeitsbereich!$J$666),NA())))) -> -88981.1123 | AV58: =( ((AN58/Arbeitsbereich!$J$749)^2)+(Graphen!AT58/Arbeitsbereich!$J$750)+3*(((Arbeitsbereich!$J$754*Graphen!AU58)/Arbeitsbereich!$J$751)^2) )^0.5 -> 69.6590805
A59: 48 | B59: 110 | C59: 90 | G59: 100 | AN59: =IF(AND(0<=$A59,$A59<$AN$2),0,IF(AND($AN$2<=$A59,$A59<$AO$2),Arbeitsbereich!$J$705,IF(AND($AO$2<=$A59,$A59<$AP$2),Arbeitsbereich!$J$705+Arbeitsbereich!$J$708,IF(AND($AP$2<=$A59,$A59<$AQ$2),Arbeitsbereich!$J$705+Arbeitsbereich!$J$708+Arbeitsbereich!$J$699,NA())))) -> 226.7839094 | AO59: =IF(AND(0<=$A59,$A59<$AN$2),0,IF(AND($AN$2<=$A59,$A59<$AO$2),Arbeitsbereich!$J$703,IF(AND($AO$2<=$A59,$A59<$AP$2),Arbeitsbereich!$J$703+Arbeitsbereich!$J$706,IF(AND($AP$2<=$A59,$A59<$AQ$2),Arbeitsbereich!$J$703+Arbeitsbereich!$J$706+Arbeitsbereich!$J$698,NA())))) -> -1055.249943 | AP59: =IF(AND(0<=$A59,$A59<$AN$2),0,IF(AND($AN$2<=$A59,$A59<$AO$2),Arbeitsbereich!$J$704,IF(AND($AO$2<=$A59,$A59<$AP$2),Arbeitsbereich!$J$704+Arbeitsbereich!$J$707,IF(AND($AP$2<=$A59,$A59<$AQ$2),Arbeitsbereich!$J$704+Arbeitsbereich!$J$707+Arbeitsbereich!$J$697,NA())))) -> 1349.178595 | AQ59: 1712.844221 | AR59: =IF(AND(0<=$A59,$A59<$AN$2),0,IF(AND($AN$2<=$A59,$A59<$AO$2),((A59-$AN$2)*Arbeitsbereich!$J$703),IF(AND($AO$2<=$A59,$A59<$AP$2),((A59-$AN$2)*Arbeitsbereich!$J$703)+((A59-$AO$2)*Arbeitsbereich!$J$706),IF(AND($AP$2<=$A59,$A59<$AQ$2),((A59-$AN$2)*Arbeitsbereich!$J$703)+((A59-$AO$2)*Arbeitsbereich!$J$706)+((A59-$AP$2)*Arbeitsbereich!$J$698)-(Arbeitsbereich!$J$693*Arbeitsbereich!$J$686),NA())))) -> -16488.28036 | AS59: =IF(AND(0<=$A59,$A59<$AN$2),0,IF(AND($AN$2<=$A59,$A59<$AO$2),((B59-$AN$2)*Arbeitsbereich!$J$704),IF(AND($AO$2<=$A59,$A59<$AP$2),((B59-$AN$2)*Arbeitsbereich!$J$704)+((B59-$AO$2)*Arbeitsbereich!$J$707),IF(AND($AP$2<=$A59,$A59<$AQ$2),((B59-$AN$2)*Arbeitsbereich!$J$704)+((B59-$AO$2)*Arbeitsbereich!$J$707)+((B59-$AP$2)*Arbeitsbereich!$J$697),NA())))) -> 104729.9885 | AT59: 106019.9692 | AU59: =IF(AND(0<=$A59,$A59<$AN$2),Arbeitsbereich!$J$696,IF(AND($AN$2<=$A59,$A59<$AO$2),Arbeitsbereich!$J$696,IF(AND($AO$2<=$A59,$A59<$AP$2),Arbeitsbereich!$J$696,IF(AND($AP$2<=$A59,$A59<$AQ$2),Arbeitsbereich!$J$696+(Arbeitsbereich!$J$693*Arbeitsbereich!$J$666),NA())))) -> -88981.1123 | AV59: =( ((AN59/Arbeitsbereich!$J$749)^2)+(Graphen!AT59/Arbeitsbereich!$J$750)+3*(((Arbeitsbereich!$J$754*Graphen!AU59)/Arbeitsbereich!$J$751)^2) )^0.5 -> 69.66053342
A60: 49 | B60: 110 | C60: 90 | G60: 100 | AN60: =IF(AND(0<=$A60,$A60<$AN$2),0,IF(AND($AN$2<=$A60,$A60<$AO$2),Arbeitsbereich!$J$705,IF(AND($AO$2<=$A60,$A60<$AP$2),Arbeitsbereich!$J$705+Arbeitsbereich!$J$708,IF(AND($AP$2<=$A60,$A60<$AQ$2),Arbeitsbereich!$J$705+Arbeitsbereich!$J$708+Arbeitsbereich!$J$699,NA())))) -> 226.7839094 | AO60: =IF(AND(0<=$A60,$A60<$AN$2),0,IF(AND($AN$2<=$A60,$A60<$AO$2),Arbeitsbereich!$J$703,IF(AND($AO$2<=$A60,$A60<$AP$2),Arbeitsbereich!$J$703+Arbeitsbereich!$J$706,IF(AND($AP$2<=$A60,$A60<$AQ$2),Arbeitsbereich!$J$703+Arbeitsbereich!$J$706+Arbeitsbereich!$J$698,NA())))) -> -1055.249943 | AP60: =IF(AND(0<=$A60,$A60<$AN$2),0,IF(AND($AN$2<=$A60,$A60<$AO$2),Arbeitsbereich!$J$704,IF(AND($AO$2<=$A60,$A60<$AP$2),Arbeitsbereich!$J$704+Arbeitsbereich!$J$707,IF(AND($AP$2<=$A60,$A60<$AQ$2),Arbeitsbereich!$J$704+Arbeitsbereich!$J$707+Arbeitsbereich!$J$697,NA())))) -> 1349.178595 | AQ60: 1712.844221 | AR60: =IF(AND(0<=$A60,$A60<$AN$2),0,IF(AND($AN$2<=$A60,$A60<$AO$2),((A60-$AN$2)*Arbeitsbereich!$J$703),IF(AND($AO$2<=$A60,$A60<$AP$2),((A60-$AN$2)*Arbeitsbereich!$J$703)+((A60-$AO$2)*Arbeitsbereich!$J$706),IF(AND($AP$2<=$A60,$A60<$AQ$2),((A60-$AN$2)*Arbeitsbereich!$J$703)+((A60-$AO$2)*Arbeitsbereich!$J$706)+((A60-$AP$2)*Arbeitsbereich!$J$698)-(Arbeitsbereich!$J$693*Arbeitsbereich!$J$686),NA())))) -> -17543.5303 | AS60: =IF(AND(0<=$A60,$A60<$AN$2),0,IF(AND($AN$2<=$A60,$A60<$AO$2),((B60-$AN$2)*Arbeitsbereich!$J$704),IF(AND($AO$2<=$A60,$A60<$AP$2),((B60-$AN$2)*Arbeitsbereich!$J$704)+((B60-$AO$2)*Arbeitsbereich!$J$707),IF(AND($AP$2<=$A60,$A60<$AQ$2),((B60-$AN$2)*Arbeitsbereich!$J$704)+((B60-$AO$2)*Arbeitsbereich!$J$707)+((B60-$AP$2)*Arbeitsbereich!$J$697),NA())))) -> 104729.9885 | AT60: 106189.1988 | AU60: =IF(AND(0<=$A60,$A60<$AN$2),Arbeitsbereich!$J$696,IF(AND($AN$2<=$A60,$A60<$AO$2),Arbeitsbereich!$J$696,IF(AND($AO$2<=$A60,$A60<$AP$2),Arbeitsbereich!$J$696,IF(AND($AP$2<=$A60,$A60<$AQ$2),Arbeitsbereich!$J$696+(Arbeitsbereich!$J$693*Arbeitsbereich!$J$666),NA())))) -> -88981.1123 | AV60: =( ((AN60/Arbeitsbereich!$J$749)^2)+(Graphen!AT60/Arbeitsbereich!$J$750)+3*(((Arbeitsbereich!$J$754*Graphen!AU60)/Arbeitsbereich!$J$751)^2) )^0.5 -> 69.66207997
A61: 50 | B61: 110 | C61: 90 | G61: 100 | AN61: =IF(AND(0<=$A61,$A61<$AN$2),0,IF(AND($AN$2<=$A61,$A61<$AO$2),Arbeitsbereich!$J$705,IF(AND($AO$2<=$A61,$A61<$AP$2),Arbeitsbereich!$J$705+Arbeitsbereich!$J$708,IF(AND($AP$2<=$A61,$A61<$AQ$2),Arbeitsbereich!$J$705+Arbeitsbereich!$J$708+Arbeitsbereich!$J$699,NA())))) -> 226.7839094 | AO61: =IF(AND(0<=$A61,$A61<$AN$2),0,IF(AND($AN$2<=$A61,$A61<$AO$2),Arbeitsbereich!$J$703,IF(AND($AO$2<=$A61,$A61<$AP$2),Arbeitsbereich!$J$703+Arbeitsbereich!$J$706,IF(AND($AP$2<=$A61,$A61<$AQ$2),Arbeitsbereich!$J$703+Arbeitsbereich!$J$706+Arbeitsbereich!$J$698,NA())))) -> -1055.249943 | AP61: =IF(AND(0<=$A61,$A61<$AN$2),0,IF(AND($AN$2<=$A61,$A61<$AO$2),Arbeitsbereich!$J$704,IF(AND($AO$2<=$A61,$A61<$AP$2),Arbeitsbereich!$J$704+Arbeitsbereich!$J$707,IF(AND($AP$2<=$A61,$A61<$AQ$2),Arbeitsbereich!$J$704+Arbeitsbereich!$J$707+Arbeitsbereich!$J$697,NA())))) -> 1349.178595 | AQ61: 1712.844221 | AR61: =IF(AND(0<=$A61,$A61<$AN$2),0,IF(AND($AN$2<=$A61,$A61<$AO$2),((A61-$AN$2)*Arbeitsbereich!$J$703),IF(AND($AO$2<=$A61,$A61<$AP$2),((A61-$AN$2)*Arbeitsbereich!$J$703)+((A61-$AO$2)*Arbeitsbereich!$J$706),IF(AND($AP$2<=$A61,$A61<$AQ$2),((A61-$AN$2)*Arbeitsbereich!$J$703)+((A61-$AO$2)*Arbeitsbereich!$J$706)+((A61-$AP$2)*Arbeitsbereich!$J$698)-(Arbeitsbereich!$J$693*Arbeitsbereich!$J$686),NA())))) -> -18598.78024 | AS61: =IF(AND(0<=$A61,$A61<$AN$2),0,IF(AND($AN$2<=$A61,$A61<$AO$2),((B61-$AN$2)*Arbeitsbereich!$J$704),IF(AND($AO$2<=$A61,$A61<$AP$2),((B61-$AN$2)*Arbeitsbereich!$J$704)+((B61-$AO$2)*Arbeitsbereich!$J$707),IF(AND($AP$2<=$A61,$A61<$AQ$2),((B61-$AN$2)*Arbeitsbereich!$J$704)+((B61-$AO$2)*Arbeitsbereich!$J$707)+((B61-$AP$2)*Arbeitsbereich!$J$697),NA())))) -> 104729.9885 | AT61: 106368.6284 | AU61: =IF(AND(0<=$A61,$A61<$AN$2),Arbeitsbereich!$J$696,IF(AND($AN$2<=$A61,$A61<$AO$2),Arbeitsbereich!$J$696,IF(AND($AO$2<=$A61,$A61<$AP$2),Arbeitsbereich!$J$696,IF(AND($AP$2<=$A61,$A61<$AQ$2),Arbeitsbereich!$J$696+(Arbeitsbereich!$J$693*Arbeitsbereich!$J$666),NA())))) -> -88981.1123 | AV61: =( ((AN61/Arbeitsbereich!$J$749)^2)+(Graphen!AT61/Arbeitsbereich!$J$750)+3*(((Arbeitsbereich!$J$754*Graphen!AU61)/Arbeitsbereich!$J$751)^2) )^0.5 -> 69.66371971
A62: 51 | B62: 110 | C62: 90 | G62: 100 | AN62: =IF(AND(0<=$A62,$A62<$AN$2),0,IF(AND($AN$2<=$A62,$A62<$AO$2),Arbeitsbereich!$J$705,IF(AND($AO$2<=$A62,$A62<$AP$2),Arbeitsbereich!$J$705+Arbeitsbereich!$J$708,IF(AND($AP$2<=$A62,$A62<$AQ$2),Arbeitsbereich!$J$705+Arbeitsbereich!$J$708+Arbeitsbereich!$J$699,NA())))) -> 226.7839094 | AO62: =IF(AND(0<=$A62,$A62<$AN$2),0,IF(AND($AN$2<=$A62,$A62<$AO$2),Arbeitsbereich!$J$703,IF(AND($AO$2<=$A62,$A62<$AP$2),Arbeitsbereich!$J$703+Arbeitsbereich!$J$706,IF(AND($AP$2<=$A62,$A62<$AQ$2),Arbeitsbereich!$J$703+Arbeitsbereich!$J$706+Arbeitsbereich!$J$698,NA())))) -> -1055.249943 | AP62: =IF(AND(0<=$A62,$A62<$AN$2),0,IF(AND($AN$2<=$A62,$A62<$AO$2),Arbeitsbereich!$J$704,IF(AND($AO$2<=$A62,$A62<$AP$2),Arbeitsbereich!$J$704+Arbeitsbereich!$J$707,IF(AND($AP$2<=$A62,$A62<$AQ$2),Arbeitsbereich!$J$704+Arbeitsbereich!$J$707+Arbeitsbereich!$J$697,NA())))) -> 1349.178595 | AQ62: 1712.844221 | AR62: =IF(AND(0<=$A62,$A62<$AN$2),0,IF(AND($AN$2<=$A62,$A62<$AO$2),((A62-$AN$2)*Arbeitsbereich!$J$703),IF(AND($AO$2<=$A62,$A62<$AP$2),((A62-$AN$2)*Arbeitsbereich!$J$703)+((A62-$AO$2)*Arbeitsbereich!$J$706),IF(AND($AP$2<=$A62,$A62<$AQ$2),((A62-$AN$2)*Arbeitsbereich!$J$703)+((A62-$AO$2)*Arbeitsbereich!$J$706)+((A62-$AP$2)*Arbeitsbereich!$J$698)-(Arbeitsbereich!$J$693*Arbeitsbereich!$J$686),NA())))) -> -19654.03019 | AS62: =IF(AND(0<=$A62,$A62<$AN$2),0,IF(AND($AN$2<=$A62,$A62<$AO$2),((B62-$AN$2)*Arbeitsbereich!$J$704),IF(AND($AO$2<=$A62,$A62<$AP$2),((B62-$AN$2)*Arbeitsbereich!$J$704)+((B62-$AO$2)*Arbeitsbereich!$J$707),IF(AND($AP$2<=$A62,$A62<$AQ$2),((B62-$AN$2)*Arbeitsbereich!$J$704)+((B62-$AO$2)*Arbeitsbereich!$J$707)+((B62-$AP$2)*Arbeitsbereich!$J$697),NA())))) -> 104729.9885 | AT62: 106558.2066 | AU62: =IF(AND(0<=$A62,$A62<$AN$2),Arbeitsbereich!$J$696,IF(AND($AN$2<=$A62,$A62<$AO$2),Arbeitsbereich!$J$696,IF(AND($AO$2<=$A62,$A62<$AP$2),Arbeitsbereich!$J$696,IF(AND($AP$2<=$A62,$A62<$AQ$2),Arbeitsbereich!$J$696+(Arbeitsbereich!$J$693*Arbeitsbereich!$J$666),NA())))) -> -88981.1123 | AV62: =( ((AN62/Arbeitsbereich!$J$749)^2)+(Graphen!AT62/Arbeitsbereich!$J$750)+3*(((Arbeitsbereich!$J$754*Graphen!AU62)/Arbeitsbereich!$J$751)^2) )^0.5 -> 69.66545214
A63: 52 | B63: 110 | C63: 90 | G63: 100 | AN63: =IF(AND(0<=$A63,$A63<$AN$2),0,IF(AND($AN$2<=$A63,$A63<$AO$2),Arbeitsbereich!$J$705,IF(AND($AO$2<=$A63,$A63<$AP$2),Arbeitsbereich!$J$705+Arbeitsbereich!$J$708,IF(AND($AP$2<=$A63,$A63<$AQ$2),Arbeitsbereich!$J$705+Arbeitsbereich!$J$708+Arbeitsbereich!$J$699,NA())))) -> 226.7839094 | AO63: =IF(AND(0<=$A63,$A63<$AN$2),0,IF(AND($AN$2<=$A63,$A63<$AO$2),Arbeitsbereich!$J$703,IF(AND($AO$2<=$A63,$A63<$AP$2),Arbeitsbereich!$J$703+Arbeitsbereich!$J$706,IF(AND($AP$2<=$A63,$A63<$AQ$2),Arbeitsbereich!$J$703+Arbeitsbereich!$J$706+Arbeitsbereich!$J$698,NA())))) -> -1055.249943 | AP63: =IF(AND(0<=$A63,$A63<$AN$2),0,IF(AND($AN$2<=$A63,$A63<$AO$2),Arbeitsbereich!$J$704,IF(AND($AO$2<=$A63,$A63<$AP$2),Arbeitsbereich!$J$704+Arbeitsbereich!$J$707,IF(AND($AP$2<=$A63,$A63<$AQ$2),Arbeitsbereich!$J$704+Arbeitsbereich!$J$707+Arbeitsbereich!$J$697,NA())))) -> 1349.178595 | AQ63: 1712.844221 | AR63: =IF(AND(0<=$A63,$A63<$AN$2),0,IF(AND($AN$2<=$A63,$A63<$AO$2),((A63-$AN$2)*Arbeitsbereich!$J$703),IF(AND($AO$2<=$A63,$A63<$AP$2),((A63-$AN$2)*Arbeitsbereich!$J$703)+((A63-$AO$2)*Arbeitsbereich!$J$706),IF(AND($AP$2<=$A63,$A63<$AQ$2),((A63-$AN$2)*Arbeitsbereich!$J$703)+((A63-$AO$2)*Arbeitsbereich!$J$706)+((A63-$AP$2)*Arbeitsbereich!$J$698)-(Arbeitsbereich!$J$693*Arbeitsbereich!$J$686),NA())))) -> -20709.28013 | AS63: =IF(AND(0<=$A63,$A63<$AN$2),0,IF(AND($AN$2<=$A63,$A63<$AO$2),((B63-$AN$2)*Arbeitsbereich!$J$704),IF(AND($AO$2<=$A63,$A63<$AP$2),((B63-$AN$2)*Arbeitsbereich!$J$704)+((B63-$AO$2)*Arbeitsbereich!$J$707),IF(AND($AP$2<=$A63,$A63<$AQ$2),((B63-$AN$2)*Arbeitsbereich!$J$704)+((B63-$AO$2)*Arbeitsbereich!$J$707)+((B63-$AP$2)*Arbeitsbereich!$J$697),NA())))) -> 104729.9885 | AT63: 106757.8792 | AU63: =IF(AND(0<=$A63,$A63<$AN$2),Arbeitsbereich!$J$696,IF(AND($AN$2<=$A63,$A63<$AO$2),Arbeitsbereich!$J$696,IF(AND($AO$2<=$A63,$A63<$AP$2),Arbeitsbereich!$J$696,IF(AND($AP$2<=$A63,$A63<$AQ$2),Arbeitsbereich!$J$696+(Arbeitsbereich!$J$693*Arbeitsbereich!$J$666),NA())))) -> -88981.1123 | AV63: =( ((AN63/Arbeitsbereich!$J$749)^2)+(Graphen!AT63/Arbeitsbereich!$J$750)+3*(((Arbeitsbereich!$J$754*Graphen!AU63)/Arbeitsbereich!$J$751)^2) )^0.5 -> 69.66727677
A64: 53 | B64: 110 | C64: 90 | G64: 100 | AN64: =IF(AND(0<=$A64,$A64<$AN$2),0,IF(AND($AN$2<=$A64,$A64<$AO$2),Arbeitsbereich!$J$705,IF(AND($AO$2<=$A64,$A64<$AP$2),Arbeitsbereich!$J$705+Arbeitsbereich!$J$708,IF(AND($AP$2<=$A64,$A64<$AQ$2),Arbeitsbereich!$J$705+Arbeitsbereich!$J$708+Arbeitsbereich!$J$699,NA())))) -> 226.7839094 | AO64: =IF(AND(0<=$A64,$A64<$AN$2),0,IF(AND($AN$2<=$A64,$A64<$AO$2),Arbeitsbereich!$J$703,IF(AND($AO$2<=$A64,$A64<$AP$2),Arbeitsbereich!$J$703+Arbeitsbereich!$J$706,IF(AND($AP$2<=$A64,$A64<$AQ$2),Arbeitsbereich!$J$703+Arbeitsbereich!$J$706+Arbeitsbereich!$J$698,NA())))) -> -1055.249943 | AP64: =IF(AND(0<=$A64,$A64<$AN$2),0,IF(AND($AN$2<=$A64,$A64<$AO$2),Arbeitsbereich!$J$704,IF(AND($AO$2<=$A64,$A64<$AP$2),Arbeitsbereich!$J$704+Arbeitsbereich!$J$707,IF(AND($AP$2<=$A64,$A64<$AQ$2),Arbeitsbereich!$J$704+Arbeitsbereich!$J$707+Arbeitsbereich!$J$697,NA())))) -> 1349.178595 | AQ64: 1712.844221 | AR64: =IF(AND(0<=$A64,$A64<$AN$2),0,IF(AND($AN$2<=$A64,$A64<$AO$2),((A64-$AN$2)*Arbeitsbereich!$J$703),IF(AND($AO$2<=$A64,$A64<$AP$2),((A64-$AN$2)*Arbeitsbereich!$J$703)+((A64-$AO$2)*Arbeitsbereich!$J$706),IF(AND($AP$2<=$A64,$A64<$AQ$2),((A64-$AN$2)*Arbeitsbereich!$J$703)+((A64-$AO$2)*Arbeitsbereich!$J$706)+((A64-$AP$2)*Arbeitsbereich!$J$698)-(Arbeitsbereich!$J$693*Arbeitsbereich!$J$686),NA())))) -> -21764.53007 | AS64: =IF(AND(0<=$A64,$A64<$AN$2),0,IF(AND($AN$2<=$A64,$A64<$AO$2),((B64-$AN$2)*Arbeitsbereich!$J$704),IF(AND($AO$2<=$A64,$A64<$AP$2),((B64-$AN$2)*Arbeitsbereich!$J$704)+((B64-$AO$2)*Arbeitsbereich!$J$707),IF(AND($AP$2<=$A64,$A64<$AQ$2),((B64-$AN$2)*Arbeitsbereich!$J$704)+((B64-$AO$2)*Arbeitsbereich!$J$707)+((B64-$AP$2)*Arbeitsbereich!$J$697),NA())))) -> 104729.9885 | AT64: 106967.5897 | AU64: =IF(AND(0<=$A64,$A64<$AN$2),Arbeitsbereich!$J$696,IF(AND($AN$2<=$A64,$A64<$AO$2),Arbeitsbereich!$J$696,IF(AND($AO$2<=$A64,$A64<$AP$2),Arbeitsbereich!$J$696,IF(AND($AP$2<=$A64,$A64<$AQ$2),Arbeitsbereich!$J$696+(Arbeitsbereich!$J$693*Arbeitsbereich!$J$666),NA())))) -> -88981.1123 | AV64: =( ((AN64/Arbeitsbereich!$J$749)^2)+(Graphen!AT64/Arbeitsbereich!$J$750)+3*(((Arbeitsbereich!$J$754*Graphen!AU64)/Arbeitsbereich!$J$751)^2) )^0.5 -> 69.66919308
A65: 54 | B65: 110 | C65: 90 | G65: 100 | AN65: =IF(AND(0<=$A65,$A65<$AN$2),0,IF(AND($AN$2<=$A65,$A65<$AO$2),Arbeitsbereich!$J$705,IF(AND($AO$2<=$A65,$A65<$AP$2),Arbeitsbereich!$J$705+Arbeitsbereich!$J$708,IF(AND($AP$2<=$A65,$A65<$AQ$2),Arbeitsbereich!$J$705+Arbeitsbereich!$J$708+Arbeitsbereich!$J$699,NA())))) -> 226.7839094 | AO65: =IF(AND(0<=$A65,$A65<$AN$2),0,IF(AND($AN$2<=$A65,$A65<$AO$2),Arbeitsbereich!$J$703,IF(AND($AO$2<=$A65,$A65<$AP$2),Arbeitsbereich!$J$703+Arbeitsbereich!$J$706,IF(AND($AP$2<=$A65,$A65<$AQ$2),Arbeitsbereich!$J$703+Arbeitsbereich!$J$706+Arbeitsbereich!$J$698,NA())))) -> -1055.249943 | AP65: =IF(AND(0<=$A65,$A65<$AN$2),0,IF(AND($AN$2<=$A65,$A65<$AO$2),Arbeitsbereich!$J$704,IF(AND($AO$2<=$A65,$A65<$AP$2),Arbeitsbereich!$J$704+Arbeitsbereich!$J$707,IF(AND($AP$2<=$A65,$A65<$AQ$2),Arbeitsbereich!$J$704+Arbeitsbereich!$J$707+Arbeitsbereich!$J$697,NA())))) -> 1349.178595 | AQ65: 1712.844221 | AR65: =IF(AND(0<=$A65,$A65<$AN$2),0,IF(AND($AN$2<=$A65,$A65<$AO$2),((A65-$AN$2)*Arbeitsbereich!$J$703),IF(AND($AO$2<=$A65,$A65<$AP$2),((A65-$AN$2)*Arbeitsbereich!$J$703)+((A65-$AO$2)*Arbeitsbereich!$J$706),IF(AND($AP$2<=$A65,$A65<$AQ$2),((A65-$AN$2)*Arbeitsbereich!$J$703)+((A65-$AO$2)*Arbeitsbereich!$J$706)+((A65-$AP$2)*Arbeitsbereich!$J$698)-(Arbeitsbereich!$J$693*Arbeitsbereich!$J$686),NA())))) -> -22819.78002 | AS65: =IF(AND(0<=$A65,$A65<$AN$2),0,IF(AND($AN$2<=$A65,$A65<$AO$2),((B65-$AN$2)*Arbeitsbereich!$J$704),IF(AND($AO$2<=$A65,$A65<$AP$2),((B65-$AN$2)*Arbeitsbereich!$J$704)+((B65-$AO$2)*Arbeitsbereich!$J$707),IF(AND($AP$2<=$A65,$A65<$AQ$2),((B65-$AN$2)*Arbeitsbereich!$J$704)+((B65-$AO$2)*Arbeitsbereich!$J$707)+((B65-$AP$2)*Arbeitsbereich!$J$697),NA())))) -> 104729.9885 | AT65: 107187.2793 | AU65: =IF(AND(0<=$A65,$A65<$AN$2),Arbeitsbereich!$J$696,IF(AND($AN$2<=$A65,$A65<$AO$2),Arbeitsbereich!$J$696,IF(AND($AO$2<=$A65,$A65<$AP$2),Arbeitsbereich!$J$696,IF(AND($AP$2<=$A65,$A65<$AQ$2),Arbeitsbereich!$J$696+(Arbeitsbereich!$J$693*Arbeitsbereich!$J$666),NA())))) -> -88981.1123 | AV65: =( ((AN65/Arbeitsbereich!$J$749)^2)+(Graphen!AT65/Arbeitsbereich!$J$750)+3*(((Arbeitsbereich!$J$754*Graphen!AU65)/Arbeitsbereich!$J$751)^2) )^0.5 -> 69.67120052
A66: 55 | B66: 110 | C66: 90 | G66: 100 | AN66: =IF(AND(0<=$A66,$A66<$AN$2),0,IF(AND($AN$2<=$A66,$A66<$AO$2),Arbeitsbereich!$J$705,IF(AND($AO$2<=$A66,$A66<$AP$2),Arbeitsbereich!$J$705+Arbeitsbereich!$J$708,IF(AND($AP$2<=$A66,$A66<$AQ$2),Arbeitsbereich!$J$705+Arbeitsbereich!$J$708+Arbeitsbereich!$J$699,NA())))) -> 226.7839094 | AO66: =IF(AND(0<=$A66,$A66<$AN$2),0,IF(AND($AN$2<=$A66,$A66<$AO$2),Arbeitsbereich!$J$703,IF(AND($AO$2<=$A66,$A66<$AP$2),Arbeitsbereich!$J$703+Arbeitsbereich!$J$706,IF(AND($AP$2<=$A66,$A66<$AQ$2),Arbeitsbereich!$J$703+Arbeitsbereich!$J$706+Arbeitsbereich!$J$698,NA())))) -> -1055.249943 | AP66: =IF(AND(0<=$A66,$A66<$AN$2),0,IF(AND($AN$2<=$A66,$A66<$AO$2),Arbeitsbereich!$J$704,IF(AND($AO$2<=$A66,$A66<$AP$2),Arbeitsbereich!$J$704+Arbeitsbereich!$J$707,IF(AND($AP$2<=$A66,$A66<$AQ$2),Arbeitsbereich!$J$704+Arbeitsbereich!$J$707+Arbeitsbereich!$J$697,NA())))) -> 1349.178595 | AQ66: 1712.844221 | AR66: =IF(AND(0<=$A66,$A66<$AN$2),0,IF(AND($AN$2<=$A66,$A66<$AO$2),((A66-$AN$2)*Arbeitsbereich!$J$703),IF(AND($AO$2<=$A66,$A66<$AP$2),((A66-$AN$2)*Arbeitsbereich!$J$703)+((A66-$AO$2)*Arbeitsbereich!$J$706),IF(AND($AP$2<=$A66,$A66<$AQ$2),((A66-$AN$2)*Arbeitsbereich!$J$703)+((A66-$AO$2)*Arbeitsbereich!$J$706)+((A66-$AP$2)*Arbeitsbereich!$J$698)-(Arbeitsbereich!$J$693*Arbeitsbereich!$J$686),NA())))) -> -23875.02996 | AS66: =IF(AND(0<=$A66,$A66<$AN$2),0,IF(AND($AN$2<=$A66,$A66<$AO$2),((B66-$AN$2)*Arbeitsbereich!$J$704),IF(AND($AO$2<=$A66,$A66<$AP$2),((B66-$AN$2)*Arbeitsbereich!$J$704)+((B66-$AO$2)*Arbeitsbereich!$J$707),IF(AND($AP$2<=$A66,$A66<$AQ$2),((B66-$AN$2)*Arbeitsbereich!$J$704)+((B66-$AO$2)*Arbeitsbereich!$J$707)+((B66-$AP$2)*Arbeitsbereich!$J$697),NA())))) -> 104729.9885 | AT66: 107416.8867 | AU66: =IF(AND(0<=$A66,$A66<$AN$2),Arbeitsbereich!$J$696,IF(AND($AN$2<=$A66,$A66<$AO$2),Arbeitsbereich!$J$696,IF(AND($AO$2<=$A66,$A66<$AP$2),Arbeitsbereich!$J$696,IF(AND($AP$2<=$A66,$A66<$AQ$2),Arbeitsbereich!$J$696+(Arbeitsbereich!$J$693*Arbeitsbereich!$J$666),NA())))) -> -88981.1123 | AV66: =( ((AN66/Arbeitsbereich!$J$749)^2)+(Graphen!AT66/Arbeitsbereich!$J$750)+3*(((Arbeitsbereich!$J$754*Graphen!AU66)/Arbeitsbereich!$J$751)^2) )^0.5 -> 69.67329852
A67: 56 | B67: 110 | C67: 90 | G67: 100 | AN67: =IF(AND(0<=$A67,$A67<$AN$2),0,IF(AND($AN$2<=$A67,$A67<$AO$2),Arbeitsbereich!$J$705,IF(AND($AO$2<=$A67,$A67<$AP$2),Arbeitsbereich!$J$705+Arbeitsbereich!$J$708,IF(AND($AP$2<=$A67,$A67<$AQ$2),Arbeitsbereich!$J$705+Arbeitsbereich!$J$708+Arbeitsbereich!$J$699,NA())))) -> 226.7839094 | AO67: =IF(AND(0<=$A67,$A67<$AN$2),0,IF(AND($AN$2<=$A67,$A67<$AO$2),Arbeitsbereich!$J$703,IF(AND($AO$2<=$A67,$A67<$AP$2),Arbeitsbereich!$J$703+Arbeitsbereich!$J$706,IF(AND($AP$2<=$A67,$A67<$AQ$2),Arbeitsbereich!$J$703+Arbeitsbereich!$J$706+Arbeitsbereich!$J$698,NA())))) -> -1055.249943 | AP67: =IF(AND(0<=$A67,$A67<$AN$2),0,IF(AND($AN$2<=$A67,$A67<$AO$2),Arbeitsbereich!$J$704,IF(AND($AO$2<=$A67,$A67<$AP$2),Arbeitsbereich!$J$704+Arbeitsbereich!$J$707,IF(AND($AP$2<=$A67,$A67<$AQ$2),Arbeitsbereich!$J$704+Arbeitsbereich!$J$707+Arbeitsbereich!$J$697,NA())))) -> 1349.178595 | AQ67: 1712.844221 | AR67: =IF(AND(0<=$A67,$A67<$AN$2),0,IF(AND($AN$2<=$A67,$A67<$AO$2),((A67-$AN$2)*Arbeitsbereich!$J$703),IF(AND($AO$2<=$A67,$A67<$AP$2),((A67-$AN$2)*Arbeitsbereich!$J$703)+((A67-$AO$2)*Arbeitsbereich!$J$706),IF(AND($AP$2<=$A67,$A67<$AQ$2),((A67-$AN$2)*Arbeitsbereich!$J$703)+((A67-$AO$2)*Arbeitsbereich!$J$706)+((A67-$AP$2)*Arbeitsbereich!$J$698)-(Arbeitsbereich!$J$693*Arbeitsbereich!$J$686),NA())))) -> -24930.2799 | AS67: =IF(AND(0<=$A67,$A67<$AN$2),0,IF(AND($AN$2<=$A67,$A67<$AO$2),((B67-$AN$2)*Arbeitsbereich!$J$704),IF(AND($AO$2<=$A67,$A67<$AP$2),((B67-$AN$2)*Arbeitsbereich!$J$704)+((B67-$AO$2)*Arbeitsbereich!$J$707),IF(AND($AP$2<=$A67,$A67<$AQ$2),((B67-$AN$2)*Arbeitsbereich!$J$704)+((B67-$AO$2)*Arbeitsbereich!$J$707)+((B67-$AP$2)*Arbeitsbereich!$J$697),NA())))) -> 104729.9885 | AT67: 107656.3483 | AU67: =IF(AND(0<=$A67,$A67<$AN$2),Arbeitsbereich!$J$696,IF(AND($AN$2<=$A67,$A67<$AO$2),Arbeitsbereich!$J$696,IF(AND($AO$2<=$A67,$A67<$AP$2),Arbeitsbereich!$J$696,IF(AND($AP$2<=$A67,$A67<$AQ$2),Arbeitsbereich!$J$696+(Arbeitsbereich!$J$693*Arbeitsbereich!$J$666),NA())))) -> -88981.1123 | AV67: =( ((AN67/Arbeitsbereich!$J$749)^2)+(Graphen!AT67/Arbeitsbereich!$J$750)+3*(((Arbeitsbereich!$J$754*Graphen!AU67)/Arbeitsbereich!$J$751)^2) )^0.5 -> 69.6754865
A68: 57 | B68: 110 | C68: 90 | G68: 100 | AN68: =IF(AND(0<=$A68,$A68<$AN$2),0,IF(AND($AN$2<=$A68,$A68<$AO$2),Arbeitsbereich!$J$705,IF(AND($AO$2<=$A68,$A68<$AP$2),Arbeitsbereich!$J$705+Arbeitsbereich!$J$708,IF(AND($AP$2<=$A68,$A68<$AQ$2),Arbeitsbereich!$J$705+Arbeitsbereich!$J$708+Arbeitsbereich!$J$699,NA())))) -> 226.7839094 | AO68: =IF(AND(0<=$A68,$A68<$AN$2),0,IF(AND($AN$2<=$A68,$A68<$AO$2),Arbeitsbereich!$J$703,IF(AND($AO$2<=$A68,$A68<$AP$2),Arbeitsbereich!$J$703+Arbeitsbereich!$J$706,IF(AND($AP$2<=$A68,$A68<$AQ$2),Arbeitsbereich!$J$703+Arbeitsbereich!$J$706+Arbeitsbereich!$J$698,NA())))) -> -1055.249943 | AP68: =IF(AND(0<=$A68,$A68<$AN$2),0,IF(AND($AN$2<=$A68,$A68<$AO$2),Arbeitsbereich!$J$704,IF(AND($AO$2<=$A68,$A68<$AP$2),Arbeitsbereich!$J$704+Arbeitsbereich!$J$707,IF(AND($AP$2<=$A68,$A68<$AQ$2),Arbeitsbereich!$J$704+Arbeitsbereich!$J$707+Arbeitsbereich!$J$697,NA())))) -> 1349.178595 | AQ68: 1712.844221 | AR68: =IF(AND(0<=$A68,$A68<$AN$2),0,IF(AND($AN$2<=$A68,$A68<$AO$2),((A68-$AN$2)*Arbeitsbereich!$J$703),IF(AND($AO$2<=$A68,$A68<$AP$2),((A68-$AN$2)*Arbeitsbereich!$J$703)+((A68-$AO$2)*Arbeitsbereich!$J$706),IF(AND($AP$2<=$A68,$A68<$AQ$2),((A68-$AN$2)*Arbeitsbereich!$J$703)+((A68-$AO$2)*Arbeitsbereich!$J$706)+((A68-$AP$2)*Arbeitsbereich!$J$698)-(Arbeitsbereich!$J$693*Arbeitsbereich!$J$686),NA())))) -> -25985.52985 | AS68: =IF(AND(0<=$A68,$A68<$AN$2),0,IF(AND($AN$2<=$A68,$A68<$AO$2),((B68-$AN$2)*Arbeitsbereich!$J$704),IF(AND($AO$2<=$A68,$A68<$AP$2),((B68-$AN$2)*Arbeitsbereich!$J$704)+((B68-$AO$2)*Arbeitsbereich!$J$707),IF(AND($AP$2<=$A68,$A68<$AQ$2),((B68-$AN$2)*Arbeitsbereich!$J$704)+((B68-$AO$2)*Arbeitsbereich!$J$707)+((B68-$AP$2)*Arbeitsbereich!$J$697),NA())))) -> 104729.9885 | AT68: 107905.5988 | AU68: =IF(AND(0<=$A68,$A68<$AN$2),Arbeitsbereich!$J$696,IF(AND($AN$2<=$A68,$A68<$AO$2),Arbeitsbereich!$J$696,IF(AND($AO$2<=$A68,$A68<$AP$2),Arbeitsbereich!$J$696,IF(AND($AP$2<=$A68,$A68<$AQ$2),Arbeitsbereich!$J$696+(Arbeitsbereich!$J$693*Arbeitsbereich!$J$666),NA())))) -> -88981.1123 | AV68: =( ((AN68/Arbeitsbereich!$J$749)^2)+(Graphen!AT68/Arbeitsbereich!$J$750)+3*(((Arbeitsbereich!$J$754*Graphen!AU68)/Arbeitsbereich!$J$751)^2) )^0.5 -> 69.67776385
A69: 58 | B69: 110 | C69: 90 | G69: 100 | AN69: =IF(AND(0<=$A69,$A69<$AN$2),0,IF(AND($AN$2<=$A69,$A69<$AO$2),Arbeitsbereich!$J$705,IF(AND($AO$2<=$A69,$A69<$AP$2),Arbeitsbereich!$J$705+Arbeitsbereich!$J$708,IF(AND($AP$2<=$A69,$A69<$AQ$2),Arbeitsbereich!$J$705+Arbeitsbereich!$J$708+Arbeitsbereich!$J$699,NA())))) -> 226.7839094 | AO69: =IF(AND(0<=$A69,$A69<$AN$2),0,IF(AND($AN$2<=$A69,$A69<$AO$2),Arbeitsbereich!$J$703,IF(AND($AO$2<=$A69,$A69<$AP$2),Arbeitsbereich!$J$703+Arbeitsbereich!$J$706,IF(AND($AP$2<=$A69,$A69<$AQ$2),Arbeitsbereich!$J$703+Arbeitsbereich!$J$706+Arbeitsbereich!$J$698,NA())))) -> -1055.249943 | AP69: =IF(AND(0<=$A69,$A69<$AN$2),0,IF(AND($AN$2<=$A69,$A69<$AO$2),Arbeitsbereich!$J$704,IF(AND($AO$2<=$A69,$A69<$AP$2),Arbeitsbereich!$J$704+Arbeitsbereich!$J$707,IF(AND($AP$2<=$A69,$A69<$AQ$2),Arbeitsbereich!$J$704+Arbeitsbereich!$J$707+Arbeitsbereich!$J$697,NA())))) -> 1349.178595 | AQ69: 1712.844221 | AR69: =IF(AND(0<=$A69,$A69<$AN$2),0,IF(AND($AN$2<=$A69,$A69<$AO$2),((A69-$AN$2)*Arbeitsbereich!$J$703),IF(AND($AO$2<=$A69,$A69<$AP$2),((A69-$AN$2)*Arbeitsbereich!$J$703)+((A69-$AO$2)*Arbeitsbereich!$J$706),IF(AND($AP$2<=$A69,$A69<$AQ$2),((A69-$AN$2)*Arbeitsbereich!$J$703)+((A69-$AO$2)*Arbeitsbereich!$J$706)+((A69-$AP$2)*Arbeitsbereich!$J$698)-(Arbeitsbereich!$J$693*Arbeitsbereich!$J$686),NA())))) -> -27040.77979 | AS69: =IF(AND(0<=$A69,$A69<$AN$2),0,IF(AND($AN$2<=$A69,$A69<$AO$2),((B69-$AN$2)*Arbeitsbereich!$J$704),IF(AND($AO$2<=$A69,$A69<$AP$2),((B69-$AN$2)*Arbeitsbereich!$J$704)+((B69-$AO$2)*Arbeitsbereich!$J$707),IF(AND($AP$2<=$A69,$A69<$AQ$2),((B69-$AN$2)*Arbeitsbereich!$J$704)+((B69-$AO$2)*Arbeitsbereich!$J$707)+((B69-$AP$2)*Arbeitsbereich!$J$697),NA())))) -> 104729.9885 | AT69: 108164.5702 | AU69: =IF(AND(0<=$A69,$A69<$AN$2),Arbeitsbereich!$J$696,IF(AND($AN$2<=$A69,$A69<$AO$2),Arbeitsbereich!$J$696,IF(AND($AO$2<=$A69,$A69<$AP$2),Arbeitsbereich!$J$696,IF(AND($AP$2<=$A69,$A69<$AQ$2),Arbeitsbereich!$J$696+(Arbeitsbereich!$J$693*Arbeitsbereich!$J$666),NA())))) -> -88981.1123 | AV69: =( ((AN69/Arbeitsbereich!$J$749)^2)+(Graphen!AT69/Arbeitsbereich!$J$750)+3*(((Arbeitsbereich!$J$754*Graphen!AU69)/Arbeitsbereich!$J$751)^2) )^0.5 -> 69.68012993
A70: 59 | B70: 110 | C70: 90 | G70: 100 | AN70: =IF(AND(0<=$A70,$A70<$AN$2),0,IF(AND($AN$2<=$A70,$A70<$AO$2),Arbeitsbereich!$J$705,IF(AND($AO$2<=$A70,$A70<$AP$2),Arbeitsbereich!$J$705+Arbeitsbereich!$J$708,IF(AND($AP$2<=$A70,$A70<$AQ$2),Arbeitsbereich!$J$705+Arbeitsbereich!$J$708+Arbeitsbereich!$J$699,NA())))) -> 226.7839094 | AO70: =IF(AND(0<=$A70,$A70<$AN$2),0,IF(AND($AN$2<=$A70,$A70<$AO$2),Arbeitsbereich!$J$703,IF(AND($AO$2<=$A70,$A70<$AP$2),Arbeitsbereich!$J$703+Arbeitsbereich!$J$706,IF(AND($AP$2<=$A70,$A70<$AQ$2),Arbeitsbereich!$J$703+Arbeitsbereich!$J$706+Arbeitsbereich!$J$698,NA())))) -> -1055.249943 | AP70: =IF(AND(0<=$A70,$A70<$AN$2),0,IF(AND($AN$2<=$A70,$A70<$AO$2),Arbeitsbereich!$J$704,IF(AND($AO$2<=$A70,$A70<$AP$2),Arbeitsbereich!$J$704+Arbeitsbereich!$J$707,IF(AND($AP$2<=$A70,$A70<$AQ$2),Arbeitsbereich!$J$704+Arbeitsbereich!$J$707+Arbeitsbereich!$J$697,NA())))) -> 1349.178595 | AQ70: 1712.844221 | AR70: =IF(AND(0<=$A70,$A70<$AN$2),0,IF(AND($AN$2<=$A70,$A70<$AO$2),((A70-$AN$2)*Arbeitsbereich!$J$703),IF(AND($AO$2<=$A70,$A70<$AP$2),((A70-$AN$2)*Arbeitsbereich!$J$703)+((A70-$AO$2)*Arbeitsbereich!$J$706),IF(AND($AP$2<=$A70,$A70<$AQ$2),((A70-$AN$2)*Arbeitsbereich!$J$703)+((A70-$AO$2)*Arbeitsbereich!$J$706)+((A70-$AP$2)*Arbeitsbereich!$J$698)-(Arbeitsbereich!$J$693*Arbeitsbereich!$J$686),NA())))) -> -28096.02973 | AS70: =IF(AND(0<=$A70,$A70<$AN$2),0,IF(AND($AN$2<=$A70,$A70<$AO$2),((B70-$AN$2)*Arbeitsbereich!$J$704),IF(AND($AO$2<=$A70,$A70<$AP$2),((B70-$AN$2)*Arbeitsbereich!$J$704)+((B70-$AO$2)*Arbeitsbereich!$J$707),IF(AND($AP$2<=$A70,$A70<$AQ$2),((B70-$AN$2)*Arbeitsbereich!$J$704)+((B70-$AO$2)*Arbeitsbereich!$J$707)+((B70-$AP$2)*Arbeitsbereich!$J$697),NA())))) -> 104729.9885 | AT70: 108433.1931 | AU70: =IF(AND(0<=$A70,$A70<$AN$2),Arbeitsbereich!$J$696,IF(AND($AN$2<=$A70,$A70<$AO$2),Arbeitsbereich!$J$696,IF(AND($AO$2<=$A70,$A70<$AP$2),Arbeitsbereich!$J$696,IF(AND($AP$2<=$A70,$A70<$AQ$2),Arbeitsbereich!$J$696+(Arbeitsbereich!$J$693*Arbeitsbereich!$J$666),NA())))) -> -88981.1123 | AV70: =( ((AN70/Arbeitsbereich!$J$749)^2)+(Graphen!AT70/Arbeitsbereich!$J$750)+3*(((Arbeitsbereich!$J$754*Graphen!AU70)/Arbeitsbereich!$J$751)^2) )^0.5 -> 69.68258411
A71: 60 | B71: 110 | C71: 90 | G71: 100 | AH71: =IF($A71=AH$8,$B$2+$D$2,NA()) ->  | AN71: =IF(AND(0<=$A71,$A71<$AN$2),0,IF(AND($AN$2<=$A71,$A71<$AO$2),Arbeitsbereich!$J$705,IF(AND($AO$2<=$A71,$A71<$AP$2),Arbeitsbereich!$J$705+Arbeitsbereich!$J$708,IF(AND($AP$2<=$A71,$A71<$AQ$2),Arbeitsbereich!$J$705+Arbeitsbereich!$J$708+Arbeitsbereich!$J$699,NA())))) -> 226.7839094 | AO71: =IF(AND(0<=$A71,$A71<$AN$2),0,IF(AND($AN$2<=$A71,$A71<$AO$2),Arbeitsbereich!$J$703,IF(AND($AO$2<=$A71,$A71<$AP$2),Arbeitsbereich!$J$703+Arbeitsbereich!$J$706,IF(AND($AP$2<=$A71,$A71<$AQ$2),Arbeitsbereich!$J$703+Arbeitsbereich!$J$706+Arbeitsbereich!$J$698,NA())))) -> -1055.249943 | AP71: =IF(AND(0<=$A71,$A71<$AN$2),0,IF(AND($AN$2<=$A71,$A71<$AO$2),Arbeitsbereich!$J$704,IF(AND($AO$2<=$A71,$A71<$AP$2),Arbeitsbereich!$J$704+Arbeitsbereich!$J$707,IF(AND($AP$2<=$A71,$A71<$AQ$2),Arbeitsbereich!$J$704+Arbeitsbereich!$J$707+Arbeitsbereich!$J$697,NA())))) -> 1349.178595 | AQ71: 1712.844221 | AR71: =IF(AND(0<=$A71,$A71<$AN$2),0,IF(AND($AN$2<=$A71,$A71<$AO$2),((A71-$AN$2)*Arbeitsbereich!$J$703),IF(AND($AO$2<=$A71,$A71<$AP$2),((A71-$AN$2)*Arbeitsbereich!$J$703)+((A71-$AO$2)*Arbeitsbereich!$J$706),IF(AND($AP$2<=$A71,$A71<$AQ$2),((A71-$AN$2)*Arbeitsbereich!$J$703)+((A71-$AO$2)*Arbeitsbereich!$J$706)+((A71-$AP$2)*Arbeitsbereich!$J$698)-(Arbeitsbereich!$J$693*Arbeitsbereich!$J$686),NA())))) -> -29151.27967 | AS71: =IF(AND(0<=$A71,$A71<$AN$2),0,IF(AND($AN$2<=$A71,$A71<$AO$2),((B71-$AN$2)*Arbeitsbereich!$J$704),IF(AND($AO$2<=$A71,$A71<$AP$2),((B71-$AN$2)*Arbeitsbereich!$J$704)+((B71-$AO$2)*Arbeitsbereich!$J$707),IF(AND($AP$2<=$A71,$A71<$AQ$2),((B71-$AN$2)*Arbeitsbereich!$J$704)+((B71-$AO$2)*Arbeitsbereich!$J$707)+((B71-$AP$2)*Arbeitsbereich!$J$697),NA())))) -> 104729.9885 | AT71: 108711.3959 | AU71: =IF(AND(0<=$A71,$A71<$AN$2),Arbeitsbereich!$J$696,IF(AND($AN$2<=$A71,$A71<$AO$2),Arbeitsbereich!$J$696,IF(AND($AO$2<=$A71,$A71<$AP$2),Arbeitsbereich!$J$696,IF(AND($AP$2<=$A71,$A71<$AQ$2),Arbeitsbereich!$J$696+(Arbeitsbereich!$J$693*Arbeitsbereich!$J$666),NA())))) -> -88981.1123 | AV71: =( ((AN71/Arbeitsbereich!$J$749)^2)+(Graphen!AT71/Arbeitsbereich!$J$750)+3*(((Arbeitsbereich!$J$754*Graphen!AU71)/Arbeitsbereich!$J$751)^2) )^0.5 -> 69.68512572
A72: 61 | B72: 110 | C72: 90 | G72: 100 | AN72: =IF(AND(0<=$A72,$A72<$AN$2),0,IF(AND($AN$2<=$A72,$A72<$AO$2),Arbeitsbereich!$J$705,IF(AND($AO$2<=$A72,$A72<$AP$2),Arbeitsbereich!$J$705+Arbeitsbereich!$J$708,IF(AND($AP$2<=$A72,$A72<$AQ$2),Arbeitsbereich!$J$705+Arbeitsbereich!$J$708+Arbeitsbereich!$J$699,NA())))) -> 226.7839094 | AO72: =IF(AND(0<=$A72,$A72<$AN$2),0,IF(AND($AN$2<=$A72,$A72<$AO$2),Arbeitsbereich!$J$703,IF(AND($AO$2<=$A72,$A72<$AP$2),Arbeitsbereich!$J$703+Arbeitsbereich!$J$706,IF(AND($AP$2<=$A72,$A72<$AQ$2),Arbeitsbereich!$J$703+Arbeitsbereich!$J$706+Arbeitsbereich!$J$698,NA())))) -> -1055.249943 | AP72: =IF(AND(0<=$A72,$A72<$AN$2),0,IF(AND($AN$2<=$A72,$A72<$AO$2),Arbeitsbereich!$J$704,IF(AND($AO$2<=$A72,$A72<$AP$2),Arbeitsbereich!$J$704+Arbeitsbereich!$J$707,IF(AND($AP$2<=$A72,$A72<$AQ$2),Arbeitsbereich!$J$704+Arbeitsbereich!$J$707+Arbeitsbereich!$J$697,NA())))) -> 1349.178595 | AQ72: 1712.844221 | AR72: =IF(AND(0<=$A72,$A72<$AN$2),0,IF(AND($AN$2<=$A72,$A72<$AO$2),((A72-$AN$2)*Arbeitsbereich!$J$703),IF(AND($AO$2<=$A72,$A72<$AP$2),((A72-$AN$2)*Arbeitsbereich!$J$703)+((A72-$AO$2)*Arbeitsbereich!$J$706),IF(AND($AP$2<=$A72,$A72<$AQ$2),((A72-$AN$2)*Arbeitsbereich!$J$703)+((A72-$AO$2)*Arbeitsbereich!$J$706)+((A72-$AP$2)*Arbeitsbereich!$J$698)-(Arbeitsbereich!$J$693*Arbeitsbereich!$J$686),NA())))) -> -30206.52962 | AS72: =IF(AND(0<=$A72,$A72<$AN$2),0,IF(AND($AN$2<=$A72,$A72<$AO$2),((B72-$AN$2)*Arbeitsbereich!$J$704),IF(AND($AO$2<=$A72,$A72<$AP$2),((B72-$AN$2)*Arbeitsbereich!$J$704)+((B72-$AO$2)*Arbeitsbereich!$J$707),IF(AND($AP$2<=$A72,$A72<$AQ$2),((B72-$AN$2)*Arbeitsbereich!$J$704)+((B72-$AO$2)*Arbeitsbereich!$J$707)+((B72-$AP$2)*Arbeitsbereich!$J$697),NA())))) -> 104729.9885 | AT72: 108999.1051 | AU72: =IF(AND(0<=$A72,$A72<$AN$2),Arbeitsbereich!$J$696,IF(AND($AN$2<=$A72,$A72<$AO$2),Arbeitsbereich!$J$696,IF(AND($AO$2<=$A72,$A72<$AP$2),Arbeitsbereich!$J$696,IF(AND($AP$2<=$A72,$A72<$AQ$2),Arbeitsbereich!$J$696+(Arbeitsbereich!$J$693*Arbeitsbereich!$J$666),NA())))) -> -88981.1123 | AV72: =( ((AN72/Arbeitsbereich!$J$749)^2)+(Graphen!AT72/Arbeitsbereich!$J$750)+3*(((Arbeitsbereich!$J$754*Graphen!AU72)/Arbeitsbereich!$J$751)^2) )^0.5 -> 69.68775409
A73: 62 | B73: 110 | C73: 90 | G73: 100 | AN73: =IF(AND(0<=$A73,$A73<$AN$2),0,IF(AND($AN$2<=$A73,$A73<$AO$2),Arbeitsbereich!$J$705,IF(AND($AO$2<=$A73,$A73<$AP$2),Arbeitsbereich!$J$705+Arbeitsbereich!$J$708,IF(AND($AP$2<=$A73,$A73<$AQ$2),Arbeitsbereich!$J$705+Arbeitsbereich!$J$708+Arbeitsbereich!$J$699,NA())))) -> 226.7839094 | AO73: =IF(AND(0<=$A73,$A73<$AN$2),0,IF(AND($AN$2<=$A73,$A73<$AO$2),Arbeitsbereich!$J$703,IF(AND($AO$2<=$A73,$A73<$AP$2),Arbeitsbereich!$J$703+Arbeitsbereich!$J$706,IF(AND($AP$2<=$A73,$A73<$AQ$2),Arbeitsbereich!$J$703+Arbeitsbereich!$J$706+Arbeitsbereich!$J$698,NA())))) -> -1055.249943 | AP73: =IF(AND(0<=$A73,$A73<$AN$2),0,IF(AND($AN$2<=$A73,$A73<$AO$2),Arbeitsbereich!$J$704,IF(AND($AO$2<=$A73,$A73<$AP$2),Arbeitsbereich!$J$704+Arbeitsbereich!$J$707,IF(AND($AP$2<=$A73,$A73<$AQ$2),Arbeitsbereich!$J$704+Arbeitsbereich!$J$707+Arbeitsbereich!$J$697,NA())))) -> 1349.178595 | AQ73: 1712.844221 | AR73: =IF(AND(0<=$A73,$A73<$AN$2),0,IF(AND($AN$2<=$A73,$A73<$AO$2),((A73-$AN$2)*Arbeitsbereich!$J$703),IF(AND($AO$2<=$A73,$A73<$AP$2),((A73-$AN$2)*Arbeitsbereich!$J$703)+((A73-$AO$2)*Arbeitsbereich!$J$706),IF(AND($AP$2<=$A73,$A73<$AQ$2),((A73-$AN$2)*Arbeitsbereich!$J$703)+((A73-$AO$2)*Arbeitsbereich!$J$706)+((A73-$AP$2)*Arbeitsbereich!$J$698)-(Arbeitsbereich!$J$693*Arbeitsbereich!$J$686),NA())))) -> -31261.77956 | AS73: =IF(AND(0<=$A73,$A73<$AN$2),0,IF(AND($AN$2<=$A73,$A73<$AO$2),((B73-$AN$2)*Arbeitsbereich!$J$704),IF(AND($AO$2<=$A73,$A73<$AP$2),((B73-$AN$2)*Arbeitsbereich!$J$704)+((B73-$AO$2)*Arbeitsbereich!$J$707),IF(AND($AP$2<=$A73,$A73<$AQ$2),((B73-$AN$2)*Arbeitsbereich!$J$704)+((B73-$AO$2)*Arbeitsbereich!$J$707)+((B73-$AP$2)*Arbeitsbereich!$J$697),NA())))) -> 104729.9885 | AT73: 109296.2458 | AU73: =IF(AND(0<=$A73,$A73<$AN$2),Arbeitsbereich!$J$696,IF(AND($AN$2<=$A73,$A73<$AO$2),Arbeitsbereich!$J$696,IF(AND($AO$2<=$A73,$A73<$AP$2),Arbeitsbereich!$J$696,IF(AND($AP$2<=$A73,$A73<$AQ$2),Arbeitsbereich!$J$696+(Arbeitsbereich!$J$693*Arbeitsbereich!$J$666),NA())))) -> -88981.1123 | AV73: =( ((AN73/Arbeitsbereich!$J$749)^2)+(Graphen!AT73/Arbeitsbereich!$J$750)+3*(((Arbeitsbereich!$J$754*Graphen!AU73)/Arbeitsbereich!$J$751)^2) )^0.5 -> 69.69046851
A74: 63 | B74: 110 | C74: 90 | G74: 100 | AN74: =IF(AND(0<=$A74,$A74<$AN$2),0,IF(AND($AN$2<=$A74,$A74<$AO$2),Arbeitsbereich!$J$705,IF(AND($AO$2<=$A74,$A74<$AP$2),Arbeitsbereich!$J$705+Arbeitsbereich!$J$708,IF(AND($AP$2<=$A74,$A74<$AQ$2),Arbeitsbereich!$J$705+Arbeitsbereich!$J$708+Arbeitsbereich!$J$699,NA())))) -> 226.7839094 | AO74: =IF(AND(0<=$A74,$A74<$AN$2),0,IF(AND($AN$2<=$A74,$A74<$AO$2),Arbeitsbereich!$J$703,IF(AND($AO$2<=$A74,$A74<$AP$2),Arbeitsbereich!$J$703+Arbeitsbereich!$J$706,IF(AND($AP$2<=$A74,$A74<$AQ$2),Arbeitsbereich!$J$703+Arbeitsbereich!$J$706+Arbeitsbereich!$J$698,NA())))) -> -1055.249943 | AP74: =IF(AND(0<=$A74,$A74<$AN$2),0,IF(AND($AN$2<=$A74,$A74<$AO$2),Arbeitsbereich!$J$704,IF(AND($AO$2<=$A74,$A74<$AP$2),Arbeitsbereich!$J$704+Arbeitsbereich!$J$707,IF(AND($AP$2<=$A74,$A74<$AQ$2),Arbeitsbereich!$J$704+Arbeitsbereich!$J$707+Arbeitsbereich!$J$697,NA())))) -> 1349.178595 | AQ74: 1712.844221 | AR74: =IF(AND(0<=$A74,$A74<$AN$2),0,IF(AND($AN$2<=$A74,$A74<$AO$2),((A74-$AN$2)*Arbeitsbereich!$J$703),IF(AND($AO$2<=$A74,$A74<$AP$2),((A74-$AN$2)*Arbeitsbereich!$J$703)+((A74-$AO$2)*Arbeitsbereich!$J$706),IF(AND($AP$2<=$A74,$A74<$AQ$2),((A74-$AN$2)*Arbeitsbereich!$J$703)+((A74-$AO$2)*Arbeitsbereich!$J$706)+((A74-$AP$2)*Arbeitsbereich!$J$698)-(Arbeitsbereich!$J$693*Arbeitsbereich!$J$686),NA())))) -> -32317.0295 | AS74: =IF(AND(0<=$A74,$A74<$AN$2),0,IF(AND($AN$2<=$A74,$A74<$AO$2),((B74-$AN$2)*Arbeitsbereich!$J$704),IF(AND($AO$2<=$A74,$A74<$AP$2),((B74-$AN$2)*Arbeitsbereich!$J$704)+((B74-$AO$2)*Arbeitsbereich!$J$707),IF(AND($AP$2<=$A74,$A74<$AQ$2),((B74-$AN$2)*Arbeitsbereich!$J$704)+((B74-$AO$2)*Arbeitsbereich!$J$707)+((B74-$AP$2)*Arbeitsbereich!$J$697),NA())))) -> 104729.9885 | AT74: 109602.7412 | AU74: =IF(AND(0<=$A74,$A74<$AN$2),Arbeitsbereich!$J$696,IF(AND($AN$2<=$A74,$A74<$AO$2),Arbeitsbereich!$J$696,IF(AND($AO$2<=$A74,$A74<$AP$2),Arbeitsbereich!$J$696,IF(AND($AP$2<=$A74,$A74<$AQ$2),Arbeitsbereich!$J$696+(Arbeitsbereich!$J$693*Arbeitsbereich!$J$666),NA())))) -> -88981.1123 | AV74: =( ((AN74/Arbeitsbereich!$J$749)^2)+(Graphen!AT74/Arbeitsbereich!$J$750)+3*(((Arbeitsbereich!$J$754*Graphen!AU74)/Arbeitsbereich!$J$751)^2) )^0.5 -> 69.69326828
A75: 64 | B75: =IF(OR($A75<B$8,$A75>C$8),NA(),$B$2 +((B$9+(((C$9-B$9)/(C$8-B$8))*($A75-B$8)))/2)) -> 110 | C75: =IF(OR($A75<B$8,$A75>C$8),NA(),$B$2 -((B$9+(((C$9-B$9)/(C$8-B$8))*($A75-B$8)))/2)) -> 90 | G75: 100 | N75: =IF(AND($A75>=(N$8-(N$10/2)),$A75<=(N$8+(N$10/2))),$B$2+$C$2,NA()) ->  | Z75: =IF(OR($A75<Z$8,$A75>AA$8),NA(),$B$2 +$D$2 +((Z$9+(((AA$9-Z$9)/(AA$8-Z$8))*($A75-Z$8)))/2)) ->  | AA75: =IF(OR($A75<Z$8,$A75>AA$8),NA(),$B$2 +$D$2 -((Z$9+(((AA$9-Z$9)/(AA$8-Z$8))*($A75-Z$8)))/2)) ->  | AF75: =IF(OR($A75<AF$8,$A75>AG$8),NA(),$B$2+$D$2+AF$9) ->  | AN75: =IF(AND(0<=$A75,$A75<$AN$2),0,IF(AND($AN$2<=$A75,$A75<$AO$2),Arbeitsbereich!$J$705,IF(AND($AO$2<=$A75,$A75<$AP$2),Arbeitsbereich!$J$705+Arbeitsbereich!$J$708,IF(AND($AP$2<=$A75,$A75<$AQ$2),Arbeitsbereich!$J$705+Arbeitsbereich!$J$708+Arbeitsbereich!$J$699,NA())))) -> 226.7839094 | AO75: =IF(AND(0<=$A75,$A75<$AN$2),0,IF(AND($AN$2<=$A75,$A75<$AO$2),Arbeitsbereich!$J$703,IF(AND($AO$2<=$A75,$A75<$AP$2),Arbeitsbereich!$J$703+Arbeitsbereich!$J$706,IF(AND($AP$2<=$A75,$A75<$AQ$2),Arbeitsbereich!$J$703+Arbeitsbereich!$J$706+Arbeitsbereich!$J$698,NA())))) -> -1055.249943 | AP75: =IF(AND(0<=$A75,$A75<$AN$2),0,IF(AND($AN$2<=$A75,$A75<$AO$2),Arbeitsbereich!$J$704,IF(AND($AO$2<=$A75,$A75<$AP$2),Arbeitsbereich!$J$704+Arbeitsbereich!$J$707,IF(AND($AP$2<=$A75,$A75<$AQ$2),Arbeitsbereich!$J$704+Arbeitsbereich!$J$707+Arbeitsbereich!$J$697,NA())))) -> 1349.178595 | AQ75: 1712.844221 | AR75: =IF(AND(0<=$A75,$A75<$AN$2),0,IF(AND($AN$2<=$A75,$A75<$AO$2),((A75-$AN$2)*Arbeitsbereich!$J$703),IF(AND($AO$2<=$A75,$A75<$AP$2),((A75-$AN$2)*Arbeitsbereich!$J$703)+((A75-$AO$2)*Arbeitsbereich!$J$706),IF(AND($AP$2<=$A75,$A75<$AQ$2),((A75-$AN$2)*Arbeitsbereich!$J$703)+((A75-$AO$2)*Arbeitsbereich!$J$706)+((A75-$AP$2)*Arbeitsbereich!$J$698)-(Arbeitsbereich!$J$693*Arbeitsbereich!$J$686),NA())))) -> -33372.27945 | AS75: =IF(AND(0<=$A75,$A75<$AN$2),0,IF(AND($AN$2<=$A75,$A75<$AO$2),((B75-$AN$2)*Arbeitsbereich!$J$704),IF(AND($AO$2<=$A75,$A75<$AP$2),((B75-$AN$2)*Arbeitsbereich!$J$704)+((B75-$AO$2)*Arbeitsbereich!$J$707),IF(AND($AP$2<=$A75,$A75<$AQ$2),((B75-$AN$2)*Arbeitsbereich!$J$704)+((B75-$AO$2)*Arbeitsbereich!$J$707)+((B75-$AP$2)*Arbeitsbereich!$J$697),NA())))) -> 104729.9885 | AT75: 109918.5131 | AU75: =IF(AND(0<=$A75,$A75<$AN$2),Arbeitsbereich!$J$696,IF(AND($AN$2<=$A75,$A75<$AO$2),Arbeitsbereich!$J$696,IF(AND($AO$2<=$A75,$A75<$AP$2),Arbeitsbereich!$J$696,IF(AND($AP$2<=$A75,$A75<$AQ$2),Arbeitsbereich!$J$696+(Arbeitsbereich!$J$693*Arbeitsbereich!$J$666),NA())))) -> -88981.1123 | AV75: =( ((AN75/Arbeitsbereich!$J$749)^2)+(Graphen!AT75/Arbeitsbereich!$J$750)+3*(((Arbeitsbereich!$J$754*Graphen!AU75)/Arbeitsbereich!$J$751)^2) )^0.5 -> 69.69615267
A76: 65 | B76: 110 | C76: 90 | D76: =IF(AND($A76>=(D$8-(D$10/2)),$A76<=(D$8+(D$10/2))),$B$2,NA()) ->  | G76: =IF(OR($A76<G$8,$A76>H$8),NA(),$B$2+G$9) -> 100 | L76: =IF(OR($A76<L$8,$A76>M$8),NA(),$B$2 +$C$2 +((L$9+(((M$9-L$9)/(M$8-L$8))*($A76-L$8)))/2)) ->  | M76: =IF(OR($A76<L$8,$A76>M$8),NA(),$B$2 +$C$2 -((L$9+(((M$9-L$9)/(M$8-L$8))*($A76-L$8)))/2)) ->  | S76: =IF(OR($A76<S$8,$A76>T$8),NA(),$B$2+$C$2+S$9) ->  | AB76: =IF(AND($A76>=(AB$8-(AB$10/2)),$A76<=(AB$8+(AB$10/2))),$B$2 +$D$2,NA()) ->  | AN76: =IF(AND(0<=$A76,$A76<$AN$2),0,IF(AND($AN$2<=$A76,$A76<$AO$2),Arbeitsbereich!$J$705,IF(AND($AO$2<=$A76,$A76<$AP$2),Arbeitsbereich!$J$705+Arbeitsbereich!$J$708,IF(AND($AP$2<=$A76,$A76<$AQ$2),Arbeitsbereich!$J$705+Arbeitsbereich!$J$708+Arbeitsbereich!$J$699,NA())))) -> 226.7839094 | AO76: =IF(AND(0<=$A76,$A76<$AN$2),0,IF(AND($AN$2<=$A76,$A76<$AO$2),Arbeitsbereich!$J$703,IF(AND($AO$2<=$A76,$A76<$AP$2),Arbeitsbereich!$J$703+Arbeitsbereich!$J$706,IF(AND($AP$2<=$A76,$A76<$AQ$2),Arbeitsbereich!$J$703+Arbeitsbereich!$J$706+Arbeitsbereich!$J$698,NA())))) -> -1055.249943 | AP76: =IF(AND(0<=$A76,$A76<$AN$2),0,IF(AND($AN$2<=$A76,$A76<$AO$2),Arbeitsbereich!$J$704,IF(AND($AO$2<=$A76,$A76<$AP$2),Arbeitsbereich!$J$704+Arbeitsbereich!$J$707,IF(AND($AP$2<=$A76,$A76<$AQ$2),Arbeitsbereich!$J$704+Arbeitsbereich!$J$707+Arbeitsbereich!$J$697,NA())))) -> 1349.178595 | AQ76: =((AO76^2)+(AP76^2))^0.5 -> 1712.844221 | AR76: =IF(AND(0<=$A76,$A76<$AN$2),0,IF(AND($AN$2<=$A76,$A76<$AO$2),((A76-$AN$2)*Arbeitsbereich!$J$703),IF(AND($AO$2<=$A76,$A76<$AP$2),((A76-$AN$2)*Arbeitsbereich!$J$703)+((A76-$AO$2)*Arbeitsbereich!$J$706),IF(AND($AP$2<=$A76,$A76<$AQ$2),((A76-$AN$2)*Arbeitsbereich!$J$703)+((A76-$AO$2)*Arbeitsbereich!$J$706)+((A76-$AP$2)*Arbeitsbereich!$J$698)-(Arbeitsbereich!$J$693*Arbeitsbereich!$J$686),NA())))) -> -34427.52939 | AS76: =IF(AND(0<=$A76,$A76<$AN$2),0,IF(AND($AN$2<=$A76,$A76<$AO$2),((B76-$AN$2)*Arbeitsbereich!$J$704),IF(AND($AO$2<=$A76,$A76<$AP$2),((B76-$AN$2)*Arbeitsbereich!$J$704)+((B76-$AO$2)*Arbeitsbereich!$J$707),IF(AND($AP$2<=$A76,$A76<$AQ$2),((B76-$AN$2)*Arbeitsbereich!$J$704)+((B76-$AO$2)*Arbeitsbereich!$J$707)+((B76-$AP$2)*Arbeitsbereich!$J$697),NA())))) -> 104729.9885 | AT76: =((AR76^2)+(AS76^2))^0.5 -> 110243.4817 | AU76: =IF(AND(0<=$A76,$A76<$AN$2),Arbeitsbereich!$J$696,IF(AND($AN$2<=$A76,$A76<$AO$2),Arbeitsbereich!$J$696,IF(AND($AO$2<=$A76,$A76<$AP$2),Arbeitsbereich!$J$696,IF(AND($AP$2<=$A76,$A76<$AQ$2),Arbeitsbereich!$J$696+(Arbeitsbereich!$J$693*Arbeitsbereich!$J$666),NA())))) -> -88981.1123 | AV76: =( ((AN76/Arbeitsbereich!$J$749)^2)+(Graphen!AT76/Arbeitsbereich!$J$750)+3*(((Arbeitsbereich!$J$754*Graphen!AU76)/Arbeitsbereich!$J$751)^2) )^0.5 -> 69.69912094
A77: =A76+1 -> 66 | B77: 110 | C77: 90 | G77: 100 | I77: =IF($A77=I$8,$B$2,NA()) ->  | AN77: =IF(AND(0<=$A77,$A77<$AN$2),0,IF(AND($AN$2<=$A77,$A77<$AO$2),Arbeitsbereich!$J$705,IF(AND($AO$2<=$A77,$A77<$AP$2),Arbeitsbereich!$J$705+Arbeitsbereich!$J$708,IF(AND($AP$2<=$A77,$A77<$AQ$2),Arbeitsbereich!$J$705+Arbeitsbereich!$J$708+Arbeitsbereich!$J$699,NA())))) -> 226.7839094 | AO77: =IF(AND(0<=$A77,$A77<$AN$2),0,IF(AND($AN$2<=$A77,$A77<$AO$2),Arbeitsbereich!$J$703,IF(AND($AO$2<=$A77,$A77<$AP$2),Arbeitsbereich!$J$703+Arbeitsbereich!$J$706,IF(AND($AP$2<=$A77,$A77<$AQ$2),Arbeitsbereich!$J$703+Arbeitsbereich!$J$706+Arbeitsbereich!$J$698,NA())))) -> -1055.249943 | AP77: =IF(AND(0<=$A77,$A77<$AN$2),0,IF(AND($AN$2<=$A77,$A77<$AO$2),Arbeitsbereich!$J$704,IF(AND($AO$2<=$A77,$A77<$AP$2),Arbeitsbereich!$J$704+Arbeitsbereich!$J$707,IF(AND($AP$2<=$A77,$A77<$AQ$2),Arbeitsbereich!$J$704+Arbeitsbereich!$J$707+Arbeitsbereich!$J$697,NA())))) -> 1349.178595 | AQ77: 1712.844221 | AR77: =IF(AND(0<=$A77,$A77<$AN$2),0,IF(AND($AN$2<=$A77,$A77<$AO$2),((A77-$AN$2)*Arbeitsbereich!$J$703),IF(AND($AO$2<=$A77,$A77<$AP$2),((A77-$AN$2)*Arbeitsbereich!$J$703)+((A77-$AO$2)*Arbeitsbereich!$J$706),IF(AND($AP$2<=$A77,$A77<$AQ$2),((A77-$AN$2)*Arbeitsbereich!$J$703)+((A77-$AO$2)*Arbeitsbereich!$J$706)+((A77-$AP$2)*Arbeitsbereich!$J$698)-(Arbeitsbereich!$J$693*Arbeitsbereich!$J$686),NA())))) -> -35482.77933 | AS77: =IF(AND(0<=$A77,$A77<$AN$2),0,IF(AND($AN$2<=$A77,$A77<$AO$2),((B77-$AN$2)*Arbeitsbereich!$J$704),IF(AND($AO$2<=$A77,$A77<$AP$2),((B77-$AN$2)*Arbeitsbereich!$J$704)+((B77-$AO$2)*Arbeitsbereich!$J$707),IF(AND($AP$2<=$A77,$A77<$AQ$2),((B77-$AN$2)*Arbeitsbereich!$J$704)+((B77-$AO$2)*Arbeitsbereich!$J$707)+((B77-$AP$2)*Arbeitsbereich!$J$697),NA())))) -> 104729.9885 | AT77: 110577.566 | AU77: =IF(AND(0<=$A77,$A77<$AN$2),Arbeitsbereich!$J$696,IF(AND($AN$2<=$A77,$A77<$AO$2),Arbeitsbereich!$J$696,IF(AND($AO$2<=$A77,$A77<$AP$2),Arbeitsbereich!$J$696,IF(AND($AP$2<=$A77,$A77<$AQ$2),Arbeitsbereich!$J$696+(Arbeitsbereich!$J$693*Arbeitsbereich!$J$666),NA())))) -> -88981.1123 | AV77: =( ((AN77/Arbeitsbereich!$J$749)^2)+(Graphen!AT77/Arbeitsbereich!$J$750)+3*(((Arbeitsbereich!$J$754*Graphen!AU77)/Arbeitsbereich!$J$751)^2) )^0.5 -> 69.70217234
A78: 67 | B78: 110 | C78: 90 | G78: 100 | AN78: =IF(AND(0<=$A78,$A78<$AN$2),0,IF(AND($AN$2<=$A78,$A78<$AO$2),Arbeitsbereich!$J$705,IF(AND($AO$2<=$A78,$A78<$AP$2),Arbeitsbereich!$J$705+Arbeitsbereich!$J$708,IF(AND($AP$2<=$A78,$A78<$AQ$2),Arbeitsbereich!$J$705+Arbeitsbereich!$J$708+Arbeitsbereich!$J$699,NA())))) -> 226.7839094 | AO78: =IF(AND(0<=$A78,$A78<$AN$2),0,IF(AND($AN$2<=$A78,$A78<$AO$2),Arbeitsbereich!$J$703,IF(AND($AO$2<=$A78,$A78<$AP$2),Arbeitsbereich!$J$703+Arbeitsbereich!$J$706,IF(AND($AP$2<=$A78,$A78<$AQ$2),Arbeitsbereich!$J$703+Arbeitsbereich!$J$706+Arbeitsbereich!$J$698,NA())))) -> -1055.249943 | AP78: =IF(AND(0<=$A78,$A78<$AN$2),0,IF(AND($AN$2<=$A78,$A78<$AO$2),Arbeitsbereich!$J$704,IF(AND($AO$2<=$A78,$A78<$AP$2),Arbeitsbereich!$J$704+Arbeitsbereich!$J$707,IF(AND($AP$2<=$A78,$A78<$AQ$2),Arbeitsbereich!$J$704+Arbeitsbereich!$J$707+Arbeitsbereich!$J$697,NA())))) -> 1349.178595 | AQ78: 1712.844221 | AR78: =IF(AND(0<=$A78,$A78<$AN$2),0,IF(AND($AN$2<=$A78,$A78<$AO$2),((A78-$AN$2)*Arbeitsbereich!$J$703),IF(AND($AO$2<=$A78,$A78<$AP$2),((A78-$AN$2)*Arbeitsbereich!$J$703)+((A78-$AO$2)*Arbeitsbereich!$J$706),IF(AND($AP$2<=$A78,$A78<$AQ$2),((A78-$AN$2)*Arbeitsbereich!$J$703)+((A78-$AO$2)*Arbeitsbereich!$J$706)+((A78-$AP$2)*Arbeitsbereich!$J$698)-(Arbeitsbereich!$J$693*Arbeitsbereich!$J$686),NA())))) -> -36538.02928 | AS78: =IF(AND(0<=$A78,$A78<$AN$2),0,IF(AND($AN$2<=$A78,$A78<$AO$2),((B78-$AN$2)*Arbeitsbereich!$J$704),IF(AND($AO$2<=$A78,$A78<$AP$2),((B78-$AN$2)*Arbeitsbereich!$J$704)+((B78-$AO$2)*Arbeitsbereich!$J$707),IF(AND($AP$2<=$A78,$A78<$AQ$2),((B78-$AN$2)*Arbeitsbereich!$J$704)+((B78-$AO$2)*Arbeitsbereich!$J$707)+((B78-$AP$2)*Arbeitsbereich!$J$697),NA())))) -> 104729.9885 | AT78: 110920.6837 | AU78: =IF(AND(0<=$A78,$A78<$AN$2),Arbeitsbereich!$J$696,IF(AND($AN$2<=$A78,$A78<$AO$2),Arbeitsbereich!$J$696,IF(AND($AO$2<=$A78,$A78<$AP$2),Arbeitsbereich!$J$696,IF(AND($AP$2<=$A78,$A78<$AQ$2),Arbeitsbereich!$J$696+(Arbeitsbereich!$J$693*Arbeitsbereich!$J$666),NA())))) -> -88981.1123 | AV78: =( ((AN78/Arbeitsbereich!$J$749)^2)+(Graphen!AT78/Arbeitsbereich!$J$750)+3*(((Arbeitsbereich!$J$754*Graphen!AU78)/Arbeitsbereich!$J$751)^2) )^0.5 -> 69.70530611
A79: 68 | B79: 110 | C79: 90 | G79: 100 | U79: =IF($A79=U$8,$B$2+$C$2,NA()) ->  | AN79: =IF(AND(0<=$A79,$A79<$AN$2),0,IF(AND($AN$2<=$A79,$A79<$AO$2),Arbeitsbereich!$J$705,IF(AND($AO$2<=$A79,$A79<$AP$2),Arbeitsbereich!$J$705+Arbeitsbereich!$J$708,IF(AND($AP$2<=$A79,$A79<$AQ$2),Arbeitsbereich!$J$705+Arbeitsbereich!$J$708+Arbeitsbereich!$J$699,NA())))) -> 226.7839094 | AO79: =IF(AND(0<=$A79,$A79<$AN$2),0,IF(AND($AN$2<=$A79,$A79<$AO$2),Arbeitsbereich!$J$703,IF(AND($AO$2<=$A79,$A79<$AP$2),Arbeitsbereich!$J$703+Arbeitsbereich!$J$706,IF(AND($AP$2<=$A79,$A79<$AQ$2),Arbeitsbereich!$J$703+Arbeitsbereich!$J$706+Arbeitsbereich!$J$698,NA())))) -> -1055.249943 | AP79: =IF(AND(0<=$A79,$A79<$AN$2),0,IF(AND($AN$2<=$A79,$A79<$AO$2),Arbeitsbereich!$J$704,IF(AND($AO$2<=$A79,$A79<$AP$2),Arbeitsbereich!$J$704+Arbeitsbereich!$J$707,IF(AND($AP$2<=$A79,$A79<$AQ$2),Arbeitsbereich!$J$704+Arbeitsbereich!$J$707+Arbeitsbereich!$J$697,NA())))) -> 1349.178595 | AQ79: 1712.844221 | AR79: =IF(AND(0<=$A79,$A79<$AN$2),0,IF(AND($AN$2<=$A79,$A79<$AO$2),((A79-$AN$2)*Arbeitsbereich!$J$703),IF(AND($AO$2<=$A79,$A79<$AP$2),((A79-$AN$2)*Arbeitsbereich!$J$703)+((A79-$AO$2)*Arbeitsbereich!$J$706),IF(AND($AP$2<=$A79,$A79<$AQ$2),((A79-$AN$2)*Arbeitsbereich!$J$703)+((A79-$AO$2)*Arbeitsbereich!$J$706)+((A79-$AP$2)*Arbeitsbereich!$J$698)-(Arbeitsbereich!$J$693*Arbeitsbereich!$J$686),NA())))) -> -37593.27922 | AS79: =IF(AND(0<=$A79,$A79<$AN$2),0,IF(AND($AN$2<=$A79,$A79<$AO$2),((B79-$AN$2)*Arbeitsbereich!$J$704),IF(AND($AO$2<=$A79,$A79<$AP$2),((B79-$AN$2)*Arbeitsbereich!$J$704)+((B79-$AO$2)*Arbeitsbereich!$J$707),IF(AND($AP$2<=$A79,$A79<$AQ$2),((B79-$AN$2)*Arbeitsbereich!$J$704)+((B79-$AO$2)*Arbeitsbereich!$J$707)+((B79-$AP$2)*Arbeitsbereich!$J$697),NA())))) -> 104729.9885 | AT79: 111272.751 | AU79: =IF(AND(0<=$A79,$A79<$AN$2),Arbeitsbereich!$J$696,IF(AND($AN$2<=$A79,$A79<$AO$2),Arbeitsbereich!$J$696,IF(AND($AO$2<=$A79,$A79<$AP$2),Arbeitsbereich!$J$696,IF(AND($AP$2<=$A79,$A79<$AQ$2),Arbeitsbereich!$J$696+(Arbeitsbereich!$J$693*Arbeitsbereich!$J$666),NA())))) -> -88981.1123 | AV79: =( ((AN79/Arbeitsbereich!$J$749)^2)+(Graphen!AT79/Arbeitsbereich!$J$750)+3*(((Arbeitsbereich!$J$754*Graphen!AU79)/Arbeitsbereich!$J$751)^2) )^0.5 -> 69.70852147
A80: 69 | B80: 110 | C80: 90 | G80: 100 | AN80: =IF(AND(0<=$A80,$A80<$AN$2),0,IF(AND($AN$2<=$A80,$A80<$AO$2),Arbeitsbereich!$J$705,IF(AND($AO$2<=$A80,$A80<$AP$2),Arbeitsbereich!$J$705+Arbeitsbereich!$J$708,IF(AND($AP$2<=$A80,$A80<$AQ$2),Arbeitsbereich!$J$705+Arbeitsbereich!$J$708+Arbeitsbereich!$J$699,NA())))) -> 226.7839094 | AO80: =IF(AND(0<=$A80,$A80<$AN$2),0,IF(AND($AN$2<=$A80,$A80<$AO$2),Arbeitsbereich!$J$703,IF(AND($AO$2<=$A80,$A80<$AP$2),Arbeitsbereich!$J$703+Arbeitsbereich!$J$706,IF(AND($AP$2<=$A80,$A80<$AQ$2),Arbeitsbereich!$J$703+Arbeitsbereich!$J$706+Arbeitsbereich!$J$698,NA())))) -> -1055.249943 | AP80: =IF(AND(0<=$A80,$A80<$AN$2),0,IF(AND($AN$2<=$A80,$A80<$AO$2),Arbeitsbereich!$J$704,IF(AND($AO$2<=$A80,$A80<$AP$2),Arbeitsbereich!$J$704+Arbeitsbereich!$J$707,IF(AND($AP$2<=$A80,$A80<$AQ$2),Arbeitsbereich!$J$704+Arbeitsbereich!$J$707+Arbeitsbereich!$J$697,NA())))) -> 1349.178595 | AQ80: 1712.844221 | AR80: =IF(AND(0<=$A80,$A80<$AN$2),0,IF(AND($AN$2<=$A80,$A80<$AO$2),((A80-$AN$2)*Arbeitsbereich!$J$703),IF(AND($AO$2<=$A80,$A80<$AP$2),((A80-$AN$2)*Arbeitsbereich!$J$703)+((A80-$AO$2)*Arbeitsbereich!$J$706),IF(AND($AP$2<=$A80,$A80<$AQ$2),((A80-$AN$2)*Arbeitsbereich!$J$703)+((A80-$AO$2)*Arbeitsbereich!$J$706)+((A80-$AP$2)*Arbeitsbereich!$J$698)-(Arbeitsbereich!$J$693*Arbeitsbereich!$J$686),NA())))) -> -38648.52916 | AS80: =IF(AND(0<=$A80,$A80<$AN$2),0,IF(AND($AN$2<=$A80,$A80<$AO$2),((B80-$AN$2)*Arbeitsbereich!$J$704),IF(AND($AO$2<=$A80,$A80<$AP$2),((B80-$AN$2)*Arbeitsbereich!$J$704)+((B80-$AO$2)*Arbeitsbereich!$J$707),IF(AND($AP$2<=$A80,$A80<$AQ$2),((B80-$AN$2)*Arbeitsbereich!$J$704)+((B80-$AO$2)*Arbeitsbereich!$J$707)+((B80-$AP$2)*Arbeitsbereich!$J$697),NA())))) -> 104729.9885 | AT80: 111633.6835 | AU80: =IF(AND(0<=$A80,$A80<$AN$2),Arbeitsbereich!$J$696,IF(AND($AN$2<=$A80,$A80<$AO$2),Arbeitsbereich!$J$696,IF(AND($AO$2<=$A80,$A80<$AP$2),Arbeitsbereich!$J$696,IF(AND($AP$2<=$A80,$A80<$AQ$2),Arbeitsbereich!$J$696+(Arbeitsbereich!$J$693*Arbeitsbereich!$J$666),NA())))) -> -88981.1123 | AV80: =( ((AN80/Arbeitsbereich!$J$749)^2)+(Graphen!AT80/Arbeitsbereich!$J$750)+3*(((Arbeitsbereich!$J$754*Graphen!AU80)/Arbeitsbereich!$J$751)^2) )^0.5 -> 69.71181765
A81: 70 | B81: 110 | C81: 90 | G81: 100 | L81: 260.0069628 | M81: 230.0069628 | S81: 245.0069628 | AN81: =IF(AND(0<=$A81,$A81<$AN$2),0,IF(AND($AN$2<=$A81,$A81<$AO$2),Arbeitsbereich!$J$705,IF(AND($AO$2<=$A81,$A81<$AP$2),Arbeitsbereich!$J$705+Arbeitsbereich!$J$708,IF(AND($AP$2<=$A81,$A81<$AQ$2),Arbeitsbereich!$J$705+Arbeitsbereich!$J$708+Arbeitsbereich!$J$699,NA())))) -> 226.7839094 | AO81: =IF(AND(0<=$A81,$A81<$AN$2),0,IF(AND($AN$2<=$A81,$A81<$AO$2),Arbeitsbereich!$J$703,IF(AND($AO$2<=$A81,$A81<$AP$2),Arbeitsbereich!$J$703+Arbeitsbereich!$J$706,IF(AND($AP$2<=$A81,$A81<$AQ$2),Arbeitsbereich!$J$703+Arbeitsbereich!$J$706+Arbeitsbereich!$J$698,NA())))) -> -1055.249943 | AP81: =IF(AND(0<=$A81,$A81<$AN$2),0,IF(AND($AN$2<=$A81,$A81<$AO$2),Arbeitsbereich!$J$704,IF(AND($AO$2<=$A81,$A81<$AP$2),Arbeitsbereich!$J$704+Arbeitsbereich!$J$707,IF(AND($AP$2<=$A81,$A81<$AQ$2),Arbeitsbereich!$J$704+Arbeitsbereich!$J$707+Arbeitsbereich!$J$697,NA())))) -> 1349.178595 | AQ81: 1712.844221 | AR81: =IF(AND(0<=$A81,$A81<$AN$2),0,IF(AND($AN$2<=$A81,$A81<$AO$2),((A81-$AN$2)*Arbeitsbereich!$J$703),IF(AND($AO$2<=$A81,$A81<$AP$2),((A81-$AN$2)*Arbeitsbereich!$J$703)+((A81-$AO$2)*Arbeitsbereich!$J$706),IF(AND($AP$2<=$A81,$A81<$AQ$2),((A81-$AN$2)*Arbeitsbereich!$J$703)+((A81-$AO$2)*Arbeitsbereich!$J$706)+((A81-$AP$2)*Arbeitsbereich!$J$698)-(Arbeitsbereich!$J$693*Arbeitsbereich!$J$686),NA())))) -> -39703.7791 | AS81: =IF(AND(0<=$A81,$A81<$AN$2),0,IF(AND($AN$2<=$A81,$A81<$AO$2),((B81-$AN$2)*Arbeitsbereich!$J$704),IF(AND($AO$2<=$A81,$A81<$AP$2),((B81-$AN$2)*Arbeitsbereich!$J$704)+((B81-$AO$2)*Arbeitsbereich!$J$707),IF(AND($AP$2<=$A81,$A81<$AQ$2),((B81-$AN$2)*Arbeitsbereich!$J$704)+((B81-$AO$2)*Arbeitsbereich!$J$707)+((B81-$AP$2)*Arbeitsbereich!$J$697),NA())))) -> 104729.9885 | AT81: 112003.3953 | AU81: =IF(AND(0<=$A81,$A81<$AN$2),Arbeitsbereich!$J$696,IF(AND($AN$2<=$A81,$A81<$AO$2),Arbeitsbereich!$J$696,IF(AND($AO$2<=$A81,$A81<$AP$2),Arbeitsbereich!$J$696,IF(AND($AP$2<=$A81,$A81<$AQ$2),Arbeitsbereich!$J$696+(Arbeitsbereich!$J$693*Arbeitsbereich!$J$666),NA())))) -> -88981.1123 | AV81: =( ((AN81/Arbeitsbereich!$J$749)^2)+(Graphen!AT81/Arbeitsbereich!$J$750)+3*(((Arbeitsbereich!$J$754*Graphen!AU81)/Arbeitsbereich!$J$751)^2) )^0.5 -> 69.71519383
A82: 71 | B82: 110 | C82: 90 | G82: 100 | L82: 260.0069628 | M82: 230.0069628 | S82: 245.0069628 | AN82: =IF(AND(0<=$A82,$A82<$AN$2),0,IF(AND($AN$2<=$A82,$A82<$AO$2),Arbeitsbereich!$J$705,IF(AND($AO$2<=$A82,$A82<$AP$2),Arbeitsbereich!$J$705+Arbeitsbereich!$J$708,IF(AND($AP$2<=$A82,$A82<$AQ$2),Arbeitsbereich!$J$705+Arbeitsbereich!$J$708+Arbeitsbereich!$J$699,NA())))) -> 226.7839094 | AO82: =IF(AND(0<=$A82,$A82<$AN$2),0,IF(AND($AN$2<=$A82,$A82<$AO$2),Arbeitsbereich!$J$703,IF(AND($AO$2<=$A82,$A82<$AP$2),Arbeitsbereich!$J$703+Arbeitsbereich!$J$706,IF(AND($AP$2<=$A82,$A82<$AQ$2),Arbeitsbereich!$J$703+Arbeitsbereich!$J$706+Arbeitsbereich!$J$698,NA())))) -> -1055.249943 | AP82: =IF(AND(0<=$A82,$A82<$AN$2),0,IF(AND($AN$2<=$A82,$A82<$AO$2),Arbeitsbereich!$J$704,IF(AND($AO$2<=$A82,$A82<$AP$2),Arbeitsbereich!$J$704+Arbeitsbereich!$J$707,IF(AND($AP$2<=$A82,$A82<$AQ$2),Arbeitsbereich!$J$704+Arbeitsbereich!$J$707+Arbeitsbereich!$J$697,NA())))) -> 1349.178595 | AQ82: 1712.844221 | AR82: =IF(AND(0<=$A82,$A82<$AN$2),0,IF(AND($AN$2<=$A82,$A82<$AO$2),((A82-$AN$2)*Arbeitsbereich!$J$703),IF(AND($AO$2<=$A82,$A82<$AP$2),((A82-$AN$2)*Arbeitsbereich!$J$703)+((A82-$AO$2)*Arbeitsbereich!$J$706),IF(AND($AP$2<=$A82,$A82<$AQ$2),((A82-$AN$2)*Arbeitsbereich!$J$703)+((A82-$AO$2)*Arbeitsbereich!$J$706)+((A82-$AP$2)*Arbeitsbereich!$J$698)-(Arbeitsbereich!$J$693*Arbeitsbereich!$J$686),NA())))) -> -40759.02905 | AS82: =IF(AND(0<=$A82,$A82<$AN$2),0,IF(AND($AN$2<=$A82,$A82<$AO$2),((B82-$AN$2)*Arbeitsbereich!$J$704),IF(AND($AO$2<=$A82,$A82<$AP$2),((B82-$AN$2)*Arbeitsbereich!$J$704)+((B82-$AO$2)*Arbeitsbereich!$J$707),IF(AND($AP$2<=$A82,$A82<$AQ$2),((B82-$AN$2)*Arbeitsbereich!$J$704)+((B82-$AO$2)*Arbeitsbereich!$J$707)+((B82-$AP$2)*Arbeitsbereich!$J$697),NA())))) -> 104729.9885 | AT82: 112381.7998 | AU82: =IF(AND(0<=$A82,$A82<$AN$2),Arbeitsbereich!$J$696,IF(AND($AN$2<=$A82,$A82<$AO$2),Arbeitsbereich!$J$696,IF(AND($AO$2<=$A82,$A82<$AP$2),Arbeitsbereich!$J$696,IF(AND($AP$2<=$A82,$A82<$AQ$2),Arbeitsbereich!$J$696+(Arbeitsbereich!$J$693*Arbeitsbereich!$J$666),NA())))) -> -88981.1123 | AV82: =( ((AN82/Arbeitsbereich!$J$749)^2)+(Graphen!AT82/Arbeitsbereich!$J$750)+3*(((Arbeitsbereich!$J$754*Graphen!AU82)/Arbeitsbereich!$J$751)^2) )^0.5 -> 69.71864923
A83: 72 | B83: 110 | C83: 90 | G83: 100 | L83: 260.0069628 | M83: 230.0069628 | N83: 245.0069628 | S83: 245.0069628 | AN83: =IF(AND(0<=$A83,$A83<$AN$2),0,IF(AND($AN$2<=$A83,$A83<$AO$2),Arbeitsbereich!$J$705,IF(AND($AO$2<=$A83,$A83<$AP$2),Arbeitsbereich!$J$705+Arbeitsbereich!$J$708,IF(AND($AP$2<=$A83,$A83<$AQ$2),Arbeitsbereich!$J$705+Arbeitsbereich!$J$708+Arbeitsbereich!$J$699,NA())))) -> 226.7839094 | AO83: =IF(AND(0<=$A83,$A83<$AN$2),0,IF(AND($AN$2<=$A83,$A83<$AO$2),Arbeitsbereich!$J$703,IF(AND($AO$2<=$A83,$A83<$AP$2),Arbeitsbereich!$J$703+Arbeitsbereich!$J$706,IF(AND($AP$2<=$A83,$A83<$AQ$2),Arbeitsbereich!$J$703+Arbeitsbereich!$J$706+Arbeitsbereich!$J$698,NA())))) -> -1055.249943 | AP83: =IF(AND(0<=$A83,$A83<$AN$2),0,IF(AND($AN$2<=$A83,$A83<$AO$2),Arbeitsbereich!$J$704,IF(AND($AO$2<=$A83,$A83<$AP$2),Arbeitsbereich!$J$704+Arbeitsbereich!$J$707,IF(AND($AP$2<=$A83,$A83<$AQ$2),Arbeitsbereich!$J$704+Arbeitsbereich!$J$707+Arbeitsbereich!$J$697,NA())))) -> 1349.178595 | AQ83: 1712.844221 | AR83: =IF(AND(0<=$A83,$A83<$AN$2),0,IF(AND($AN$2<=$A83,$A83<$AO$2),((A83-$AN$2)*Arbeitsbereich!$J$703),IF(AND($AO$2<=$A83,$A83<$AP$2),((A83-$AN$2)*Arbeitsbereich!$J$703)+((A83-$AO$2)*Arbeitsbereich!$J$706),IF(AND($AP$2<=$A83,$A83<$AQ$2),((A83-$AN$2)*Arbeitsbereich!$J$703)+((A83-$AO$2)*Arbeitsbereich!$J$706)+((A83-$AP$2)*Arbeitsbereich!$J$698)-(Arbeitsbereich!$J$693*Arbeitsbereich!$J$686),NA())))) -> -41814.27899 | AS83: =IF(AND(0<=$A83,$A83<$AN$2),0,IF(AND($AN$2<=$A83,$A83<$AO$2),((B83-$AN$2)*Arbeitsbereich!$J$704),IF(AND($AO$2<=$A83,$A83<$AP$2),((B83-$AN$2)*Arbeitsbereich!$J$704)+((B83-$AO$2)*Arbeitsbereich!$J$707),IF(AND($AP$2<=$A83,$A83<$AQ$2),((B83-$AN$2)*Arbeitsbereich!$J$704)+((B83-$AO$2)*Arbeitsbereich!$J$707)+((B83-$AP$2)*Arbeitsbereich!$J$697),NA())))) -> 104729.9885 | AT83: 112768.8096 | AU83: =IF(AND(0<=$A83,$A83<$AN$2),Arbeitsbereich!$J$696,IF(AND($AN$2<=$A83,$A83<$AO$2),Arbeitsbereich!$J$696,IF(AND($AO$2<=$A83,$A83<$AP$2),Arbeitsbereich!$J$696,IF(AND($AP$2<=$A83,$A83<$AQ$2),Arbeitsbereich!$J$696+(Arbeitsbereich!$J$693*Arbeitsbereich!$J$666),NA())))) -> -88981.1123 | AV83: =( ((AN83/Arbeitsbereich!$J$749)^2)+(Graphen!AT83/Arbeitsbereich!$J$750)+3*(((Arbeitsbereich!$J$754*Graphen!AU83)/Arbeitsbereich!$J$751)^2) )^0.5 -> 69.72218303
A84: 73 | B84: 110 | C84: 90 | G84: 100 | L84: 260.0069628 | M84: 230.0069628 | N84: 245.0069628 | S84: 245.0069628 | AN84: =IF(AND(0<=$A84,$A84<$AN$2),0,IF(AND($AN$2<=$A84,$A84<$AO$2),Arbeitsbereich!$J$705,IF(AND($AO$2<=$A84,$A84<$AP$2),Arbeitsbereich!$J$705+Arbeitsbereich!$J$708,IF(AND($AP$2<=$A84,$A84<$AQ$2),Arbeitsbereich!$J$705+Arbeitsbereich!$J$708+Arbeitsbereich!$J$699,NA())))) -> 226.7839094 | AO84: =IF(AND(0<=$A84,$A84<$AN$2),0,IF(AND($AN$2<=$A84,$A84<$AO$2),Arbeitsbereich!$J$703,IF(AND($AO$2<=$A84,$A84<$AP$2),Arbeitsbereich!$J$703+Arbeitsbereich!$J$706,IF(AND($AP$2<=$A84,$A84<$AQ$2),Arbeitsbereich!$J$703+Arbeitsbereich!$J$706+Arbeitsbereich!$J$698,NA())))) -> -1055.249943 | AP84: =IF(AND(0<=$A84,$A84<$AN$2),0,IF(AND($AN$2<=$A84,$A84<$AO$2),Arbeitsbereich!$J$704,IF(AND($AO$2<=$A84,$A84<$AP$2),Arbeitsbereich!$J$704+Arbeitsbereich!$J$707,IF(AND($AP$2<=$A84,$A84<$AQ$2),Arbeitsbereich!$J$704+Arbeitsbereich!$J$707+Arbeitsbereich!$J$697,NA())))) -> 1349.178595 | AQ84: 1712.844221 | AR84: =IF(AND(0<=$A84,$A84<$AN$2),0,IF(AND($AN$2<=$A84,$A84<$AO$2),((A84-$AN$2)*Arbeitsbereich!$J$703),IF(AND($AO$2<=$A84,$A84<$AP$2),((A84-$AN$2)*Arbeitsbereich!$J$703)+((A84-$AO$2)*Arbeitsbereich!$J$706),IF(AND($AP$2<=$A84,$A84<$AQ$2),((A84-$AN$2)*Arbeitsbereich!$J$703)+((A84-$AO$2)*Arbeitsbereich!$J$706)+((A84-$AP$2)*Arbeitsbereich!$J$698)-(Arbeitsbereich!$J$693*Arbeitsbereich!$J$686),NA())))) -> -42869.52893 | AS84: =IF(AND(0<=$A84,$A84<$AN$2),0,IF(AND($AN$2<=$A84,$A84<$AO$2),((B84-$AN$2)*Arbeitsbereich!$J$704),IF(AND($AO$2<=$A84,$A84<$AP$2),((B84-$AN$2)*Arbeitsbereich!$J$704)+((B84-$AO$2)*Arbeitsbereich!$J$707),IF(AND($AP$2<=$A84,$A84<$AQ$2),((B84-$AN$2)*Arbeitsbereich!$J$704)+((B84-$AO$2)*Arbeitsbereich!$J$707)+((B84-$AP$2)*Arbeitsbereich!$J$697),NA())))) -> 104729.9885 | AT84: 113164.3362 | AU84: =IF(AND(0<=$A84,$A84<$AN$2),Arbeitsbereich!$J$696,IF(AND($AN$2<=$A84,$A84<$AO$2),Arbeitsbereich!$J$696,IF(AND($AO$2<=$A84,$A84<$AP$2),Arbeitsbereich!$J$696,IF(AND($AP$2<=$A84,$A84<$AQ$2),Arbeitsbereich!$J$696+(Arbeitsbereich!$J$693*Arbeitsbereich!$J$666),NA())))) -> -88981.1123 | AV84: =( ((AN84/Arbeitsbereich!$J$749)^2)+(Graphen!AT84/Arbeitsbereich!$J$750)+3*(((Arbeitsbereich!$J$754*Graphen!AU84)/Arbeitsbereich!$J$751)^2) )^0.5 -> 69.72579442
A85: 74 | B85: 110 | C85: 90 | G85: 100 | L85: 260.0069628 | M85: 230.0069628 | N85: 245.0069628 | S85: 245.0069628 | AN85: =IF(AND(0<=$A85,$A85<$AN$2),0,IF(AND($AN$2<=$A85,$A85<$AO$2),Arbeitsbereich!$J$705,IF(AND($AO$2<=$A85,$A85<$AP$2),Arbeitsbereich!$J$705+Arbeitsbereich!$J$708,IF(AND($AP$2<=$A85,$A85<$AQ$2),Arbeitsbereich!$J$705+Arbeitsbereich!$J$708+Arbeitsbereich!$J$699,NA())))) -> 226.7839094 | AO85: =IF(AND(0<=$A85,$A85<$AN$2),0,IF(AND($AN$2<=$A85,$A85<$AO$2),Arbeitsbereich!$J$703,IF(AND($AO$2<=$A85,$A85<$AP$2),Arbeitsbereich!$J$703+Arbeitsbereich!$J$706,IF(AND($AP$2<=$A85,$A85<$AQ$2),Arbeitsbereich!$J$703+Arbeitsbereich!$J$706+Arbeitsbereich!$J$698,NA())))) -> -1055.249943 | AP85: =IF(AND(0<=$A85,$A85<$AN$2),0,IF(AND($AN$2<=$A85,$A85<$AO$2),Arbeitsbereich!$J$704,IF(AND($AO$2<=$A85,$A85<$AP$2),Arbeitsbereich!$J$704+Arbeitsbereich!$J$707,IF(AND($AP$2<=$A85,$A85<$AQ$2),Arbeitsbereich!$J$704+Arbeitsbereich!$J$707+Arbeitsbereich!$J$697,NA())))) -> 1349.178595 | AQ85: 1712.844221 | AR85: =IF(AND(0<=$A85,$A85<$AN$2),0,IF(AND($AN$2<=$A85,$A85<$AO$2),((A85-$AN$2)*Arbeitsbereich!$J$703),IF(AND($AO$2<=$A85,$A85<$AP$2),((A85-$AN$2)*Arbeitsbereich!$J$703)+((A85-$AO$2)*Arbeitsbereich!$J$706),IF(AND($AP$2<=$A85,$A85<$AQ$2),((A85-$AN$2)*Arbeitsbereich!$J$703)+((A85-$AO$2)*Arbeitsbereich!$J$706)+((A85-$AP$2)*Arbeitsbereich!$J$698)-(Arbeitsbereich!$J$693*Arbeitsbereich!$J$686),NA())))) -> -43924.77888 | AS85: =IF(AND(0<=$A85,$A85<$AN$2),0,IF(AND($AN$2<=$A85,$A85<$AO$2),((B85-$AN$2)*Arbeitsbereich!$J$704),IF(AND($AO$2<=$A85,$A85<$AP$2),((B85-$AN$2)*Arbeitsbereich!$J$704)+((B85-$AO$2)*Arbeitsbereich!$J$707),IF(AND($AP$2<=$A85,$A85<$AQ$2),((B85-$AN$2)*Arbeitsbereich!$J$704)+((B85-$AO$2)*Arbeitsbereich!$J$707)+((B85-$AP$2)*Arbeitsbereich!$J$697),NA())))) -> 104729.9885 | AT85: 113568.2908 | AU85: =IF(AND(0<=$A85,$A85<$AN$2),Arbeitsbereich!$J$696,IF(AND($AN$2<=$A85,$A85<$AO$2),Arbeitsbereich!$J$696,IF(AND($AO$2<=$A85,$A85<$AP$2),Arbeitsbereich!$J$696,IF(AND($AP$2<=$A85,$A85<$AQ$2),Arbeitsbereich!$J$696+(Arbeitsbereich!$J$693*Arbeitsbereich!$J$666),NA())))) -> -88981.1123 | AV85: =( ((AN85/Arbeitsbereich!$J$749)^2)+(Graphen!AT85/Arbeitsbereich!$J$750)+3*(((Arbeitsbereich!$J$754*Graphen!AU85)/Arbeitsbereich!$J$751)^2) )^0.5 -> 69.72948256
A86: 75 | B86: 110 | C86: 90 | G86: 100 | L86: 260.0069628 | M86: 230.0069628 | N86: 245.0069628 | S86: 245.0069628 | AN86: =IF(AND(0<=$A86,$A86<$AN$2),0,IF(AND($AN$2<=$A86,$A86<$AO$2),Arbeitsbereich!$J$705,IF(AND($AO$2<=$A86,$A86<$AP$2),Arbeitsbereich!$J$705+Arbeitsbereich!$J$708,IF(AND($AP$2<=$A86,$A86<$AQ$2),Arbeitsbereich!$J$705+Arbeitsbereich!$J$708+Arbeitsbereich!$J$699,NA())))) -> 226.7839094 | AO86: =IF(AND(0<=$A86,$A86<$AN$2),0,IF(AND($AN$2<=$A86,$A86<$AO$2),Arbeitsbereich!$J$703,IF(AND($AO$2<=$A86,$A86<$AP$2),Arbeitsbereich!$J$703+Arbeitsbereich!$J$706,IF(AND($AP$2<=$A86,$A86<$AQ$2),Arbeitsbereich!$J$703+Arbeitsbereich!$J$706+Arbeitsbereich!$J$698,NA())))) -> -1055.249943 | AP86: =IF(AND(0<=$A86,$A86<$AN$2),0,IF(AND($AN$2<=$A86,$A86<$AO$2),Arbeitsbereich!$J$704,IF(AND($AO$2<=$A86,$A86<$AP$2),Arbeitsbereich!$J$704+Arbeitsbereich!$J$707,IF(AND($AP$2<=$A86,$A86<$AQ$2),Arbeitsbereich!$J$704+Arbeitsbereich!$J$707+Arbeitsbereich!$J$697,NA())))) -> 1349.178595 | AQ86: 1712.844221 | AR86: =IF(AND(0<=$A86,$A86<$AN$2),0,IF(AND($AN$2<=$A86,$A86<$AO$2),((A86-$AN$2)*Arbeitsbereich!$J$703),IF(AND($AO$2<=$A86,$A86<$AP$2),((A86-$AN$2)*Arbeitsbereich!$J$703)+((A86-$AO$2)*Arbeitsbereich!$J$706),IF(AND($AP$2<=$A86,$A86<$AQ$2),((A86-$AN$2)*Arbeitsbereich!$J$703)+((A86-$AO$2)*Arbeitsbereich!$J$706)+((A86-$AP$2)*Arbeitsbereich!$J$698)-(Arbeitsbereich!$J$693*Arbeitsbereich!$J$686),NA())))) -> -44980.02882 | AS86: =IF(AND(0<=$A86,$A86<$AN$2),0,IF(AND($AN$2<=$A86,$A86<$AO$2),((B86-$AN$2)*Arbeitsbereich!$J$704),IF(AND($AO$2<=$A86,$A86<$AP$2),((B86-$AN$2)*Arbeitsbereich!$J$704)+((B86-$AO$2)*Arbeitsbereich!$J$707),IF(AND($AP$2<=$A86,$A86<$AQ$2),((B86-$AN$2)*Arbeitsbereich!$J$704)+((B86-$AO$2)*Arbeitsbereich!$J$707)+((B86-$AP$2)*Arbeitsbereich!$J$697),NA())))) -> 104729.9885 | AT86: 113980.5838 | AU86: =IF(AND(0<=$A86,$A86<$AN$2),Arbeitsbereich!$J$696,IF(AND($AN$2<=$A86,$A86<$AO$2),Arbeitsbereich!$J$696,IF(AND($AO$2<=$A86,$A86<$AP$2),Arbeitsbereich!$J$696,IF(AND($AP$2<=$A86,$A86<$AQ$2),Arbeitsbereich!$J$696+(Arbeitsbereich!$J$693*Arbeitsbereich!$J$666),NA())))) -> -88981.1123 | AV86: =( ((AN86/Arbeitsbereich!$J$749)^2)+(Graphen!AT86/Arbeitsbereich!$J$750)+3*(((Arbeitsbereich!$J$754*Graphen!AU86)/Arbeitsbereich!$J$751)^2) )^0.5 -> 69.73324663
A87: 76 | B87: 110 | C87: 90 | G87: 100 | L87: 260.0069628 | M87: 230.0069628 | N87: 245.0069628 | S87: 245.0069628 | AN87: =IF(AND(0<=$A87,$A87<$AN$2),0,IF(AND($AN$2<=$A87,$A87<$AO$2),Arbeitsbereich!$J$705,IF(AND($AO$2<=$A87,$A87<$AP$2),Arbeitsbereich!$J$705+Arbeitsbereich!$J$708,IF(AND($AP$2<=$A87,$A87<$AQ$2),Arbeitsbereich!$J$705+Arbeitsbereich!$J$708+Arbeitsbereich!$J$699,NA())))) -> 226.7839094 | AO87: =IF(AND(0<=$A87,$A87<$AN$2),0,IF(AND($AN$2<=$A87,$A87<$AO$2),Arbeitsbereich!$J$703,IF(AND($AO$2<=$A87,$A87<$AP$2),Arbeitsbereich!$J$703+Arbeitsbereich!$J$706,IF(AND($AP$2<=$A87,$A87<$AQ$2),Arbeitsbereich!$J$703+Arbeitsbereich!$J$706+Arbeitsbereich!$J$698,NA())))) -> -1055.249943 | AP87: =IF(AND(0<=$A87,$A87<$AN$2),0,IF(AND($AN$2<=$A87,$A87<$AO$2),Arbeitsbereich!$J$704,IF(AND($AO$2<=$A87,$A87<$AP$2),Arbeitsbereich!$J$704+Arbeitsbereich!$J$707,IF(AND($AP$2<=$A87,$A87<$AQ$2),Arbeitsbereich!$J$704+Arbeitsbereich!$J$707+Arbeitsbereich!$J$697,NA())))) -> 1349.178595 | AQ87: 1712.844221 | AR87: =IF(AND(0<=$A87,$A87<$AN$2),0,IF(AND($AN$2<=$A87,$A87<$AO$2),((A87-$AN$2)*Arbeitsbereich!$J$703),IF(AND($AO$2<=$A87,$A87<$AP$2),((A87-$AN$2)*Arbeitsbereich!$J$703)+((A87-$AO$2)*Arbeitsbereich!$J$706),IF(AND($AP$2<=$A87,$A87<$AQ$2),((A87-$AN$2)*Arbeitsbereich!$J$703)+((A87-$AO$2)*Arbeitsbereich!$J$706)+((A87-$AP$2)*Arbeitsbereich!$J$698)-(Arbeitsbereich!$J$693*Arbeitsbereich!$J$686),NA())))) -> -46035.27876 | AS87: =IF(AND(0<=$A87,$A87<$AN$2),0,IF(AND($AN$2<=$A87,$A87<$AO$2),((B87-$AN$2)*Arbeitsbereich!$J$704),IF(AND($AO$2<=$A87,$A87<$AP$2),((B87-$AN$2)*Arbeitsbereich!$J$704)+((B87-$AO$2)*Arbeitsbereich!$J$707),IF(AND($AP$2<=$A87,$A87<$AQ$2),((B87-$AN$2)*Arbeitsbereich!$J$704)+((B87-$AO$2)*Arbeitsbereich!$J$707)+((B87-$AP$2)*Arbeitsbereich!$J$697),NA())))) -> 104729.9885 | AT87: 114401.1249 | AU87: =IF(AND(0<=$A87,$A87<$AN$2),Arbeitsbereich!$J$696,IF(AND($AN$2<=$A87,$A87<$AO$2),Arbeitsbereich!$J$696,IF(AND($AO$2<=$A87,$A87<$AP$2),Arbeitsbereich!$J$696,IF(AND($AP$2<=$A87,$A87<$AQ$2),Arbeitsbereich!$J$696+(Arbeitsbereich!$J$693*Arbeitsbereich!$J$666),NA())))) -> -88981.1123 | AV87: =( ((AN87/Arbeitsbereich!$J$749)^2)+(Graphen!AT87/Arbeitsbereich!$J$750)+3*(((Arbeitsbereich!$J$754*Graphen!AU87)/Arbeitsbereich!$J$751)^2) )^0.5 -> 69.7370858
A88: 77 | B88: 110 | C88: 90 | G88: 100 | L88: 260.0069628 | M88: 230.0069628 | N88: 245.0069628 | S88: 245.0069628 | AN88: =IF(AND(0<=$A88,$A88<$AN$2),0,IF(AND($AN$2<=$A88,$A88<$AO$2),Arbeitsbereich!$J$705,IF(AND($AO$2<=$A88,$A88<$AP$2),Arbeitsbereich!$J$705+Arbeitsbereich!$J$708,IF(AND($AP$2<=$A88,$A88<$AQ$2),Arbeitsbereich!$J$705+Arbeitsbereich!$J$708+Arbeitsbereich!$J$699,NA())))) -> 226.7839094 | AO88: =IF(AND(0<=$A88,$A88<$AN$2),0,IF(AND($AN$2<=$A88,$A88<$AO$2),Arbeitsbereich!$J$703,IF(AND($AO$2<=$A88,$A88<$AP$2),Arbeitsbereich!$J$703+Arbeitsbereich!$J$706,IF(AND($AP$2<=$A88,$A88<$AQ$2),Arbeitsbereich!$J$703+Arbeitsbereich!$J$706+Arbeitsbereich!$J$698,NA())))) -> -1055.249943 | AP88: =IF(AND(0<=$A88,$A88<$AN$2),0,IF(AND($AN$2<=$A88,$A88<$AO$2),Arbeitsbereich!$J$704,IF(AND($AO$2<=$A88,$A88<$AP$2),Arbeitsbereich!$J$704+Arbeitsbereich!$J$707,IF(AND($AP$2<=$A88,$A88<$AQ$2),Arbeitsbereich!$J$704+Arbeitsbereich!$J$707+Arbeitsbereich!$J$697,NA())))) -> 1349.178595 | AQ88: 1712.844221 | AR88: =IF(AND(0<=$A88,$A88<$AN$2),0,IF(AND($AN$2<=$A88,$A88<$AO$2),((A88-$AN$2)*Arbeitsbereich!$J$703),IF(AND($AO$2<=$A88,$A88<$AP$2),((A88-$AN$2)*Arbeitsbereich!$J$703)+((A88-$AO$2)*Arbeitsbereich!$J$706),IF(AND($AP$2<=$A88,$A88<$AQ$2),((A88-$AN$2)*Arbeitsbereich!$J$703)+((A88-$AO$2)*Arbeitsbereich!$J$706)+((A88-$AP$2)*Arbeitsbereich!$J$698)-(Arbeitsbereich!$J$693*Arbeitsbereich!$J$686),NA())))) -> -47090.5287 | AS88: =IF(AND(0<=$A88,$A88<$AN$2),0,IF(AND($AN$2<=$A88,$A88<$AO$2),((B88-$AN$2)*Arbeitsbereich!$J$704),IF(AND($AO$2<=$A88,$A88<$AP$2),((B88-$AN$2)*Arbeitsbereich!$J$704)+((B88-$AO$2)*Arbeitsbereich!$J$707),IF(AND($AP$2<=$A88,$A88<$AQ$2),((B88-$AN$2)*Arbeitsbereich!$J$704)+((B88-$AO$2)*Arbeitsbereich!$J$707)+((B88-$AP$2)*Arbeitsbereich!$J$697),NA())))) -> 104729.9885 | AT88: 114829.8235 | AU88: =IF(AND(0<=$A88,$A88<$AN$2),Arbeitsbereich!$J$696,IF(AND($AN$2<=$A88,$A88<$AO$2),Arbeitsbereich!$J$696,IF(AND($AO$2<=$A88,$A88<$AP$2),Arbeitsbereich!$J$696,IF(AND($AP$2<=$A88,$A88<$AQ$2),Arbeitsbereich!$J$696+(Arbeitsbereich!$J$693*Arbeitsbereich!$J$666),NA())))) -> -88981.1123 | AV88: =( ((AN88/Arbeitsbereich!$J$749)^2)+(Graphen!AT88/Arbeitsbereich!$J$750)+3*(((Arbeitsbereich!$J$754*Graphen!AU88)/Arbeitsbereich!$J$751)^2) )^0.5 -> 69.74099921
A89: 78 | B89: 110 | C89: 90 | G89: 100 | L89: 260.0069628 | M89: 230.0069628 | N89: 245.0069628 | S89: 245.0069628 | AN89: =IF(AND(0<=$A89,$A89<$AN$2),0,IF(AND($AN$2<=$A89,$A89<$AO$2),Arbeitsbereich!$J$705,IF(AND($AO$2<=$A89,$A89<$AP$2),Arbeitsbereich!$J$705+Arbeitsbereich!$J$708,IF(AND($AP$2<=$A89,$A89<$AQ$2),Arbeitsbereich!$J$705+Arbeitsbereich!$J$708+Arbeitsbereich!$J$699,NA())))) -> 226.7839094 | AO89: =IF(AND(0<=$A89,$A89<$AN$2),0,IF(AND($AN$2<=$A89,$A89<$AO$2),Arbeitsbereich!$J$703,IF(AND($AO$2<=$A89,$A89<$AP$2),Arbeitsbereich!$J$703+Arbeitsbereich!$J$706,IF(AND($AP$2<=$A89,$A89<$AQ$2),Arbeitsbereich!$J$703+Arbeitsbereich!$J$706+Arbeitsbereich!$J$698,NA())))) -> -1055.249943 | AP89: =IF(AND(0<=$A89,$A89<$AN$2),0,IF(AND($AN$2<=$A89,$A89<$AO$2),Arbeitsbereich!$J$704,IF(AND($AO$2<=$A89,$A89<$AP$2),Arbeitsbereich!$J$704+Arbeitsbereich!$J$707,IF(AND($AP$2<=$A89,$A89<$AQ$2),Arbeitsbereich!$J$704+Arbeitsbereich!$J$707+Arbeitsbereich!$J$697,NA())))) -> 1349.178595 | AQ89: 1712.844221 | AR89: =IF(AND(0<=$A89,$A89<$AN$2),0,IF(AND($AN$2<=$A89,$A89<$AO$2),((A89-$AN$2)*Arbeitsbereich!$J$703),IF(AND($AO$2<=$A89,$A89<$AP$2),((A89-$AN$2)*Arbeitsbereich!$J$703)+((A89-$AO$2)*Arbeitsbereich!$J$706),IF(AND($AP$2<=$A89,$A89<$AQ$2),((A89-$AN$2)*Arbeitsbereich!$J$703)+((A89-$AO$2)*Arbeitsbereich!$J$706)+((A89-$AP$2)*Arbeitsbereich!$J$698)-(Arbeitsbereich!$J$693*Arbeitsbereich!$J$686),NA())))) -> -48145.77865 | AS89: =IF(AND(0<=$A89,$A89<$AN$2),0,IF(AND($AN$2<=$A89,$A89<$AO$2),((B89-$AN$2)*Arbeitsbereich!$J$704),IF(AND($AO$2<=$A89,$A89<$AP$2),((B89-$AN$2)*Arbeitsbereich!$J$704)+((B89-$AO$2)*Arbeitsbereich!$J$707),IF(AND($AP$2<=$A89,$A89<$AQ$2),((B89-$AN$2)*Arbeitsbereich!$J$704)+((B89-$AO$2)*Arbeitsbereich!$J$707)+((B89-$AP$2)*Arbeitsbereich!$J$697),NA())))) -> 104729.9885 | AT89: 115266.5888 | AU89: =IF(AND(0<=$A89,$A89<$AN$2),Arbeitsbereich!$J$696,IF(AND($AN$2<=$A89,$A89<$AO$2),Arbeitsbereich!$J$696,IF(AND($AO$2<=$A89,$A89<$AP$2),Arbeitsbereich!$J$696,IF(AND($AP$2<=$A89,$A89<$AQ$2),Arbeitsbereich!$J$696+(Arbeitsbereich!$J$693*Arbeitsbereich!$J$666),NA())))) -> -88981.1123 | AV89: =( ((AN89/Arbeitsbereich!$J$749)^2)+(Graphen!AT89/Arbeitsbereich!$J$750)+3*(((Arbeitsbereich!$J$754*Graphen!AU89)/Arbeitsbereich!$J$751)^2) )^0.5 -> 69.74498604
A90: 79 | B90: 110 | C90: 90 | G90: 100 | L90: 260.0069628 | M90: 230.0069628 | N90: 245.0069628 | S90: 245.0069628 | AN90: =IF(AND(0<=$A90,$A90<$AN$2),0,IF(AND($AN$2<=$A90,$A90<$AO$2),Arbeitsbereich!$J$705,IF(AND($AO$2<=$A90,$A90<$AP$2),Arbeitsbereich!$J$705+Arbeitsbereich!$J$708,IF(AND($AP$2<=$A90,$A90<$AQ$2),Arbeitsbereich!$J$705+Arbeitsbereich!$J$708+Arbeitsbereich!$J$699,NA())))) -> 226.7839094 | AO90: =IF(AND(0<=$A90,$A90<$AN$2),0,IF(AND($AN$2<=$A90,$A90<$AO$2),Arbeitsbereich!$J$703,IF(AND($AO$2<=$A90,$A90<$AP$2),Arbeitsbereich!$J$703+Arbeitsbereich!$J$706,IF(AND($AP$2<=$A90,$A90<$AQ$2),Arbeitsbereich!$J$703+Arbeitsbereich!$J$706+Arbeitsbereich!$J$698,NA())))) -> -1055.249943 | AP90: =IF(AND(0<=$A90,$A90<$AN$2),0,IF(AND($AN$2<=$A90,$A90<$AO$2),Arbeitsbereich!$J$704,IF(AND($AO$2<=$A90,$A90<$AP$2),Arbeitsbereich!$J$704+Arbeitsbereich!$J$707,IF(AND($AP$2<=$A90,$A90<$AQ$2),Arbeitsbereich!$J$704+Arbeitsbereich!$J$707+Arbeitsbereich!$J$697,NA())))) -> 1349.178595 | AQ90: 1712.844221 | AR90: =IF(AND(0<=$A90,$A90<$AN$2),0,IF(AND($AN$2<=$A90,$A90<$AO$2),((A90-$AN$2)*Arbeitsbereich!$J$703),IF(AND($AO$2<=$A90,$A90<$AP$2),((A90-$AN$2)*Arbeitsbereich!$J$703)+((A90-$AO$2)*Arbeitsbereich!$J$706),IF(AND($AP$2<=$A90,$A90<$AQ$2),((A90-$AN$2)*Arbeitsbereich!$J$703)+((A90-$AO$2)*Arbeitsbereich!$J$706)+((A90-$AP$2)*Arbeitsbereich!$J$698)-(Arbeitsbereich!$J$693*Arbeitsbereich!$J$686),NA())))) -> -49201.02859 | AS90: =IF(AND(0<=$A90,$A90<$AN$2),0,IF(AND($AN$2<=$A90,$A90<$AO$2),((B90-$AN$2)*Arbeitsbereich!$J$704),IF(AND($AO$2<=$A90,$A90<$AP$2),((B90-$AN$2)*Arbeitsbereich!$J$704)+((B90-$AO$2)*Arbeitsbereich!$J$707),IF(AND($AP$2<=$A90,$A90<$AQ$2),((B90-$AN$2)*Arbeitsbereich!$J$704)+((B90-$AO$2)*Arbeitsbereich!$J$707)+((B90-$AP$2)*Arbeitsbereich!$J$697),NA())))) -> 104729.9885 | AT90: 115711.3292 | AU90: =IF(AND(0<=$A90,$A90<$AN$2),Arbeitsbereich!$J$696,IF(AND($AN$2<=$A90,$A90<$AO$2),Arbeitsbereich!$J$696,IF(AND($AO$2<=$A90,$A90<$AP$2),Arbeitsbereich!$J$696,IF(AND($AP$2<=$A90,$A90<$AQ$2),Arbeitsbereich!$J$696+(Arbeitsbereich!$J$693*Arbeitsbereich!$J$666),NA())))) -> -88981.1123 | AV90: =( ((AN90/Arbeitsbereich!$J$749)^2)+(Graphen!AT90/Arbeitsbereich!$J$750)+3*(((Arbeitsbereich!$J$754*Graphen!AU90)/Arbeitsbereich!$J$751)^2) )^0.5 -> 69.74904544
A91: 80 | B91: 110 | C91: 90 | G91: 100 | L91: 260.0069628 | M91: 230.0069628 | N91: 245.0069628 | S91: 245.0069628 | AH91: =IF($A91=AH$8,$B$2+$D$2,NA()) ->  | AN91: =IF(AND(0<=$A91,$A91<$AN$2),0,IF(AND($AN$2<=$A91,$A91<$AO$2),Arbeitsbereich!$J$705,IF(AND($AO$2<=$A91,$A91<$AP$2),Arbeitsbereich!$J$705+Arbeitsbereich!$J$708,IF(AND($AP$2<=$A91,$A91<$AQ$2),Arbeitsbereich!$J$705+Arbeitsbereich!$J$708+Arbeitsbereich!$J$699,NA())))) -> 226.7839094 | AO91: =IF(AND(0<=$A91,$A91<$AN$2),0,IF(AND($AN$2<=$A91,$A91<$AO$2),Arbeitsbereich!$J$703,IF(AND($AO$2<=$A91,$A91<$AP$2),Arbeitsbereich!$J$703+Arbeitsbereich!$J$706,IF(AND($AP$2<=$A91,$A91<$AQ$2),Arbeitsbereich!$J$703+Arbeitsbereich!$J$706+Arbeitsbereich!$J$698,NA())))) -> -1055.249943 | AP91: =IF(AND(0<=$A91,$A91<$AN$2),0,IF(AND($AN$2<=$A91,$A91<$AO$2),Arbeitsbereich!$J$704,IF(AND($AO$2<=$A91,$A91<$AP$2),Arbeitsbereich!$J$704+Arbeitsbereich!$J$707,IF(AND($AP$2<=$A91,$A91<$AQ$2),Arbeitsbereich!$J$704+Arbeitsbereich!$J$707+Arbeitsbereich!$J$697,NA())))) -> 1349.178595 | AQ91: 1712.844221 | AR91: =IF(AND(0<=$A91,$A91<$AN$2),0,IF(AND($AN$2<=$A91,$A91<$AO$2),((A91-$AN$2)*Arbeitsbereich!$J$703),IF(AND($AO$2<=$A91,$A91<$AP$2),((A91-$AN$2)*Arbeitsbereich!$J$703)+((A91-$AO$2)*Arbeitsbereich!$J$706),IF(AND($AP$2<=$A91,$A91<$AQ$2),((A91-$AN$2)*Arbeitsbereich!$J$703)+((A91-$AO$2)*Arbeitsbereich!$J$706)+((A91-$AP$2)*Arbeitsbereich!$J$698)-(Arbeitsbereich!$J$693*Arbeitsbereich!$J$686),NA())))) -> -50256.27853 | AS91: =IF(AND(0<=$A91,$A91<$AN$2),0,IF(AND($AN$2<=$A91,$A91<$AO$2),((B91-$AN$2)*Arbeitsbereich!$J$704),IF(AND($AO$2<=$A91,$A91<$AP$2),((B91-$AN$2)*Arbeitsbereich!$J$704)+((B91-$AO$2)*Arbeitsbereich!$J$707),IF(AND($AP$2<=$A91,$A91<$AQ$2),((B91-$AN$2)*Arbeitsbereich!$J$704)+((B91-$AO$2)*Arbeitsbereich!$J$707)+((B91-$AP$2)*Arbeitsbereich!$J$697),NA())))) -> 104729.9885 | AT91: 116163.9532 | AU91: =IF(AND(0<=$A91,$A91<$AN$2),Arbeitsbereich!$J$696,IF(AND($AN$2<=$A91,$A91<$AO$2),Arbeitsbereich!$J$696,IF(AND($AO$2<=$A91,$A91<$AP$2),Arbeitsbereich!$J$696,IF(AND($AP$2<=$A91,$A91<$AQ$2),Arbeitsbereich!$J$696+(Arbeitsbereich!$J$693*Arbeitsbereich!$J$666),NA())))) -> -88981.1123 | AV91: =( ((AN91/Arbeitsbereich!$J$749)^2)+(Graphen!AT91/Arbeitsbereich!$J$750)+3*(((Arbeitsbereich!$J$754*Graphen!AU91)/Arbeitsbereich!$J$751)^2) )^0.5 -> 69.75317654
A92: 81 | B92: 110 | C92: 90 | G92: 100 | L92: 260.0069628 | M92: 230.0069628 | N92: 245.0069628 | S92: 245.0069628 | AN92: =IF(AND(0<=$A92,$A92<$AN$2),0,IF(AND($AN$2<=$A92,$A92<$AO$2),Arbeitsbereich!$J$705,IF(AND($AO$2<=$A92,$A92<$AP$2),Arbeitsbereich!$J$705+Arbeitsbereich!$J$708,IF(AND($AP$2<=$A92,$A92<$AQ$2),Arbeitsbereich!$J$705+Arbeitsbereich!$J$708+Arbeitsbereich!$J$699,NA())))) -> 226.7839094 | AO92: =IF(AND(0<=$A92,$A92<$AN$2),0,IF(AND($AN$2<=$A92,$A92<$AO$2),Arbeitsbereich!$J$703,IF(AND($AO$2<=$A92,$A92<$AP$2),Arbeitsbereich!$J$703+Arbeitsbereich!$J$706,IF(AND($AP$2<=$A92,$A92<$AQ$2),Arbeitsbereich!$J$703+Arbeitsbereich!$J$706+Arbeitsbereich!$J$698,NA())))) -> -1055.249943 | AP92: =IF(AND(0<=$A92,$A92<$AN$2),0,IF(AND($AN$2<=$A92,$A92<$AO$2),Arbeitsbereich!$J$704,IF(AND($AO$2<=$A92,$A92<$AP$2),Arbeitsbereich!$J$704+Arbeitsbereich!$J$707,IF(AND($AP$2<=$A92,$A92<$AQ$2),Arbeitsbereich!$J$704+Arbeitsbereich!$J$707+Arbeitsbereich!$J$697,NA())))) -> 1349.178595 | AQ92: 1712.844221 | AR92: =IF(AND(0<=$A92,$A92<$AN$2),0,IF(AND($AN$2<=$A92,$A92<$AO$2),((A92-$AN$2)*Arbeitsbereich!$J$703),IF(AND($AO$2<=$A92,$A92<$AP$2),((A92-$AN$2)*Arbeitsbereich!$J$703)+((A92-$AO$2)*Arbeitsbereich!$J$706),IF(AND($AP$2<=$A92,$A92<$AQ$2),((A92-$AN$2)*Arbeitsbereich!$J$703)+((A92-$AO$2)*Arbeitsbereich!$J$706)+((A92-$AP$2)*Arbeitsbereich!$J$698)-(Arbeitsbereich!$J$693*Arbeitsbereich!$J$686),NA())))) -> -51311.52848 | AS92: =IF(AND(0<=$A92,$A92<$AN$2),0,IF(AND($AN$2<=$A92,$A92<$AO$2),((B92-$AN$2)*Arbeitsbereich!$J$704),IF(AND($AO$2<=$A92,$A92<$AP$2),((B92-$AN$2)*Arbeitsbereich!$J$704)+((B92-$AO$2)*Arbeitsbereich!$J$707),IF(AND($AP$2<=$A92,$A92<$AQ$2),((B92-$AN$2)*Arbeitsbereich!$J$704)+((B92-$AO$2)*Arbeitsbereich!$J$707)+((B92-$AP$2)*Arbeitsbereich!$J$697),NA())))) -> 104729.9885 | AT92: 116624.369 | AU92: =IF(AND(0<=$A92,$A92<$AN$2),Arbeitsbereich!$J$696,IF(AND($AN$2<=$A92,$A92<$AO$2),Arbeitsbereich!$J$696,IF(AND($AO$2<=$A92,$A92<$AP$2),Arbeitsbereich!$J$696,IF(AND($AP$2<=$A92,$A92<$AQ$2),Arbeitsbereich!$J$696+(Arbeitsbereich!$J$693*Arbeitsbereich!$J$666),NA())))) -> -88981.1123 | AV92: =( ((AN92/Arbeitsbereich!$J$749)^2)+(Graphen!AT92/Arbeitsbereich!$J$750)+3*(((Arbeitsbereich!$J$754*Graphen!AU92)/Arbeitsbereich!$J$751)^2) )^0.5 -> 69.75737852
A93: 82 | B93: 110 | C93: 90 | G93: 100 | L93: 260.0069628 | M93: 230.0069628 | N93: 245.0069628 | S93: 245.0069628 | AN93: =IF(AND(0<=$A93,$A93<$AN$2),0,IF(AND($AN$2<=$A93,$A93<$AO$2),Arbeitsbereich!$J$705,IF(AND($AO$2<=$A93,$A93<$AP$2),Arbeitsbereich!$J$705+Arbeitsbereich!$J$708,IF(AND($AP$2<=$A93,$A93<$AQ$2),Arbeitsbereich!$J$705+Arbeitsbereich!$J$708+Arbeitsbereich!$J$699,NA())))) -> 226.7839094 | AO93: =IF(AND(0<=$A93,$A93<$AN$2),0,IF(AND($AN$2<=$A93,$A93<$AO$2),Arbeitsbereich!$J$703,IF(AND($AO$2<=$A93,$A93<$AP$2),Arbeitsbereich!$J$703+Arbeitsbereich!$J$706,IF(AND($AP$2<=$A93,$A93<$AQ$2),Arbeitsbereich!$J$703+Arbeitsbereich!$J$706+Arbeitsbereich!$J$698,NA())))) -> -1055.249943 | AP93: =IF(AND(0<=$A93,$A93<$AN$2),0,IF(AND($AN$2<=$A93,$A93<$AO$2),Arbeitsbereich!$J$704,IF(AND($AO$2<=$A93,$A93<$AP$2),Arbeitsbereich!$J$704+Arbeitsbereich!$J$707,IF(AND($AP$2<=$A93,$A93<$AQ$2),Arbeitsbereich!$J$704+Arbeitsbereich!$J$707+Arbeitsbereich!$J$697,NA())))) -> 1349.178595 | AQ93: 1712.844221 | AR93: =IF(AND(0<=$A93,$A93<$AN$2),0,IF(AND($AN$2<=$A93,$A93<$AO$2),((A93-$AN$2)*Arbeitsbereich!$J$703),IF(AND($AO$2<=$A93,$A93<$AP$2),((A93-$AN$2)*Arbeitsbereich!$J$703)+((A93-$AO$2)*Arbeitsbereich!$J$706),IF(AND($AP$2<=$A93,$A93<$AQ$2),((A93-$AN$2)*Arbeitsbereich!$J$703)+((A93-$AO$2)*Arbeitsbereich!$J$706)+((A93-$AP$2)*Arbeitsbereich!$J$698)-(Arbeitsbereich!$J$693*Arbeitsbereich!$J$686),NA())))) -> -52366.77842 | AS93: =IF(AND(0<=$A93,$A93<$AN$2),0,IF(AND($AN$2<=$A93,$A93<$AO$2),((B93-$AN$2)*Arbeitsbereich!$J$704),IF(AND($AO$2<=$A93,$A93<$AP$2),((B93-$AN$2)*Arbeitsbereich!$J$704)+((B93-$AO$2)*Arbeitsbereich!$J$707),IF(AND($AP$2<=$A93,$A93<$AQ$2),((B93-$AN$2)*Arbeitsbereich!$J$704)+((B93-$AO$2)*Arbeitsbereich!$J$707)+((B93-$AP$2)*Arbeitsbereich!$J$697),NA())))) -> 104729.9885 | AT93: 117092.4847 | AU93: =IF(AND(0<=$A93,$A93<$AN$2),Arbeitsbereich!$J$696,IF(AND($AN$2<=$A93,$A93<$AO$2),Arbeitsbereich!$J$696,IF(AND($AO$2<=$A93,$A93<$AP$2),Arbeitsbereich!$J$696,IF(AND($AP$2<=$A93,$A93<$AQ$2),Arbeitsbereich!$J$696+(Arbeitsbereich!$J$693*Arbeitsbereich!$J$666),NA())))) -> -88981.1123 | AV93: =( ((AN93/Arbeitsbereich!$J$749)^2)+(Graphen!AT93/Arbeitsbereich!$J$750)+3*(((Arbeitsbereich!$J$754*Graphen!AU93)/Arbeitsbereich!$J$751)^2) )^0.5 -> 69.7616505
A94: 83 | B94: 110 | C94: 90 | G94: 100 | L94: 260.0069628 | M94: 230.0069628 | N94: 245.0069628 | S94: 245.0069628 | U94: 245.0069628 | AN94: =IF(AND(0<=$A94,$A94<$AN$2),0,IF(AND($AN$2<=$A94,$A94<$AO$2),Arbeitsbereich!$J$705,IF(AND($AO$2<=$A94,$A94<$AP$2),Arbeitsbereich!$J$705+Arbeitsbereich!$J$708,IF(AND($AP$2<=$A94,$A94<$AQ$2),Arbeitsbereich!$J$705+Arbeitsbereich!$J$708+Arbeitsbereich!$J$699,NA())))) -> 226.7839094 | AO94: =IF(AND(0<=$A94,$A94<$AN$2),0,IF(AND($AN$2<=$A94,$A94<$AO$2),Arbeitsbereich!$J$703,IF(AND($AO$2<=$A94,$A94<$AP$2),Arbeitsbereich!$J$703+Arbeitsbereich!$J$706,IF(AND($AP$2<=$A94,$A94<$AQ$2),Arbeitsbereich!$J$703+Arbeitsbereich!$J$706+Arbeitsbereich!$J$698,NA())))) -> -1055.249943 | AP94: =IF(AND(0<=$A94,$A94<$AN$2),0,IF(AND($AN$2<=$A94,$A94<$AO$2),Arbeitsbereich!$J$704,IF(AND($AO$2<=$A94,$A94<$AP$2),Arbeitsbereich!$J$704+Arbeitsbereich!$J$707,IF(AND($AP$2<=$A94,$A94<$AQ$2),Arbeitsbereich!$J$704+Arbeitsbereich!$J$707+Arbeitsbereich!$J$697,NA())))) -> 1349.178595 | AQ94: 1712.844221 | AR94: =IF(AND(0<=$A94,$A94<$AN$2),0,IF(AND($AN$2<=$A94,$A94<$AO$2),((A94-$AN$2)*Arbeitsbereich!$J$703),IF(AND($AO$2<=$A94,$A94<$AP$2),((A94-$AN$2)*Arbeitsbereich!$J$703)+((A94-$AO$2)*Arbeitsbereich!$J$706),IF(AND($AP$2<=$A94,$A94<$AQ$2),((A94-$AN$2)*Arbeitsbereich!$J$703)+((A94-$AO$2)*Arbeitsbereich!$J$706)+((A94-$AP$2)*Arbeitsbereich!$J$698)-(Arbeitsbereich!$J$693*Arbeitsbereich!$J$686),NA())))) -> -53422.02836 | AS94: =IF(AND(0<=$A94,$A94<$AN$2),0,IF(AND($AN$2<=$A94,$A94<$AO$2),((B94-$AN$2)*Arbeitsbereich!$J$704),IF(AND($AO$2<=$A94,$A94<$AP$2),((B94-$AN$2)*Arbeitsbereich!$J$704)+((B94-$AO$2)*Arbeitsbereich!$J$707),IF(AND($AP$2<=$A94,$A94<$AQ$2),((B94-$AN$2)*Arbeitsbereich!$J$704)+((B94-$AO$2)*Arbeitsbereich!$J$707)+((B94-$AP$2)*Arbeitsbereich!$J$697),NA())))) -> 104729.9885 | AT94: 117568.2083 | AU94: =IF(AND(0<=$A94,$A94<$AN$2),Arbeitsbereich!$J$696,IF(AND($AN$2<=$A94,$A94<$AO$2),Arbeitsbereich!$J$696,IF(AND($AO$2<=$A94,$A94<$AP$2),Arbeitsbereich!$J$696,IF(AND($AP$2<=$A94,$A94<$AQ$2),Arbeitsbereich!$J$696+(Arbeitsbereich!$J$693*Arbeitsbereich!$J$666),NA())))) -> -88981.1123 | AV94: =( ((AN94/Arbeitsbereich!$J$749)^2)+(Graphen!AT94/Arbeitsbereich!$J$750)+3*(((Arbeitsbereich!$J$754*Graphen!AU94)/Arbeitsbereich!$J$751)^2) )^0.5 -> 69.76599165
A95: 84 | B95: 110 | C95: 90 | G95: 100 | L95: 260.0069628 | M95: 230.0069628 | N95: 245.0069628 | S95: 245.0069628 | AN95: =IF(AND(0<=$A95,$A95<$AN$2),0,IF(AND($AN$2<=$A95,$A95<$AO$2),Arbeitsbereich!$J$705,IF(AND($AO$2<=$A95,$A95<$AP$2),Arbeitsbereich!$J$705+Arbeitsbereich!$J$708,IF(AND($AP$2<=$A95,$A95<$AQ$2),Arbeitsbereich!$J$705+Arbeitsbereich!$J$708+Arbeitsbereich!$J$699,NA())))) -> 226.7839094 | AO95: =IF(AND(0<=$A95,$A95<$AN$2),0,IF(AND($AN$2<=$A95,$A95<$AO$2),Arbeitsbereich!$J$703,IF(AND($AO$2<=$A95,$A95<$AP$2),Arbeitsbereich!$J$703+Arbeitsbereich!$J$706,IF(AND($AP$2<=$A95,$A95<$AQ$2),Arbeitsbereich!$J$703+Arbeitsbereich!$J$706+Arbeitsbereich!$J$698,NA())))) -> -1055.249943 | AP95: =IF(AND(0<=$A95,$A95<$AN$2),0,IF(AND($AN$2<=$A95,$A95<$AO$2),Arbeitsbereich!$J$704,IF(AND($AO$2<=$A95,$A95<$AP$2),Arbeitsbereich!$J$704+Arbeitsbereich!$J$707,IF(AND($AP$2<=$A95,$A95<$AQ$2),Arbeitsbereich!$J$704+Arbeitsbereich!$J$707+Arbeitsbereich!$J$697,NA())))) -> 1349.178595 | AQ95: 1712.844221 | AR95: =IF(AND(0<=$A95,$A95<$AN$2),0,IF(AND($AN$2<=$A95,$A95<$AO$2),((A95-$AN$2)*Arbeitsbereich!$J$703),IF(AND($AO$2<=$A95,$A95<$AP$2),((A95-$AN$2)*Arbeitsbereich!$J$703)+((A95-$AO$2)*Arbeitsbereich!$J$706),IF(AND($AP$2<=$A95,$A95<$AQ$2),((A95-$AN$2)*Arbeitsbereich!$J$703)+((A95-$AO$2)*Arbeitsbereich!$J$706)+((A95-$AP$2)*Arbeitsbereich!$J$698)-(Arbeitsbereich!$J$693*Arbeitsbereich!$J$686),NA())))) -> -54477.27831 | AS95: =IF(AND(0<=$A95,$A95<$AN$2),0,IF(AND($AN$2<=$A95,$A95<$AO$2),((B95-$AN$2)*Arbeitsbereich!$J$704),IF(AND($AO$2<=$A95,$A95<$AP$2),((B95-$AN$2)*Arbeitsbereich!$J$704)+((B95-$AO$2)*Arbeitsbereich!$J$707),IF(AND($AP$2<=$A95,$A95<$AQ$2),((B95-$AN$2)*Arbeitsbereich!$J$704)+((B95-$AO$2)*Arbeitsbereich!$J$707)+((B95-$AP$2)*Arbeitsbereich!$J$697),NA())))) -> 104729.9885 | AT95: 118051.4478 | AU95: =IF(AND(0<=$A95,$A95<$AN$2),Arbeitsbereich!$J$696,IF(AND($AN$2<=$A95,$A95<$AO$2),Arbeitsbereich!$J$696,IF(AND($AO$2<=$A95,$A95<$AP$2),Arbeitsbereich!$J$696,IF(AND($AP$2<=$A95,$A95<$AQ$2),Arbeitsbereich!$J$696+(Arbeitsbereich!$J$693*Arbeitsbereich!$J$666),NA())))) -> -88981.1123 | AV95: =( ((AN95/Arbeitsbereich!$J$749)^2)+(Graphen!AT95/Arbeitsbereich!$J$750)+3*(((Arbeitsbereich!$J$754*Graphen!AU95)/Arbeitsbereich!$J$751)^2) )^0.5 -> 69.77040111
A96: 85 | B96: 110 | C96: 90 | G96: 100 | L96: 260.0069628 | M96: 230.0069628 | N96: 245.0069628 | S96: 245.0069628 | AN96: =IF(AND(0<=$A96,$A96<$AN$2),0,IF(AND($AN$2<=$A96,$A96<$AO$2),Arbeitsbereich!$J$705,IF(AND($AO$2<=$A96,$A96<$AP$2),Arbeitsbereich!$J$705+Arbeitsbereich!$J$708,IF(AND($AP$2<=$A96,$A96<$AQ$2),Arbeitsbereich!$J$705+Arbeitsbereich!$J$708+Arbeitsbereich!$J$699,NA())))) -> 226.7839094 | AO96: =IF(AND(0<=$A96,$A96<$AN$2),0,IF(AND($AN$2<=$A96,$A96<$AO$2),Arbeitsbereich!$J$703,IF(AND($AO$2<=$A96,$A96<$AP$2),Arbeitsbereich!$J$703+Arbeitsbereich!$J$706,IF(AND($AP$2<=$A96,$A96<$AQ$2),Arbeitsbereich!$J$703+Arbeitsbereich!$J$706+Arbeitsbereich!$J$698,NA())))) -> -1055.249943 | AP96: =IF(AND(0<=$A96,$A96<$AN$2),0,IF(AND($AN$2<=$A96,$A96<$AO$2),Arbeitsbereich!$J$704,IF(AND($AO$2<=$A96,$A96<$AP$2),Arbeitsbereich!$J$704+Arbeitsbereich!$J$707,IF(AND($AP$2<=$A96,$A96<$AQ$2),Arbeitsbereich!$J$704+Arbeitsbereich!$J$707+Arbeitsbereich!$J$697,NA())))) -> 1349.178595 | AQ96: 1712.844221 | AR96: =IF(AND(0<=$A96,$A96<$AN$2),0,IF(AND($AN$2<=$A96,$A96<$AO$2),((A96-$AN$2)*Arbeitsbereich!$J$703),IF(AND($AO$2<=$A96,$A96<$AP$2),((A96-$AN$2)*Arbeitsbereich!$J$703)+((A96-$AO$2)*Arbeitsbereich!$J$706),IF(AND($AP$2<=$A96,$A96<$AQ$2),((A96-$AN$2)*Arbeitsbereich!$J$703)+((A96-$AO$2)*Arbeitsbereich!$J$706)+((A96-$AP$2)*Arbeitsbereich!$J$698)-(Arbeitsbereich!$J$693*Arbeitsbereich!$J$686),NA())))) -> -55532.52825 | AS96: =IF(AND(0<=$A96,$A96<$AN$2),0,IF(AND($AN$2<=$A96,$A96<$AO$2),((B96-$AN$2)*Arbeitsbereich!$J$704),IF(AND($AO$2<=$A96,$A96<$AP$2),((B96-$AN$2)*Arbeitsbereich!$J$704)+((B96-$AO$2)*Arbeitsbereich!$J$707),IF(AND($AP$2<=$A96,$A96<$AQ$2),((B96-$AN$2)*Arbeitsbereich!$J$704)+((B96-$AO$2)*Arbeitsbereich!$J$707)+((B96-$AP$2)*Arbeitsbereich!$J$697),NA())))) -> 104729.9885 | AT96: 118542.1114 | AU96: =IF(AND(0<=$A96,$A96<$AN$2),Arbeitsbereich!$J$696,IF(AND($AN$2<=$A96,$A96<$AO$2),Arbeitsbereich!$J$696,IF(AND($AO$2<=$A96,$A96<$AP$2),Arbeitsbereich!$J$696,IF(AND($AP$2<=$A96,$A96<$AQ$2),Arbeitsbereich!$J$696+(Arbeitsbereich!$J$693*Arbeitsbereich!$J$666),NA())))) -> -88981.1123 | AV96: =( ((AN96/Arbeitsbereich!$J$749)^2)+(Graphen!AT96/Arbeitsbereich!$J$750)+3*(((Arbeitsbereich!$J$754*Graphen!AU96)/Arbeitsbereich!$J$751)^2) )^0.5 -> 69.77487802
A97: 86 | B97: 110 | C97: 90 | G97: 100 | L97: 260.0069628 | M97: 230.0069628 | N97: 245.0069628 | S97: 245.0069628 | AN97: =IF(AND(0<=$A97,$A97<$AN$2),0,IF(AND($AN$2<=$A97,$A97<$AO$2),Arbeitsbereich!$J$705,IF(AND($AO$2<=$A97,$A97<$AP$2),Arbeitsbereich!$J$705+Arbeitsbereich!$J$708,IF(AND($AP$2<=$A97,$A97<$AQ$2),Arbeitsbereich!$J$705+Arbeitsbereich!$J$708+Arbeitsbereich!$J$699,NA())))) -> 226.7839094 | AO97: =IF(AND(0<=$A97,$A97<$AN$2),0,IF(AND($AN$2<=$A97,$A97<$AO$2),Arbeitsbereich!$J$703,IF(AND($AO$2<=$A97,$A97<$AP$2),Arbeitsbereich!$J$703+Arbeitsbereich!$J$706,IF(AND($AP$2<=$A97,$A97<$AQ$2),Arbeitsbereich!$J$703+Arbeitsbereich!$J$706+Arbeitsbereich!$J$698,NA())))) -> -1055.249943 | AP97: =IF(AND(0<=$A97,$A97<$AN$2),0,IF(AND($AN$2<=$A97,$A97<$AO$2),Arbeitsbereich!$J$704,IF(AND($AO$2<=$A97,$A97<$AP$2),Arbeitsbereich!$J$704+Arbeitsbereich!$J$707,IF(AND($AP$2<=$A97,$A97<$AQ$2),Arbeitsbereich!$J$704+Arbeitsbereich!$J$707+Arbeitsbereich!$J$697,NA())))) -> 1349.178595 | AQ97: 1712.844221 | AR97: =IF(AND(0<=$A97,$A97<$AN$2),0,IF(AND($AN$2<=$A97,$A97<$AO$2),((A97-$AN$2)*Arbeitsbereich!$J$703),IF(AND($AO$2<=$A97,$A97<$AP$2),((A97-$AN$2)*Arbeitsbereich!$J$703)+((A97-$AO$2)*Arbeitsbereich!$J$706),IF(AND($AP$2<=$A97,$A97<$AQ$2),((A97-$AN$2)*Arbeitsbereich!$J$703)+((A97-$AO$2)*Arbeitsbereich!$J$706)+((A97-$AP$2)*Arbeitsbereich!$J$698)-(Arbeitsbereich!$J$693*Arbeitsbereich!$J$686),NA())))) -> -56587.77819 | AS97: =IF(AND(0<=$A97,$A97<$AN$2),0,IF(AND($AN$2<=$A97,$A97<$AO$2),((B97-$AN$2)*Arbeitsbereich!$J$704),IF(AND($AO$2<=$A97,$A97<$AP$2),((B97-$AN$2)*Arbeitsbereich!$J$704)+((B97-$AO$2)*Arbeitsbereich!$J$707),IF(AND($AP$2<=$A97,$A97<$AQ$2),((B97-$AN$2)*Arbeitsbereich!$J$704)+((B97-$AO$2)*Arbeitsbereich!$J$707)+((B97-$AP$2)*Arbeitsbereich!$J$697),NA())))) -> 104729.9885 | AT97: 119040.1072 | AU97: =IF(AND(0<=$A97,$A97<$AN$2),Arbeitsbereich!$J$696,IF(AND($AN$2<=$A97,$A97<$AO$2),Arbeitsbereich!$J$696,IF(AND($AO$2<=$A97,$A97<$AP$2),Arbeitsbereich!$J$696,IF(AND($AP$2<=$A97,$A97<$AQ$2),Arbeitsbereich!$J$696+(Arbeitsbereich!$J$693*Arbeitsbereich!$J$666),NA())))) -> -88981.1123 | AV97: =( ((AN97/Arbeitsbereich!$J$749)^2)+(Graphen!AT97/Arbeitsbereich!$J$750)+3*(((Arbeitsbereich!$J$754*Graphen!AU97)/Arbeitsbereich!$J$751)^2) )^0.5 -> 69.77942154
A98: 87 | B98: 110 | C98: 90 | G98: 100 | L98: 260.0069628 | M98: 230.0069628 | N98: 245.0069628 | S98: 245.0069628 | AN98: =IF(AND(0<=$A98,$A98<$AN$2),0,IF(AND($AN$2<=$A98,$A98<$AO$2),Arbeitsbereich!$J$705,IF(AND($AO$2<=$A98,$A98<$AP$2),Arbeitsbereich!$J$705+Arbeitsbereich!$J$708,IF(AND($AP$2<=$A98,$A98<$AQ$2),Arbeitsbereich!$J$705+Arbeitsbereich!$J$708+Arbeitsbereich!$J$699,NA())))) -> 226.7839094 | AO98: =IF(AND(0<=$A98,$A98<$AN$2),0,IF(AND($AN$2<=$A98,$A98<$AO$2),Arbeitsbereich!$J$703,IF(AND($AO$2<=$A98,$A98<$AP$2),Arbeitsbereich!$J$703+Arbeitsbereich!$J$706,IF(AND($AP$2<=$A98,$A98<$AQ$2),Arbeitsbereich!$J$703+Arbeitsbereich!$J$706+Arbeitsbereich!$J$698,NA())))) -> -1055.249943 | AP98: =IF(AND(0<=$A98,$A98<$AN$2),0,IF(AND($AN$2<=$A98,$A98<$AO$2),Arbeitsbereich!$J$704,IF(AND($AO$2<=$A98,$A98<$AP$2),Arbeitsbereich!$J$704+Arbeitsbereich!$J$707,IF(AND($AP$2<=$A98,$A98<$AQ$2),Arbeitsbereich!$J$704+Arbeitsbereich!$J$707+Arbeitsbereich!$J$697,NA())))) -> 1349.178595 | AQ98: 1712.844221 | AR98: =IF(AND(0<=$A98,$A98<$AN$2),0,IF(AND($AN$2<=$A98,$A98<$AO$2),((A98-$AN$2)*Arbeitsbereich!$J$703),IF(AND($AO$2<=$A98,$A98<$AP$2),((A98-$AN$2)*Arbeitsbereich!$J$703)+((A98-$AO$2)*Arbeitsbereich!$J$706),IF(AND($AP$2<=$A98,$A98<$AQ$2),((A98-$AN$2)*Arbeitsbereich!$J$703)+((A98-$AO$2)*Arbeitsbereich!$J$706)+((A98-$AP$2)*Arbeitsbereich!$J$698)-(Arbeitsbereich!$J$693*Arbeitsbereich!$J$686),NA())))) -> -57643.02813 | AS98: =IF(AND(0<=$A98,$A98<$AN$2),0,IF(AND($AN$2<=$A98,$A98<$AO$2),((B98-$AN$2)*Arbeitsbereich!$J$704),IF(AND($AO$2<=$A98,$A98<$AP$2),((B98-$AN$2)*Arbeitsbereich!$J$704)+((B98-$AO$2)*Arbeitsbereich!$J$707),IF(AND($AP$2<=$A98,$A98<$AQ$2),((B98-$AN$2)*Arbeitsbereich!$J$704)+((B98-$AO$2)*Arbeitsbereich!$J$707)+((B98-$AP$2)*Arbeitsbereich!$J$697),NA())))) -> 104729.9885 | AT98: 119545.3436 | AU98: =IF(AND(0<=$A98,$A98<$AN$2),Arbeitsbereich!$J$696,IF(AND($AN$2<=$A98,$A98<$AO$2),Arbeitsbereich!$J$696,IF(AND($AO$2<=$A98,$A98<$AP$2),Arbeitsbereich!$J$696,IF(AND($AP$2<=$A98,$A98<$AQ$2),Arbeitsbereich!$J$696+(Arbeitsbereich!$J$693*Arbeitsbereich!$J$666),NA())))) -> -88981.1123 | AV98: =( ((AN98/Arbeitsbereich!$J$749)^2)+(Graphen!AT98/Arbeitsbereich!$J$750)+3*(((Arbeitsbereich!$J$754*Graphen!AU98)/Arbeitsbereich!$J$751)^2) )^0.5 -> 69.78403082
A99: 88 | B99: 110 | C99: 90 | G99: 100 | L99: 260.0069628 | M99: 230.0069628 | N99: 245.0069628 | S99: 245.0069628 | AN99: =IF(AND(0<=$A99,$A99<$AN$2),0,IF(AND($AN$2<=$A99,$A99<$AO$2),Arbeitsbereich!$J$705,IF(AND($AO$2<=$A99,$A99<$AP$2),Arbeitsbereich!$J$705+Arbeitsbereich!$J$708,IF(AND($AP$2<=$A99,$A99<$AQ$2),Arbeitsbereich!$J$705+Arbeitsbereich!$J$708+Arbeitsbereich!$J$699,NA())))) -> 226.7839094 | AO99: =IF(AND(0<=$A99,$A99<$AN$2),0,IF(AND($AN$2<=$A99,$A99<$AO$2),Arbeitsbereich!$J$703,IF(AND($AO$2<=$A99,$A99<$AP$2),Arbeitsbereich!$J$703+Arbeitsbereich!$J$706,IF(AND($AP$2<=$A99,$A99<$AQ$2),Arbeitsbereich!$J$703+Arbeitsbereich!$J$706+Arbeitsbereich!$J$698,NA())))) -> -1055.249943 | AP99: =IF(AND(0<=$A99,$A99<$AN$2),0,IF(AND($AN$2<=$A99,$A99<$AO$2),Arbeitsbereich!$J$704,IF(AND($AO$2<=$A99,$A99<$AP$2),Arbeitsbereich!$J$704+Arbeitsbereich!$J$707,IF(AND($AP$2<=$A99,$A99<$AQ$2),Arbeitsbereich!$J$704+Arbeitsbereich!$J$707+Arbeitsbereich!$J$697,NA())))) -> 1349.178595 | AQ99: 1712.844221 | AR99: =IF(AND(0<=$A99,$A99<$AN$2),0,IF(AND($AN$2<=$A99,$A99<$AO$2),((A99-$AN$2)*Arbeitsbereich!$J$703),IF(AND($AO$2<=$A99,$A99<$AP$2),((A99-$AN$2)*Arbeitsbereich!$J$703)+((A99-$AO$2)*Arbeitsbereich!$J$706),IF(AND($AP$2<=$A99,$A99<$AQ$2),((A99-$AN$2)*Arbeitsbereich!$J$703)+((A99-$AO$2)*Arbeitsbereich!$J$706)+((A99-$AP$2)*Arbeitsbereich!$J$698)-(Arbeitsbereich!$J$693*Arbeitsbereich!$J$686),NA())))) -> -58698.27808 | AS99: =IF(AND(0<=$A99,$A99<$AN$2),0,IF(AND($AN$2<=$A99,$A99<$AO$2),((B99-$AN$2)*Arbeitsbereich!$J$704),IF(AND($AO$2<=$A99,$A99<$AP$2),((B99-$AN$2)*Arbeitsbereich!$J$704)+((B99-$AO$2)*Arbeitsbereich!$J$707),IF(AND($AP$2<=$A99,$A99<$AQ$2),((B99-$AN$2)*Arbeitsbereich!$J$704)+((B99-$AO$2)*Arbeitsbereich!$J$707)+((B99-$AP$2)*Arbeitsbereich!$J$697),NA())))) -> 104729.9885 | AT99: 120057.7292 | AU99: =IF(AND(0<=$A99,$A99<$AN$2),Arbeitsbereich!$J$696,IF(AND($AN$2<=$A99,$A99<$AO$2),Arbeitsbereich!$J$696,IF(AND($AO$2<=$A99,$A99<$AP$2),Arbeitsbereich!$J$696,IF(AND($AP$2<=$A99,$A99<$AQ$2),Arbeitsbereich!$J$696+(Arbeitsbereich!$J$693*Arbeitsbereich!$J$666),NA())))) -> -88981.1123 | AV99: =( ((AN99/Arbeitsbereich!$J$749)^2)+(Graphen!AT99/Arbeitsbereich!$J$750)+3*(((Arbeitsbereich!$J$754*Graphen!AU99)/Arbeitsbereich!$J$751)^2) )^0.5 -> 69.78870501
A100: 89 | B100: 110 | C100: 90 | G100: 100 | L100: 260.0069628 | M100: 230.0069628 | N100: 245.0069628 | S100: 245.0069628 | AN100: =IF(AND(0<=$A100,$A100<$AN$2),0,IF(AND($AN$2<=$A100,$A100<$AO$2),Arbeitsbereich!$J$705,IF(AND($AO$2<=$A100,$A100<$AP$2),Arbeitsbereich!$J$705+Arbeitsbereich!$J$708,IF(AND($AP$2<=$A100,$A100<$AQ$2),Arbeitsbereich!$J$705+Arbeitsbereich!$J$708+Arbeitsbereich!$J$699,NA())))) -> 226.7839094 | AO100: =IF(AND(0<=$A100,$A100<$AN$2),0,IF(AND($AN$2<=$A100,$A100<$AO$2),Arbeitsbereich!$J$703,IF(AND($AO$2<=$A100,$A100<$AP$2),Arbeitsbereich!$J$703+Arbeitsbereich!$J$706,IF(AND($AP$2<=$A100,$A100<$AQ$2),Arbeitsbereich!$J$703+Arbeitsbereich!$J$706+Arbeitsbereich!$J$698,NA())))) -> -1055.249943 | AP100: =IF(AND(0<=$A100,$A100<$AN$2),0,IF(AND($AN$2<=$A100,$A100<$AO$2),Arbeitsbereich!$J$704,IF(AND($AO$2<=$A100,$A100<$AP$2),Arbeitsbereich!$J$704+Arbeitsbereich!$J$707,IF(AND($AP$2<=$A100,$A100<$AQ$2),Arbeitsbereich!$J$704+Arbeitsbereich!$J$707+Arbeitsbereich!$J$697,NA())))) -> 1349.178595 | AQ100: 1712.844221 | AR100: =IF(AND(0<=$A100,$A100<$AN$2),0,IF(AND($AN$2<=$A100,$A100<$AO$2),((A100-$AN$2)*Arbeitsbereich!$J$703),IF(AND($AO$2<=$A100,$A100<$AP$2),((A100-$AN$2)*Arbeitsbereich!$J$703)+((A100-$AO$2)*Arbeitsbereich!$J$706),IF(AND($AP$2<=$A100,$A100<$AQ$2),((A100-$AN$2)*Arbeitsbereich!$J$703)+((A100-$AO$2)*Arbeitsbereich!$J$706)+((A100-$AP$2)*Arbeitsbereich!$J$698)-(Arbeitsbereich!$J$693*Arbeitsbereich!$J$686),NA())))) -> -59753.52802 | AS100: =IF(AND(0<=$A100,$A100<$AN$2),0,IF(AND($AN$2<=$A100,$A100<$AO$2),((B100-$AN$2)*Arbeitsbereich!$J$704),IF(AND($AO$2<=$A100,$A100<$AP$2),((B100-$AN$2)*Arbeitsbereich!$J$704)+((B100-$AO$2)*Arbeitsbereich!$J$707),IF(AND($AP$2<=$A100,$A100<$AQ$2),((B100-$AN$2)*Arbeitsbereich!$J$704)+((B100-$AO$2)*Arbeitsbereich!$J$707)+((B100-$AP$2)*Arbeitsbereich!$J$697),NA())))) -> 104729.9885 | AT100: 120577.1728 | AU100: =IF(AND(0<=$A100,$A100<$AN$2),Arbeitsbereich!$J$696,IF(AND($AN$2<=$A100,$A100<$AO$2),Arbeitsbereich!$J$696,IF(AND($AO$2<=$A100,$A100<$AP$2),Arbeitsbereich!$J$696,IF(AND($AP$2<=$A100,$A100<$AQ$2),Arbeitsbereich!$J$696+(Arbeitsbereich!$J$693*Arbeitsbereich!$J$666),NA())))) -> -88981.1123 | AV100: =( ((AN100/Arbeitsbereich!$J$749)^2)+(Graphen!AT100/Arbeitsbereich!$J$750)+3*(((Arbeitsbereich!$J$754*Graphen!AU100)/Arbeitsbereich!$J$751)^2) )^0.5 -> 69.79344327
A101: 90 | B101: 110 | C101: 90 | G101: 100 | L101: 260.0069628 | M101: 230.0069628 | N101: 245.0069628 | S101: 245.0069628 | AN101: =IF(AND(0<=$A101,$A101<$AN$2),0,IF(AND($AN$2<=$A101,$A101<$AO$2),Arbeitsbereich!$J$705,IF(AND($AO$2<=$A101,$A101<$AP$2),Arbeitsbereich!$J$705+Arbeitsbereich!$J$708,IF(AND($AP$2<=$A101,$A101<$AQ$2),Arbeitsbereich!$J$705+Arbeitsbereich!$J$708+Arbeitsbereich!$J$699,NA())))) -> 226.7839094 | AO101: =IF(AND(0<=$A101,$A101<$AN$2),0,IF(AND($AN$2<=$A101,$A101<$AO$2),Arbeitsbereich!$J$703,IF(AND($AO$2<=$A101,$A101<$AP$2),Arbeitsbereich!$J$703+Arbeitsbereich!$J$706,IF(AND($AP$2<=$A101,$A101<$AQ$2),Arbeitsbereich!$J$703+Arbeitsbereich!$J$706+Arbeitsbereich!$J$698,NA())))) -> -1055.249943 | AP101: =IF(AND(0<=$A101,$A101<$AN$2),0,IF(AND($AN$2<=$A101,$A101<$AO$2),Arbeitsbereich!$J$704,IF(AND($AO$2<=$A101,$A101<$AP$2),Arbeitsbereich!$J$704+Arbeitsbereich!$J$707,IF(AND($AP$2<=$A101,$A101<$AQ$2),Arbeitsbereich!$J$704+Arbeitsbereich!$J$707+Arbeitsbereich!$J$697,NA())))) -> 1349.178595 | AQ101: 1712.844221 | AR101: =IF(AND(0<=$A101,$A101<$AN$2),0,IF(AND($AN$2<=$A101,$A101<$AO$2),((A101-$AN$2)*Arbeitsbereich!$J$703),IF(AND($AO$2<=$A101,$A101<$AP$2),((A101-$AN$2)*Arbeitsbereich!$J$703)+((A101-$AO$2)*Arbeitsbereich!$J$706),IF(AND($AP$2<=$A101,$A101<$AQ$2),((A101-$AN$2)*Arbeitsbereich!$J$703)+((A101-$AO$2)*Arbeitsbereich!$J$706)+((A101-$AP$2)*Arbeitsbereich!$J$698)-(Arbeitsbereich!$J$693*Arbeitsbereich!$J$686),NA())))) -> -60808.77796 | AS101: =IF(AND(0<=$A101,$A101<$AN$2),0,IF(AND($AN$2<=$A101,$A101<$AO$2),((B101-$AN$2)*Arbeitsbereich!$J$704),IF(AND($AO$2<=$A101,$A101<$AP$2),((B101-$AN$2)*Arbeitsbereich!$J$704)+((B101-$AO$2)*Arbeitsbereich!$J$707),IF(AND($AP$2<=$A101,$A101<$AQ$2),((B101-$AN$2)*Arbeitsbereich!$J$704)+((B101-$AO$2)*Arbeitsbereich!$J$707)+((B101-$AP$2)*Arbeitsbereich!$J$697),NA())))) -> 104729.9885 | AT101: 121103.5836 | AU101: =IF(AND(0<=$A101,$A101<$AN$2),Arbeitsbereich!$J$696,IF(AND($AN$2<=$A101,$A101<$AO$2),Arbeitsbereich!$J$696,IF(AND($AO$2<=$A101,$A101<$AP$2),Arbeitsbereich!$J$696,IF(AND($AP$2<=$A101,$A101<$AQ$2),Arbeitsbereich!$J$696+(Arbeitsbereich!$J$693*Arbeitsbereich!$J$666),NA())))) -> -88981.1123 | AV101: =( ((AN101/Arbeitsbereich!$J$749)^2)+(Graphen!AT101/Arbeitsbereich!$J$750)+3*(((Arbeitsbereich!$J$754*Graphen!AU101)/Arbeitsbereich!$J$751)^2) )^0.5 -> 69.79824475
